Workbook

Sheet Instructions
C1: Instructions
B3: ;g ,Dly izksxzke esjs ije~ iwT; xq:nso Jh Jh 1008 oklqnso th egkjkt o esjs bZ"V izHkq t; ctjaxcyh o ikcwth egkjkt dks lefiZr gSaA esjs ekrk & firk o xq:tuksa ds vk'khokZn ls ;g izksxzke f'k{kd cU/kqvksa ds lkFk lHkh foHkkx ds dkfeZdksa dh lsok esa lknj izLrqr gSaA
C4: How to use this Programme
C5: If you have Hindi font problem, then first you should install Google input Unicode font / Krutidev 010 in your computer.
C6: lcls igys vki jktLFkku ds lHkh 'kSf{kd osclkbZV ij ,Dly xq: ghjkyky tkV }kjk fufeZr vk;dj x.kuk ,Dly ,Iyhds'ku 2025&26 ds viMsV otZu+ dks MkmuyksM djsasaA blds vykok vki Google ij Heeralal Jat fy[kdj lpZ djsaxs rks Hkh vkidks ist fey tk;sxkA tgka ls vki ;g izksxzke MkmuyksM dj ldrs gSaA mlds ckn ftrusa dkfeZdksa dh vk;dj x.kuk djuh gS] mruh gh ,Dly izksxzke 'khV dks muds uke ls vyx vyx Qkby esa Save dj ysosaA izR;sad dkfeZd ds fy, ds fy, ,d QkbZy dks mi;ksx esa ysosaA
B7: ije~ iwT; xq:nso oklqnso th egkjkt | C7: vki bl ,Dly izksxzke ij dk;Z djus ls igys bUde VSDl foHkkx ds u;s :Yl o fu;e bUde VSDl foHkkx dh New website vFkok ys[kk foK vDVqcj 2024 dkss t:j i<+sA oSls bl ,Dly izksxzke esa iq.kZ lko/kkuh cjrh xbZ gSa] fQj Hkh foHkkx ds fu;e gh loksZijh o fljks/kk;Z gSaA | D7: t; xq:nso
B8: Most Doable Work
B9: vki bl ,Dly izksxzke esa nksa 'khVksa ekLVj MkVk 'khV o ,DLV~zk fMMsD'ku 'khV dks lko/kkuhiwoZd vuykWd lsy tks lQsn dyj esa gSa] dks Hkjuk ¼MkVk fQfyax½ gSaA vkxs dh 'khVs vkWVksa tujsV gSaA os lHkh ykWd gSaA ogk ij vkidks dqN ugh djuk gSaA flQZ A4 lkbZt esa fizUV fudkyuk gSa vkSj ist Hkh lsV fd;k gqvk gSaA
B11: NOTE :- | D11: New Update you tube video link For your Help
B13: ;g ,Dly izksaxzke lHkh dkfeZdksa ds fy, leku :i ls rS;kj fd;k x;k gSA ladyu ,oa x.kuk esa iw.kZ lko/kkuh j[kh xbZ gSA fQj Hkh =qfV ;k fdlh Hkh izdkj dh fofHkUurk dh fLFkfr esa vk;dj foHkkx ds fu;e gh ekU; gSA rS;kjdrkZ dk dksbZ mÙkjnkf;Ro ugha gksxkA | D13: https://youtu.be/Y77okwT3eaw
B15: This Programme Developed by: HEERALAL JAT
B16: Senior Teacher
B17: Mahatma Gandhi Government School (English Medium) BAR , Beawar
B18: heeralaljatchandawal@gmail.com
B19: V./P. - Chandawal Nagar, Teh.- sojat city, Dist.- Pali (Raj) 306306
D20: New Updates Sheet on
C21: Watch the You Tube Video For More Information. | D21: 2025-11-05
C24: https://www.youtube.com/playlist?list=PLmNJTudmvkgL-ZI7qFKfQ6oz6WTNnW31z
C26: You Tube Channel
C28: https://www.youtube.com/c/Heeralaljat

Sheet Master Data
AC1: 1 | AD1: 2022-03-01
E2: EMPLOYEE PERSONAL DETAIL | T2: JAN | U2: 20 | AC2: 2 | AD2: 2022-04-01
T3: FEB | AC3: 3 | AD3: 2022-05-01
B4: Office Name :- | D4: Mahatma Gandhi Govt. School (English Medium) Bar, PALI | T4: MAR | X4: 1000 | AC4: 4 | AD4: 2022-06-01
T5: APR | AC5: 5 | AD5: 2022-07-01
B6: Employee Name :- | D6: Heeralal jat | F6: Designation :- | H6: Sr Teacher | T6: MAY | X6: 620 | AC6: 6 | AD6: 2022-08-01
T7: JUN | AC7: 7 | AD7: 2022-09-01
B8: School Name :- | C8: Posting Place :- | D8: M.G.G.S. Bar | F8: DDO Name :- | H8: Usha Paliya | T8: JUL | AC8: 8 | AD8: 2022-10-01
T9: AUG | AC9: 9 | AD9: 2022-11-01
B10: Personal Employee ID :- | D10: RJPAxxxxxxxx4272 | F10: UID AADHAR No. :- | H10: 1234 6547 1475 | T10: SEP | AC10: 10 | AD10: 2022-12-01
T11: OCT | AC11: 11 | AD11: 2023-01-01
B12: PAN No. :- | D12: abcde1234h | F12: TAN NO. :- | T12: NOV | AC12: 12 | AD12: 2023-02-01
T13: DEC
B14: GPF No. :- | D14: 456789 | F14: SI No. :- | H14: 12345 | T14: JAN
T15: FEB
B16: PRAN No. (GPF-2004) :- | D16: 12134545454541 | F16: Bank A/C No. :- | H16: 1000000111 | T16: MAR
B18: Gazetted / Non-Gazetted | D18: Non-Gazetted | F18: PAY LEVEL (According Pay Metrix) :- | H18: L-12 | K18: ije~ iwT; xw:nso Jh Jh 1008 oklwnso th egkjkt
E20: EMPLOYEE PAY DETAIL
B22: क्या आपने समर्पित अवकाश वेतन लिया है ? | E22: Yes | F22: यदि हाँ तो माह सलेक्ट करे :- | I22: SEP | S22: YES | T22: JAN | U22: 8 | V22: GPF | W22: Jaipur (U.A.) | Y22: Regular Pay | AA22: 2022-03-01
K23: BASIC On 01 March 2025 F
B24: आप किस आयु वर्ग श्रेणी में आते है ? | E24: Under 60 | F24: क्या आपको बोनस मिला है :- | I24: Yes | N24: 101200 | S24: NO | U24: 9 | V24: GPF-2004 | W24: Ajmer | Y24: Fix Pay | AA24: 2022-04-01
AA25: 2022-05-01
C26: यदि आपको बोनस मिला है] तो जितने माह का बोनस मिला है उन माह की संख्या को सलेक्ट करे F | I26: 12 | K26: यदि वितीय वर्ष 2025-26 में इन्क्रीमेंट के अलावा मूल वेतन में परिवर्तन हुआ है तो माह सलेक्ट करे : -
AA27: 2022-06-01
B28: विकलांग भत्ता :- | C28: foadykax HkÙkk %& | E28: No | F28: आपको अभी कोनसा वेतन मिल रहा है :- | I28: Regular Pay | T28: MAR | U28: 10 | W28: Bikaner | AA28: 2022-07-01
B30: यदि विकलांग भत्ता देय हो तो राशि लिखें :- | E30: 620 | F30: GPF / GPF-2004 :- | I30: GPF | K30: इन्क्रीमेंट के अलावा यदि मूल वेतन में कोई परिवर्तन हुआ तो परिवर्तित वेतन लिखें :- | T30: APR | U30: 12 | W30: Jodhpur | AA30: 2022-08-01
AA31: 2022-09-01
B32: CCA लागु हो तो select Yes / No :- | E32: No | F32: CCA लागू हो तो CITY सलेक्ट करे :- | I32: Jodhpur | T32: MAY | U32: 16 | W32: Kota
AA33: 2022-10-01
B34: 7th PAY HRA प्रतिशत में सलेक्ट करे :- | E34: 10 | K34: Group Insurance Rate @ :- | AA34: 2022-11-01
K36: You Tube Video Link | AA36: 2022-12-01
D37: आपको जिस अवधि का वेतन बनाना है , उस अवधि को सलेक्ट करे | AA37: 2023-01-01
AA39: 2023-02-01
C40: Tax Calculate From Month :- | F40: 2025-03-01 | G40: To Month :- | H40: 2026-02-01 | K40: https://youtu.be/Y77okwT3eaw
B42: Wash All. | C42: ROP | D42: other-1 | E42: other-2 | F42: Allowances | G42: SI | H42: GPF/ GPF-2004 | I42: L.I.C. | J42: RGHS | K42: SI Loan | L42: GPF Loan | M42: SI Int. | N42: Other
F43: Deducation | G43: 7000 | H43: 11000 | I43: 1103
B44: ROP की राशि माइनस में लिखे
E45: Income Tax Deduction By Salary
B46: March | C46: April | D46: May | E46: June | F46: July | G46: August | H46: September | I46: October | J46: November | K46: December | L46: January | M46: February
B47: 2000 | C47: 2000 | D47: 2000 | E47: 2000 | F47: 2000 | G47: 2000 | H47: 2000 | I47: 2000 | J47: 2000 | K47: 2000 | L47: 2000 | M47: 2000
C49: First Unlock Cell Entry Fill Up Then Click On Go to Next Sheet Button
F50: Use Button For going to Next Sheet H

Sheet GA55 Check & Edit
T1: GA 55 Check & Edit sheet पर कार्य करने में मदद हेतु नीचे Youtube Video का लिंक दिया गया है। H | AW1: Gazetted | AZ1: =IF('Master Data'!I34>9,ROUND(AZ3/31*15,0),IF('Master Data'!D18='GA55 Check & Edit'!AW1,ROUND(AZ3/31*15,0),IF('Master Data'!I34>=5,ROUND(AZ3/31*22,0),AZ3))) -> 98300
D3: Employee Name :- | F3: =IF('Master Data'!D6="","",CONCATENATE('Master Data'!D6," , ",'Master Data'!H6)) -> Heeralal jat , Sr Teacher | S3: https://www.youtube.com/watch?v=y7-DiFIbdG0 | AZ3: =AZ15-ROUNDUP(ROUND((AZ15*3%)-(AZ15*3%)*2.9%,-2),0) -> 98300
C5: 1 | D5: 2 | E5: 3 | F5: 4 | G5: 5 | H5: 6 | I5: 7 | J5: 8 | K5: 9 | L5: 10 | M5: 11 | N5: 12 | O5: 13 | P5: 14 | Q5: 15 | R5: 16 | S5: 17 | T5: 18 | U5: 19 | V5: 20 | W5: 21 | X5: 22 | Y5: 23 | Z5: 24 | AA5: 25 | AB5: 26 | AC5: 27 | AD5: 28 | AE5: 29 | AM5: ='Master Data'!N26 -> 0 | AN5: GPF | AO5: Yes | AP5: Regular Pay | AQ5: Under 60 | AS5: 1000
C6: S.N. | D6: Month | E6: Basic with Grade Pay | F6: DA | G6: HRA | H6: =IF('Master Data'!B42="","",'Master Data'!B42) -> Wash All. | I6: Handi. All. | J6: CCA | K6: =IF('Master Data'!C42="","",'Master Data'!C42) -> ROP | L6: =IF('Master Data'!D42="","",'Master Data'!D42) -> other-1 | M6: =IF('Master Data'!E42="","",'Master Data'!E42) -> other-2 | N6: Bonus | O6: TOTAL | P6: =IF('Master Data'!G42="","",'Master Data'!G42) -> SI | Q6: =IF('Master Data'!I30='GA55 Check & Edit'!AN5,'GA55 Check & Edit'!AN5,'GA55 Check & Edit'!AN6) -> GPF | R6: =IF('Master Data'!I42="","",'Master Data'!I42) -> L.I.C. | S6: =IF('Master Data'!J42="","",'Master Data'!J42) -> RGHS | T6: =IF('Master Data'!K42="","",'Master Data'!K42) -> SI Loan | U6: =IF('Master Data'!L42="","",'Master Data'!L42) -> GPF Loan | V6: =IF('Master Data'!M42="","",'Master Data'!M42) -> SI Int. | W6: =IF('Master Data'!N42="","",'Master Data'!N42) -> Other | X6: HITKARI NIDHI | Y6: Other | Z6: Income Tax | AA6: G.I. + S. Tax | AB6: Total Ded. | AC6: NET PAY | AD6: TV.NO. | AE6: Enc. DATE | AN6: GPF-2004 | AO6: No | AP6: Fix Pay | AQ6: Above 60 | AS6: 620 | BJ6: =IFERROR(IF(AND('Master Data'!$I$30='GA55 Check & Edit'!$AN$6),ROUND((E8)*0.1,0),IF(AND('Master Data'!$I$28='GA55 Check & Edit'!$AP$6),ROUND((E8+F8)*0.1,0),'Master Data'!$H$43)),"") -> 11000
AQ7: Above 80 | BD7: =IF(D6="State Service",ROUND(B10*15/31,0),IF(AND(D6="Subordinate",OR(B6=G5,B6=G6,B6=G7,B6=G8,B6=G9)),ROUND(B10*22/31,0),IF(AND(D6="Subordinate",OR(B6=G10,B6=G11,B6=G12,B6=G13,B6=G14,B6=G15)),ROUND(B10*15/31,0),IF(D6="Ministerial",ROUND(B10*22/31,0),B10)))) -> 3 | BI7: =IF(OR('Master Data'!$I$28='GA55 Check & Edit'!$AP$6),"",IF('Master Data'!$I$30="GPF-2004",IF(D10<23101,1450,IF(D10<28501,1625,IF(D10<38501,2100,IF(D10<51501,2850,IF(D10<62001,3575,IF(D10<72001,4200,IF(D10<80001,4800,IF(D10<116001,6150,IF(D10<167001,8900,10500)))))))))*2,'Master Data'!$H$43)) -> 11000
A8: =MOD(B8,2) -> 1 | B8: =IF(LEN(D8)>=3,1,0) -> 1 | C8: =IF(B8=0,"",B8) -> 1 | D8: =IFERROR(IF(BO12="","",BO12),"") -> 2025-03-01 | E8: =IFERROR(IF(D8="","",IF(AND(BQ12=""),"",IF(AND('Master Data'!$I$28='GA55 Check & Edit'!$AP$6),VLOOKUP(D8,ram,13,0),VLOOKUP(D8,ram,4,0)))),"") -> 101200 | F8: =IFERROR(IF(D8="","",IF(D8=$AX$24,"",IF(AND(D8=$AX$28),"",IF(AND('Master Data'!$I$28='GA55 Check & Edit'!$AP$5),VLOOKUP(D8,ram,7,0),"")))),"") -> 53636 | G8: =IFERROR(IF(D8="","",IF(D8=$AX$24,"",IF(AND(D8=$AX$25),"",IF(AND(D8=$AX$26),"",IF(AND(D8=$AX$27),"",IF(AND(D8=$AX$28),"",IF(AND(D8=$AX$29),"",IF(AND('Master Data'!$I$28='GA55 Check & Edit'!$AP$6),"",VLOOKUP(D8,ram,8,0))))))))),"") -> 10120 | H8: =IFERROR(IF(D8="","",IF(AND(E8=""),"",IF(OR(D8=$AX$24,D8=$AX$25,D8=$AX$26,D8=$AX$27,D8=$AX$28,D8=$AX$29),"",IF(AND('Master Data'!$I$28='GA55 Check & Edit'!$AP$5),'Master Data'!$B$43,"")))),"") -> 0 | I8: =IFERROR(IF(D8="","",IF(AND(E8=""),"",IF(OR(D8=$AX$24,D8=$AX$25,D8=$AX$26,D8=$AX$27,D8=$AX$28,D8=$AX$29),"",IF(AND('Master Data'!$I$28='GA55 Check & Edit'!$AP$5,'Master Data'!$E$28='GA55 Check & Edit'!$AO$5),'Master Data'!$E$30,"0")))),"") -> 0 | J8: =IFERROR(IF(OR('Master Data'!$E$32=$AO$6,'Master Data'!$E$32=""),"",IF(D8="","",IF(AND(E8=""),"",IF(OR(D8=$AX$24,D8=$AX$25,D8=$AX$26,D8=$AX$27,D8=$AX$28,D8=$AX$29),"",IF(AND('Master Data'!$I$28='GA55 Check & Edit'!$AP$6),"",IF(AND('Master Data'!$I$32=$AR$9),$AS$6,IF(AND('Master Data'!$I$32=$AR$10),$AS$6,IF(AND('Master Data'!$I$32=$AR$11),$AS$6,IF(AND('Master Data'!$I$32=$AR$12),$AS$6,$AS$5))))))))),"") ->  | K8: =IFERROR(IF(D8="","",IF(AND(E8=""),"",IF(OR(D8=$AX$24,D8=$AX$25,D8=$AX$26,D8=$AX$27,D8=$AX$28,D8=$AX$29),"",IF(AND('Master Data'!$I$28='GA55 Check & Edit'!$AP$5),'Master Data'!$C$43,"")))),"") -> 0 | L8: =IFERROR(IF(D8="","",IF(AND(E8=""),"",IF(OR(D8=$AX$24,D8=$AX$25,D8=$AX$26,D8=$AX$27,D8=$AX$28,D8=$AX$29),"",IF(AND('Master Data'!$I$28='GA55 Check & Edit'!$AP$6),"",'Master Data'!$D$43)))),"") -> 0 | M8: =IFERROR(IF(D8="","",IF(AND(E8=""),"",IF(OR(D8=$AX$24,D8=$AX$25,D8=$AX$26,D8=$AX$27,D8=$AX$28,D8=$AX$29),"",IF(AND('Master Data'!$I$28='GA55 Check & Edit'!$AP$6),"",'Master Data'!$E$43)))),"") -> 0 | N8: =IFERROR(IF(D8="","",IF(AND('Master Data'!$I$28='GA55 Check & Edit'!$AP$6),"",IF(AND('Master Data'!$I$24='GA55 Check & Edit'!$AO$6),"0",IF(AND(D8="Bonus"),VLOOKUP(D8,ram,4,0),"")))),"") ->  | O8: =IF(D8="","",IF('Master Data'!$N$24="","",SUM(E8:N8))) -> 164956 | P8: =IFERROR(IF(OR('Master Data'!$I$28='GA55 Check & Edit'!$AP$6,D8=""),"",IF(AND(D8=$AX$24),"",IF(AND(D8=$AX$25),"",IF(AND(D8=$AX$26),"",IF(AND(D8=$AX$27),"",IF(AND(D8=$AX$28),"",IF(AND(D8=$AX$29),"",IF(AND(E8=""),"",VLOOKUP(D8,ram,11,0))))))))),"") -> 7000 | Q8: =IFERROR(IF(AND('Master Data'!$I$28='GA55 Check & Edit'!$AP$6),"",IF(AND(D8=$AX$25),"",IF(AND(D8=$AX$28),"",IF(AND(D8=$AX$29),"",IF(AND(D8=""),"",IF(AND(BB12=""),"",VLOOKUP(D8,ram,12,0))))))),"") -> 11000 | R8: =IFERROR(IF(OR('Master Data'!$I$28='GA55 Check & Edit'!$AP$6,D8=""),"",IF(AND(D8=$AX$24),"",IF(AND(D8=$AX$25),"",IF(AND(D8=$AX$26),"",IF(AND(D8=$AX$27),"",IF(AND(D8=$AX$28),"",IF(AND(D8=$AX$29),"",IF(AND(E8=""),"",'Master Data'!$I$43)))))))),"") -> 1103 | S8: =IFERROR(IF(OR('Master Data'!$I$28='GA55 Check & Edit'!$AP$6),"",IF(D8="","",IF(E8="","",IF(AND(D8=$AX$24),"",IF(AND(D8=$AX$25),"",IF(AND(D8=$AX$26),"",IF(AND(D8=$AX$27),"",IF(AND(D8=$AX$28),"",IF(AND(D8=$AX$29),"",VLOOKUP(D8,ram,10,0)))))))))),"") -> 875 | T8: =IFERROR(IF(OR('Master Data'!$I$28='GA55 Check & Edit'!$AP$6,D8=""),"",IF(AND(D8=$AX$24),"",IF(AND(D8=$AX$25),"",IF(AND(D8=$AX$26),"",IF(AND(D8=$AX$27),"",IF(AND(D8=$AX$28),"",IF(AND(D8=$AX$29),"",IF(AND(E8=""),"",'Master Data'!$K$43)))))))),"") -> 0 | U8: =IFERROR(IF(OR('Master Data'!$I$28='GA55 Check & Edit'!$AP$6,D8=""),"",IF(AND(D8=$AX$24),"",IF(AND(D8=$AX$25),"",IF(AND(D8=$AX$26),"",IF(AND(D8=$AX$27),"",IF(AND(D8=$AX$28),"",IF(AND(D8=$AX$29),"",IF(AND(E8=""),"",'Master Data'!$L$43)))))))),"") -> 0 | V8: =IFERROR(IF(OR('Master Data'!$I$28='GA55 Check & Edit'!$AP$6,D8=""),"",IF(AND(D8=$AX$24),"",IF(AND(D8=$AX$25),"",IF(AND(D8=$AX$26),"",IF(AND(D8=$AX$27),"",IF(AND(D8=$AX$28),"",IF(AND(D8=$AX$29),"",IF(AND(E8=""),"",'Master Data'!$M$43)))))))),"") -> 0 | W8: =IFERROR(IF(OR('Master Data'!$I$28='GA55 Check & Edit'!$AP$6,D8=""),"",IF(AND(D8=$AX$24),"",IF(AND(D8=$AX$25),"",IF(AND(D8=$AX$26),"",IF(AND(D8=$AX$27),"",IF(AND(D8=$AX$28),"",IF(AND(D8=$AX$29),"",IF(AND(E8=""),"",'Master Data'!$N$43)))))))),"") -> 0 | X8: =IFERROR(IF(OR('Master Data'!$I$28='GA55 Check & Edit'!$AP$6,D8=""),"",IF(AND(E8=""),"",IF(AND('GA55 Check & Edit'!D8='GA55 Check & Edit'!$AT$17,'Master Data'!$D$18="Gazetted"),500,IF(AND('GA55 Check & Edit'!D8='GA55 Check & Edit'!$AT$17,'Master Data'!$D$18="Non-Gazetted"),250,"")))),"") ->  | Y8: =IFERROR(IF(D8="","",IF(AND(E8=""),"",IF(AND(D8=$AX$24),"",IF(AND(D8=$AX$25),"",IF(AND(D8=$AX$26),"",IF(AND(D8=$AX$27),"",IF(AND(D8=$AX$28),"",IF(AND(D8=$AX$29),"",IF(OR('Master Data'!$I$28='GA55 Check & Edit'!$AP$6,D8=""),"",$Y$7))))))))),"") -> 0 | Z8: =IFERROR(IF(OR('Master Data'!$I$28='GA55 Check & Edit'!$AP$6),"",IF(D8="","",IF(E8="","",VLOOKUP(D8,ram,9,0)))),"") -> 2000 | AA8: =IFERROR(IF(OR('Master Data'!$I$28='GA55 Check & Edit'!$AP$6,D8="",'Master Data'!$N$34=""),"",IF(AND(E8=""),"",IF('GA55 Check & Edit'!D8='GA55 Check & Edit'!$AT$9,'Master Data'!$N$34,""))),"") ->  | AB8: =IFERROR(IF(D8="","",IF(AND(O8=""),"",SUM(P8:AA8))),"0") -> 21978 | AC8: =IFERROR(IF(AND(E8="",O8="",AB8=""),"",SUM(O8-AB8)),"") -> 142978 | AR8: Jaipur (U.A.) | AS8: JAN | AT8: 2025-03-01 | AU8: L-1 | AX8: 2025-03-01
A9: =MOD(B9,2) -> 0 | B9: =IF(LEN(D9)>=3,B8+1,0) -> 2 | C9: =IF(B9=0,"",B9) -> 2 | D9: =IFERROR(IF(BO13="","",BO13),"") -> 2025-04-01 | E9: =IFERROR(IF(D9="","",IF(AND(BQ13=""),"",IF(AND('Master Data'!$I$28='GA55 Check & Edit'!$AP$6),VLOOKUP(D9,ram,13,0),VLOOKUP(D9,ram,4,0)))),"") -> 101200 | F9: =IFERROR(IF(D9="","",IF(D9=$AX$24,"",IF(AND(D9=$AX$28),"",IF(AND('Master Data'!$I$28='GA55 Check & Edit'!$AP$5),VLOOKUP(D9,ram,7,0),"")))),"") -> 55660 | G9: =IFERROR(IF(D9="","",IF(D9=$AX$24,"",IF(AND(D9=$AX$25),"",IF(AND(D9=$AX$26),"",IF(AND(D9=$AX$27),"",IF(AND(D9=$AX$28),"",IF(AND(D9=$AX$29),"",IF(AND('Master Data'!$I$28='GA55 Check & Edit'!$AP$6),"",VLOOKUP(D9,ram,8,0))))))))),"") -> 10120 | H9: =IFERROR(IF(D9="","",IF(AND(E9=""),"",IF(OR(D9=$AX$24,D9=$AX$25,D9=$AX$26,D9=$AX$27,D9=$AX$28,D9=$AX$29),"",IF(AND('Master Data'!$I$28='GA55 Check & Edit'!$AP$5),'Master Data'!$B$43,"")))),"") -> 0 | I9: =IFERROR(IF(D9="","",IF(AND(E9=""),"",IF(OR(D9=$AX$24,D9=$AX$25,D9=$AX$26,D9=$AX$27,D9=$AX$28,D9=$AX$29),"",IF(AND('Master Data'!$I$28='GA55 Check & Edit'!$AP$5,'Master Data'!$E$28='GA55 Check & Edit'!$AO$5),'Master Data'!$E$30,"0")))),"") -> 0 | J9: =IFERROR(IF(OR('Master Data'!$E$32=$AO$6,'Master Data'!$E$32=""),"",IF(D9="","",IF(AND(E9=""),"",IF(OR(D9=$AX$24,D9=$AX$25,D9=$AX$26,D9=$AX$27,D9=$AX$28,D9=$AX$29),"",IF(AND('Master Data'!$I$28='GA55 Check & Edit'!$AP$6),"",IF(AND('Master Data'!$I$32=$AR$9),$AS$6,IF(AND('Master Data'!$I$32=$AR$10),$AS$6,IF(AND('Master Data'!$I$32=$AR$11),$AS$6,IF(AND('Master Data'!$I$32=$AR$12),$AS$6,$AS$5))))))))),"") ->  | K9: =IFERROR(IF(D9="","",IF(AND(E9=""),"",IF(OR(D9=$AX$24,D9=$AX$25,D9=$AX$26,D9=$AX$27,D9=$AX$28,D9=$AX$29),"",IF(AND('Master Data'!$I$28='GA55 Check & Edit'!$AP$5),'Master Data'!$C$43,"")))),"") -> 0 | L9: =IFERROR(IF(D9="","",IF(AND(E9=""),"",IF(OR(D9=$AX$24,D9=$AX$25,D9=$AX$26,D9=$AX$27,D9=$AX$28,D9=$AX$29),"",IF(AND('Master Data'!$I$28='GA55 Check & Edit'!$AP$6),"",'Master Data'!$D$43)))),"") -> 0 | M9: =IFERROR(IF(D9="","",IF(AND(E9=""),"",IF(OR(D9=$AX$24,D9=$AX$25,D9=$AX$26,D9=$AX$27,D9=$AX$28,D9=$AX$29),"",IF(AND('Master Data'!$I$28='GA55 Check & Edit'!$AP$6),"",'Master Data'!$E$43)))),"") -> 0 | N9: =IFERROR(IF(D9="","",IF(AND('Master Data'!$I$28='GA55 Check & Edit'!$AP$6),"",IF(AND('Master Data'!$I$24='GA55 Check & Edit'!$AO$6),"0",IF(AND(D9="Bonus"),VLOOKUP(D9,ram,4,0),"")))),"") ->  | O9: =IF(D9="","",IF('Master Data'!$N$24="","",SUM(E9:N9))) -> 166980 | P9: =IFERROR(IF(OR('Master Data'!$I$28='GA55 Check & Edit'!$AP$6,D9=""),"",IF(AND(D9=$AX$24),"",IF(AND(D9=$AX$25),"",IF(AND(D9=$AX$26),"",IF(AND(D9=$AX$27),"",IF(AND(D9=$AX$28),"",IF(AND(D9=$AX$29),"",IF(AND(E9=""),"",VLOOKUP(D9,ram,11,0))))))))),"") -> 7000 | Q9: =IFERROR(IF(AND('Master Data'!$I$28='GA55 Check & Edit'!$AP$6),"",IF(AND(D9=$AX$25),"",IF(AND(D9=$AX$28),"",IF(AND(D9=$AX$29),"",IF(AND(D9=""),"",IF(AND(BB13=""),"",VLOOKUP(D9,ram,12,0))))))),"") -> 11000 | R9: =IFERROR(IF(OR('Master Data'!$I$28='GA55 Check & Edit'!$AP$6,D9=""),"",IF(AND(D9=$AX$24),"",IF(AND(D9=$AX$25),"",IF(AND(D9=$AX$26),"",IF(AND(D9=$AX$27),"",IF(AND(D9=$AX$28),"",IF(AND(D9=$AX$29),"",IF(AND(E9=""),"",'Master Data'!$I$43)))))))),"") -> 1103 | S9: =IFERROR(IF(OR('Master Data'!$I$28='GA55 Check & Edit'!$AP$6),"",IF(D9="","",IF(E9="","",IF(AND(D9=$AX$24),"",IF(AND(D9=$AX$25),"",IF(AND(D9=$AX$26),"",IF(AND(D9=$AX$27),"",IF(AND(D9=$AX$28),"",IF(AND(D9=$AX$29),"",VLOOKUP(D9,ram,10,0)))))))))),"") -> 875 | T9: =IFERROR(IF(OR('Master Data'!$I$28='GA55 Check & Edit'!$AP$6,D9=""),"",IF(AND(D9=$AX$24),"",IF(AND(D9=$AX$25),"",IF(AND(D9=$AX$26),"",IF(AND(D9=$AX$27),"",IF(AND(D9=$AX$28),"",IF(AND(D9=$AX$29),"",IF(AND(E9=""),"",'Master Data'!$K$43)))))))),"") -> 0 | U9: =IFERROR(IF(OR('Master Data'!$I$28='GA55 Check & Edit'!$AP$6,D9=""),"",IF(AND(D9=$AX$24),"",IF(AND(D9=$AX$25),"",IF(AND(D9=$AX$26),"",IF(AND(D9=$AX$27),"",IF(AND(D9=$AX$28),"",IF(AND(D9=$AX$29),"",IF(AND(E9=""),"",'Master Data'!$L$43)))))))),"") -> 0 | V9: =IFERROR(IF(OR('Master Data'!$I$28='GA55 Check & Edit'!$AP$6,D9=""),"",IF(AND(D9=$AX$24),"",IF(AND(D9=$AX$25),"",IF(AND(D9=$AX$26),"",IF(AND(D9=$AX$27),"",IF(AND(D9=$AX$28),"",IF(AND(D9=$AX$29),"",IF(AND(E9=""),"",'Master Data'!$M$43)))))))),"") -> 0 | W9: =IFERROR(IF(OR('Master Data'!$I$28='GA55 Check & Edit'!$AP$6,D9=""),"",IF(AND(D9=$AX$24),"",IF(AND(D9=$AX$25),"",IF(AND(D9=$AX$26),"",IF(AND(D9=$AX$27),"",IF(AND(D9=$AX$28),"",IF(AND(D9=$AX$29),"",IF(AND(E9=""),"",'Master Data'!$N$43)))))))),"") -> 0 | X9: =IFERROR(IF(OR('Master Data'!$I$28='GA55 Check & Edit'!$AP$6,D9=""),"",IF(AND(E9=""),"",IF(AND('GA55 Check & Edit'!D9='GA55 Check & Edit'!$AT$17,'Master Data'!$D$18="Gazetted"),500,IF(AND('GA55 Check & Edit'!D9='GA55 Check & Edit'!$AT$17,'Master Data'!$D$18="Non-Gazetted"),250,"")))),"") ->  | Y9: =IFERROR(IF(D9="","",IF(AND(E9=""),"",IF(AND(D9=$AX$24),"",IF(AND(D9=$AX$25),"",IF(AND(D9=$AX$26),"",IF(AND(D9=$AX$27),"",IF(AND(D9=$AX$28),"",IF(AND(D9=$AX$29),"",IF(OR('Master Data'!$I$28='GA55 Check & Edit'!$AP$6,D9=""),"",$Y$7))))))))),"") -> 0 | Z9: =IFERROR(IF(OR('Master Data'!$I$28='GA55 Check & Edit'!$AP$6),"",IF(D9="","",IF(E9="","",VLOOKUP(D9,ram,9,0)))),"") -> 2000 | AA9: =IFERROR(IF(OR('Master Data'!$I$28='GA55 Check & Edit'!$AP$6,D9="",'Master Data'!$N$34=""),"",IF(AND(E9=""),"",IF('GA55 Check & Edit'!D9='GA55 Check & Edit'!$AT$9,'Master Data'!$N$34,""))),"") ->  | AB9: =IFERROR(IF(D9="","",IF(AND(O9=""),"",SUM(P9:AA9))),"0") -> 21978 | AC9: =IFERROR(IF(AND(E9="",O9="",AB9=""),"",SUM(O9-AB9)),"") -> 145002 | AR9: Ajmer | AS9: FEB | AT9: 2025-04-01 | AU9: L-2 | AZ9: 2026-02-28 | BC9: =IF('Master Data'!I34>9,ROUND('Master Data'!$E$36/31*15,0),IF('Master Data'!E34='GA55 Check & Edit'!AO5,ROUND('Master Data'!$E$36/31*15,0),IF('Master Data'!I34>=5,ROUND('Master Data'!$E$36/31*22,0),IF('Master Data'!D18='GA55 Check & Edit'!AO5,ROUND('Master Data'!$E$36/31*22,0),'Master Data'!E36)))) -> 0
A10: 1 | B10: =IF(LEN(D10)>=3,B9+1,0) -> 3 | C10: 3 | D10: 2025-05-01 | E10: =IFERROR(IF(D10="","",IF(AND(BQ14=""),"",IF(AND('Master Data'!$I$28='GA55 Check & Edit'!$AP$6),VLOOKUP(D10,ram,13,0),VLOOKUP(D10,ram,4,0)))),"") -> 101200 | F10: =IFERROR(IF(D10="","",IF(D10=$AX$24,"",IF(AND(D10=$AX$28),"",IF(AND('Master Data'!$I$28='GA55 Check & Edit'!$AP$5),VLOOKUP(D10,ram,7,0),"")))),"") -> 55660 | G10: =IFERROR(IF(D10="","",IF(D10=$AX$24,"",IF(AND(D10=$AX$25),"",IF(AND(D10=$AX$26),"",IF(AND(D10=$AX$27),"",IF(AND(D10=$AX$28),"",IF(AND(D10=$AX$29),"",IF(AND('Master Data'!$I$28='GA55 Check & Edit'!$AP$6),"",VLOOKUP(D10,ram,8,0))))))))),"") -> 10120 | H10: =IFERROR(IF(D10="","",IF(AND(E10=""),"",IF(OR(D10=$AX$24,D10=$AX$25,D10=$AX$26,D10=$AX$27,D10=$AX$28,D10=$AX$29),"",IF(AND('Master Data'!$I$28='GA55 Check & Edit'!$AP$5),'Master Data'!$B$43,"")))),"") -> 0 | I10: =IFERROR(IF(D10="","",IF(AND(E10=""),"",IF(OR(D10=$AX$24,D10=$AX$25,D10=$AX$26,D10=$AX$27,D10=$AX$28,D10=$AX$29),"",IF(AND('Master Data'!$I$28='GA55 Check & Edit'!$AP$5,'Master Data'!$E$28='GA55 Check & Edit'!$AO$5),'Master Data'!$E$30,"0")))),"") -> 0 | J10: =IFERROR(IF(OR('Master Data'!$E$32=$AO$6,'Master Data'!$E$32=""),"",IF(D10="","",IF(AND(E10=""),"",IF(OR(D10=$AX$24,D10=$AX$25,D10=$AX$26,D10=$AX$27,D10=$AX$28,D10=$AX$29),"",IF(AND('Master Data'!$I$28='GA55 Check & Edit'!$AP$6),"",IF(AND('Master Data'!$I$32=$AR$9),$AS$6,IF(AND('Master Data'!$I$32=$AR$10),$AS$6,IF(AND('Master Data'!$I$32=$AR$11),$AS$6,IF(AND('Master Data'!$I$32=$AR$12),$AS$6,$AS$5))))))))),"") ->  | K10: =IFERROR(IF(D10="","",IF(AND(E10=""),"",IF(OR(D10=$AX$24,D10=$AX$25,D10=$AX$26,D10=$AX$27,D10=$AX$28,D10=$AX$29),"",IF(AND('Master Data'!$I$28='GA55 Check & Edit'!$AP$5),'Master Data'!$C$43,"")))),"") -> 0 | L10: =IFERROR(IF(D10="","",IF(AND(E10=""),"",IF(OR(D10=$AX$24,D10=$AX$25,D10=$AX$26,D10=$AX$27,D10=$AX$28,D10=$AX$29),"",IF(AND('Master Data'!$I$28='GA55 Check & Edit'!$AP$6),"",'Master Data'!$D$43)))),"") -> 0 | M10: =IFERROR(IF(D10="","",IF(AND(E10=""),"",IF(OR(D10=$AX$24,D10=$AX$25,D10=$AX$26,D10=$AX$27,D10=$AX$28,D10=$AX$29),"",IF(AND('Master Data'!$I$28='GA55 Check & Edit'!$AP$6),"",'Master Data'!$E$43)))),"") -> 0 | N10: =IFERROR(IF(D10="","",IF(AND('Master Data'!$I$28='GA55 Check & Edit'!$AP$6),"",IF(AND('Master Data'!$I$24='GA55 Check & Edit'!$AO$6),"0",IF(AND(D10="Bonus"),VLOOKUP(D10,ram,4,0),"")))),"") ->  | O10: =IF(D10="","",IF('Master Data'!$N$24="","",SUM(E10:N10))) -> 166980 | P10: =IFERROR(IF(OR('Master Data'!$I$28='GA55 Check & Edit'!$AP$6,D10=""),"",IF(AND(D10=$AX$24),"",IF(AND(D10=$AX$25),"",IF(AND(D10=$AX$26),"",IF(AND(D10=$AX$27),"",IF(AND(D10=$AX$28),"",IF(AND(D10=$AX$29),"",IF(AND(E10=""),"",VLOOKUP(D10,ram,11,0))))))))),"") -> 7000 | Q10: =IFERROR(IF(AND('Master Data'!$I$28='GA55 Check & Edit'!$AP$6),"",IF(AND(D10=$AX$25),"",IF(AND(D10=$AX$28),"",IF(AND(D10=$AX$29),"",IF(AND(D10=""),"",IF(AND(BB14=""),"",VLOOKUP(D10,ram,12,0))))))),"") -> 11000 | R10: =IFERROR(IF(OR('Master Data'!$I$28='GA55 Check & Edit'!$AP$6,D10=""),"",IF(AND(D10=$AX$24),"",IF(AND(D10=$AX$25),"",IF(AND(D10=$AX$26),"",IF(AND(D10=$AX$27),"",IF(AND(D10=$AX$28),"",IF(AND(D10=$AX$29),"",IF(AND(E10=""),"",'Master Data'!$I$43)))))))),"") -> 1103 | S10: =IFERROR(IF(OR('Master Data'!$I$28='GA55 Check & Edit'!$AP$6),"",IF(D10="","",IF(E10="","",IF(AND(D10=$AX$24),"",IF(AND(D10=$AX$25),"",IF(AND(D10=$AX$26),"",IF(AND(D10=$AX$27),"",IF(AND(D10=$AX$28),"",IF(AND(D10=$AX$29),"",VLOOKUP(D10,ram,10,0)))))))))),"") -> 875 | T10: =IFERROR(IF(OR('Master Data'!$I$28='GA55 Check & Edit'!$AP$6,D10=""),"",IF(AND(D10=$AX$24),"",IF(AND(D10=$AX$25),"",IF(AND(D10=$AX$26),"",IF(AND(D10=$AX$27),"",IF(AND(D10=$AX$28),"",IF(AND(D10=$AX$29),"",IF(AND(E10=""),"",'Master Data'!$K$43)))))))),"") -> 0 | U10: =IFERROR(IF(OR('Master Data'!$I$28='GA55 Check & Edit'!$AP$6,D10=""),"",IF(AND(D10=$AX$24),"",IF(AND(D10=$AX$25),"",IF(AND(D10=$AX$26),"",IF(AND(D10=$AX$27),"",IF(AND(D10=$AX$28),"",IF(AND(D10=$AX$29),"",IF(AND(E10=""),"",'Master Data'!$L$43)))))))),"") -> 0 | V10: =IFERROR(IF(OR('Master Data'!$I$28='GA55 Check & Edit'!$AP$6,D10=""),"",IF(AND(D10=$AX$24),"",IF(AND(D10=$AX$25),"",IF(AND(D10=$AX$26),"",IF(AND(D10=$AX$27),"",IF(AND(D10=$AX$28),"",IF(AND(D10=$AX$29),"",IF(AND(E10=""),"",'Master Data'!$M$43)))))))),"") -> 0 | W10: =IFERROR(IF(OR('Master Data'!$I$28='GA55 Check & Edit'!$AP$6,D10=""),"",IF(AND(D10=$AX$24),"",IF(AND(D10=$AX$25),"",IF(AND(D10=$AX$26),"",IF(AND(D10=$AX$27),"",IF(AND(D10=$AX$28),"",IF(AND(D10=$AX$29),"",IF(AND(E10=""),"",'Master Data'!$N$43)))))))),"") -> 0 | X10: =IFERROR(IF(OR('Master Data'!$I$28='GA55 Check & Edit'!$AP$6,D10=""),"",IF(AND(E10=""),"",IF(AND('GA55 Check & Edit'!D10='GA55 Check & Edit'!$AT$17,'Master Data'!$D$18="Gazetted"),500,IF(AND('GA55 Check & Edit'!D10='GA55 Check & Edit'!$AT$17,'Master Data'!$D$18="Non-Gazetted"),250,"")))),"") ->  | Y10: =IFERROR(IF(D10="","",IF(AND(E10=""),"",IF(AND(D10=$AX$24),"",IF(AND(D10=$AX$25),"",IF(AND(D10=$AX$26),"",IF(AND(D10=$AX$27),"",IF(AND(D10=$AX$28),"",IF(AND(D10=$AX$29),"",IF(OR('Master Data'!$I$28='GA55 Check & Edit'!$AP$6,D10=""),"",$Y$7))))))))),"") -> 0 | Z10: =IFERROR(IF(OR('Master Data'!$I$28='GA55 Check & Edit'!$AP$6),"",IF(D10="","",IF(E10="","",VLOOKUP(D10,ram,9,0)))),"") -> 2000 | AA10: =IFERROR(IF(OR('Master Data'!$I$28='GA55 Check & Edit'!$AP$6,D10="",'Master Data'!$N$34=""),"",IF(AND(E10=""),"",IF('GA55 Check & Edit'!D10='GA55 Check & Edit'!$AT$9,'Master Data'!$N$34,""))),"") ->  | AB10: 21978 | AC10: 145002 | AR10: Bikaner | AS10: MAR | AT10: 2025-05-01 | AU10: L-3 | AW10: JAN | AX10: 2025-01-01 | BA10: =IF(AND('Master Data'!$N$24=""),"",'Master Data'!$N$24) -> 101200 | BB10: =IF(AND(AX10<$AZ$16),"",IF(AND(AX10>$AZ$17),"",BA10)) ->  | BC10: =IF(AND('Master Data'!$N$24=""),"",ROUND(53%*BA10,0)) -> 53636 | BD10: =IF(BB10="","",BC10) ->  | BE10: =IFERROR(IF(AND('Master Data'!$N$24=""),"",ROUND('Master Data'!$E$34%*BB10,0)),"") ->  | BG10: =IFERROR(IF(OR('Master Data'!$I$28='GA55 Check & Edit'!$AP$6),"",'Master Data'!$J$43),"") -> 0 | BH10: =IFERROR(IF(OR('Master Data'!$I$28='GA55 Check & Edit'!$AP$6),"",'Master Data'!$G$43),"") -> 7000 | BI10: =IFERROR(IF(OR('Master Data'!$I$28='GA55 Check & Edit'!$AP$6),"",'Master Data'!$H$43),"") -> 11000 | BJ10: =BA10 -> 101200 | BL10: =MONTH(AZ17) -> 2 | BS10: =D8 -> 2025-03-01
A11: 0 | B11: 4 | C11: =IF(B11=0,"",B11) -> 4 | D11: 2025-06-01 | E11: =IFERROR(IF(D11="","",IF(AND(BQ15=""),"",IF(AND('Master Data'!$I$28='GA55 Check & Edit'!$AP$6),VLOOKUP(D11,ram,13,0),VLOOKUP(D11,ram,4,0)))),"") -> 101200 | F11: =IFERROR(IF(D11="","",IF(D11=$AX$24,"",IF(AND(D11=$AX$28),"",IF(AND('Master Data'!$I$28='GA55 Check & Edit'!$AP$5),VLOOKUP(D11,ram,7,0),"")))),"") -> 55660 | G11: =IFERROR(IF(D11="","",IF(D11=$AX$24,"",IF(AND(D11=$AX$25),"",IF(AND(D11=$AX$26),"",IF(AND(D11=$AX$27),"",IF(AND(D11=$AX$28),"",IF(AND(D11=$AX$29),"",IF(AND('Master Data'!$I$28='GA55 Check & Edit'!$AP$6),"",VLOOKUP(D11,ram,8,0))))))))),"") -> 10120 | H11: =IFERROR(IF(D11="","",IF(AND(E11=""),"",IF(OR(D11=$AX$24,D11=$AX$25,D11=$AX$26,D11=$AX$27,D11=$AX$28,D11=$AX$29),"",IF(AND('Master Data'!$I$28='GA55 Check & Edit'!$AP$5),'Master Data'!$B$43,"")))),"") -> 0 | I11: =IFERROR(IF(D11="","",IF(AND(E11=""),"",IF(OR(D11=$AX$24,D11=$AX$25,D11=$AX$26,D11=$AX$27,D11=$AX$28,D11=$AX$29),"",IF(AND('Master Data'!$I$28='GA55 Check & Edit'!$AP$5,'Master Data'!$E$28='GA55 Check & Edit'!$AO$5),'Master Data'!$E$30,"0")))),"") -> 0 | J11: =IFERROR(IF(OR('Master Data'!$E$32=$AO$6,'Master Data'!$E$32=""),"",IF(D11="","",IF(AND(E11=""),"",IF(OR(D11=$AX$24,D11=$AX$25,D11=$AX$26,D11=$AX$27,D11=$AX$28,D11=$AX$29),"",IF(AND('Master Data'!$I$28='GA55 Check & Edit'!$AP$6),"",IF(AND('Master Data'!$I$32=$AR$9),$AS$6,IF(AND('Master Data'!$I$32=$AR$10),$AS$6,IF(AND('Master Data'!$I$32=$AR$11),$AS$6,IF(AND('Master Data'!$I$32=$AR$12),$AS$6,$AS$5))))))))),"") ->  | K11: =IFERROR(IF(D11="","",IF(AND(E11=""),"",IF(OR(D11=$AX$24,D11=$AX$25,D11=$AX$26,D11=$AX$27,D11=$AX$28,D11=$AX$29),"",IF(AND('Master Data'!$I$28='GA55 Check & Edit'!$AP$5),'Master Data'!$C$43,"")))),"") -> 0 | L11: =IFERROR(IF(D11="","",IF(AND(E11=""),"",IF(OR(D11=$AX$24,D11=$AX$25,D11=$AX$26,D11=$AX$27,D11=$AX$28,D11=$AX$29),"",IF(AND('Master Data'!$I$28='GA55 Check & Edit'!$AP$6),"",'Master Data'!$D$43)))),"") -> 0 | M11: =IFERROR(IF(D11="","",IF(AND(E11=""),"",IF(OR(D11=$AX$24,D11=$AX$25,D11=$AX$26,D11=$AX$27,D11=$AX$28,D11=$AX$29),"",IF(AND('Master Data'!$I$28='GA55 Check & Edit'!$AP$6),"",'Master Data'!$E$43)))),"") -> 0 | N11: =IFERROR(IF(D11="","",IF(AND('Master Data'!$I$28='GA55 Check & Edit'!$AP$6),"",IF(AND('Master Data'!$I$24='GA55 Check & Edit'!$AO$6),"0",IF(AND(D11="Bonus"),VLOOKUP(D11,ram,4,0),"")))),"") ->  | O11: =IF(D11="","",IF('Master Data'!$N$24="","",SUM(E11:N11))) -> 166980 | P11: =IFERROR(IF(OR('Master Data'!$I$28='GA55 Check & Edit'!$AP$6,D11=""),"",IF(AND(D11=$AX$24),"",IF(AND(D11=$AX$25),"",IF(AND(D11=$AX$26),"",IF(AND(D11=$AX$27),"",IF(AND(D11=$AX$28),"",IF(AND(D11=$AX$29),"",IF(AND(E11=""),"",VLOOKUP(D11,ram,11,0))))))))),"") -> 7000 | Q11: =IFERROR(IF(AND('Master Data'!$I$28='GA55 Check & Edit'!$AP$6),"",IF(AND(D11=$AX$25),"",IF(AND(D11=$AX$28),"",IF(AND(D11=$AX$29),"",IF(AND(D11=""),"",IF(AND(BB15=""),"",VLOOKUP(D11,ram,12,0))))))),"") -> 11000 | R11: =IFERROR(IF(OR('Master Data'!$I$28='GA55 Check & Edit'!$AP$6,D11=""),"",IF(AND(D11=$AX$24),"",IF(AND(D11=$AX$25),"",IF(AND(D11=$AX$26),"",IF(AND(D11=$AX$27),"",IF(AND(D11=$AX$28),"",IF(AND(D11=$AX$29),"",IF(AND(E11=""),"",'Master Data'!$I$43)))))))),"") -> 1103 | S11: =IFERROR(IF(OR('Master Data'!$I$28='GA55 Check & Edit'!$AP$6),"",IF(D11="","",IF(E11="","",IF(AND(D11=$AX$24),"",IF(AND(D11=$AX$25),"",IF(AND(D11=$AX$26),"",IF(AND(D11=$AX$27),"",IF(AND(D11=$AX$28),"",IF(AND(D11=$AX$29),"",VLOOKUP(D11,ram,10,0)))))))))),"") -> 875 | T11: =IFERROR(IF(OR('Master Data'!$I$28='GA55 Check & Edit'!$AP$6,D11=""),"",IF(AND(D11=$AX$24),"",IF(AND(D11=$AX$25),"",IF(AND(D11=$AX$26),"",IF(AND(D11=$AX$27),"",IF(AND(D11=$AX$28),"",IF(AND(D11=$AX$29),"",IF(AND(E11=""),"",'Master Data'!$K$43)))))))),"") -> 0 | U11: =IFERROR(IF(OR('Master Data'!$I$28='GA55 Check & Edit'!$AP$6,D11=""),"",IF(AND(D11=$AX$24),"",IF(AND(D11=$AX$25),"",IF(AND(D11=$AX$26),"",IF(AND(D11=$AX$27),"",IF(AND(D11=$AX$28),"",IF(AND(D11=$AX$29),"",IF(AND(E11=""),"",'Master Data'!$L$43)))))))),"") -> 0 | V11: =IFERROR(IF(OR('Master Data'!$I$28='GA55 Check & Edit'!$AP$6,D11=""),"",IF(AND(D11=$AX$24),"",IF(AND(D11=$AX$25),"",IF(AND(D11=$AX$26),"",IF(AND(D11=$AX$27),"",IF(AND(D11=$AX$28),"",IF(AND(D11=$AX$29),"",IF(AND(E11=""),"",'Master Data'!$M$43)))))))),"") -> 0 | W11: =IFERROR(IF(OR('Master Data'!$I$28='GA55 Check & Edit'!$AP$6,D11=""),"",IF(AND(D11=$AX$24),"",IF(AND(D11=$AX$25),"",IF(AND(D11=$AX$26),"",IF(AND(D11=$AX$27),"",IF(AND(D11=$AX$28),"",IF(AND(D11=$AX$29),"",IF(AND(E11=""),"",'Master Data'!$N$43)))))))),"") -> 0 | X11: =IFERROR(IF(OR('Master Data'!$I$28='GA55 Check & Edit'!$AP$6,D11=""),"",IF(AND(E11=""),"",IF(AND('GA55 Check & Edit'!D11='GA55 Check & Edit'!$AT$17,'Master Data'!$D$18="Gazetted"),500,IF(AND('GA55 Check & Edit'!D11='GA55 Check & Edit'!$AT$17,'Master Data'!$D$18="Non-Gazetted"),250,"")))),"") ->  | Y11: =IFERROR(IF(D11="","",IF(AND(E11=""),"",IF(AND(D11=$AX$24),"",IF(AND(D11=$AX$25),"",IF(AND(D11=$AX$26),"",IF(AND(D11=$AX$27),"",IF(AND(D11=$AX$28),"",IF(AND(D11=$AX$29),"",IF(OR('Master Data'!$I$28='GA55 Check & Edit'!$AP$6,D11=""),"",$Y$7))))))))),"") -> 0 | Z11: =IFERROR(IF(OR('Master Data'!$I$28='GA55 Check & Edit'!$AP$6),"",IF(D11="","",IF(E11="","",VLOOKUP(D11,ram,9,0)))),"") -> 2000 | AA11: =IFERROR(IF(OR('Master Data'!$I$28='GA55 Check & Edit'!$AP$6,D11="",'Master Data'!$N$34=""),"",IF(AND(E11=""),"",IF('GA55 Check & Edit'!D11='GA55 Check & Edit'!$AT$9,'Master Data'!$N$34,""))),"") ->  | AB11: 21978 | AC11: 145002 | AR11: Jodhpur | AS11: APR | AT11: 2025-06-01 | AU11: L-4 | AW11: FEB | AX11: 2025-02-01 | BA11: =IF(AND('Master Data'!$N$24=""),"",'Master Data'!$N$24) -> 101200 | BB11: =IF(AND(AX11<$AZ$16),"",IF(AND(AX11>$AZ$17),"",BA11)) ->  | BC11: =IF(AND('Master Data'!$N$24=""),"",ROUND(53%*BA11,0)) -> 53636 | BD11: =IF(BB11="","",BC11) ->  | BE11: =IFERROR(IF(AND('Master Data'!$N$24=""),"",ROUND('Master Data'!$E$34%*BB11,0)),"") ->  | BG11: =IFERROR(IF(OR('Master Data'!$I$28='GA55 Check & Edit'!$AP$6),"",IF('Master Data'!$I$30="GPF-2004",IF(BB11<18001,135,IF(BB11<33501,220,IF(BB11<54001,330,440))),IF(AND('Master Data'!$I$30="GPF",'Master Data'!$J$43=""),IF(BB11<18001,265,IF(BB11<33501,440,IF(BB11<54001,658,875))),'Master Data'!$J$43))),"") -> 875 | BH11: =IFERROR(IF(OR('Master Data'!$I$28='GA55 Check & Edit'!$AP$6),"",'Master Data'!$G$43),"") -> 7000 | BI11: =IFERROR(IF(OR('Master Data'!$I$28='GA55 Check & Edit'!$AP$6),"",'Master Data'!$H$43),"") -> 11000 | BJ11: =BA11 -> 101200
A12: 1 | B12: =IF(LEN(D12)>=3,B11+1,0) -> 5 | C12: =IF(B12=0,"",B12) -> 5 | D12: 2025-07-01 | E12: =IFERROR(IF(D12="","",IF(AND(BQ16=""),"",IF(AND('Master Data'!$I$28='GA55 Check & Edit'!$AP$6),VLOOKUP(D12,ram,13,0),VLOOKUP(D12,ram,4,0)))),"") -> 104200 | F12: =IFERROR(IF(D12="","",IF(D12=$AX$24,"",IF(AND(D12=$AX$28),"",IF(AND('Master Data'!$I$28='GA55 Check & Edit'!$AP$5),VLOOKUP(D12,ram,7,0),"")))),"") -> 57310 | G12: =IFERROR(IF(D12="","",IF(D12=$AX$24,"",IF(AND(D12=$AX$25),"",IF(AND(D12=$AX$26),"",IF(AND(D12=$AX$27),"",IF(AND(D12=$AX$28),"",IF(AND(D12=$AX$29),"",IF(AND('Master Data'!$I$28='GA55 Check & Edit'!$AP$6),"",VLOOKUP(D12,ram,8,0))))))))),"") -> 10420 | H12: =IFERROR(IF(D12="","",IF(AND(E12=""),"",IF(OR(D12=$AX$24,D12=$AX$25,D12=$AX$26,D12=$AX$27,D12=$AX$28,D12=$AX$29),"",IF(AND('Master Data'!$I$28='GA55 Check & Edit'!$AP$5),'Master Data'!$B$43,"")))),"") -> 0 | I12: =IFERROR(IF(D12="","",IF(AND(E12=""),"",IF(OR(D12=$AX$24,D12=$AX$25,D12=$AX$26,D12=$AX$27,D12=$AX$28,D12=$AX$29),"",IF(AND('Master Data'!$I$28='GA55 Check & Edit'!$AP$5,'Master Data'!$E$28='GA55 Check & Edit'!$AO$5),'Master Data'!$E$30,"0")))),"") -> 0 | J12: =IFERROR(IF(OR('Master Data'!$E$32=$AO$6,'Master Data'!$E$32=""),"",IF(D12="","",IF(AND(E12=""),"",IF(OR(D12=$AX$24,D12=$AX$25,D12=$AX$26,D12=$AX$27,D12=$AX$28,D12=$AX$29),"",IF(AND('Master Data'!$I$28='GA55 Check & Edit'!$AP$6),"",IF(AND('Master Data'!$I$32=$AR$9),$AS$6,IF(AND('Master Data'!$I$32=$AR$10),$AS$6,IF(AND('Master Data'!$I$32=$AR$11),$AS$6,IF(AND('Master Data'!$I$32=$AR$12),$AS$6,$AS$5))))))))),"") ->  | K12: =IFERROR(IF(D12="","",IF(AND(E12=""),"",IF(OR(D12=$AX$24,D12=$AX$25,D12=$AX$26,D12=$AX$27,D12=$AX$28,D12=$AX$29),"",IF(AND('Master Data'!$I$28='GA55 Check & Edit'!$AP$5),'Master Data'!$C$43,"")))),"") -> 0 | L12: =IFERROR(IF(D12="","",IF(AND(E12=""),"",IF(OR(D12=$AX$24,D12=$AX$25,D12=$AX$26,D12=$AX$27,D12=$AX$28,D12=$AX$29),"",IF(AND('Master Data'!$I$28='GA55 Check & Edit'!$AP$6),"",'Master Data'!$D$43)))),"") -> 0 | M12: =IFERROR(IF(D12="","",IF(AND(E12=""),"",IF(OR(D12=$AX$24,D12=$AX$25,D12=$AX$26,D12=$AX$27,D12=$AX$28,D12=$AX$29),"",IF(AND('Master Data'!$I$28='GA55 Check & Edit'!$AP$6),"",'Master Data'!$E$43)))),"") -> 0 | N12: =IFERROR(IF(D12="","",IF(AND('Master Data'!$I$28='GA55 Check & Edit'!$AP$6),"",IF(AND('Master Data'!$I$24='GA55 Check & Edit'!$AO$6),"0",IF(AND(D12="Bonus"),VLOOKUP(D12,ram,4,0),"")))),"") ->  | O12: =IF(D12="","",IF('Master Data'!$N$24="","",SUM(E12:N12))) -> 171930 | P12: =IFERROR(IF(OR('Master Data'!$I$28='GA55 Check & Edit'!$AP$6,D12=""),"",IF(AND(D12=$AX$24),"",IF(AND(D12=$AX$25),"",IF(AND(D12=$AX$26),"",IF(AND(D12=$AX$27),"",IF(AND(D12=$AX$28),"",IF(AND(D12=$AX$29),"",IF(AND(E12=""),"",VLOOKUP(D12,ram,11,0))))))))),"") -> 7000 | Q12: =IFERROR(IF(AND('Master Data'!$I$28='GA55 Check & Edit'!$AP$6),"",IF(AND(D12=$AX$25),"",IF(AND(D12=$AX$28),"",IF(AND(D12=$AX$29),"",IF(AND(D12=""),"",IF(AND(BB16=""),"",VLOOKUP(D12,ram,12,0))))))),"") -> 11000 | R12: =IFERROR(IF(OR('Master Data'!$I$28='GA55 Check & Edit'!$AP$6,D12=""),"",IF(AND(D12=$AX$24),"",IF(AND(D12=$AX$25),"",IF(AND(D12=$AX$26),"",IF(AND(D12=$AX$27),"",IF(AND(D12=$AX$28),"",IF(AND(D12=$AX$29),"",IF(AND(E12=""),"",'Master Data'!$I$43)))))))),"") -> 1103 | S12: =IFERROR(IF(OR('Master Data'!$I$28='GA55 Check & Edit'!$AP$6),"",IF(D12="","",IF(E12="","",IF(AND(D12=$AX$24),"",IF(AND(D12=$AX$25),"",IF(AND(D12=$AX$26),"",IF(AND(D12=$AX$27),"",IF(AND(D12=$AX$28),"",IF(AND(D12=$AX$29),"",VLOOKUP(D12,ram,10,0)))))))))),"") -> 875 | T12: =IFERROR(IF(OR('Master Data'!$I$28='GA55 Check & Edit'!$AP$6,D12=""),"",IF(AND(D12=$AX$24),"",IF(AND(D12=$AX$25),"",IF(AND(D12=$AX$26),"",IF(AND(D12=$AX$27),"",IF(AND(D12=$AX$28),"",IF(AND(D12=$AX$29),"",IF(AND(E12=""),"",'Master Data'!$K$43)))))))),"") -> 0 | U12: =IFERROR(IF(OR('Master Data'!$I$28='GA55 Check & Edit'!$AP$6,D12=""),"",IF(AND(D12=$AX$24),"",IF(AND(D12=$AX$25),"",IF(AND(D12=$AX$26),"",IF(AND(D12=$AX$27),"",IF(AND(D12=$AX$28),"",IF(AND(D12=$AX$29),"",IF(AND(E12=""),"",'Master Data'!$L$43)))))))),"") -> 0 | V12: =IFERROR(IF(OR('Master Data'!$I$28='GA55 Check & Edit'!$AP$6,D12=""),"",IF(AND(D12=$AX$24),"",IF(AND(D12=$AX$25),"",IF(AND(D12=$AX$26),"",IF(AND(D12=$AX$27),"",IF(AND(D12=$AX$28),"",IF(AND(D12=$AX$29),"",IF(AND(E12=""),"",'Master Data'!$M$43)))))))),"") -> 0 | W12: =IFERROR(IF(OR('Master Data'!$I$28='GA55 Check & Edit'!$AP$6,D12=""),"",IF(AND(D12=$AX$24),"",IF(AND(D12=$AX$25),"",IF(AND(D12=$AX$26),"",IF(AND(D12=$AX$27),"",IF(AND(D12=$AX$28),"",IF(AND(D12=$AX$29),"",IF(AND(E12=""),"",'Master Data'!$N$43)))))))),"") -> 0 | X12: =IFERROR(IF(OR('Master Data'!$I$28='GA55 Check & Edit'!$AP$6,D12=""),"",IF(AND(E12=""),"",IF(AND('GA55 Check & Edit'!D12='GA55 Check & Edit'!$AT$17,'Master Data'!$D$18="Gazetted"),500,IF(AND('GA55 Check & Edit'!D12='GA55 Check & Edit'!$AT$17,'Master Data'!$D$18="Non-Gazetted"),250,"")))),"") ->  | Y12: =IFERROR(IF(D12="","",IF(AND(E12=""),"",IF(AND(D12=$AX$24),"",IF(AND(D12=$AX$25),"",IF(AND(D12=$AX$26),"",IF(AND(D12=$AX$27),"",IF(AND(D12=$AX$28),"",IF(AND(D12=$AX$29),"",IF(OR('Master Data'!$I$28='GA55 Check & Edit'!$AP$6,D12=""),"",$Y$7))))))))),"") -> 0 | Z12: =IFERROR(IF(OR('Master Data'!$I$28='GA55 Check & Edit'!$AP$6),"",IF(D12="","",IF(E12="","",VLOOKUP(D12,ram,9,0)))),"") -> 2000 | AA12: =IFERROR(IF(OR('Master Data'!$I$28='GA55 Check & Edit'!$AP$6,D12="",'Master Data'!$N$34=""),"",IF(AND(E12=""),"",IF('GA55 Check & Edit'!D12='GA55 Check & Edit'!$AT$9,'Master Data'!$N$34,""))),"") ->  | AB12: 21978 | AC12: 149952 | AR12: Kota | AS12: MAY | AT12: 2025-07-01 | AU12: L-5 | AW12: MAR | AX12: 2025-03-01 | AY12: 3 | BA12: =IF(AND('Master Data'!$N$24=""),"",IF(AND('Master Data'!$N$26='GA55 Check & Edit'!$AP$6),'GA55 Check & Edit'!$AZ$15,BU12)) -> 101200 | BB12: =IF(AND(AX12<$AZ$16),"",IF(AND(AX12>$AZ$17),"",BA12)) -> 101200 | BC12: =IF(AND('Master Data'!$N$24=""),"",ROUND(53%*BA12,0)) -> 53636 | BD12: =IF(BB12="","",BC12) -> 53636 | BE12: =IFERROR(IF(AND('Master Data'!$N$24=""),"",ROUND('Master Data'!$E$34%*BB12,0)),"") -> 10120 | BF12: ='Master Data'!B47 -> 2000 | BG12: =IFERROR(IF(OR('Master Data'!$I$28='GA55 Check & Edit'!$AP$6),"",IF('Master Data'!$I$30="GPF-2004",IF(BB12<18001,265,IF(BB12<33501,440,IF(BB12<54001,658,875))),IF(AND('Master Data'!$I$30="GPF",'Master Data'!$J$43=""),IF(BB12<18001,265,IF(BB12<33501,440,IF(BB12<54001,658,875))),'Master Data'!$J$43))),"") -> 875 | BH12: =IFERROR(IF(OR('Master Data'!$I$28='GA55 Check & Edit'!$AP$6),"",'Master Data'!$G$43),"") -> 7000 | BI12: =IFERROR(IF(OR('Master Data'!$I$28='GA55 Check & Edit'!$AP$6),"",IF('Master Data'!$I$30="GPF-2004",IF(BB12<23101,1450,IF(BB12<28501,1625,IF(BB12<38501,2100,IF(BB12<51501,2850,IF(BB12<62001,3575,IF(BB12<72001,4200,IF(BB12<80001,4800,IF(BB12<116001,6150,IF(BB12<167001,8900,10500))))))))),'Master Data'!$H$43)),"") -> 11000 | BJ12: =BA12 -> 101200 | BK12: 2025-03-01 | BL12: =IFERROR(IF('Master Data'!$N$24="","",IF('Master Data'!$F$40="","",IF(AND($AZ$17>$AZ$9),"",DATE(YEAR(AZ16),MONTH(AZ16),DAY(AZ16))))),"") -> 2025-03-01 | BM12: =IFERROR(IF('Master Data'!$N$24="","",IF('Master Data'!$F$40="","",IF(AND($AZ$17>$AZ$9),"",DATE(YEAR(AZ16),MONTH(AZ16),DAY(AZ16))))),"") -> 2025-03-01 | BN12: =IF(AND(BM12=""),"",IF(AND(BM12=$BK$12),$BK$12,IF(AND(BM12=$BK$13),$BK$13,IF(AND(BM12=$BK$14),$BK$14,IF(AND(BM12=$BK$15),$BK$15,IF(AND(BM12=$BK$16),$BK$16,IF(AND(BM12=$BK$17),$BK$17,IF(AND(BM12=$BK$18),$BK$18,IF(AND(BM12=$BK$19),$BK$19,IF(AND(BM12=$BK$20),$BK$20,IF(AND(BM12=$BK$21),$BK$21,IF(AND(BM12=$BK$22),$BK$22,IF(AND(BM12=$BK$23),$BK$23,IF(AND(BM12=$BK$24),$BM$24,IF(AND(BM12=$BK$25),$BM$25,IF(AND(BM12=$BK$26),$BM$26,IF(AND(BM12=$BK$27),$BM$27,IF(AND(BM12=$BK$28),$BM$28,IF(AND(BM12=$BK$29),$BM$29,IF(AND(BM12=$BK$30),$BM$30,IF(AND(BM12=$BK$31),$BM$31,IF(AND(BM12=$BK$32),$BM$32,"")))))))))))))))))))))) -> 2025-03-01 | BO12: =IFERROR(IF(BM12="","",IF(AND(BL12=$BK$24),$BM$24,IF(AND(BL12=$BK$25),$BM$25,IF(AND(BL12=$BK$26),$BM$26,IF(AND(BL12=$BK$27),$BM$27,IF(AND(BL12=$BK$28),$BM$28,IF(AND(BL12=$BK$29),$BM$29,IF(AND(BL12=$BK$30),$BM$30,IF(AND(BL12=$BK$31),$BM$31,IF(AND(BL12=$BK$32),$BM$32,BN12)))))))))),"") -> 2025-03-01 | BQ12: =IFERROR(IF(BM12="","",IF(D8=$AX$25,$AX$25,IF(D8=$AX$30,$AX$30,IF(D8=$AX$31,$AX$31,IF(D8=$AX$32,$AX$32,IF(BM12>$AZ$17,"",BM12)))))),"") -> 2025-03-01 | BS12: =OFFSET(D6,MATCH(BO12,$D$8:$D$27,0)+1,MATCH(BO12,D8:N8,0)) -> 101200 | BU12: =IF(AND('Master Data'!$N$24=""),"",IF(AND('Master Data'!$N$26='GA55 Check & Edit'!AX12),'Master Data'!$N$30,'Master Data'!$N$24)) -> 101200 | BX12: =IF(BB12="",0,BF12) -> 2000
A13: 0 | B13: =IF(LEN(D13)>=3,B12+1,0) -> 6 | C13: =IF(B13=0,"",B13) -> 6 | D13: 2025-08-01 | E13: =IFERROR(IF(D13="","",IF(AND(BQ17=""),"",IF(AND('Master Data'!$I$28='GA55 Check & Edit'!$AP$6),VLOOKUP(D13,ram,13,0),VLOOKUP(D13,ram,4,0)))),"") -> 104200 | F13: =IFERROR(IF(D13="","",IF(D13=$AX$24,"",IF(AND(D13=$AX$28),"",IF(AND('Master Data'!$I$28='GA55 Check & Edit'!$AP$5),VLOOKUP(D13,ram,7,0),"")))),"") -> 57310 | G13: =IFERROR(IF(D13="","",IF(D13=$AX$24,"",IF(AND(D13=$AX$25),"",IF(AND(D13=$AX$26),"",IF(AND(D13=$AX$27),"",IF(AND(D13=$AX$28),"",IF(AND(D13=$AX$29),"",IF(AND('Master Data'!$I$28='GA55 Check & Edit'!$AP$6),"",VLOOKUP(D13,ram,8,0))))))))),"") -> 10420 | H13: =IFERROR(IF(D13="","",IF(AND(E13=""),"",IF(OR(D13=$AX$24,D13=$AX$25,D13=$AX$26,D13=$AX$27,D13=$AX$28,D13=$AX$29),"",IF(AND('Master Data'!$I$28='GA55 Check & Edit'!$AP$5),'Master Data'!$B$43,"")))),"") -> 0 | I13: =IFERROR(IF(D13="","",IF(AND(E13=""),"",IF(OR(D13=$AX$24,D13=$AX$25,D13=$AX$26,D13=$AX$27,D13=$AX$28,D13=$AX$29),"",IF(AND('Master Data'!$I$28='GA55 Check & Edit'!$AP$5,'Master Data'!$E$28='GA55 Check & Edit'!$AO$5),'Master Data'!$E$30,"0")))),"") -> 0 | J13: =IFERROR(IF(OR('Master Data'!$E$32=$AO$6,'Master Data'!$E$32=""),"",IF(D13="","",IF(AND(E13=""),"",IF(OR(D13=$AX$24,D13=$AX$25,D13=$AX$26,D13=$AX$27,D13=$AX$28,D13=$AX$29),"",IF(AND('Master Data'!$I$28='GA55 Check & Edit'!$AP$6),"",IF(AND('Master Data'!$I$32=$AR$9),$AS$6,IF(AND('Master Data'!$I$32=$AR$10),$AS$6,IF(AND('Master Data'!$I$32=$AR$11),$AS$6,IF(AND('Master Data'!$I$32=$AR$12),$AS$6,$AS$5))))))))),"") ->  | K13: =IFERROR(IF(D13="","",IF(AND(E13=""),"",IF(OR(D13=$AX$24,D13=$AX$25,D13=$AX$26,D13=$AX$27,D13=$AX$28,D13=$AX$29),"",IF(AND('Master Data'!$I$28='GA55 Check & Edit'!$AP$5),'Master Data'!$C$43,"")))),"") -> 0 | L13: =IFERROR(IF(D13="","",IF(AND(E13=""),"",IF(OR(D13=$AX$24,D13=$AX$25,D13=$AX$26,D13=$AX$27,D13=$AX$28,D13=$AX$29),"",IF(AND('Master Data'!$I$28='GA55 Check & Edit'!$AP$6),"",'Master Data'!$D$43)))),"") -> 0 | M13: =IFERROR(IF(D13="","",IF(AND(E13=""),"",IF(OR(D13=$AX$24,D13=$AX$25,D13=$AX$26,D13=$AX$27,D13=$AX$28,D13=$AX$29),"",IF(AND('Master Data'!$I$28='GA55 Check & Edit'!$AP$6),"",'Master Data'!$E$43)))),"") -> 0 | N13: =IFERROR(IF(D13="","",IF(AND('Master Data'!$I$28='GA55 Check & Edit'!$AP$6),"",IF(AND('Master Data'!$I$24='GA55 Check & Edit'!$AO$6),"0",IF(AND(D13="Bonus"),VLOOKUP(D13,ram,4,0),"")))),"") ->  | O13: =IF(D13="","",IF('Master Data'!$N$24="","",SUM(E13:N13))) -> 171930 | P13: =IFERROR(IF(OR('Master Data'!$I$28='GA55 Check & Edit'!$AP$6,D13=""),"",IF(AND(D13=$AX$24),"",IF(AND(D13=$AX$25),"",IF(AND(D13=$AX$26),"",IF(AND(D13=$AX$27),"",IF(AND(D13=$AX$28),"",IF(AND(D13=$AX$29),"",IF(AND(E13=""),"",VLOOKUP(D13,ram,11,0))))))))),"") -> 7000 | Q13: =IFERROR(IF(AND('Master Data'!$I$28='GA55 Check & Edit'!$AP$6),"",IF(AND(D13=$AX$25),"",IF(AND(D13=$AX$28),"",IF(AND(D13=$AX$29),"",IF(AND(D13=""),"",IF(AND(BB17=""),"",VLOOKUP(D13,ram,12,0))))))),"") -> 11000 | R13: =IFERROR(IF(OR('Master Data'!$I$28='GA55 Check & Edit'!$AP$6,D13=""),"",IF(AND(D13=$AX$24),"",IF(AND(D13=$AX$25),"",IF(AND(D13=$AX$26),"",IF(AND(D13=$AX$27),"",IF(AND(D13=$AX$28),"",IF(AND(D13=$AX$29),"",IF(AND(E13=""),"",'Master Data'!$I$43)))))))),"") -> 1103 | S13: =IFERROR(IF(OR('Master Data'!$I$28='GA55 Check & Edit'!$AP$6),"",IF(D13="","",IF(E13="","",IF(AND(D13=$AX$24),"",IF(AND(D13=$AX$25),"",IF(AND(D13=$AX$26),"",IF(AND(D13=$AX$27),"",IF(AND(D13=$AX$28),"",IF(AND(D13=$AX$29),"",VLOOKUP(D13,ram,10,0)))))))))),"") -> 875 | T13: =IFERROR(IF(OR('Master Data'!$I$28='GA55 Check & Edit'!$AP$6,D13=""),"",IF(AND(D13=$AX$24),"",IF(AND(D13=$AX$25),"",IF(AND(D13=$AX$26),"",IF(AND(D13=$AX$27),"",IF(AND(D13=$AX$28),"",IF(AND(D13=$AX$29),"",IF(AND(E13=""),"",'Master Data'!$K$43)))))))),"") -> 0 | U13: =IFERROR(IF(OR('Master Data'!$I$28='GA55 Check & Edit'!$AP$6,D13=""),"",IF(AND(D13=$AX$24),"",IF(AND(D13=$AX$25),"",IF(AND(D13=$AX$26),"",IF(AND(D13=$AX$27),"",IF(AND(D13=$AX$28),"",IF(AND(D13=$AX$29),"",IF(AND(E13=""),"",'Master Data'!$L$43)))))))),"") -> 0 | V13: =IFERROR(IF(OR('Master Data'!$I$28='GA55 Check & Edit'!$AP$6,D13=""),"",IF(AND(D13=$AX$24),"",IF(AND(D13=$AX$25),"",IF(AND(D13=$AX$26),"",IF(AND(D13=$AX$27),"",IF(AND(D13=$AX$28),"",IF(AND(D13=$AX$29),"",IF(AND(E13=""),"",'Master Data'!$M$43)))))))),"") -> 0 | W13: =IFERROR(IF(OR('Master Data'!$I$28='GA55 Check & Edit'!$AP$6,D13=""),"",IF(AND(D13=$AX$24),"",IF(AND(D13=$AX$25),"",IF(AND(D13=$AX$26),"",IF(AND(D13=$AX$27),"",IF(AND(D13=$AX$28),"",IF(AND(D13=$AX$29),"",IF(AND(E13=""),"",'Master Data'!$N$43)))))))),"") -> 0 | X13: =IFERROR(IF(OR('Master Data'!$I$28='GA55 Check & Edit'!$AP$6,D13=""),"",IF(AND(E13=""),"",IF(AND('GA55 Check & Edit'!D13='GA55 Check & Edit'!$AT$17,'Master Data'!$D$18="Gazetted"),500,IF(AND('GA55 Check & Edit'!D13='GA55 Check & Edit'!$AT$17,'Master Data'!$D$18="Non-Gazetted"),250,"")))),"") ->  | Y13: =IFERROR(IF(D13="","",IF(AND(E13=""),"",IF(AND(D13=$AX$24),"",IF(AND(D13=$AX$25),"",IF(AND(D13=$AX$26),"",IF(AND(D13=$AX$27),"",IF(AND(D13=$AX$28),"",IF(AND(D13=$AX$29),"",IF(OR('Master Data'!$I$28='GA55 Check & Edit'!$AP$6,D13=""),"",$Y$7))))))))),"") -> 0 | Z13: =IFERROR(IF(OR('Master Data'!$I$28='GA55 Check & Edit'!$AP$6),"",IF(D13="","",IF(E13="","",VLOOKUP(D13,ram,9,0)))),"") -> 2000 | AA13: =IFERROR(IF(OR('Master Data'!$I$28='GA55 Check & Edit'!$AP$6,D13="",'Master Data'!$N$34=""),"",IF(AND(E13=""),"",IF('GA55 Check & Edit'!D13='GA55 Check & Edit'!$AT$9,'Master Data'!$N$34,""))),"") ->  | AB13: 21978 | AC13: 149952 | AS13: JUN | AT13: 2025-08-01 | AU13: L-6 | AW13: APR | AX13: 2025-04-01 | AY13: 4 | BA13: =IF(AND('Master Data'!$N$24=""),"",IF(AND('Master Data'!$N$28='GA55 Check & Edit'!$AP$6),'GA55 Check & Edit'!$AZ$15,BU13)) -> 101200 | BB13: =IF(AND(AX13<$AZ$16),"",IF(AND(AX13>$AZ$17),"",BA13)) -> 101200 | BC13: =IF(AND('Master Data'!$N$24=""),"",ROUND(55%*BA13,0)) -> 55660 | BD13: =IF(BB13="","",BC13) -> 55660 | BE13: =IFERROR(IF(AND('Master Data'!$N$24=""),"",ROUND('Master Data'!$E$34%*BB13,0)),"") -> 10120 | BF13: ='Master Data'!C47 -> 2000 | BG13: =IFERROR(IF(OR('Master Data'!$I$28='GA55 Check & Edit'!$AP$6),"",IF('Master Data'!$I$30="GPF-2004",IF(BB13<18001,265,IF(BB13<33501,440,IF(BB13<54001,658,875))),IF(AND('Master Data'!$I$30="GPF",'Master Data'!$J$43=""),IF(BB13<18001,265,IF(BB13<33501,440,IF(BB13<54001,658,875))),'Master Data'!$J$43))),"") -> 875 | BH13: =IFERROR(IF(OR('Master Data'!$I$28='GA55 Check & Edit'!$AP$6),"",'Master Data'!$G$43),"") -> 7000 | BI13: =IFERROR(IF(OR('Master Data'!$I$28='GA55 Check & Edit'!$AP$6),"",IF('Master Data'!$I$30="GPF-2004",IF(BB13<23101,1450,IF(BB13<28501,1625,IF(BB13<38501,2100,IF(BB13<51501,2850,IF(BB13<62001,3575,IF(BB13<72001,4200,IF(BB13<80001,4800,IF(BB13<116001,6150,IF(BB13<167001,8900,10500))))))))),'Master Data'!$H$43)),"") -> 11000 | BJ13: =BA13 -> 101200 | BK13: 2025-04-01 | BL13: =IFERROR(IF('Master Data'!$N$24="","",IF('Master Data'!$F$40="","",IF(AND($AZ$17>$AZ$9),"",DATE(YEAR(BL12),MONTH(BL12)+1,DAY(BL12))))),"") -> 2025-04-01 | BM13: =IFERROR(IF('Master Data'!$N$24="","",IF('Master Data'!$F$40="","",IF(AND($AZ$17>$AZ$9),"",DATE(YEAR(BM12),MONTH(BM12)+1,DAY(BM12))))),"") -> 2025-04-01 | BN13: =IF(AND(BM13=""),"",IF(AND(BM13=$BK$12),$BK$12,IF(AND(BM13=$BK$13),$BK$13,IF(AND(BM13=$BK$14),$BK$14,IF(AND(BM13=$BK$15),$BK$15,IF(AND(BM13=$BK$16),$BK$16,IF(AND(BM13=$BK$17),$BK$17,IF(AND(BM13=$BK$18),$BK$18,IF(AND(BM13=$BK$19),$BK$19,IF(AND(BM13=$BK$20),$BK$20,IF(AND(BM13=$BK$21),$BK$21,IF(AND(BM13=$BK$22),$BK$22,IF(AND(BM13=$BK$23),$BK$23,IF(AND(BM13=$BK$24),$BM$24,IF(AND(BM13=$BK$25),$BM$25,IF(AND(BM13=$BK$26),$BM$26,IF(AND(BM13=$BK$27),$BM$27,IF(AND(BM13=$BK$28),$BM$28,IF(AND(BM13=$BK$29),$BM$29,IF(AND(BM13=$BK$30),$BM$30,IF(AND(BM13=$BK$31),$BM$31,IF(AND(BM13=$BK$32),$BM$32,"")))))))))))))))))))))) -> 2025-04-01 | BO13: =IFERROR(IF(BM13="","",IF(AND(BL13=$BK$24),$BM$24,IF(AND(BL13=$BK$25),$BM$25,IF(AND(BL13=$BK$26),$BM$26,IF(AND(BL13=$BK$27),$BM$27,IF(AND(BL13=$BK$28),$BM$28,IF(AND(BL13=$BK$29),$BM$29,IF(AND(BL13=$BK$30),$BM$30,BN13)))))))),"") -> 2025-04-01 | BQ13: =IFERROR(IF(BM13="","",IF(D9=$AX$25,$AX$25,IF(D9=$AX$30,$AX$30,IF(D9=$AX$31,$AX$31,IF(D9=$AX$32,$AX$32,IF(BM13>$AZ$17,"",BM13)))))),"") -> 2025-04-01 | BS13: =OFFSET(D7,MATCH(BO13,$D$8:$D$27,0)+1,MATCH(BO13,D9:N9,0)) -> 101200 | BU13: =IF(AND('Master Data'!$N$24=""),"",IF(AND('Master Data'!$N$26='GA55 Check & Edit'!AX13),'Master Data'!$N$30,BU12)) -> 101200 | BX13: =IF(BB13="",0,BF13) -> 2000
A14: 1 | B14: 7 | C14: 7 | D14: =IFERROR(IF(BO18="","",BO18),"") -> 2025-09-01 | E14: =IFERROR(IF(D14="","",IF(AND(BQ18=""),"",IF(AND('Master Data'!$I$28='GA55 Check & Edit'!$AP$6),VLOOKUP(D14,ram,13,0),VLOOKUP(D14,ram,4,0)))),"") -> 104200 | F14: =IFERROR(IF(D14="","",IF(D14=$AX$24,"",IF(AND(D14=$AX$28),"",IF(AND('Master Data'!$I$28='GA55 Check & Edit'!$AP$5),VLOOKUP(D14,ram,7,0),"")))),"") -> 57310 | G14: =IFERROR(IF(D14="","",IF(D14=$AX$24,"",IF(AND(D14=$AX$25),"",IF(AND(D14=$AX$26),"",IF(AND(D14=$AX$27),"",IF(AND(D14=$AX$28),"",IF(AND(D14=$AX$29),"",IF(AND('Master Data'!$I$28='GA55 Check & Edit'!$AP$6),"",VLOOKUP(D14,ram,8,0))))))))),"") -> 10420 | H14: =IFERROR(IF(D14="","",IF(AND(E14=""),"",IF(OR(D14=$AX$24,D14=$AX$25,D14=$AX$26,D14=$AX$27,D14=$AX$28,D14=$AX$29),"",IF(AND('Master Data'!$I$28='GA55 Check & Edit'!$AP$5),'Master Data'!$B$43,"")))),"") -> 0 | I14: =IFERROR(IF(D14="","",IF(AND(E14=""),"",IF(OR(D14=$AX$24,D14=$AX$25,D14=$AX$26,D14=$AX$27,D14=$AX$28,D14=$AX$29),"",IF(AND('Master Data'!$I$28='GA55 Check & Edit'!$AP$5,'Master Data'!$E$28='GA55 Check & Edit'!$AO$5),'Master Data'!$E$30,"0")))),"") -> 0 | J14: =IFERROR(IF(OR('Master Data'!$E$32=$AO$6,'Master Data'!$E$32=""),"",IF(D14="","",IF(AND(E14=""),"",IF(OR(D14=$AX$24,D14=$AX$25,D14=$AX$26,D14=$AX$27,D14=$AX$28,D14=$AX$29),"",IF(AND('Master Data'!$I$28='GA55 Check & Edit'!$AP$6),"",IF(AND('Master Data'!$I$32=$AR$9),$AS$6,IF(AND('Master Data'!$I$32=$AR$10),$AS$6,IF(AND('Master Data'!$I$32=$AR$11),$AS$6,IF(AND('Master Data'!$I$32=$AR$12),$AS$6,$AS$5))))))))),"") ->  | K14: =IFERROR(IF(D14="","",IF(AND(E14=""),"",IF(OR(D14=$AX$24,D14=$AX$25,D14=$AX$26,D14=$AX$27,D14=$AX$28,D14=$AX$29),"",IF(AND('Master Data'!$I$28='GA55 Check & Edit'!$AP$5),'Master Data'!$C$43,"")))),"") -> 0 | L14: =IFERROR(IF(D14="","",IF(AND(E14=""),"",IF(OR(D14=$AX$24,D14=$AX$25,D14=$AX$26,D14=$AX$27,D14=$AX$28,D14=$AX$29),"",IF(AND('Master Data'!$I$28='GA55 Check & Edit'!$AP$6),"",'Master Data'!$D$43)))),"") -> 0 | M14: =IFERROR(IF(D14="","",IF(AND(E14=""),"",IF(OR(D14=$AX$24,D14=$AX$25,D14=$AX$26,D14=$AX$27,D14=$AX$28,D14=$AX$29),"",IF(AND('Master Data'!$I$28='GA55 Check & Edit'!$AP$6),"",'Master Data'!$E$43)))),"") -> 0 | N14: =IFERROR(IF(D14="","",IF(AND('Master Data'!$I$28='GA55 Check & Edit'!$AP$6),"",IF(AND('Master Data'!$I$24='GA55 Check & Edit'!$AO$6),"0",IF(AND(D14="Bonus"),VLOOKUP(D14,ram,4,0),"")))),"") ->  | O14: =IF(D14="","",IF('Master Data'!$N$24="","",SUM(E14:N14))) -> 171930 | P14: =IFERROR(IF(OR('Master Data'!$I$28='GA55 Check & Edit'!$AP$6,D14=""),"",IF(AND(D14=$AX$24),"",IF(AND(D14=$AX$25),"",IF(AND(D14=$AX$26),"",IF(AND(D14=$AX$27),"",IF(AND(D14=$AX$28),"",IF(AND(D14=$AX$29),"",IF(AND(E14=""),"",VLOOKUP(D14,ram,11,0))))))))),"") -> 7000 | Q14: =IFERROR(IF(AND('Master Data'!$I$28='GA55 Check & Edit'!$AP$6),"",IF(AND(D14=$AX$25),"",IF(AND(D14=$AX$28),"",IF(AND(D14=$AX$29),"",IF(AND(D14=""),"",IF(AND(BB18=""),"",VLOOKUP(D14,ram,12,0))))))),"") -> 11000 | R14: =IFERROR(IF(OR('Master Data'!$I$28='GA55 Check & Edit'!$AP$6,D14=""),"",IF(AND(D14=$AX$24),"",IF(AND(D14=$AX$25),"",IF(AND(D14=$AX$26),"",IF(AND(D14=$AX$27),"",IF(AND(D14=$AX$28),"",IF(AND(D14=$AX$29),"",IF(AND(E14=""),"",'Master Data'!$I$43)))))))),"") -> 1103 | S14: =IFERROR(IF(OR('Master Data'!$I$28='GA55 Check & Edit'!$AP$6),"",IF(D14="","",IF(E14="","",IF(AND(D14=$AX$24),"",IF(AND(D14=$AX$25),"",IF(AND(D14=$AX$26),"",IF(AND(D14=$AX$27),"",IF(AND(D14=$AX$28),"",IF(AND(D14=$AX$29),"",VLOOKUP(D14,ram,10,0)))))))))),"") -> 875 | T14: =IFERROR(IF(OR('Master Data'!$I$28='GA55 Check & Edit'!$AP$6,D14=""),"",IF(AND(D14=$AX$24),"",IF(AND(D14=$AX$25),"",IF(AND(D14=$AX$26),"",IF(AND(D14=$AX$27),"",IF(AND(D14=$AX$28),"",IF(AND(D14=$AX$29),"",IF(AND(E14=""),"",'Master Data'!$K$43)))))))),"") -> 0 | U14: =IFERROR(IF(OR('Master Data'!$I$28='GA55 Check & Edit'!$AP$6,D14=""),"",IF(AND(D14=$AX$24),"",IF(AND(D14=$AX$25),"",IF(AND(D14=$AX$26),"",IF(AND(D14=$AX$27),"",IF(AND(D14=$AX$28),"",IF(AND(D14=$AX$29),"",IF(AND(E14=""),"",'Master Data'!$L$43)))))))),"") -> 0 | V14: =IFERROR(IF(OR('Master Data'!$I$28='GA55 Check & Edit'!$AP$6,D14=""),"",IF(AND(D14=$AX$24),"",IF(AND(D14=$AX$25),"",IF(AND(D14=$AX$26),"",IF(AND(D14=$AX$27),"",IF(AND(D14=$AX$28),"",IF(AND(D14=$AX$29),"",IF(AND(E14=""),"",'Master Data'!$M$43)))))))),"") -> 0 | W14: =IFERROR(IF(OR('Master Data'!$I$28='GA55 Check & Edit'!$AP$6,D14=""),"",IF(AND(D14=$AX$24),"",IF(AND(D14=$AX$25),"",IF(AND(D14=$AX$26),"",IF(AND(D14=$AX$27),"",IF(AND(D14=$AX$28),"",IF(AND(D14=$AX$29),"",IF(AND(E14=""),"",'Master Data'!$N$43)))))))),"") -> 0 | X14: =IFERROR(IF(OR('Master Data'!$I$28='GA55 Check & Edit'!$AP$6,D14=""),"",IF(AND(E14=""),"",IF(AND('GA55 Check & Edit'!D14='GA55 Check & Edit'!$AT$17,'Master Data'!$D$18="Gazetted"),500,IF(AND('GA55 Check & Edit'!D14='GA55 Check & Edit'!$AT$17,'Master Data'!$D$18="Non-Gazetted"),250,"")))),"") ->  | Y14: =IFERROR(IF(D14="","",IF(AND(E14=""),"",IF(AND(D14=$AX$24),"",IF(AND(D14=$AX$25),"",IF(AND(D14=$AX$26),"",IF(AND(D14=$AX$27),"",IF(AND(D14=$AX$28),"",IF(AND(D14=$AX$29),"",IF(OR('Master Data'!$I$28='GA55 Check & Edit'!$AP$6,D14=""),"",$Y$7))))))))),"") -> 0 | Z14: =IFERROR(IF(OR('Master Data'!$I$28='GA55 Check & Edit'!$AP$6),"",IF(D14="","",IF(E14="","",VLOOKUP(D14,ram,9,0)))),"") -> 2000 | AA14: =IFERROR(IF(OR('Master Data'!$I$28='GA55 Check & Edit'!$AP$6,D14="",'Master Data'!$N$34=""),"",IF(AND(E14=""),"",IF('GA55 Check & Edit'!D14='GA55 Check & Edit'!$AT$9,'Master Data'!$N$34,""))),"") ->  | AB14: 21978 | AC14: 149952 | AS14: JUL | AT14: 2025-09-01 | AU14: L-7 | AW14: MAY | AX14: 2025-05-01 | AY14: 5 | BA14: =IF(AND('Master Data'!$N$24=""),"",IF(AND('Master Data'!$N$26='GA55 Check & Edit'!$AP$6),'GA55 Check & Edit'!$AZ$15,BU14)) -> 101200 | BB14: =IF(AND(AX14<$AZ$16),"",IF(AND(AX14>$AZ$17),"",BA14)) -> 101200 | BC14: =IF(AND('Master Data'!$N$24=""),"",ROUND(55%*BA14,0)) -> 55660 | BD14: =IF(BB14="","",BC14) -> 55660 | BE14: =IFERROR(IF(AND('Master Data'!$N$24=""),"",ROUND('Master Data'!$E$34%*BB14,0)),"") -> 10120 | BF14: ='Master Data'!D47 -> 2000 | BG14: =IFERROR(IF(OR('Master Data'!$I$28='GA55 Check & Edit'!$AP$6),"",IF('Master Data'!$I$30="GPF-2004",IF(BB14<18001,265,IF(BB14<33501,440,IF(BB14<54001,658,875))),IF(AND('Master Data'!$I$30="GPF",'Master Data'!$J$43=""),IF(BB14<18001,265,IF(BB14<33501,440,IF(BB14<54001,658,875))),'Master Data'!$J$43))),"") -> 875 | BH14: =IFERROR(IF(OR('Master Data'!$I$28='GA55 Check & Edit'!$AP$6),"",'Master Data'!$G$43),"") -> 7000 | BI14: =IFERROR(IF(OR('Master Data'!$I$28='GA55 Check & Edit'!$AP$6),"",IF('Master Data'!$I$30="GPF-2004",IF(BB14<23101,1450,IF(BB14<28501,1625,IF(BB14<38501,2100,IF(BB14<51501,2850,IF(BB14<62001,3575,IF(BB14<72001,4200,IF(BB14<80001,4800,IF(BB14<116001,6150,IF(BB14<167001,8900,10500))))))))),'Master Data'!$H$43)),"") -> 11000 | BJ14: =BA14 -> 101200 | BK14: 2025-05-01 | BL14: =IFERROR(IF('Master Data'!$N$24="","",IF('Master Data'!$F$40="","",IF(AND($AZ$17>$AZ$9),"",DATE(YEAR(BL13),MONTH(BL13)+1,DAY(BL13))))),"") -> 2025-05-01 | BM14: =IFERROR(IF('Master Data'!$N$24="","",IF('Master Data'!$F$40="","",IF(AND($AZ$17>$AZ$9),"",DATE(YEAR(BM13),MONTH(BM13)+1,DAY(BM13))))),"") -> 2025-05-01 | BN14: 2025-05-01 | BO14: =IFERROR(IF(BM14="","",IF(AND(BL14=$BK$24),$BM$24,IF(AND(BL14=$BK$25),$BM$25,IF(AND(BL14=$BK$26),$BM$26,IF(AND(BL14=$BK$27),$BM$27,IF(AND(BL14=$BK$28),$BM$28,IF(AND(BL14=$BK$29),$BM$29,IF(AND(BL14=$BK$30),$BM$30,BN14)))))))),"") -> 2025-05-01 | BQ14: =IFERROR(IF(BM14="","",IF(D10=$AX$25,$AX$25,IF(D10=$AX$30,$AX$30,IF(D10=$AX$31,$AX$31,IF(D10=$AX$32,$AX$32,IF(BM14>$AZ$17,"",BM14)))))),"") -> 2025-05-01 | BS14: 104200 | BU14: =IF(AND('Master Data'!$N$24=""),"",IF(AND('Master Data'!$N$26='GA55 Check & Edit'!AX14),'Master Data'!$N$30,BU13)) -> 101200 | BX14: 2000
A15: 0 | B15: 8 | C15: 8 | D15: 2025-10-01 | E15: =IFERROR(IF(D15="","",IF(AND(BQ19=""),"",IF(AND('Master Data'!$I$28='GA55 Check & Edit'!$AP$6),VLOOKUP(D15,ram,13,0),VLOOKUP(D15,ram,4,0)))),"") -> 104200 | F15: =IFERROR(IF(D15="","",IF(D15=$AX$24,"",IF(AND(D15=$AX$28),"",IF(AND('Master Data'!$I$28='GA55 Check & Edit'!$AP$5),VLOOKUP(D15,ram,7,0),"")))),"") -> 60436 | G15: =IFERROR(IF(D15="","",IF(D15=$AX$24,"",IF(AND(D15=$AX$25),"",IF(AND(D15=$AX$26),"",IF(AND(D15=$AX$27),"",IF(AND(D15=$AX$28),"",IF(AND(D15=$AX$29),"",IF(AND('Master Data'!$I$28='GA55 Check & Edit'!$AP$6),"",VLOOKUP(D15,ram,8,0))))))))),"") -> 10420 | H15: =IFERROR(IF(D15="","",IF(AND(E15=""),"",IF(OR(D15=$AX$24,D15=$AX$25,D15=$AX$26,D15=$AX$27,D15=$AX$28,D15=$AX$29),"",IF(AND('Master Data'!$I$28='GA55 Check & Edit'!$AP$5),'Master Data'!$B$43,"")))),"") -> 0 | I15: =IFERROR(IF(D15="","",IF(AND(E15=""),"",IF(OR(D15=$AX$24,D15=$AX$25,D15=$AX$26,D15=$AX$27,D15=$AX$28,D15=$AX$29),"",IF(AND('Master Data'!$I$28='GA55 Check & Edit'!$AP$5,'Master Data'!$E$28='GA55 Check & Edit'!$AO$5),'Master Data'!$E$30,"0")))),"") -> 0 | J15: =IFERROR(IF(OR('Master Data'!$E$32=$AO$6,'Master Data'!$E$32=""),"",IF(D15="","",IF(AND(E15=""),"",IF(OR(D15=$AX$24,D15=$AX$25,D15=$AX$26,D15=$AX$27,D15=$AX$28,D15=$AX$29),"",IF(AND('Master Data'!$I$28='GA55 Check & Edit'!$AP$6),"",IF(AND('Master Data'!$I$32=$AR$9),$AS$6,IF(AND('Master Data'!$I$32=$AR$10),$AS$6,IF(AND('Master Data'!$I$32=$AR$11),$AS$6,IF(AND('Master Data'!$I$32=$AR$12),$AS$6,$AS$5))))))))),"") ->  | K15: =IFERROR(IF(D15="","",IF(AND(E15=""),"",IF(OR(D15=$AX$24,D15=$AX$25,D15=$AX$26,D15=$AX$27,D15=$AX$28,D15=$AX$29),"",IF(AND('Master Data'!$I$28='GA55 Check & Edit'!$AP$5),'Master Data'!$C$43,"")))),"") -> 0 | L15: =IFERROR(IF(D15="","",IF(AND(E15=""),"",IF(OR(D15=$AX$24,D15=$AX$25,D15=$AX$26,D15=$AX$27,D15=$AX$28,D15=$AX$29),"",IF(AND('Master Data'!$I$28='GA55 Check & Edit'!$AP$6),"",'Master Data'!$D$43)))),"") -> 0 | M15: =IFERROR(IF(D15="","",IF(AND(E15=""),"",IF(OR(D15=$AX$24,D15=$AX$25,D15=$AX$26,D15=$AX$27,D15=$AX$28,D15=$AX$29),"",IF(AND('Master Data'!$I$28='GA55 Check & Edit'!$AP$6),"",'Master Data'!$E$43)))),"") -> 0 | N15: =IFERROR(IF(D15="","",IF(AND('Master Data'!$I$28='GA55 Check & Edit'!$AP$6),"",IF(AND('Master Data'!$I$24='GA55 Check & Edit'!$AO$6),"0",IF(AND(D15="Bonus"),VLOOKUP(D15,ram,4,0),"")))),"") ->  | O15: =IF(D15="","",IF('Master Data'!$N$24="","",SUM(E15:N15))) -> 175056 | P15: =IFERROR(IF(OR('Master Data'!$I$28='GA55 Check & Edit'!$AP$6,D15=""),"",IF(AND(D15=$AX$24),"",IF(AND(D15=$AX$25),"",IF(AND(D15=$AX$26),"",IF(AND(D15=$AX$27),"",IF(AND(D15=$AX$28),"",IF(AND(D15=$AX$29),"",IF(AND(E15=""),"",VLOOKUP(D15,ram,11,0))))))))),"") -> 7000 | Q15: =IFERROR(IF(AND('Master Data'!$I$28='GA55 Check & Edit'!$AP$6),"",IF(AND(D15=$AX$25),"",IF(AND(D15=$AX$28),"",IF(AND(D15=$AX$29),"",IF(AND(D15=""),"",IF(AND(BB19=""),"",VLOOKUP(D15,ram,12,0))))))),"") -> 11000 | R15: =IFERROR(IF(OR('Master Data'!$I$28='GA55 Check & Edit'!$AP$6,D15=""),"",IF(AND(D15=$AX$24),"",IF(AND(D15=$AX$25),"",IF(AND(D15=$AX$26),"",IF(AND(D15=$AX$27),"",IF(AND(D15=$AX$28),"",IF(AND(D15=$AX$29),"",IF(AND(E15=""),"",'Master Data'!$I$43)))))))),"") -> 1103 | S15: =IFERROR(IF(OR('Master Data'!$I$28='GA55 Check & Edit'!$AP$6),"",IF(D15="","",IF(E15="","",IF(AND(D15=$AX$24),"",IF(AND(D15=$AX$25),"",IF(AND(D15=$AX$26),"",IF(AND(D15=$AX$27),"",IF(AND(D15=$AX$28),"",IF(AND(D15=$AX$29),"",VLOOKUP(D15,ram,10,0)))))))))),"") -> 875 | T15: =IFERROR(IF(OR('Master Data'!$I$28='GA55 Check & Edit'!$AP$6,D15=""),"",IF(AND(D15=$AX$24),"",IF(AND(D15=$AX$25),"",IF(AND(D15=$AX$26),"",IF(AND(D15=$AX$27),"",IF(AND(D15=$AX$28),"",IF(AND(D15=$AX$29),"",IF(AND(E15=""),"",'Master Data'!$K$43)))))))),"") -> 0 | U15: =IFERROR(IF(OR('Master Data'!$I$28='GA55 Check & Edit'!$AP$6,D15=""),"",IF(AND(D15=$AX$24),"",IF(AND(D15=$AX$25),"",IF(AND(D15=$AX$26),"",IF(AND(D15=$AX$27),"",IF(AND(D15=$AX$28),"",IF(AND(D15=$AX$29),"",IF(AND(E15=""),"",'Master Data'!$L$43)))))))),"") -> 0 | V15: =IFERROR(IF(OR('Master Data'!$I$28='GA55 Check & Edit'!$AP$6,D15=""),"",IF(AND(D15=$AX$24),"",IF(AND(D15=$AX$25),"",IF(AND(D15=$AX$26),"",IF(AND(D15=$AX$27),"",IF(AND(D15=$AX$28),"",IF(AND(D15=$AX$29),"",IF(AND(E15=""),"",'Master Data'!$M$43)))))))),"") -> 0 | W15: =IFERROR(IF(OR('Master Data'!$I$28='GA55 Check & Edit'!$AP$6,D15=""),"",IF(AND(D15=$AX$24),"",IF(AND(D15=$AX$25),"",IF(AND(D15=$AX$26),"",IF(AND(D15=$AX$27),"",IF(AND(D15=$AX$28),"",IF(AND(D15=$AX$29),"",IF(AND(E15=""),"",'Master Data'!$N$43)))))))),"") -> 0 | X15: =IFERROR(IF(OR('Master Data'!$I$28='GA55 Check & Edit'!$AP$6,D15=""),"",IF(AND(E15=""),"",IF(AND('GA55 Check & Edit'!D15='GA55 Check & Edit'!$AT$17,'Master Data'!$D$18="Gazetted"),500,IF(AND('GA55 Check & Edit'!D15='GA55 Check & Edit'!$AT$17,'Master Data'!$D$18="Non-Gazetted"),250,"")))),"") ->  | Y15: =IFERROR(IF(D15="","",IF(AND(E15=""),"",IF(AND(D15=$AX$24),"",IF(AND(D15=$AX$25),"",IF(AND(D15=$AX$26),"",IF(AND(D15=$AX$27),"",IF(AND(D15=$AX$28),"",IF(AND(D15=$AX$29),"",IF(OR('Master Data'!$I$28='GA55 Check & Edit'!$AP$6,D15=""),"",$Y$7))))))))),"") -> 0 | Z15: =IFERROR(IF(OR('Master Data'!$I$28='GA55 Check & Edit'!$AP$6),"",IF(D15="","",IF(E15="","",VLOOKUP(D15,ram,9,0)))),"") -> 2000 | AA15: =IFERROR(IF(OR('Master Data'!$I$28='GA55 Check & Edit'!$AP$6,D15="",'Master Data'!$N$34=""),"",IF(AND(E15=""),"",IF('GA55 Check & Edit'!D15='GA55 Check & Edit'!$AT$9,'Master Data'!$N$34,""))),"") ->  | AB15: 21978 | AC15: 153078 | AS15: AUG | AT15: 2025-10-01 | AU15: L-8 | AW15: JUN | AX15: 2025-06-01 | AY15: 6 | AZ15: =IF(AND('Master Data'!N24=""),"",'Master Data'!N24) -> 101200 | BA15: =IF(AND('Master Data'!$N$24=""),"",IF(AND('Master Data'!$N$26='GA55 Check & Edit'!$AP$6),'GA55 Check & Edit'!$AZ$15,BU15)) -> 101200 | BB15: =IF(AND(AX15<$AZ$16),"",IF(AND(AX15>$AZ$17),"",BA15)) -> 101200 | BC15: =IF(AND('Master Data'!$N$24=""),"",ROUND(55%*BA15,0)) -> 55660 | BD15: =IF(BB15="","",BC15) -> 55660 | BE15: =IFERROR(IF(AND('Master Data'!$N$24=""),"",ROUND('Master Data'!$E$34%*BB15,0)),"") -> 10120 | BF15: ='Master Data'!E47 -> 2000 | BG15: =IFERROR(IF(OR('Master Data'!$I$28='GA55 Check & Edit'!$AP$6),"",IF('Master Data'!$I$30="GPF-2004",IF(BB15<18001,265,IF(BB15<33501,440,IF(BB15<54001,658,875))),IF(AND('Master Data'!$I$30="GPF",'Master Data'!$J$43=""),IF(BB15<18001,265,IF(BB15<33501,440,IF(BB15<54001,658,875))),'Master Data'!$J$43))),"") -> 875 | BH15: =IFERROR(IF(OR('Master Data'!$I$28='GA55 Check & Edit'!$AP$6),"",'Master Data'!$G$43),"") -> 7000 | BI15: =IFERROR(IF(OR('Master Data'!$I$28='GA55 Check & Edit'!$AP$6),"",IF('Master Data'!$I$30="GPF-2004",IF(BB15<23101,1450,IF(BB15<28501,1625,IF(BB15<38501,2100,IF(BB15<51501,2850,IF(BB15<62001,3575,IF(BB15<72001,4200,IF(BB15<80001,4800,IF(BB15<116001,6150,IF(BB15<167001,8900,10500))))))))),'Master Data'!$H$43)),"") -> 11000 | BJ15: 101200 | BK15: 2025-06-01 | BL15: =IFERROR(IF('Master Data'!$N$24="","",IF('Master Data'!$F$40="","",IF(AND($AZ$17>$AZ$9),"",DATE(YEAR(BL14),MONTH(BL14)+1,DAY(BL14))))),"") -> 2025-06-01 | BM15: =IFERROR(IF('Master Data'!$N$24="","",IF('Master Data'!$F$40="","",IF(AND($AZ$17>$AZ$9),"",DATE(YEAR(BM14),MONTH(BM14)+1,DAY(BM14))))),"") -> 2025-06-01 | BN15: 2025-06-01 | BO15: 2025-06-01 | BQ15: 2025-06-01 | BS15: 104200 | BU15: =IF(AND('Master Data'!$N$24=""),"",IF(AND('Master Data'!$N$26='GA55 Check & Edit'!AX15),'Master Data'!$N$30,BU14)) -> 101200 | BX15: 2000
A16: 1 | B16: 9 | C16: 9 | D16: 2025-11-01 | E16: =IFERROR(IF(D16="","",IF(AND(BQ20=""),"",IF(AND('Master Data'!$I$28='GA55 Check & Edit'!$AP$6),VLOOKUP(D16,ram,13,0),VLOOKUP(D16,ram,4,0)))),"") -> 104200 | F16: =IFERROR(IF(D16="","",IF(D16=$AX$24,"",IF(AND(D16=$AX$28),"",IF(AND('Master Data'!$I$28='GA55 Check & Edit'!$AP$5),VLOOKUP(D16,ram,7,0),"")))),"") -> 60436 | G16: =IFERROR(IF(D16="","",IF(D16=$AX$24,"",IF(AND(D16=$AX$25),"",IF(AND(D16=$AX$26),"",IF(AND(D16=$AX$27),"",IF(AND(D16=$AX$28),"",IF(AND(D16=$AX$29),"",IF(AND('Master Data'!$I$28='GA55 Check & Edit'!$AP$6),"",VLOOKUP(D16,ram,8,0))))))))),"") -> 10420 | H16: =IFERROR(IF(D16="","",IF(AND(E16=""),"",IF(OR(D16=$AX$24,D16=$AX$25,D16=$AX$26,D16=$AX$27,D16=$AX$28,D16=$AX$29),"",IF(AND('Master Data'!$I$28='GA55 Check & Edit'!$AP$5),'Master Data'!$B$43,"")))),"") -> 0 | I16: =IFERROR(IF(D16="","",IF(AND(E16=""),"",IF(OR(D16=$AX$24,D16=$AX$25,D16=$AX$26,D16=$AX$27,D16=$AX$28,D16=$AX$29),"",IF(AND('Master Data'!$I$28='GA55 Check & Edit'!$AP$5,'Master Data'!$E$28='GA55 Check & Edit'!$AO$5),'Master Data'!$E$30,"0")))),"") -> 0 | J16: =IFERROR(IF(OR('Master Data'!$E$32=$AO$6,'Master Data'!$E$32=""),"",IF(D16="","",IF(AND(E16=""),"",IF(OR(D16=$AX$24,D16=$AX$25,D16=$AX$26,D16=$AX$27,D16=$AX$28,D16=$AX$29),"",IF(AND('Master Data'!$I$28='GA55 Check & Edit'!$AP$6),"",IF(AND('Master Data'!$I$32=$AR$9),$AS$6,IF(AND('Master Data'!$I$32=$AR$10),$AS$6,IF(AND('Master Data'!$I$32=$AR$11),$AS$6,IF(AND('Master Data'!$I$32=$AR$12),$AS$6,$AS$5))))))))),"") ->  | K16: =IFERROR(IF(D16="","",IF(AND(E16=""),"",IF(OR(D16=$AX$24,D16=$AX$25,D16=$AX$26,D16=$AX$27,D16=$AX$28,D16=$AX$29),"",IF(AND('Master Data'!$I$28='GA55 Check & Edit'!$AP$5),'Master Data'!$C$43,"")))),"") -> 0 | L16: =IFERROR(IF(D16="","",IF(AND(E16=""),"",IF(OR(D16=$AX$24,D16=$AX$25,D16=$AX$26,D16=$AX$27,D16=$AX$28,D16=$AX$29),"",IF(AND('Master Data'!$I$28='GA55 Check & Edit'!$AP$6),"",'Master Data'!$D$43)))),"") -> 0 | M16: =IFERROR(IF(D16="","",IF(AND(E16=""),"",IF(OR(D16=$AX$24,D16=$AX$25,D16=$AX$26,D16=$AX$27,D16=$AX$28,D16=$AX$29),"",IF(AND('Master Data'!$I$28='GA55 Check & Edit'!$AP$6),"",'Master Data'!$E$43)))),"") -> 0 | N16: =IFERROR(IF(D16="","",IF(AND('Master Data'!$I$28='GA55 Check & Edit'!$AP$6),"",IF(AND('Master Data'!$I$24='GA55 Check & Edit'!$AO$6),"0",IF(AND(D16="Bonus"),VLOOKUP(D16,ram,4,0),"")))),"") ->  | O16: =IF(D16="","",IF('Master Data'!$N$24="","",SUM(E16:N16))) -> 175056 | P16: =IFERROR(IF(OR('Master Data'!$I$28='GA55 Check & Edit'!$AP$6,D16=""),"",IF(AND(D16=$AX$24),"",IF(AND(D16=$AX$25),"",IF(AND(D16=$AX$26),"",IF(AND(D16=$AX$27),"",IF(AND(D16=$AX$28),"",IF(AND(D16=$AX$29),"",IF(AND(E16=""),"",VLOOKUP(D16,ram,11,0))))))))),"") -> 7000 | Q16: =IFERROR(IF(AND('Master Data'!$I$28='GA55 Check & Edit'!$AP$6),"",IF(AND(D16=$AX$25),"",IF(AND(D16=$AX$28),"",IF(AND(D16=$AX$29),"",IF(AND(D16=""),"",IF(AND(BB20=""),"",VLOOKUP(D16,ram,12,0))))))),"") -> 11000 | R16: =IFERROR(IF(OR('Master Data'!$I$28='GA55 Check & Edit'!$AP$6,D16=""),"",IF(AND(D16=$AX$24),"",IF(AND(D16=$AX$25),"",IF(AND(D16=$AX$26),"",IF(AND(D16=$AX$27),"",IF(AND(D16=$AX$28),"",IF(AND(D16=$AX$29),"",IF(AND(E16=""),"",'Master Data'!$I$43)))))))),"") -> 1103 | S16: =IFERROR(IF(OR('Master Data'!$I$28='GA55 Check & Edit'!$AP$6),"",IF(D16="","",IF(E16="","",IF(AND(D16=$AX$24),"",IF(AND(D16=$AX$25),"",IF(AND(D16=$AX$26),"",IF(AND(D16=$AX$27),"",IF(AND(D16=$AX$28),"",IF(AND(D16=$AX$29),"",VLOOKUP(D16,ram,10,0)))))))))),"") -> 875 | T16: =IFERROR(IF(OR('Master Data'!$I$28='GA55 Check & Edit'!$AP$6,D16=""),"",IF(AND(D16=$AX$24),"",IF(AND(D16=$AX$25),"",IF(AND(D16=$AX$26),"",IF(AND(D16=$AX$27),"",IF(AND(D16=$AX$28),"",IF(AND(D16=$AX$29),"",IF(AND(E16=""),"",'Master Data'!$K$43)))))))),"") -> 0 | U16: =IFERROR(IF(OR('Master Data'!$I$28='GA55 Check & Edit'!$AP$6,D16=""),"",IF(AND(D16=$AX$24),"",IF(AND(D16=$AX$25),"",IF(AND(D16=$AX$26),"",IF(AND(D16=$AX$27),"",IF(AND(D16=$AX$28),"",IF(AND(D16=$AX$29),"",IF(AND(E16=""),"",'Master Data'!$L$43)))))))),"") -> 0 | V16: =IFERROR(IF(OR('Master Data'!$I$28='GA55 Check & Edit'!$AP$6,D16=""),"",IF(AND(D16=$AX$24),"",IF(AND(D16=$AX$25),"",IF(AND(D16=$AX$26),"",IF(AND(D16=$AX$27),"",IF(AND(D16=$AX$28),"",IF(AND(D16=$AX$29),"",IF(AND(E16=""),"",'Master Data'!$M$43)))))))),"") -> 0 | W16: =IFERROR(IF(OR('Master Data'!$I$28='GA55 Check & Edit'!$AP$6,D16=""),"",IF(AND(D16=$AX$24),"",IF(AND(D16=$AX$25),"",IF(AND(D16=$AX$26),"",IF(AND(D16=$AX$27),"",IF(AND(D16=$AX$28),"",IF(AND(D16=$AX$29),"",IF(AND(E16=""),"",'Master Data'!$N$43)))))))),"") -> 0 | X16: =IFERROR(IF(OR('Master Data'!$I$28='GA55 Check & Edit'!$AP$6,D16=""),"",IF(AND(E16=""),"",IF(AND('GA55 Check & Edit'!D16='GA55 Check & Edit'!$AT$17,'Master Data'!$D$18="Gazetted"),500,IF(AND('GA55 Check & Edit'!D16='GA55 Check & Edit'!$AT$17,'Master Data'!$D$18="Non-Gazetted"),250,"")))),"") ->  | Y16: =IFERROR(IF(D16="","",IF(AND(E16=""),"",IF(AND(D16=$AX$24),"",IF(AND(D16=$AX$25),"",IF(AND(D16=$AX$26),"",IF(AND(D16=$AX$27),"",IF(AND(D16=$AX$28),"",IF(AND(D16=$AX$29),"",IF(OR('Master Data'!$I$28='GA55 Check & Edit'!$AP$6,D16=""),"",$Y$7))))))))),"") -> 0 | Z16: =IFERROR(IF(OR('Master Data'!$I$28='GA55 Check & Edit'!$AP$6),"",IF(D16="","",IF(E16="","",VLOOKUP(D16,ram,9,0)))),"") -> 2000 | AA16: =IFERROR(IF(OR('Master Data'!$I$28='GA55 Check & Edit'!$AP$6,D16="",'Master Data'!$N$34=""),"",IF(AND(E16=""),"",IF('GA55 Check & Edit'!D16='GA55 Check & Edit'!$AT$9,'Master Data'!$N$34,""))),"") ->  | AB16: 21978 | AC16: 153078 | AS16: SEP | AT16: 2025-11-01 | AU16: L-9 | AW16: JUL | AX16: 2025-07-01 | AY16: 7 | AZ16: =IF(AND('Master Data'!F40=""),"",'Master Data'!F40) -> 2025-03-01 | BA16: =IF(AND('Master Data'!$N$24=""),"",IF(AND('Master Data'!$N$26='GA55 Check & Edit'!$AP$6),'GA55 Check & Edit'!$AZ$15,BU16)) -> 104200 | BB16: =IF(AND(AX16<$AZ$16),"",IF(AND(AX16>$AZ$17),"",BA16)) -> 104200 | BC16: =IF(AND('Master Data'!$N$24=""),"",ROUND(55%*BA16,0)) -> 57310 | BD16: 57310 | BE16: =IFERROR(IF(AND('Master Data'!$N$24=""),"",ROUND('Master Data'!$E$34%*BB16,0)),"") -> 10420 | BF16: ='Master Data'!F47 -> 2000 | BG16: =IFERROR(IF(OR('Master Data'!$I$28='GA55 Check & Edit'!$AP$6),"",IF('Master Data'!$I$30="GPF-2004",IF(BB16<18001,265,IF(BB16<33501,440,IF(BB16<54001,658,875))),IF(AND('Master Data'!$I$30="GPF",'Master Data'!$J$43=""),IF(BB16<18001,265,IF(BB16<33501,440,IF(BB16<54001,658,875))),'Master Data'!$J$43))),"") -> 875 | BH16: =IFERROR(IF(OR('Master Data'!$I$28='GA55 Check & Edit'!$AP$6),"",'Master Data'!$G$43),"") -> 7000 | BI16: =IFERROR(IF(OR('Master Data'!$I$28='GA55 Check & Edit'!$AP$6),"",IF('Master Data'!$I$30="GPF-2004",IF(BB16<23101,1450,IF(BB16<28501,1625,IF(BB16<38501,2100,IF(BB16<51501,2850,IF(BB16<62001,3575,IF(BB16<72001,4200,IF(BB16<80001,4800,IF(BB16<116001,6150,IF(BB16<167001,8900,10500))))))))),'Master Data'!$H$43)),"") -> 11000 | BJ16: =BA16 -> 104200 | BK16: 2025-07-01 | BL16: =IFERROR(IF('Master Data'!$N$24="","",IF('Master Data'!$F$40="","",IF(AND($AZ$17>$AZ$9),"",DATE(YEAR(BL15),MONTH(BL15)+1,DAY(BL15))))),"") -> 2025-07-01 | BM16: =IFERROR(IF('Master Data'!$N$24="","",IF('Master Data'!$F$40="","",IF(AND($AZ$17>$AZ$9),"",DATE(YEAR(BM15),MONTH(BM15)+1,DAY(BM15))))),"") -> 2025-07-01 | BN16: 2025-07-01 | BO16: 2025-07-01 | BQ16: 2025-07-01 | BS16: 104200 | BU16: =IF(AND('Master Data'!$N$24=""),"",IF(AND('Master Data'!$N$26='GA55 Check & Edit'!AX16),'Master Data'!$N$30,MROUND(BU15*1.03,100))) -> 104200 | BX16: 2000
A17: 0 | B17: 10 | C17: 10 | D17: 2025-12-01 | E17: =IFERROR(IF(D17="","",IF(AND(BQ21=""),"",IF(AND('Master Data'!$I$28='GA55 Check & Edit'!$AP$6),VLOOKUP(D17,ram,13,0),VLOOKUP(D17,ram,4,0)))),"") -> 104200 | F17: =IFERROR(IF(D17="","",IF(D17=$AX$24,"",IF(AND(D17=$AX$28),"",IF(AND('Master Data'!$I$28='GA55 Check & Edit'!$AP$5),VLOOKUP(D17,ram,7,0),"")))),"") -> 60436 | G17: =IFERROR(IF(D17="","",IF(D17=$AX$24,"",IF(AND(D17=$AX$25),"",IF(AND(D17=$AX$26),"",IF(AND(D17=$AX$27),"",IF(AND(D17=$AX$28),"",IF(AND(D17=$AX$29),"",IF(AND('Master Data'!$I$28='GA55 Check & Edit'!$AP$6),"",VLOOKUP(D17,ram,8,0))))))))),"") -> 10420 | H17: =IFERROR(IF(D17="","",IF(AND(E17=""),"",IF(OR(D17=$AX$24,D17=$AX$25,D17=$AX$26,D17=$AX$27,D17=$AX$28,D17=$AX$29),"",IF(AND('Master Data'!$I$28='GA55 Check & Edit'!$AP$5),'Master Data'!$B$43,"")))),"") -> 0 | I17: =IFERROR(IF(D17="","",IF(AND(E17=""),"",IF(OR(D17=$AX$24,D17=$AX$25,D17=$AX$26,D17=$AX$27,D17=$AX$28,D17=$AX$29),"",IF(AND('Master Data'!$I$28='GA55 Check & Edit'!$AP$5,'Master Data'!$E$28='GA55 Check & Edit'!$AO$5),'Master Data'!$E$30,"0")))),"") -> 0 | J17: =IFERROR(IF(OR('Master Data'!$E$32=$AO$6,'Master Data'!$E$32=""),"",IF(D17="","",IF(AND(E17=""),"",IF(OR(D17=$AX$24,D17=$AX$25,D17=$AX$26,D17=$AX$27,D17=$AX$28,D17=$AX$29),"",IF(AND('Master Data'!$I$28='GA55 Check & Edit'!$AP$6),"",IF(AND('Master Data'!$I$32=$AR$9),$AS$6,IF(AND('Master Data'!$I$32=$AR$10),$AS$6,IF(AND('Master Data'!$I$32=$AR$11),$AS$6,IF(AND('Master Data'!$I$32=$AR$12),$AS$6,$AS$5))))))))),"") ->  | K17: =IFERROR(IF(D17="","",IF(AND(E17=""),"",IF(OR(D17=$AX$24,D17=$AX$25,D17=$AX$26,D17=$AX$27,D17=$AX$28,D17=$AX$29),"",IF(AND('Master Data'!$I$28='GA55 Check & Edit'!$AP$5),'Master Data'!$C$43,"")))),"") -> 0 | L17: =IFERROR(IF(D17="","",IF(AND(E17=""),"",IF(OR(D17=$AX$24,D17=$AX$25,D17=$AX$26,D17=$AX$27,D17=$AX$28,D17=$AX$29),"",IF(AND('Master Data'!$I$28='GA55 Check & Edit'!$AP$6),"",'Master Data'!$D$43)))),"") -> 0 | M17: =IFERROR(IF(D17="","",IF(AND(E17=""),"",IF(OR(D17=$AX$24,D17=$AX$25,D17=$AX$26,D17=$AX$27,D17=$AX$28,D17=$AX$29),"",IF(AND('Master Data'!$I$28='GA55 Check & Edit'!$AP$6),"",'Master Data'!$E$43)))),"") -> 0 | N17: =IFERROR(IF(D17="","",IF(AND('Master Data'!$I$28='GA55 Check & Edit'!$AP$6),"",IF(AND('Master Data'!$I$24='GA55 Check & Edit'!$AO$6),"0",IF(AND(D17="Bonus"),VLOOKUP(D17,ram,4,0),"")))),"") ->  | O17: =IF(D17="","",IF('Master Data'!$N$24="","",SUM(E17:N17))) -> 175056 | P17: =IFERROR(IF(OR('Master Data'!$I$28='GA55 Check & Edit'!$AP$6,D17=""),"",IF(AND(D17=$AX$24),"",IF(AND(D17=$AX$25),"",IF(AND(D17=$AX$26),"",IF(AND(D17=$AX$27),"",IF(AND(D17=$AX$28),"",IF(AND(D17=$AX$29),"",IF(AND(E17=""),"",VLOOKUP(D17,ram,11,0))))))))),"") -> 7000 | Q17: =IFERROR(IF(AND('Master Data'!$I$28='GA55 Check & Edit'!$AP$6),"",IF(AND(D17=$AX$25),"",IF(AND(D17=$AX$28),"",IF(AND(D17=$AX$29),"",IF(AND(D17=""),"",IF(AND(BB21=""),"",VLOOKUP(D17,ram,12,0))))))),"") -> 11000 | R17: =IFERROR(IF(OR('Master Data'!$I$28='GA55 Check & Edit'!$AP$6,D17=""),"",IF(AND(D17=$AX$24),"",IF(AND(D17=$AX$25),"",IF(AND(D17=$AX$26),"",IF(AND(D17=$AX$27),"",IF(AND(D17=$AX$28),"",IF(AND(D17=$AX$29),"",IF(AND(E17=""),"",'Master Data'!$I$43)))))))),"") -> 1103 | S17: =IFERROR(IF(OR('Master Data'!$I$28='GA55 Check & Edit'!$AP$6),"",IF(D17="","",IF(E17="","",IF(AND(D17=$AX$24),"",IF(AND(D17=$AX$25),"",IF(AND(D17=$AX$26),"",IF(AND(D17=$AX$27),"",IF(AND(D17=$AX$28),"",IF(AND(D17=$AX$29),"",VLOOKUP(D17,ram,10,0)))))))))),"") -> 875 | T17: =IFERROR(IF(OR('Master Data'!$I$28='GA55 Check & Edit'!$AP$6,D17=""),"",IF(AND(D17=$AX$24),"",IF(AND(D17=$AX$25),"",IF(AND(D17=$AX$26),"",IF(AND(D17=$AX$27),"",IF(AND(D17=$AX$28),"",IF(AND(D17=$AX$29),"",IF(AND(E17=""),"",'Master Data'!$K$43)))))))),"") -> 0 | U17: =IFERROR(IF(OR('Master Data'!$I$28='GA55 Check & Edit'!$AP$6,D17=""),"",IF(AND(D17=$AX$24),"",IF(AND(D17=$AX$25),"",IF(AND(D17=$AX$26),"",IF(AND(D17=$AX$27),"",IF(AND(D17=$AX$28),"",IF(AND(D17=$AX$29),"",IF(AND(E17=""),"",'Master Data'!$L$43)))))))),"") -> 0 | V17: =IFERROR(IF(OR('Master Data'!$I$28='GA55 Check & Edit'!$AP$6,D17=""),"",IF(AND(D17=$AX$24),"",IF(AND(D17=$AX$25),"",IF(AND(D17=$AX$26),"",IF(AND(D17=$AX$27),"",IF(AND(D17=$AX$28),"",IF(AND(D17=$AX$29),"",IF(AND(E17=""),"",'Master Data'!$M$43)))))))),"") -> 0 | W17: =IFERROR(IF(OR('Master Data'!$I$28='GA55 Check & Edit'!$AP$6,D17=""),"",IF(AND(D17=$AX$24),"",IF(AND(D17=$AX$25),"",IF(AND(D17=$AX$26),"",IF(AND(D17=$AX$27),"",IF(AND(D17=$AX$28),"",IF(AND(D17=$AX$29),"",IF(AND(E17=""),"",'Master Data'!$N$43)))))))),"") -> 0 | X17: =IFERROR(IF(OR('Master Data'!$I$28='GA55 Check & Edit'!$AP$6,D17=""),"",IF(AND(E17=""),"",IF(AND('GA55 Check & Edit'!D17='GA55 Check & Edit'!$AT$17,'Master Data'!$D$18="Gazetted"),500,IF(AND('GA55 Check & Edit'!D17='GA55 Check & Edit'!$AT$17,'Master Data'!$D$18="Non-Gazetted"),250,"")))),"") -> 250 | Y17: =IFERROR(IF(D17="","",IF(AND(E17=""),"",IF(AND(D17=$AX$24),"",IF(AND(D17=$AX$25),"",IF(AND(D17=$AX$26),"",IF(AND(D17=$AX$27),"",IF(AND(D17=$AX$28),"",IF(AND(D17=$AX$29),"",IF(OR('Master Data'!$I$28='GA55 Check & Edit'!$AP$6,D17=""),"",$Y$7))))))))),"") -> 0 | Z17: =IFERROR(IF(OR('Master Data'!$I$28='GA55 Check & Edit'!$AP$6),"",IF(D17="","",IF(E17="","",VLOOKUP(D17,ram,9,0)))),"") -> 2000 | AA17: =IFERROR(IF(OR('Master Data'!$I$28='GA55 Check & Edit'!$AP$6,D17="",'Master Data'!$N$34=""),"",IF(AND(E17=""),"",IF('GA55 Check & Edit'!D17='GA55 Check & Edit'!$AT$9,'Master Data'!$N$34,""))),"") ->  | AB17: =IFERROR(IF(D17="","",IF(AND(O17=""),"",SUM(P17:AA17))),"0") -> 22228 | AC17: =IFERROR(IF(AND(E17="",O17="",AB17=""),"",SUM(O17-AB17)),"") -> 152828 | AS17: OCT | AT17: 2025-12-01 | AU17: L-10 | AW17: AUG | AX17: 2025-08-01 | AY17: 8 | AZ17: =IF(AND('Master Data'!H40=""),"",'Master Data'!H40) -> 2026-02-01 | BA17: =IF(AND('Master Data'!$N$24=""),"",IF(AND('Master Data'!$N$26='GA55 Check & Edit'!$AP$6),'GA55 Check & Edit'!$AZ$15,BU17)) -> 104200 | BB17: 104200 | BC17: =IF(AND('Master Data'!$N$24=""),"",ROUND(55%*BA17,0)) -> 57310 | BD17: 57310 | BE17: =IFERROR(IF(AND('Master Data'!$N$24=""),"",ROUND('Master Data'!$E$34%*BB17,0)),"") -> 10420 | BF17: ='Master Data'!G47 -> 2000 | BG17: =IFERROR(IF(OR('Master Data'!$I$28='GA55 Check & Edit'!$AP$6),"",IF('Master Data'!$I$30="GPF-2004",IF(BB17<18001,265,IF(BB17<33501,440,IF(BB17<54001,658,875))),IF(AND('Master Data'!$I$30="GPF",'Master Data'!$J$43=""),IF(BB17<18001,265,IF(BB17<33501,440,IF(BB17<54001,658,875))),'Master Data'!$J$43))),"") -> 875 | BH17: =IFERROR(IF(OR('Master Data'!$I$28='GA55 Check & Edit'!$AP$6),"",'Master Data'!$G$43),"") -> 7000 | BI17: =IFERROR(IF(OR('Master Data'!$I$28='GA55 Check & Edit'!$AP$6),"",IF('Master Data'!$I$30="GPF-2004",IF(BB17<23101,1450,IF(BB17<28501,1625,IF(BB17<38501,2100,IF(BB17<51501,2850,IF(BB17<62001,3575,IF(BB17<72001,4200,IF(BB17<80001,4800,IF(BB17<116001,6150,IF(BB17<167001,8900,10500))))))))),'Master Data'!$H$43)),"") -> 11000 | BJ17: =BJ16 -> 104200 | BK17: 2025-08-01 | BL17: =IFERROR(IF('Master Data'!$N$24="","",IF('Master Data'!$F$40="","",IF(AND($AZ$17>$AZ$9),"",DATE(YEAR(BL16),MONTH(BL16)+1,DAY(BL16))))),"") -> 2025-08-01 | BM17: =IFERROR(IF('Master Data'!$N$24="","",IF('Master Data'!$F$40="","",IF(AND($AZ$17>$AZ$9),"",DATE(YEAR(BM16),MONTH(BM16)+1,DAY(BM16))))),"") -> 2025-08-01 | BN17: 2025-08-01 | BO17: 2025-08-01 | BQ17: 2025-08-01 | BS17: 104200 | BU17: =IF(AND('Master Data'!$N$24=""),"",IF(AND('Master Data'!$N$26='GA55 Check & Edit'!AX17),'Master Data'!$N$30,BU16)) -> 104200 | BX17: 2000
A18: 1 | B18: 11 | C18: 11 | D18: 2026-01-01 | E18: =IFERROR(IF(D18="","",IF(AND(BQ22=""),"",IF(AND('Master Data'!$I$28='GA55 Check & Edit'!$AP$6),VLOOKUP(D18,ram,13,0),VLOOKUP(D18,ram,4,0)))),"") -> 104200 | F18: =IFERROR(IF(D18="","",IF(D18=$AX$24,"",IF(AND(D18=$AX$28),"",IF(AND('Master Data'!$I$28='GA55 Check & Edit'!$AP$5),VLOOKUP(D18,ram,7,0),"")))),"") -> 60436 | G18: =IFERROR(IF(D18="","",IF(D18=$AX$24,"",IF(AND(D18=$AX$25),"",IF(AND(D18=$AX$26),"",IF(AND(D18=$AX$27),"",IF(AND(D18=$AX$28),"",IF(AND(D18=$AX$29),"",IF(AND('Master Data'!$I$28='GA55 Check & Edit'!$AP$6),"",VLOOKUP(D18,ram,8,0))))))))),"") -> 10420 | H18: =IFERROR(IF(D18="","",IF(AND(E18=""),"",IF(OR(D18=$AX$24,D18=$AX$25,D18=$AX$26,D18=$AX$27,D18=$AX$28,D18=$AX$29),"",IF(AND('Master Data'!$I$28='GA55 Check & Edit'!$AP$5),'Master Data'!$B$43,"")))),"") -> 0 | I18: =IFERROR(IF(D18="","",IF(AND(E18=""),"",IF(OR(D18=$AX$24,D18=$AX$25,D18=$AX$26,D18=$AX$27,D18=$AX$28,D18=$AX$29),"",IF(AND('Master Data'!$I$28='GA55 Check & Edit'!$AP$5,'Master Data'!$E$28='GA55 Check & Edit'!$AO$5),'Master Data'!$E$30,"0")))),"") -> 0 | J18: =IFERROR(IF(OR('Master Data'!$E$32=$AO$6,'Master Data'!$E$32=""),"",IF(D18="","",IF(AND(E18=""),"",IF(OR(D18=$AX$24,D18=$AX$25,D18=$AX$26,D18=$AX$27,D18=$AX$28,D18=$AX$29),"",IF(AND('Master Data'!$I$28='GA55 Check & Edit'!$AP$6),"",IF(AND('Master Data'!$I$32=$AR$9),$AS$6,IF(AND('Master Data'!$I$32=$AR$10),$AS$6,IF(AND('Master Data'!$I$32=$AR$11),$AS$6,IF(AND('Master Data'!$I$32=$AR$12),$AS$6,$AS$5))))))))),"") ->  | K18: =IFERROR(IF(D18="","",IF(AND(E18=""),"",IF(OR(D18=$AX$24,D18=$AX$25,D18=$AX$26,D18=$AX$27,D18=$AX$28,D18=$AX$29),"",IF(AND('Master Data'!$I$28='GA55 Check & Edit'!$AP$5),'Master Data'!$C$43,"")))),"") -> 0 | L18: =IFERROR(IF(D18="","",IF(AND(E18=""),"",IF(OR(D18=$AX$24,D18=$AX$25,D18=$AX$26,D18=$AX$27,D18=$AX$28,D18=$AX$29),"",IF(AND('Master Data'!$I$28='GA55 Check & Edit'!$AP$6),"",'Master Data'!$D$43)))),"") -> 0 | M18: =IFERROR(IF(D18="","",IF(AND(E18=""),"",IF(OR(D18=$AX$24,D18=$AX$25,D18=$AX$26,D18=$AX$27,D18=$AX$28,D18=$AX$29),"",IF(AND('Master Data'!$I$28='GA55 Check & Edit'!$AP$6),"",'Master Data'!$E$43)))),"") -> 0 | N18: =IFERROR(IF(D18="","",IF(AND('Master Data'!$I$28='GA55 Check & Edit'!$AP$6),"",IF(AND('Master Data'!$I$24='GA55 Check & Edit'!$AO$6),"0",IF(AND(D18="Bonus"),VLOOKUP(D18,ram,4,0),"")))),"") ->  | O18: =IF(D18="","",IF('Master Data'!$N$24="","",SUM(E18:N18))) -> 175056 | P18: =IFERROR(IF(OR('Master Data'!$I$28='GA55 Check & Edit'!$AP$6,D18=""),"",IF(AND(D18=$AX$24),"",IF(AND(D18=$AX$25),"",IF(AND(D18=$AX$26),"",IF(AND(D18=$AX$27),"",IF(AND(D18=$AX$28),"",IF(AND(D18=$AX$29),"",IF(AND(E18=""),"",VLOOKUP(D18,ram,11,0))))))))),"") -> 7000 | Q18: =IFERROR(IF(AND('Master Data'!$I$28='GA55 Check & Edit'!$AP$6),"",IF(AND(D18=$AX$25),"",IF(AND(D18=$AX$28),"",IF(AND(D18=$AX$29),"",IF(AND(D18=""),"",IF(AND(BB22=""),"",VLOOKUP(D18,ram,12,0))))))),"") -> 11000 | R18: =IFERROR(IF(OR('Master Data'!$I$28='GA55 Check & Edit'!$AP$6,D18=""),"",IF(AND(D18=$AX$24),"",IF(AND(D18=$AX$25),"",IF(AND(D18=$AX$26),"",IF(AND(D18=$AX$27),"",IF(AND(D18=$AX$28),"",IF(AND(D18=$AX$29),"",IF(AND(E18=""),"",'Master Data'!$I$43)))))))),"") -> 1103 | S18: =IFERROR(IF(OR('Master Data'!$I$28='GA55 Check & Edit'!$AP$6),"",IF(D18="","",IF(E18="","",IF(AND(D18=$AX$24),"",IF(AND(D18=$AX$25),"",IF(AND(D18=$AX$26),"",IF(AND(D18=$AX$27),"",IF(AND(D18=$AX$28),"",IF(AND(D18=$AX$29),"",VLOOKUP(D18,ram,10,0)))))))))),"") -> 875 | T18: =IFERROR(IF(OR('Master Data'!$I$28='GA55 Check & Edit'!$AP$6,D18=""),"",IF(AND(D18=$AX$24),"",IF(AND(D18=$AX$25),"",IF(AND(D18=$AX$26),"",IF(AND(D18=$AX$27),"",IF(AND(D18=$AX$28),"",IF(AND(D18=$AX$29),"",IF(AND(E18=""),"",'Master Data'!$K$43)))))))),"") -> 0 | U18: =IFERROR(IF(OR('Master Data'!$I$28='GA55 Check & Edit'!$AP$6,D18=""),"",IF(AND(D18=$AX$24),"",IF(AND(D18=$AX$25),"",IF(AND(D18=$AX$26),"",IF(AND(D18=$AX$27),"",IF(AND(D18=$AX$28),"",IF(AND(D18=$AX$29),"",IF(AND(E18=""),"",'Master Data'!$L$43)))))))),"") -> 0 | V18: =IFERROR(IF(OR('Master Data'!$I$28='GA55 Check & Edit'!$AP$6,D18=""),"",IF(AND(D18=$AX$24),"",IF(AND(D18=$AX$25),"",IF(AND(D18=$AX$26),"",IF(AND(D18=$AX$27),"",IF(AND(D18=$AX$28),"",IF(AND(D18=$AX$29),"",IF(AND(E18=""),"",'Master Data'!$M$43)))))))),"") -> 0 | W18: =IFERROR(IF(OR('Master Data'!$I$28='GA55 Check & Edit'!$AP$6,D18=""),"",IF(AND(D18=$AX$24),"",IF(AND(D18=$AX$25),"",IF(AND(D18=$AX$26),"",IF(AND(D18=$AX$27),"",IF(AND(D18=$AX$28),"",IF(AND(D18=$AX$29),"",IF(AND(E18=""),"",'Master Data'!$N$43)))))))),"") -> 0 | X18: =IFERROR(IF(OR('Master Data'!$I$28='GA55 Check & Edit'!$AP$6,D18=""),"",IF(AND(E18=""),"",IF(AND('GA55 Check & Edit'!D18='GA55 Check & Edit'!$AT$17,'Master Data'!$D$18="Gazetted"),500,IF(AND('GA55 Check & Edit'!D18='GA55 Check & Edit'!$AT$17,'Master Data'!$D$18="Non-Gazetted"),250,"")))),"") ->  | Y18: =IFERROR(IF(D18="","",IF(AND(E18=""),"",IF(AND(D18=$AX$24),"",IF(AND(D18=$AX$25),"",IF(AND(D18=$AX$26),"",IF(AND(D18=$AX$27),"",IF(AND(D18=$AX$28),"",IF(AND(D18=$AX$29),"",IF(OR('Master Data'!$I$28='GA55 Check & Edit'!$AP$6,D18=""),"",$Y$7))))))))),"") -> 0 | Z18: =IFERROR(IF(OR('Master Data'!$I$28='GA55 Check & Edit'!$AP$6),"",IF(D18="","",IF(E18="","",VLOOKUP(D18,ram,9,0)))),"") -> 2000 | AA18: =IFERROR(IF(OR('Master Data'!$I$28='GA55 Check & Edit'!$AP$6,D18="",'Master Data'!$N$34=""),"",IF(AND(E18=""),"",IF('GA55 Check & Edit'!D18='GA55 Check & Edit'!$AT$9,'Master Data'!$N$34,""))),"") ->  | AB18: 21978 | AC18: 153078 | AS18: NOV | AT18: 2026-01-01 | AU18: L-11 | AW18: SEP | AX18: 2025-09-01 | AY18: 9 | AZ18: =IF(OR('Master Data'!N26="",'Master Data'!N30=""),MROUND(AZ15*1.03,100),IF('Master Data'!N26<'GA55 Check & Edit'!AX16,MROUND('Master Data'!N30*1.03,100),MROUND(AZ15*1.03,100))) -> 104200 | BA18: =IF(AND('Master Data'!$N$24=""),"",IF(AND('Master Data'!$N$26='GA55 Check & Edit'!$AP$6),'GA55 Check & Edit'!$AZ$15,BU18)) -> 104200 | BB18: 104200 | BC18: =IF(AND('Master Data'!$N$24=""),"",ROUND(55%*BA18,0)) -> 57310 | BD18: 57310 | BE18: =IFERROR(IF(AND('Master Data'!$N$24=""),"",ROUND('Master Data'!$E$34%*BB18,0)),"") -> 10420 | BF18: ='Master Data'!H47 -> 2000 | BG18: =IFERROR(IF(OR('Master Data'!$I$28='GA55 Check & Edit'!$AP$6),"",IF('Master Data'!$I$30="GPF-2004",IF(BB18<18001,265,IF(BB18<33501,440,IF(BB18<54001,658,875))),IF(AND('Master Data'!$I$30="GPF",'Master Data'!$J$43=""),IF(BB18<18001,265,IF(BB18<33501,440,IF(BB18<54001,658,875))),'Master Data'!$J$43))),"") -> 875 | BH18: =IFERROR(IF(OR('Master Data'!$I$28='GA55 Check & Edit'!$AP$6),"",'Master Data'!$G$43),"") -> 7000 | BI18: =IFERROR(IF(OR('Master Data'!$I$28='GA55 Check & Edit'!$AP$6),"",IF('Master Data'!$I$30="GPF-2004",IF(BB18<23101,1450,IF(BB18<28501,1625,IF(BB18<38501,2100,IF(BB18<51501,2850,IF(BB18<62001,3575,IF(BB18<72001,4200,IF(BB18<80001,4800,IF(BB18<116001,6150,IF(BB18<167001,8900,10500))))))))),'Master Data'!$H$43)),"") -> 11000 | BJ18: =BJ17 -> 104200 | BK18: 2025-09-01 | BL18: =IFERROR(IF('Master Data'!$N$24="","",IF('Master Data'!$F$40="","",IF(AND($AZ$17>$AZ$9),"",DATE(YEAR(BL17),MONTH(BL17)+1,DAY(BL17))))),"") -> 2025-09-01 | BM18: =IFERROR(IF('Master Data'!$N$24="","",IF('Master Data'!$F$40="","",IF(AND($AZ$17>$AZ$9),"",DATE(YEAR(BM17),MONTH(BM17)+1,DAY(BM17))))),"") -> 2025-09-01 | BN18: 2025-09-01 | BO18: 2025-09-01 | BQ18: 2025-09-01 | BU18: =IF(AND('Master Data'!$N$24=""),"",IF(AND('Master Data'!$N$26='GA55 Check & Edit'!AX18),'Master Data'!$N$30,BU17)) -> 104200 | BX18: 2000
A19: 0 | B19: 12 | C19: 12 | D19: 2026-02-01 | E19: =IFERROR(IF(D19="","",IF(AND(BQ23=""),"",IF(AND('Master Data'!$I$28='GA55 Check & Edit'!$AP$6),VLOOKUP(D19,ram,13,0),VLOOKUP(D19,ram,4,0)))),"") -> 104200 | F19: =IFERROR(IF(D19="","",IF(D19=$AX$24,"",IF(AND(D19=$AX$28),"",IF(AND('Master Data'!$I$28='GA55 Check & Edit'!$AP$5),VLOOKUP(D19,ram,7,0),"")))),"") -> 60436 | G19: =IFERROR(IF(D19="","",IF(D19=$AX$24,"",IF(AND(D19=$AX$25),"",IF(AND(D19=$AX$26),"",IF(AND(D19=$AX$27),"",IF(AND(D19=$AX$28),"",IF(AND(D19=$AX$29),"",IF(AND('Master Data'!$I$28='GA55 Check & Edit'!$AP$6),"",VLOOKUP(D19,ram,8,0))))))))),"") -> 10420 | H19: =IFERROR(IF(D19="","",IF(AND(E19=""),"",IF(OR(D19=$AX$24,D19=$AX$25,D19=$AX$26,D19=$AX$27,D19=$AX$28,D19=$AX$29),"",IF(AND('Master Data'!$I$28='GA55 Check & Edit'!$AP$5),'Master Data'!$B$43,"")))),"") -> 0 | I19: =IFERROR(IF(D19="","",IF(AND(E19=""),"",IF(OR(D19=$AX$24,D19=$AX$25,D19=$AX$26,D19=$AX$27,D19=$AX$28,D19=$AX$29),"",IF(AND('Master Data'!$I$28='GA55 Check & Edit'!$AP$5,'Master Data'!$E$28='GA55 Check & Edit'!$AO$5),'Master Data'!$E$30,"0")))),"") -> 0 | J19: =IFERROR(IF(OR('Master Data'!$E$32=$AO$6,'Master Data'!$E$32=""),"",IF(D19="","",IF(AND(E19=""),"",IF(OR(D19=$AX$24,D19=$AX$25,D19=$AX$26,D19=$AX$27,D19=$AX$28,D19=$AX$29),"",IF(AND('Master Data'!$I$28='GA55 Check & Edit'!$AP$6),"",IF(AND('Master Data'!$I$32=$AR$9),$AS$6,IF(AND('Master Data'!$I$32=$AR$10),$AS$6,IF(AND('Master Data'!$I$32=$AR$11),$AS$6,IF(AND('Master Data'!$I$32=$AR$12),$AS$6,$AS$5))))))))),"") ->  | K19: =IFERROR(IF(D19="","",IF(AND(E19=""),"",IF(OR(D19=$AX$24,D19=$AX$25,D19=$AX$26,D19=$AX$27,D19=$AX$28,D19=$AX$29),"",IF(AND('Master Data'!$I$28='GA55 Check & Edit'!$AP$5),'Master Data'!$C$43,"")))),"") -> 0 | L19: =IFERROR(IF(D19="","",IF(AND(E19=""),"",IF(OR(D19=$AX$24,D19=$AX$25,D19=$AX$26,D19=$AX$27,D19=$AX$28,D19=$AX$29),"",IF(AND('Master Data'!$I$28='GA55 Check & Edit'!$AP$6),"",'Master Data'!$D$43)))),"") -> 0 | M19: =IFERROR(IF(D19="","",IF(AND(E19=""),"",IF(OR(D19=$AX$24,D19=$AX$25,D19=$AX$26,D19=$AX$27,D19=$AX$28,D19=$AX$29),"",IF(AND('Master Data'!$I$28='GA55 Check & Edit'!$AP$6),"",'Master Data'!$E$43)))),"") -> 0 | N19: =IFERROR(IF(D19="","",IF(AND('Master Data'!$I$28='GA55 Check & Edit'!$AP$6),"",IF(AND('Master Data'!$I$24='GA55 Check & Edit'!$AO$6),"0",IF(AND(D19="Bonus"),VLOOKUP(D19,ram,4,0),"")))),"") ->  | O19: =IF(D19="","",IF('Master Data'!$N$24="","",SUM(E19:N19))) -> 175056 | P19: =IFERROR(IF(OR('Master Data'!$I$28='GA55 Check & Edit'!$AP$6,D19=""),"",IF(AND(D19=$AX$24),"",IF(AND(D19=$AX$25),"",IF(AND(D19=$AX$26),"",IF(AND(D19=$AX$27),"",IF(AND(D19=$AX$28),"",IF(AND(D19=$AX$29),"",IF(AND(E19=""),"",VLOOKUP(D19,ram,11,0))))))))),"") -> 7000 | Q19: =IFERROR(IF(AND('Master Data'!$I$28='GA55 Check & Edit'!$AP$6),"",IF(AND(D19=$AX$25),"",IF(AND(D19=$AX$28),"",IF(AND(D19=$AX$29),"",IF(AND(D19=""),"",IF(AND(BB23=""),"",VLOOKUP(D19,ram,12,0))))))),"") -> 11000 | R19: =IFERROR(IF(OR('Master Data'!$I$28='GA55 Check & Edit'!$AP$6,D19=""),"",IF(AND(D19=$AX$24),"",IF(AND(D19=$AX$25),"",IF(AND(D19=$AX$26),"",IF(AND(D19=$AX$27),"",IF(AND(D19=$AX$28),"",IF(AND(D19=$AX$29),"",IF(AND(E19=""),"",'Master Data'!$I$43)))))))),"") -> 1103 | S19: =IFERROR(IF(OR('Master Data'!$I$28='GA55 Check & Edit'!$AP$6),"",IF(D19="","",IF(E19="","",IF(AND(D19=$AX$24),"",IF(AND(D19=$AX$25),"",IF(AND(D19=$AX$26),"",IF(AND(D19=$AX$27),"",IF(AND(D19=$AX$28),"",IF(AND(D19=$AX$29),"",VLOOKUP(D19,ram,10,0)))))))))),"") -> 875 | T19: =IFERROR(IF(OR('Master Data'!$I$28='GA55 Check & Edit'!$AP$6,D19=""),"",IF(AND(D19=$AX$24),"",IF(AND(D19=$AX$25),"",IF(AND(D19=$AX$26),"",IF(AND(D19=$AX$27),"",IF(AND(D19=$AX$28),"",IF(AND(D19=$AX$29),"",IF(AND(E19=""),"",'Master Data'!$K$43)))))))),"") -> 0 | U19: =IFERROR(IF(OR('Master Data'!$I$28='GA55 Check & Edit'!$AP$6,D19=""),"",IF(AND(D19=$AX$24),"",IF(AND(D19=$AX$25),"",IF(AND(D19=$AX$26),"",IF(AND(D19=$AX$27),"",IF(AND(D19=$AX$28),"",IF(AND(D19=$AX$29),"",IF(AND(E19=""),"",'Master Data'!$L$43)))))))),"") -> 0 | V19: =IFERROR(IF(OR('Master Data'!$I$28='GA55 Check & Edit'!$AP$6,D19=""),"",IF(AND(D19=$AX$24),"",IF(AND(D19=$AX$25),"",IF(AND(D19=$AX$26),"",IF(AND(D19=$AX$27),"",IF(AND(D19=$AX$28),"",IF(AND(D19=$AX$29),"",IF(AND(E19=""),"",'Master Data'!$M$43)))))))),"") -> 0 | W19: =IFERROR(IF(OR('Master Data'!$I$28='GA55 Check & Edit'!$AP$6,D19=""),"",IF(AND(D19=$AX$24),"",IF(AND(D19=$AX$25),"",IF(AND(D19=$AX$26),"",IF(AND(D19=$AX$27),"",IF(AND(D19=$AX$28),"",IF(AND(D19=$AX$29),"",IF(AND(E19=""),"",'Master Data'!$N$43)))))))),"") -> 0 | X19: =IFERROR(IF(OR('Master Data'!$I$28='GA55 Check & Edit'!$AP$6,D19=""),"",IF(AND(E19=""),"",IF(AND('GA55 Check & Edit'!D19='GA55 Check & Edit'!$AT$17,'Master Data'!$D$18="Gazetted"),500,IF(AND('GA55 Check & Edit'!D19='GA55 Check & Edit'!$AT$17,'Master Data'!$D$18="Non-Gazetted"),250,"")))),"") ->  | Y19: =IFERROR(IF(D19="","",IF(AND(E19=""),"",IF(AND(D19=$AX$24),"",IF(AND(D19=$AX$25),"",IF(AND(D19=$AX$26),"",IF(AND(D19=$AX$27),"",IF(AND(D19=$AX$28),"",IF(AND(D19=$AX$29),"",IF(OR('Master Data'!$I$28='GA55 Check & Edit'!$AP$6,D19=""),"",$Y$7))))))))),"") -> 0 | Z19: =IFERROR(IF(OR('Master Data'!$I$28='GA55 Check & Edit'!$AP$6),"",IF(D19="","",IF(E19="","",VLOOKUP(D19,ram,9,0)))),"") -> 2000 | AA19: =IFERROR(IF(OR('Master Data'!$I$28='GA55 Check & Edit'!$AP$6,D19="",'Master Data'!$N$34=""),"",IF(AND(E19=""),"",IF('GA55 Check & Edit'!D19='GA55 Check & Edit'!$AT$9,'Master Data'!$N$34,""))),"") ->  | AB19: 21978 | AC19: 153078 | AS19: DEC | AT19: 2026-02-01 | AU19: L-12 | AW19: OCT | AX19: 2025-10-01 | AY19: 10 | AZ19: =IF(AND(AZ21<$AX$12),"",IF(AND(AZ21>$AX$15),"",AZ22)) ->  | BA19: =IF(AND('Master Data'!$N$24=""),"",IF(AND('Master Data'!$N$26='GA55 Check & Edit'!$AP$6),'GA55 Check & Edit'!$AZ$15,BU19)) -> 104200 | BB19: =IF(AND(AX19<$AZ$16),"",IF(AND(AX19>$AZ$17),"",BA19)) -> 104200 | BC19: =IF(AND('Master Data'!$N$24=""),"",ROUND(58%*BA19,0)) -> 60436 | BD19: =IF(BB19="","",BC19) -> 60436 | BE19: =IFERROR(IF(AND('Master Data'!$N$24=""),"",ROUND('Master Data'!$E$34%*BB19,0)),"") -> 10420 | BF19: ='Master Data'!I47 -> 2000 | BG19: =IFERROR(IF(OR('Master Data'!$I$28='GA55 Check & Edit'!$AP$6),"",IF('Master Data'!$I$30="GPF-2004",IF(BB19<18001,265,IF(BB19<33501,440,IF(BB19<54001,658,875))),IF(AND('Master Data'!$I$30="GPF",'Master Data'!$J$43=""),IF(BB19<18001,265,IF(BB19<33501,440,IF(BB19<54001,658,875))),'Master Data'!$J$43))),"") -> 875 | BH19: =IFERROR(IF(OR('Master Data'!$I$28='GA55 Check & Edit'!$AP$6),"",'Master Data'!$G$43),"") -> 7000 | BI19: =IFERROR(IF(OR('Master Data'!$I$28='GA55 Check & Edit'!$AP$6),"",IF('Master Data'!$I$30="GPF-2004",IF(BB19<23101,1450,IF(BB19<28501,1625,IF(BB19<38501,2100,IF(BB19<51501,2850,IF(BB19<62001,3575,IF(BB19<72001,4200,IF(BB19<80001,4800,IF(BB19<116001,6150,IF(BB19<167001,8900,10500))))))))),'Master Data'!$H$43)),"") -> 11000 | BJ19: 104200 | BK19: 2025-10-01 | BL19: =IFERROR(IF('Master Data'!$N$24="","",IF('Master Data'!$F$40="","",IF(AND($AZ$17>$AZ$9),"",DATE(YEAR(BL18),MONTH(BL18)+1,DAY(BL18))))),"") -> 2025-10-01 | BM19: =IFERROR(IF('Master Data'!$N$24="","",IF('Master Data'!$F$40="","",IF(AND($AZ$17>$AZ$9),"",DATE(YEAR(BM18),MONTH(BM18)+1,DAY(BM18))))),"") -> 2025-10-01 | BN19: 2025-10-01 | BO19: 2025-10-01 | BQ19: 2025-10-01 | BU19: =IF(AND('Master Data'!$N$24=""),"",IF(AND('Master Data'!$N$26='GA55 Check & Edit'!AX19),'Master Data'!$N$30,BU18)) -> 104200 | BX19: 2000
A20: 1 | B20: =IF(LEN(D20)>=3,B19+1,0) -> 13 | C20: 13 | D20: =IFERROR(IF(BO24="","",BO24),"") -> Bonus | E20: =IFERROR(IF(D20="","",IF(AND(BQ24=""),"",IF(AND('Master Data'!$I$28='GA55 Check & Edit'!$AP$6),VLOOKUP(D20,ram,13,0),VLOOKUP(D20,ram,4,0)))),"") ->  | F20: =IFERROR(IF(D20="","",IF(D20=$AX$24,"",IF(AND(D20=$AX$28),"",IF(AND('Master Data'!$I$28='GA55 Check & Edit'!$AP$5),VLOOKUP(D20,ram,7,0),"")))),"") ->  | G20: =IFERROR(IF(D20="","",IF(D20=$AX$24,"",IF(AND(D20=$AX$25),"",IF(AND(D20=$AX$26),"",IF(AND(D20=$AX$27),"",IF(AND(D20=$AX$28),"",IF(AND(D20=$AX$29),"",IF(AND('Master Data'!$I$28='GA55 Check & Edit'!$AP$6),"",VLOOKUP(D20,ram,8,0))))))))),"") ->  | H20: =IFERROR(IF(D20="","",IF(AND(E20=""),"",IF(OR(D20=$AX$24,D20=$AX$25,D20=$AX$26,D20=$AX$27,D20=$AX$28,D20=$AX$29),"",IF(AND('Master Data'!$I$28='GA55 Check & Edit'!$AP$5),'Master Data'!$B$43,"")))),"") ->  | I20: =IFERROR(IF(D20="","",IF(AND(E20=""),"",IF(OR(D20=$AX$24,D20=$AX$25,D20=$AX$26,D20=$AX$27,D20=$AX$28,D20=$AX$29),"",IF(AND('Master Data'!$I$28='GA55 Check & Edit'!$AP$5,'Master Data'!$E$28='GA55 Check & Edit'!$AO$5),'Master Data'!$E$30,"0")))),"") ->  | J20: =IFERROR(IF(OR('Master Data'!$E$32=$AO$6,'Master Data'!$E$32=""),"",IF(D20="","",IF(AND(E20=""),"",IF(OR(D20=$AX$24,D20=$AX$25,D20=$AX$26,D20=$AX$27,D20=$AX$28,D20=$AX$29),"",IF(AND('Master Data'!$I$28='GA55 Check & Edit'!$AP$6),"",IF(AND('Master Data'!$I$32=$AR$9),$AS$6,IF(AND('Master Data'!$I$32=$AR$10),$AS$6,IF(AND('Master Data'!$I$32=$AR$11),$AS$6,IF(AND('Master Data'!$I$32=$AR$12),$AS$6,$AS$5))))))))),"") ->  | K20: =IFERROR(IF(D20="","",IF(AND(E20=""),"",IF(OR(D20=$AX$24,D20=$AX$25,D20=$AX$26,D20=$AX$27,D20=$AX$28,D20=$AX$29),"",IF(AND('Master Data'!$I$28='GA55 Check & Edit'!$AP$5),'Master Data'!$C$43,"")))),"") ->  | L20: =IFERROR(IF(D20="","",IF(AND(E20=""),"",IF(OR(D20=$AX$24,D20=$AX$25,D20=$AX$26,D20=$AX$27,D20=$AX$28,D20=$AX$29),"",IF(AND('Master Data'!$I$28='GA55 Check & Edit'!$AP$6),"",'Master Data'!$D$43)))),"") ->  | M20: =IFERROR(IF(D20="","",IF(AND(E20=""),"",IF(OR(D20=$AX$24,D20=$AX$25,D20=$AX$26,D20=$AX$27,D20=$AX$28,D20=$AX$29),"",IF(AND('Master Data'!$I$28='GA55 Check & Edit'!$AP$6),"",'Master Data'!$E$43)))),"") ->  | N20: =IFERROR(IF(D20="","",IF(AND('Master Data'!$I$28='GA55 Check & Edit'!$AP$6),"",IF(AND('Master Data'!$I$24='GA55 Check & Edit'!$AO$6),"0",IF(AND(D20="Bonus"),VLOOKUP(D20,ram,4,0),"")))),"") -> 6774 | O20: =IF(D20="","",IF('Master Data'!$N$24="","",SUM(E20:N20))) -> 6774 | P20: =IFERROR(IF(OR('Master Data'!$I$28='GA55 Check & Edit'!$AP$6,D20=""),"",IF(AND(D20=$AX$24),"",IF(AND(D20=$AX$25),"",IF(AND(D20=$AX$26),"",IF(AND(D20=$AX$27),"",IF(AND(D20=$AX$28),"",IF(AND(D20=$AX$29),"",IF(AND(E20=""),"",VLOOKUP(D20,ram,11,0))))))))),"") ->  | Q20: =IFERROR(IF(AND('Master Data'!$I$28='GA55 Check & Edit'!$AP$6),"",IF(AND(D20=$AX$25),"",IF(AND(D20=$AX$28),"",IF(AND(D20=$AX$29),"",IF(AND(D20=""),"",IF(AND(BB24=""),"",VLOOKUP(D20,ram,12,0))))))),"") -> 1694 | R20: =IFERROR(IF(OR('Master Data'!$I$28='GA55 Check & Edit'!$AP$6,D20=""),"",IF(AND(D20=$AX$24),"",IF(AND(D20=$AX$25),"",IF(AND(D20=$AX$26),"",IF(AND(D20=$AX$27),"",IF(AND(D20=$AX$28),"",IF(AND(D20=$AX$29),"",IF(AND(E20=""),"",'Master Data'!$I$43)))))))),"") ->  | S20: =IFERROR(IF(OR('Master Data'!$I$28='GA55 Check & Edit'!$AP$6),"",IF(D20="","",IF(E20="","",IF(AND(D20=$AX$24),"",IF(AND(D20=$AX$25),"",IF(AND(D20=$AX$26),"",IF(AND(D20=$AX$27),"",IF(AND(D20=$AX$28),"",IF(AND(D20=$AX$29),"",VLOOKUP(D20,ram,10,0)))))))))),"") ->  | T20: =IFERROR(IF(OR('Master Data'!$I$28='GA55 Check & Edit'!$AP$6,D20=""),"",IF(AND(D20=$AX$24),"",IF(AND(D20=$AX$25),"",IF(AND(D20=$AX$26),"",IF(AND(D20=$AX$27),"",IF(AND(D20=$AX$28),"",IF(AND(D20=$AX$29),"",IF(AND(E20=""),"",'Master Data'!$K$43)))))))),"") ->  | U20: =IFERROR(IF(OR('Master Data'!$I$28='GA55 Check & Edit'!$AP$6,D20=""),"",IF(AND(D20=$AX$24),"",IF(AND(D20=$AX$25),"",IF(AND(D20=$AX$26),"",IF(AND(D20=$AX$27),"",IF(AND(D20=$AX$28),"",IF(AND(D20=$AX$29),"",IF(AND(E20=""),"",'Master Data'!$L$43)))))))),"") ->  | V20: =IFERROR(IF(OR('Master Data'!$I$28='GA55 Check & Edit'!$AP$6,D20=""),"",IF(AND(D20=$AX$24),"",IF(AND(D20=$AX$25),"",IF(AND(D20=$AX$26),"",IF(AND(D20=$AX$27),"",IF(AND(D20=$AX$28),"",IF(AND(D20=$AX$29),"",IF(AND(E20=""),"",'Master Data'!$M$43)))))))),"") ->  | W20: =IFERROR(IF(OR('Master Data'!$I$28='GA55 Check & Edit'!$AP$6,D20=""),"",IF(AND(D20=$AX$24),"",IF(AND(D20=$AX$25),"",IF(AND(D20=$AX$26),"",IF(AND(D20=$AX$27),"",IF(AND(D20=$AX$28),"",IF(AND(D20=$AX$29),"",IF(AND(E20=""),"",'Master Data'!$N$43)))))))),"") ->  | X20: =IFERROR(IF(OR('Master Data'!$I$28='GA55 Check & Edit'!$AP$6,D20=""),"",IF(AND(E20=""),"",IF(AND('GA55 Check & Edit'!D20='GA55 Check & Edit'!$AT$17,'Master Data'!$D$18="Gazetted"),500,IF(AND('GA55 Check & Edit'!D20='GA55 Check & Edit'!$AT$17,'Master Data'!$D$18="Non-Gazetted"),250,"")))),"") ->  | Y20: =IFERROR(IF(D20="","",IF(AND(E20=""),"",IF(AND(D20=$AX$24),"",IF(AND(D20=$AX$25),"",IF(AND(D20=$AX$26),"",IF(AND(D20=$AX$27),"",IF(AND(D20=$AX$28),"",IF(AND(D20=$AX$29),"",IF(OR('Master Data'!$I$28='GA55 Check & Edit'!$AP$6,D20=""),"",$Y$7))))))))),"") ->  | AA20: =IFERROR(IF(OR('Master Data'!$I$28='GA55 Check & Edit'!$AP$6,D20="",'Master Data'!$N$34=""),"",IF(AND(E20=""),"",IF('GA55 Check & Edit'!D20='GA55 Check & Edit'!$AT$9,'Master Data'!$N$34,""))),"") ->  | AB20: 1694 | AC20: 5080 | AU20: L-13 | AW20: NOV | AX20: 2025-11-01 | AY20: 11 | BA20: =IF(AND('Master Data'!$N$24=""),"",IF(AND('Master Data'!$N$26='GA55 Check & Edit'!$AP$6),'GA55 Check & Edit'!$AZ$15,BU20)) -> 104200 | BB20: 104200 | BC20: =IF(AND('Master Data'!$N$24=""),"",ROUND(58%*BA20,0)) -> 60436 | BD20: 60436 | BE20: =IFERROR(IF(AND('Master Data'!$N$24=""),"",ROUND('Master Data'!$E$34%*BB20,0)),"") -> 10420 | BF20: ='Master Data'!J47 -> 2000 | BG20: =IFERROR(IF(OR('Master Data'!$I$28='GA55 Check & Edit'!$AP$6),"",IF('Master Data'!$I$30="GPF-2004",IF(BB20<18001,265,IF(BB20<33501,440,IF(BB20<54001,658,875))),IF(AND('Master Data'!$I$30="GPF",'Master Data'!$J$43=""),IF(BB20<18001,265,IF(BB20<33501,440,IF(BB20<54001,658,875))),'Master Data'!$J$43))),"") -> 875 | BH20: =IFERROR(IF(OR('Master Data'!$I$28='GA55 Check & Edit'!$AP$6),"",'Master Data'!$G$43),"") -> 7000 | BI20: =IFERROR(IF(OR('Master Data'!$I$28='GA55 Check & Edit'!$AP$6),"",IF('Master Data'!$I$30="GPF-2004",IF(BB20<23101,1450,IF(BB20<28501,1625,IF(BB20<38501,2100,IF(BB20<51501,2850,IF(BB20<62001,3575,IF(BB20<72001,4200,IF(BB20<80001,4800,IF(BB20<116001,6150,IF(BB20<167001,8900,10500))))))))),'Master Data'!$H$43)),"") -> 11000 | BJ20: 104200 | BK20: 2025-11-01 | BL20: =IFERROR(IF('Master Data'!$N$24="","",IF('Master Data'!$F$40="","",IF(AND($AZ$17>$AZ$9),"",DATE(YEAR(BL19),MONTH(BL19)+1,DAY(BL19))))),"") -> 2025-11-01 | BM20: =IFERROR(IF('Master Data'!$N$24="","",IF('Master Data'!$F$40="","",IF(AND($AZ$17>$AZ$9),"",DATE(YEAR(BM19),MONTH(BM19)+1,DAY(BM19))))),"") -> 2025-11-01 | BN20: 2025-11-01 | BO20: 2025-11-01 | BQ20: 2025-11-01 | BU20: =IF(AND('Master Data'!$N$24=""),"",IF(AND('Master Data'!$N$26='GA55 Check & Edit'!AX20),'Master Data'!$N$30,BU19)) -> 104200 | BX20: 2000
A21: 0 | B21: 14 | C21: 14 | D21: PL Surrender | E21: =IFERROR(IF(D21="","",IF(AND(BQ25=""),"",IF(AND('Master Data'!$I$28='GA55 Check & Edit'!$AP$6),VLOOKUP(D21,ram,13,0),VLOOKUP(D21,ram,4,0)))),"") -> 52100 | F21: =IFERROR(IF(D21="","",IF(D21=$AX$24,"",IF(AND(D21=$AX$28),"",IF(AND('Master Data'!$I$28='GA55 Check & Edit'!$AP$5),VLOOKUP(D21,ram,7,0),"")))),"") -> 28655 | G21: =IFERROR(IF(D21="","",IF(D21=$AX$24,"",IF(AND(D21=$AX$25),"",IF(AND(D21=$AX$26),"",IF(AND(D21=$AX$27),"",IF(AND(D21=$AX$28),"",IF(AND(D21=$AX$29),"",IF(AND('Master Data'!$I$28='GA55 Check & Edit'!$AP$6),"",VLOOKUP(D21,ram,8,0))))))))),"") ->  | H21: =IFERROR(IF(D21="","",IF(AND(E21=""),"",IF(OR(D21=$AX$24,D21=$AX$25,D21=$AX$26,D21=$AX$27,D21=$AX$28,D21=$AX$29),"",IF(AND('Master Data'!$I$28='GA55 Check & Edit'!$AP$5),'Master Data'!$B$43,"")))),"") ->  | I21: =IFERROR(IF(D21="","",IF(AND(E21=""),"",IF(OR(D21=$AX$24,D21=$AX$25,D21=$AX$26,D21=$AX$27,D21=$AX$28,D21=$AX$29),"",IF(AND('Master Data'!$I$28='GA55 Check & Edit'!$AP$5,'Master Data'!$E$28='GA55 Check & Edit'!$AO$5),'Master Data'!$E$30,"0")))),"") ->  | J21: =IFERROR(IF(OR('Master Data'!$E$32=$AO$6,'Master Data'!$E$32=""),"",IF(D21="","",IF(AND(E21=""),"",IF(OR(D21=$AX$24,D21=$AX$25,D21=$AX$26,D21=$AX$27,D21=$AX$28,D21=$AX$29),"",IF(AND('Master Data'!$I$28='GA55 Check & Edit'!$AP$6),"",IF(AND('Master Data'!$I$32=$AR$9),$AS$6,IF(AND('Master Data'!$I$32=$AR$10),$AS$6,IF(AND('Master Data'!$I$32=$AR$11),$AS$6,IF(AND('Master Data'!$I$32=$AR$12),$AS$6,$AS$5))))))))),"") ->  | K21: =IFERROR(IF(D21="","",IF(AND(E21=""),"",IF(OR(D21=$AX$24,D21=$AX$25,D21=$AX$26,D21=$AX$27,D21=$AX$28,D21=$AX$29),"",IF(AND('Master Data'!$I$28='GA55 Check & Edit'!$AP$5),'Master Data'!$C$43,"")))),"") ->  | L21: =IFERROR(IF(D21="","",IF(AND(E21=""),"",IF(OR(D21=$AX$24,D21=$AX$25,D21=$AX$26,D21=$AX$27,D21=$AX$28,D21=$AX$29),"",IF(AND('Master Data'!$I$28='GA55 Check & Edit'!$AP$6),"",'Master Data'!$D$43)))),"") ->  | M21: =IFERROR(IF(D21="","",IF(AND(E21=""),"",IF(OR(D21=$AX$24,D21=$AX$25,D21=$AX$26,D21=$AX$27,D21=$AX$28,D21=$AX$29),"",IF(AND('Master Data'!$I$28='GA55 Check & Edit'!$AP$6),"",'Master Data'!$E$43)))),"") ->  | N21: =IFERROR(IF(D21="","",IF(AND('Master Data'!$I$28='GA55 Check & Edit'!$AP$6),"",IF(AND('Master Data'!$I$24='GA55 Check & Edit'!$AO$6),"0",IF(AND(D21="Bonus"),VLOOKUP(D21,ram,4,0),"")))),"") ->  | O21: =IF(D21="","",IF('Master Data'!$N$24="","",SUM(E21:N21))) -> 80755 | P21: =IFERROR(IF(OR('Master Data'!$I$28='GA55 Check & Edit'!$AP$6,D21=""),"",IF(AND(D21=$AX$24),"",IF(AND(D21=$AX$25),"",IF(AND(D21=$AX$26),"",IF(AND(D21=$AX$27),"",IF(AND(D21=$AX$28),"",IF(AND(D21=$AX$29),"",IF(AND(E21=""),"",VLOOKUP(D21,ram,11,0))))))))),"") ->  | Q21: =IFERROR(IF(AND('Master Data'!$I$28='GA55 Check & Edit'!$AP$6),"",IF(AND(D21=$AX$25),"",IF(AND(D21=$AX$28),"",IF(AND(D21=$AX$29),"",IF(AND(D21=""),"",IF(AND(BB25=""),"",VLOOKUP(D21,ram,12,0))))))),"") ->  | R21: =IFERROR(IF(OR('Master Data'!$I$28='GA55 Check & Edit'!$AP$6,D21=""),"",IF(AND(D21=$AX$24),"",IF(AND(D21=$AX$25),"",IF(AND(D21=$AX$26),"",IF(AND(D21=$AX$27),"",IF(AND(D21=$AX$28),"",IF(AND(D21=$AX$29),"",IF(AND(E21=""),"",'Master Data'!$I$43)))))))),"") ->  | S21: =IFERROR(IF(OR('Master Data'!$I$28='GA55 Check & Edit'!$AP$6),"",IF(D21="","",IF(E21="","",IF(AND(D21=$AX$24),"",IF(AND(D21=$AX$25),"",IF(AND(D21=$AX$26),"",IF(AND(D21=$AX$27),"",IF(AND(D21=$AX$28),"",IF(AND(D21=$AX$29),"",VLOOKUP(D21,ram,10,0)))))))))),"") ->  | T21: =IFERROR(IF(OR('Master Data'!$I$28='GA55 Check & Edit'!$AP$6,D21=""),"",IF(AND(D21=$AX$24),"",IF(AND(D21=$AX$25),"",IF(AND(D21=$AX$26),"",IF(AND(D21=$AX$27),"",IF(AND(D21=$AX$28),"",IF(AND(D21=$AX$29),"",IF(AND(E21=""),"",'Master Data'!$K$43)))))))),"") ->  | U21: =IFERROR(IF(OR('Master Data'!$I$28='GA55 Check & Edit'!$AP$6,D21=""),"",IF(AND(D21=$AX$24),"",IF(AND(D21=$AX$25),"",IF(AND(D21=$AX$26),"",IF(AND(D21=$AX$27),"",IF(AND(D21=$AX$28),"",IF(AND(D21=$AX$29),"",IF(AND(E21=""),"",'Master Data'!$L$43)))))))),"") ->  | V21: =IFERROR(IF(OR('Master Data'!$I$28='GA55 Check & Edit'!$AP$6,D21=""),"",IF(AND(D21=$AX$24),"",IF(AND(D21=$AX$25),"",IF(AND(D21=$AX$26),"",IF(AND(D21=$AX$27),"",IF(AND(D21=$AX$28),"",IF(AND(D21=$AX$29),"",IF(AND(E21=""),"",'Master Data'!$M$43)))))))),"") ->  | W21: =IFERROR(IF(OR('Master Data'!$I$28='GA55 Check & Edit'!$AP$6,D21=""),"",IF(AND(D21=$AX$24),"",IF(AND(D21=$AX$25),"",IF(AND(D21=$AX$26),"",IF(AND(D21=$AX$27),"",IF(AND(D21=$AX$28),"",IF(AND(D21=$AX$29),"",IF(AND(E21=""),"",'Master Data'!$N$43)))))))),"") ->  | X21: =IFERROR(IF(OR('Master Data'!$I$28='GA55 Check & Edit'!$AP$6,D21=""),"",IF(AND(E21=""),"",IF(AND('GA55 Check & Edit'!D21='GA55 Check & Edit'!$AT$17,'Master Data'!$D$18="Gazetted"),500,IF(AND('GA55 Check & Edit'!D21='GA55 Check & Edit'!$AT$17,'Master Data'!$D$18="Non-Gazetted"),250,"")))),"") ->  | Y21: =IFERROR(IF(D21="","",IF(AND(E21=""),"",IF(AND(D21=$AX$24),"",IF(AND(D21=$AX$25),"",IF(AND(D21=$AX$26),"",IF(AND(D21=$AX$27),"",IF(AND(D21=$AX$28),"",IF(AND(D21=$AX$29),"",IF(OR('Master Data'!$I$28='GA55 Check & Edit'!$AP$6,D21=""),"",$Y$7))))))))),"") ->  | AA21: =IFERROR(IF(OR('Master Data'!$I$28='GA55 Check & Edit'!$AP$6,D21="",'Master Data'!$N$34=""),"",IF(AND(E21=""),"",IF('GA55 Check & Edit'!D21='GA55 Check & Edit'!$AT$9,'Master Data'!$N$34,""))),"") ->  | AB21: 0 | AC21: 80755 | AU21: L-14 | AW21: DEC | AX21: 2025-12-01 | AY21: 12 | AZ21: =IF('Master Data'!N26="","",'Master Data'!N26) ->  | BA21: =IF(AND('Master Data'!$N$24=""),"",IF(AND('Master Data'!$N$26='GA55 Check & Edit'!$AP$6),'GA55 Check & Edit'!$AZ$15,BU21)) -> 104200 | BB21: 104200 | BC21: =IF(AND('Master Data'!$N$24=""),"",ROUND(58%*BA21,0)) -> 60436 | BD21: 60436 | BE21: =IFERROR(IF(AND('Master Data'!$N$24=""),"",ROUND('Master Data'!$E$34%*BB21,0)),"") -> 10420 | BF21: ='Master Data'!K47 -> 2000 | BG21: =IFERROR(IF(OR('Master Data'!$I$28='GA55 Check & Edit'!$AP$6),"",IF('Master Data'!$I$30="GPF-2004",IF(BB21<18001,265,IF(BB21<33501,440,IF(BB21<54001,658,875))),IF(AND('Master Data'!$I$30="GPF",'Master Data'!$J$43=""),IF(BB21<18001,265,IF(BB21<33501,440,IF(BB21<54001,658,875))),'Master Data'!$J$43))),"") -> 875 | BH21: =IFERROR(IF(OR('Master Data'!$I$28='GA55 Check & Edit'!$AP$6),"",'Master Data'!$G$43),"") -> 7000 | BI21: =IFERROR(IF(OR('Master Data'!$I$28='GA55 Check & Edit'!$AP$6),"",IF('Master Data'!$I$30="GPF-2004",IF(BB21<23101,1450,IF(BB21<28501,1625,IF(BB21<38501,2100,IF(BB21<51501,2850,IF(BB21<62001,3575,IF(BB21<72001,4200,IF(BB21<80001,4800,IF(BB21<116001,6150,IF(BB21<167001,8900,10500))))))))),'Master Data'!$H$43)),"") -> 11000 | BJ21: 104200 | BK21: 2025-12-01 | BL21: =IFERROR(IF('Master Data'!$N$24="","",IF('Master Data'!$F$40="","",IF(AND($AZ$17>$AZ$9),"",DATE(YEAR(BL20),MONTH(BL20)+1,DAY(BL20))))),"") -> 2025-12-01 | BM21: =IFERROR(IF('Master Data'!$N$24="","",IF('Master Data'!$F$40="","",IF(AND($AZ$17>$AZ$9),"",DATE(YEAR(BM20),MONTH(BM20)+1,DAY(BM20))))),"") -> 2025-12-01 | BN21: 2025-12-01 | BO21: 2025-12-01 | BQ21: 2025-12-01 | BU21: =IF(AND('Master Data'!$N$24=""),"",IF(AND('Master Data'!$N$26='GA55 Check & Edit'!AX21),'Master Data'!$N$30,BU20)) -> 104200 | BX21: 2000
A22: 1 | B22: 15 | C22: 15 | D22: DA Arrear 53 to 55% | E22: =IFERROR(IF(D22="","",IF(AND(BQ26=""),"",IF(AND('Master Data'!$I$28='GA55 Check & Edit'!$AP$6),VLOOKUP(D22,ram,13,0),VLOOKUP(D22,ram,4,0)))),"") ->  | F22: =IFERROR(IF(D22="","",IF(D22=$AX$24,"",IF(AND(D22=$AX$28),"",IF(AND('Master Data'!$I$28='GA55 Check & Edit'!$AP$5),VLOOKUP(D22,ram,7,0),"")))),"") -> 6072 | G22: =IFERROR(IF(D22="","",IF(D22=$AX$24,"",IF(AND(D22=$AX$25),"",IF(AND(D22=$AX$26),"",IF(AND(D22=$AX$27),"",IF(AND(D22=$AX$28),"",IF(AND(D22=$AX$29),"",IF(AND('Master Data'!$I$28='GA55 Check & Edit'!$AP$6),"",VLOOKUP(D22,ram,8,0))))))))),"") ->  | H22: =IFERROR(IF(D22="","",IF(AND(E22=""),"",IF(OR(D22=$AX$24,D22=$AX$25,D22=$AX$26,D22=$AX$27,D22=$AX$28,D22=$AX$29),"",IF(AND('Master Data'!$I$28='GA55 Check & Edit'!$AP$5),'Master Data'!$B$43,"")))),"") ->  | I22: =IFERROR(IF(D22="","",IF(AND(E22=""),"",IF(OR(D22=$AX$24,D22=$AX$25,D22=$AX$26,D22=$AX$27,D22=$AX$28,D22=$AX$29),"",IF(AND('Master Data'!$I$28='GA55 Check & Edit'!$AP$5,'Master Data'!$E$28='GA55 Check & Edit'!$AO$5),'Master Data'!$E$30,"0")))),"") ->  | J22: =IFERROR(IF(OR('Master Data'!$E$32=$AO$6,'Master Data'!$E$32=""),"",IF(D22="","",IF(AND(E22=""),"",IF(OR(D22=$AX$24,D22=$AX$25,D22=$AX$26,D22=$AX$27,D22=$AX$28,D22=$AX$29),"",IF(AND('Master Data'!$I$28='GA55 Check & Edit'!$AP$6),"",IF(AND('Master Data'!$I$32=$AR$9),$AS$6,IF(AND('Master Data'!$I$32=$AR$10),$AS$6,IF(AND('Master Data'!$I$32=$AR$11),$AS$6,IF(AND('Master Data'!$I$32=$AR$12),$AS$6,$AS$5))))))))),"") ->  | K22: =IFERROR(IF(D22="","",IF(AND(E22=""),"",IF(OR(D22=$AX$24,D22=$AX$25,D22=$AX$26,D22=$AX$27,D22=$AX$28,D22=$AX$29),"",IF(AND('Master Data'!$I$28='GA55 Check & Edit'!$AP$5),'Master Data'!$C$43,"")))),"") ->  | L22: =IFERROR(IF(D22="","",IF(AND(E22=""),"",IF(OR(D22=$AX$24,D22=$AX$25,D22=$AX$26,D22=$AX$27,D22=$AX$28,D22=$AX$29),"",IF(AND('Master Data'!$I$28='GA55 Check & Edit'!$AP$6),"",'Master Data'!$D$43)))),"") ->  | M22: =IFERROR(IF(D22="","",IF(AND(E22=""),"",IF(OR(D22=$AX$24,D22=$AX$25,D22=$AX$26,D22=$AX$27,D22=$AX$28,D22=$AX$29),"",IF(AND('Master Data'!$I$28='GA55 Check & Edit'!$AP$6),"",'Master Data'!$E$43)))),"") ->  | N22: =IFERROR(IF(D22="","",IF(AND('Master Data'!$I$28='GA55 Check & Edit'!$AP$6),"",IF(AND('Master Data'!$I$24='GA55 Check & Edit'!$AO$6),"0",IF(AND(D22="Bonus"),VLOOKUP(D22,ram,4,0),"")))),"") ->  | O22: =IF(D22="","",IF('Master Data'!$N$24="","",SUM(E22:N22))) -> 6072 | P22: =IFERROR(IF(OR('Master Data'!$I$28='GA55 Check & Edit'!$AP$6,D22=""),"",IF(AND(D22=$AX$24),"",IF(AND(D22=$AX$25),"",IF(AND(D22=$AX$26),"",IF(AND(D22=$AX$27),"",IF(AND(D22=$AX$28),"",IF(AND(D22=$AX$29),"",IF(AND(E22=""),"",VLOOKUP(D22,ram,11,0))))))))),"") ->  | Q22: =IFERROR(IF(AND('Master Data'!$I$28='GA55 Check & Edit'!$AP$6),"",IF(AND(D22=$AX$25),"",IF(AND(D22=$AX$28),"",IF(AND(D22=$AX$29),"",IF(AND(D22=""),"",IF(AND(BB26=""),"",VLOOKUP(D22,ram,12,0))))))),"") -> 6072 | R22: =IFERROR(IF(OR('Master Data'!$I$28='GA55 Check & Edit'!$AP$6,D22=""),"",IF(AND(D22=$AX$24),"",IF(AND(D22=$AX$25),"",IF(AND(D22=$AX$26),"",IF(AND(D22=$AX$27),"",IF(AND(D22=$AX$28),"",IF(AND(D22=$AX$29),"",IF(AND(E22=""),"",'Master Data'!$I$43)))))))),"") ->  | S22: =IFERROR(IF(OR('Master Data'!$I$28='GA55 Check & Edit'!$AP$6),"",IF(D22="","",IF(E22="","",IF(AND(D22=$AX$24),"",IF(AND(D22=$AX$25),"",IF(AND(D22=$AX$26),"",IF(AND(D22=$AX$27),"",IF(AND(D22=$AX$28),"",IF(AND(D22=$AX$29),"",VLOOKUP(D22,ram,10,0)))))))))),"") ->  | T22: =IFERROR(IF(OR('Master Data'!$I$28='GA55 Check & Edit'!$AP$6,D22=""),"",IF(AND(D22=$AX$24),"",IF(AND(D22=$AX$25),"",IF(AND(D22=$AX$26),"",IF(AND(D22=$AX$27),"",IF(AND(D22=$AX$28),"",IF(AND(D22=$AX$29),"",IF(AND(E22=""),"",'Master Data'!$K$43)))))))),"") ->  | U22: =IFERROR(IF(OR('Master Data'!$I$28='GA55 Check & Edit'!$AP$6,D22=""),"",IF(AND(D22=$AX$24),"",IF(AND(D22=$AX$25),"",IF(AND(D22=$AX$26),"",IF(AND(D22=$AX$27),"",IF(AND(D22=$AX$28),"",IF(AND(D22=$AX$29),"",IF(AND(E22=""),"",'Master Data'!$L$43)))))))),"") ->  | V22: =IFERROR(IF(OR('Master Data'!$I$28='GA55 Check & Edit'!$AP$6,D22=""),"",IF(AND(D22=$AX$24),"",IF(AND(D22=$AX$25),"",IF(AND(D22=$AX$26),"",IF(AND(D22=$AX$27),"",IF(AND(D22=$AX$28),"",IF(AND(D22=$AX$29),"",IF(AND(E22=""),"",'Master Data'!$M$43)))))))),"") ->  | W22: =IFERROR(IF(OR('Master Data'!$I$28='GA55 Check & Edit'!$AP$6,D22=""),"",IF(AND(D22=$AX$24),"",IF(AND(D22=$AX$25),"",IF(AND(D22=$AX$26),"",IF(AND(D22=$AX$27),"",IF(AND(D22=$AX$28),"",IF(AND(D22=$AX$29),"",IF(AND(E22=""),"",'Master Data'!$N$43)))))))),"") ->  | X22: =IFERROR(IF(OR('Master Data'!$I$28='GA55 Check & Edit'!$AP$6,D22=""),"",IF(AND(E22=""),"",IF(AND('GA55 Check & Edit'!D22='GA55 Check & Edit'!$AT$17,'Master Data'!$D$18="Gazetted"),500,IF(AND('GA55 Check & Edit'!D22='GA55 Check & Edit'!$AT$17,'Master Data'!$D$18="Non-Gazetted"),250,"")))),"") ->  | Y22: =IFERROR(IF(D22="","",IF(AND(E22=""),"",IF(AND(D22=$AX$24),"",IF(AND(D22=$AX$25),"",IF(AND(D22=$AX$26),"",IF(AND(D22=$AX$27),"",IF(AND(D22=$AX$28),"",IF(AND(D22=$AX$29),"",IF(OR('Master Data'!$I$28='GA55 Check & Edit'!$AP$6,D22=""),"",$Y$7))))))))),"") ->  | AA22: =IFERROR(IF(OR('Master Data'!$I$28='GA55 Check & Edit'!$AP$6,D22="",'Master Data'!$N$34=""),"",IF(AND(E22=""),"",IF('GA55 Check & Edit'!D22='GA55 Check & Edit'!$AT$9,'Master Data'!$N$34,""))),"") ->  | AB22: =IFERROR(IF(D22="","",IF(AND(O22=""),"",SUM(P22:AA22))),"0") -> 6072 | AC22: =IFERROR(IF(AND(E22="",O22="",AB22=""),"",SUM(O22-AB22)),"") -> 0 | AU22: L-15 | AW22: JAN | AX22: 2026-01-01 | AY22: 1 | AZ22: =IF('Master Data'!N30="","",'Master Data'!N30) ->  | BA22: =IF(AND('Master Data'!$N$24=""),"",IF(AND('Master Data'!$N$26='GA55 Check & Edit'!$AP$6),'GA55 Check & Edit'!$AZ$15,BU22)) -> 104200 | BB22: 104200 | BC22: =IF(AND('Master Data'!$N$24=""),"",ROUND(58%*BA22,0)) -> 60436 | BD22: 60436 | BE22: =IFERROR(IF(AND('Master Data'!$N$24=""),"",ROUND('Master Data'!$E$34%*BB22,0)),"") -> 10420 | BF22: ='Master Data'!L47 -> 2000 | BG22: =IFERROR(IF(OR('Master Data'!$I$28='GA55 Check & Edit'!$AP$6),"",IF('Master Data'!$I$30="GPF-2004",IF(BB22<18001,265,IF(BB22<33501,440,IF(BB22<54001,658,875))),IF(AND('Master Data'!$I$30="GPF",'Master Data'!$J$43=""),IF(BB22<18001,265,IF(BB22<33501,440,IF(BB22<54001,658,875))),'Master Data'!$J$43))),"") -> 875 | BH22: =IFERROR(IF(OR('Master Data'!$I$28='GA55 Check & Edit'!$AP$6),"",'Master Data'!$G$43),"") -> 7000 | BI22: =IFERROR(IF(OR('Master Data'!$I$28='GA55 Check & Edit'!$AP$6),"",IF('Master Data'!$I$30="GPF-2004",IF(BB22<23101,1450,IF(BB22<28501,1625,IF(BB22<38501,2100,IF(BB22<51501,2850,IF(BB22<62001,3575,IF(BB22<72001,4200,IF(BB22<80001,4800,IF(BB22<116001,6150,IF(BB22<167001,8900,10500))))))))),'Master Data'!$H$43)),"") -> 11000 | BJ22: 104200 | BK22: 2026-01-01 | BL22: =IFERROR(IF('Master Data'!$N$24="","",IF('Master Data'!$F$40="","",IF(AND($AZ$17>$AZ$9),"",DATE(YEAR(BL21),MONTH(BL21)+1,DAY(BL21))))),"") -> 2026-01-01 | BM22: =IFERROR(IF('Master Data'!$N$24="","",IF('Master Data'!$F$40="","",IF(AND($AZ$17>$AZ$9),"",DATE(YEAR(BM21),MONTH(BM21)+1,DAY(BM21))))),"") -> 2026-01-01 | BN22: 2026-01-01 | BO22: 2026-01-01 | BQ22: 2026-01-01 | BU22: =IF(AND('Master Data'!$N$24=""),"",IF(AND('Master Data'!$N$26='GA55 Check & Edit'!AX22),'Master Data'!$N$30,BU21)) -> 104200 | BX22: 2000
A23: 0 | B23: 16 | C23: 16 | D23: DA Arrear 55% to 58% | E23: =IFERROR(IF(D23="","",IF(AND(BQ27=""),"",IF(AND('Master Data'!$I$28='GA55 Check & Edit'!$AP$6),VLOOKUP(D23,ram,13,0),VLOOKUP(D23,ram,4,0)))),"") ->  | F23: =IFERROR(IF(D23="","",IF(D23=$AX$24,"",IF(AND(D23=$AX$28),"",IF(AND('Master Data'!$I$28='GA55 Check & Edit'!$AP$5),VLOOKUP(D23,ram,7,0),"")))),"") -> 9378 | G23: =IFERROR(IF(D23="","",IF(D23=$AX$24,"",IF(AND(D23=$AX$25),"",IF(AND(D23=$AX$26),"",IF(AND(D23=$AX$27),"",IF(AND(D23=$AX$28),"",IF(AND(D23=$AX$29),"",IF(AND('Master Data'!$I$28='GA55 Check & Edit'!$AP$6),"",VLOOKUP(D23,ram,8,0))))))))),"") ->  | H23: =IFERROR(IF(D23="","",IF(AND(E23=""),"",IF(OR(D23=$AX$24,D23=$AX$25,D23=$AX$26,D23=$AX$27,D23=$AX$28,D23=$AX$29),"",IF(AND('Master Data'!$I$28='GA55 Check & Edit'!$AP$5),'Master Data'!$B$43,"")))),"") ->  | I23: =IFERROR(IF(D23="","",IF(AND(E23=""),"",IF(OR(D23=$AX$24,D23=$AX$25,D23=$AX$26,D23=$AX$27,D23=$AX$28,D23=$AX$29),"",IF(AND('Master Data'!$I$28='GA55 Check & Edit'!$AP$5,'Master Data'!$E$28='GA55 Check & Edit'!$AO$5),'Master Data'!$E$30,"0")))),"") ->  | J23: =IFERROR(IF(OR('Master Data'!$E$32=$AO$6,'Master Data'!$E$32=""),"",IF(D23="","",IF(AND(E23=""),"",IF(OR(D23=$AX$24,D23=$AX$25,D23=$AX$26,D23=$AX$27,D23=$AX$28,D23=$AX$29),"",IF(AND('Master Data'!$I$28='GA55 Check & Edit'!$AP$6),"",IF(AND('Master Data'!$I$32=$AR$9),$AS$6,IF(AND('Master Data'!$I$32=$AR$10),$AS$6,IF(AND('Master Data'!$I$32=$AR$11),$AS$6,IF(AND('Master Data'!$I$32=$AR$12),$AS$6,$AS$5))))))))),"") ->  | K23: =IFERROR(IF(D23="","",IF(AND(E23=""),"",IF(OR(D23=$AX$24,D23=$AX$25,D23=$AX$26,D23=$AX$27,D23=$AX$28,D23=$AX$29),"",IF(AND('Master Data'!$I$28='GA55 Check & Edit'!$AP$5),'Master Data'!$C$43,"")))),"") ->  | L23: =IFERROR(IF(D23="","",IF(AND(E23=""),"",IF(OR(D23=$AX$24,D23=$AX$25,D23=$AX$26,D23=$AX$27,D23=$AX$28,D23=$AX$29),"",IF(AND('Master Data'!$I$28='GA55 Check & Edit'!$AP$6),"",'Master Data'!$D$43)))),"") ->  | M23: =IFERROR(IF(D23="","",IF(AND(E23=""),"",IF(OR(D23=$AX$24,D23=$AX$25,D23=$AX$26,D23=$AX$27,D23=$AX$28,D23=$AX$29),"",IF(AND('Master Data'!$I$28='GA55 Check & Edit'!$AP$6),"",'Master Data'!$E$43)))),"") ->  | N23: =IFERROR(IF(D23="","",IF(AND('Master Data'!$I$28='GA55 Check & Edit'!$AP$6),"",IF(AND('Master Data'!$I$24='GA55 Check & Edit'!$AO$6),"0",IF(AND(D23="Bonus"),VLOOKUP(D23,ram,4,0),"")))),"") ->  | O23: =IF(D23="","",IF('Master Data'!$N$24="","",SUM(E23:N23))) -> 9378 | P23: =IFERROR(IF(OR('Master Data'!$I$28='GA55 Check & Edit'!$AP$6,D23=""),"",IF(AND(D23=$AX$24),"",IF(AND(D23=$AX$25),"",IF(AND(D23=$AX$26),"",IF(AND(D23=$AX$27),"",IF(AND(D23=$AX$28),"",IF(AND(D23=$AX$29),"",IF(AND(E23=""),"",VLOOKUP(D23,ram,11,0))))))))),"") ->  | Q23: =IFERROR(IF(AND('Master Data'!$I$28='GA55 Check & Edit'!$AP$6),"",IF(AND(D23=$AX$25),"",IF(AND(D23=$AX$28),"",IF(AND(D23=$AX$29),"",IF(AND(D23=""),"",IF(AND(BB27=""),"",VLOOKUP(D23,ram,12,0))))))),"") -> 9378 | R23: =IFERROR(IF(OR('Master Data'!$I$28='GA55 Check & Edit'!$AP$6,D23=""),"",IF(AND(D23=$AX$24),"",IF(AND(D23=$AX$25),"",IF(AND(D23=$AX$26),"",IF(AND(D23=$AX$27),"",IF(AND(D23=$AX$28),"",IF(AND(D23=$AX$29),"",IF(AND(E23=""),"",'Master Data'!$I$43)))))))),"") ->  | S23: =IFERROR(IF(OR('Master Data'!$I$28='GA55 Check & Edit'!$AP$6),"",IF(D23="","",IF(E23="","",IF(AND(D23=$AX$24),"",IF(AND(D23=$AX$25),"",IF(AND(D23=$AX$26),"",IF(AND(D23=$AX$27),"",IF(AND(D23=$AX$28),"",IF(AND(D23=$AX$29),"",VLOOKUP(D23,ram,10,0)))))))))),"") ->  | T23: =IFERROR(IF(OR('Master Data'!$I$28='GA55 Check & Edit'!$AP$6,D23=""),"",IF(AND(D23=$AX$24),"",IF(AND(D23=$AX$25),"",IF(AND(D23=$AX$26),"",IF(AND(D23=$AX$27),"",IF(AND(D23=$AX$28),"",IF(AND(D23=$AX$29),"",IF(AND(E23=""),"",'Master Data'!$K$43)))))))),"") ->  | U23: =IFERROR(IF(OR('Master Data'!$I$28='GA55 Check & Edit'!$AP$6,D23=""),"",IF(AND(D23=$AX$24),"",IF(AND(D23=$AX$25),"",IF(AND(D23=$AX$26),"",IF(AND(D23=$AX$27),"",IF(AND(D23=$AX$28),"",IF(AND(D23=$AX$29),"",IF(AND(E23=""),"",'Master Data'!$L$43)))))))),"") ->  | V23: =IFERROR(IF(OR('Master Data'!$I$28='GA55 Check & Edit'!$AP$6,D23=""),"",IF(AND(D23=$AX$24),"",IF(AND(D23=$AX$25),"",IF(AND(D23=$AX$26),"",IF(AND(D23=$AX$27),"",IF(AND(D23=$AX$28),"",IF(AND(D23=$AX$29),"",IF(AND(E23=""),"",'Master Data'!$M$43)))))))),"") ->  | W23: =IFERROR(IF(OR('Master Data'!$I$28='GA55 Check & Edit'!$AP$6,D23=""),"",IF(AND(D23=$AX$24),"",IF(AND(D23=$AX$25),"",IF(AND(D23=$AX$26),"",IF(AND(D23=$AX$27),"",IF(AND(D23=$AX$28),"",IF(AND(D23=$AX$29),"",IF(AND(E23=""),"",'Master Data'!$N$43)))))))),"") ->  | X23: =IFERROR(IF(OR('Master Data'!$I$28='GA55 Check & Edit'!$AP$6,D23=""),"",IF(AND(E23=""),"",IF(AND('GA55 Check & Edit'!D23='GA55 Check & Edit'!$AT$17,'Master Data'!$D$18="Gazetted"),500,IF(AND('GA55 Check & Edit'!D23='GA55 Check & Edit'!$AT$17,'Master Data'!$D$18="Non-Gazetted"),250,"")))),"") ->  | Y23: =IFERROR(IF(D23="","",IF(AND(E23=""),"",IF(AND(D23=$AX$24),"",IF(AND(D23=$AX$25),"",IF(AND(D23=$AX$26),"",IF(AND(D23=$AX$27),"",IF(AND(D23=$AX$28),"",IF(AND(D23=$AX$29),"",IF(OR('Master Data'!$I$28='GA55 Check & Edit'!$AP$6,D23=""),"",$Y$7))))))))),"") ->  | AA23: =IFERROR(IF(OR('Master Data'!$I$28='GA55 Check & Edit'!$AP$6,D23="",'Master Data'!$N$34=""),"",IF(AND(E23=""),"",IF('GA55 Check & Edit'!D23='GA55 Check & Edit'!$AT$9,'Master Data'!$N$34,""))),"") ->  | AB23: 9378 | AC23: 0 | AR23: =IF('Master Data'!I38<'GA55 Check & Edit'!AX16,MROUND('Master Data'!N24*1.03,100),MROUND(AZ15*1.03,100)) -> 104200 | AU23: L-16 | AW23: FEB | AX23: 2026-02-01 | AY23: 2 | BA23: =IF(AND('Master Data'!$N$24=""),"",IF(AND('Master Data'!$N$26='GA55 Check & Edit'!$AP$6),'GA55 Check & Edit'!$AZ$15,BU23)) -> 104200 | BB23: 104200 | BC23: =IF(AND('Master Data'!$N$24=""),"",ROUND(58%*BA23,0)) -> 60436 | BD23: =IF(BB23="","",BC23) -> 60436 | BE23: =IFERROR(IF(AND('Master Data'!$N$24=""),"",ROUND('Master Data'!$E$34%*BB23,0)),"") -> 10420 | BF23: ='Master Data'!M47 -> 2000 | BG23: =IFERROR(IF(OR('Master Data'!$I$28='GA55 Check & Edit'!$AP$6),"",IF('Master Data'!$I$30="GPF-2004",IF(BB23<18001,265,IF(BB23<33501,440,IF(BB23<54001,658,875))),IF(AND('Master Data'!$I$30="GPF",'Master Data'!$J$43=""),IF(BB23<18001,265,IF(BB23<33501,440,IF(BB23<54001,658,875))),'Master Data'!$J$43))),"") -> 875 | BH23: =IFERROR(IF(OR('Master Data'!$I$28='GA55 Check & Edit'!$AP$6),"",'Master Data'!$G$43),"") -> 7000 | BI23: =IFERROR(IF(OR('Master Data'!$I$28='GA55 Check & Edit'!$AP$6),"",IF('Master Data'!$I$30="GPF-2004",IF(BB23<23101,1450,IF(BB23<28501,1625,IF(BB23<38501,2100,IF(BB23<51501,2850,IF(BB23<62001,3575,IF(BB23<72001,4200,IF(BB23<80001,4800,IF(BB23<116001,6150,IF(BB23<167001,8900,10500))))))))),'Master Data'!$H$43)),"") -> 11000 | BJ23: =BJ22 -> 104200 | BK23: 2026-02-01 | BL23: =IFERROR(IF('Master Data'!$N$24="","",IF('Master Data'!$F$40="","",IF(AND($AZ$17>$AZ$9),"",DATE(YEAR(BL22),MONTH(BL22)+1,DAY(BL22))))),"") -> 2026-02-01 | BM23: =IFERROR(IF('Master Data'!$N$24="","",IF('Master Data'!$F$40="","",IF(AND($AZ$17>$AZ$9),"",DATE(YEAR(BM22),MONTH(BM22)+1,DAY(BM22))))),"") -> 2026-02-01 | BN23: 2026-02-01 | BO23: 2026-02-01 | BQ23: 2026-02-01 | BU23: =IF(AND('Master Data'!$N$24=""),"",IF(AND('Master Data'!$N$26='GA55 Check & Edit'!AX23),'Master Data'!$N$30,BU22)) -> 104200 | BX23: =IF(BB23="",0,BF23) -> 2000
A24: 1 | B24: 17 | C24: 17 | D24: ACP/MACP Arrear | E24: =IFERROR(IF(D24="","",IF(AND(BQ28=""),"",IF(AND('Master Data'!$I$28='GA55 Check & Edit'!$AP$6),VLOOKUP(D24,ram,13,0),VLOOKUP(D24,ram,4,0)))),"") ->  | F24: =IFERROR(IF(D24="","",IF(D24=$AX$24,"",IF(AND(D24=$AX$28),"",IF(AND('Master Data'!$I$28='GA55 Check & Edit'!$AP$5),VLOOKUP(D24,ram,7,0),"")))),"") ->  | G24: =IFERROR(IF(D24="","",IF(D24=$AX$24,"",IF(AND(D24=$AX$25),"",IF(AND(D24=$AX$26),"",IF(AND(D24=$AX$27),"",IF(AND(D24=$AX$28),"",IF(AND(D24=$AX$29),"",IF(AND('Master Data'!$I$28='GA55 Check & Edit'!$AP$6),"",VLOOKUP(D24,ram,8,0))))))))),"") ->  | H24: =IFERROR(IF(D24="","",IF(AND(E24=""),"",IF(OR(D24=$AX$24,D24=$AX$25,D24=$AX$26,D24=$AX$27,D24=$AX$28,D24=$AX$29),"",IF(AND('Master Data'!$I$28='GA55 Check & Edit'!$AP$5),'Master Data'!$B$43,"")))),"") ->  | I24: =IFERROR(IF(D24="","",IF(AND(E24=""),"",IF(OR(D24=$AX$24,D24=$AX$25,D24=$AX$26,D24=$AX$27,D24=$AX$28,D24=$AX$29),"",IF(AND('Master Data'!$I$28='GA55 Check & Edit'!$AP$5,'Master Data'!$E$28='GA55 Check & Edit'!$AO$5),'Master Data'!$E$30,"0")))),"") ->  | J24: =IFERROR(IF(OR('Master Data'!$E$32=$AO$6,'Master Data'!$E$32=""),"",IF(D24="","",IF(AND(E24=""),"",IF(OR(D24=$AX$24,D24=$AX$25,D24=$AX$26,D24=$AX$27,D24=$AX$28,D24=$AX$29),"",IF(AND('Master Data'!$I$28='GA55 Check & Edit'!$AP$6),"",IF(AND('Master Data'!$I$32=$AR$9),$AS$6,IF(AND('Master Data'!$I$32=$AR$10),$AS$6,IF(AND('Master Data'!$I$32=$AR$11),$AS$6,IF(AND('Master Data'!$I$32=$AR$12),$AS$6,$AS$5))))))))),"") ->  | K24: =IFERROR(IF(D24="","",IF(AND(E24=""),"",IF(OR(D24=$AX$24,D24=$AX$25,D24=$AX$26,D24=$AX$27,D24=$AX$28,D24=$AX$29),"",IF(AND('Master Data'!$I$28='GA55 Check & Edit'!$AP$5),'Master Data'!$C$43,"")))),"") ->  | L24: =IFERROR(IF(D24="","",IF(AND(E24=""),"",IF(OR(D24=$AX$24,D24=$AX$25,D24=$AX$26,D24=$AX$27,D24=$AX$28,D24=$AX$29),"",IF(AND('Master Data'!$I$28='GA55 Check & Edit'!$AP$6),"",'Master Data'!$D$43)))),"") ->  | M24: =IFERROR(IF(D24="","",IF(AND(E24=""),"",IF(OR(D24=$AX$24,D24=$AX$25,D24=$AX$26,D24=$AX$27,D24=$AX$28,D24=$AX$29),"",IF(AND('Master Data'!$I$28='GA55 Check & Edit'!$AP$6),"",'Master Data'!$E$43)))),"") ->  | N24: =IFERROR(IF(D24="","",IF(AND('Master Data'!$I$28='GA55 Check & Edit'!$AP$6),"",IF(AND('Master Data'!$I$24='GA55 Check & Edit'!$AO$6),"0",IF(AND(D24="Bonus"),VLOOKUP(D24,ram,4,0),"")))),"") ->  | O24: =IF(D24="","",IF('Master Data'!$N$24="","",SUM(E24:N24))) -> 0 | P24: =IFERROR(IF(OR('Master Data'!$I$28='GA55 Check & Edit'!$AP$6,D24=""),"",IF(AND(D24=$AX$24),"",IF(AND(D24=$AX$25),"",IF(AND(D24=$AX$26),"",IF(AND(D24=$AX$27),"",IF(AND(D24=$AX$28),"",IF(AND(D24=$AX$29),"",IF(AND(E24=""),"",VLOOKUP(D24,ram,11,0))))))))),"") ->  | Q24: =IFERROR(IF(AND('Master Data'!$I$28='GA55 Check & Edit'!$AP$6),"",IF(AND(D24=$AX$25),"",IF(AND(D24=$AX$28),"",IF(AND(D24=$AX$29),"",IF(AND(D24=""),"",IF(AND(BB28=""),"",VLOOKUP(D24,ram,12,0))))))),"") ->  | R24: =IFERROR(IF(OR('Master Data'!$I$28='GA55 Check & Edit'!$AP$6,D24=""),"",IF(AND(D24=$AX$24),"",IF(AND(D24=$AX$25),"",IF(AND(D24=$AX$26),"",IF(AND(D24=$AX$27),"",IF(AND(D24=$AX$28),"",IF(AND(D24=$AX$29),"",IF(AND(E24=""),"",'Master Data'!$I$43)))))))),"") ->  | S24: =IFERROR(IF(OR('Master Data'!$I$28='GA55 Check & Edit'!$AP$6),"",IF(D24="","",IF(E24="","",IF(AND(D24=$AX$24),"",IF(AND(D24=$AX$25),"",IF(AND(D24=$AX$26),"",IF(AND(D24=$AX$27),"",IF(AND(D24=$AX$28),"",IF(AND(D24=$AX$29),"",VLOOKUP(D24,ram,10,0)))))))))),"") ->  | T24: =IFERROR(IF(OR('Master Data'!$I$28='GA55 Check & Edit'!$AP$6,D24=""),"",IF(AND(D24=$AX$24),"",IF(AND(D24=$AX$25),"",IF(AND(D24=$AX$26),"",IF(AND(D24=$AX$27),"",IF(AND(D24=$AX$28),"",IF(AND(D24=$AX$29),"",IF(AND(E24=""),"",'Master Data'!$K$43)))))))),"") ->  | U24: =IFERROR(IF(OR('Master Data'!$I$28='GA55 Check & Edit'!$AP$6,D24=""),"",IF(AND(D24=$AX$24),"",IF(AND(D24=$AX$25),"",IF(AND(D24=$AX$26),"",IF(AND(D24=$AX$27),"",IF(AND(D24=$AX$28),"",IF(AND(D24=$AX$29),"",IF(AND(E24=""),"",'Master Data'!$L$43)))))))),"") ->  | V24: =IFERROR(IF(OR('Master Data'!$I$28='GA55 Check & Edit'!$AP$6,D24=""),"",IF(AND(D24=$AX$24),"",IF(AND(D24=$AX$25),"",IF(AND(D24=$AX$26),"",IF(AND(D24=$AX$27),"",IF(AND(D24=$AX$28),"",IF(AND(D24=$AX$29),"",IF(AND(E24=""),"",'Master Data'!$M$43)))))))),"") ->  | W24: =IFERROR(IF(OR('Master Data'!$I$28='GA55 Check & Edit'!$AP$6,D24=""),"",IF(AND(D24=$AX$24),"",IF(AND(D24=$AX$25),"",IF(AND(D24=$AX$26),"",IF(AND(D24=$AX$27),"",IF(AND(D24=$AX$28),"",IF(AND(D24=$AX$29),"",IF(AND(E24=""),"",'Master Data'!$N$43)))))))),"") ->  | X24: =IFERROR(IF(OR('Master Data'!$I$28='GA55 Check & Edit'!$AP$6,D24=""),"",IF(AND(E24=""),"",IF(AND('GA55 Check & Edit'!D24='GA55 Check & Edit'!$AT$17,'Master Data'!$D$18="Gazetted"),500,IF(AND('GA55 Check & Edit'!D24='GA55 Check & Edit'!$AT$17,'Master Data'!$D$18="Non-Gazetted"),250,"")))),"") ->  | Y24: =IFERROR(IF(D24="","",IF(AND(E24=""),"",IF(AND(D24=$AX$24),"",IF(AND(D24=$AX$25),"",IF(AND(D24=$AX$26),"",IF(AND(D24=$AX$27),"",IF(AND(D24=$AX$28),"",IF(AND(D24=$AX$29),"",IF(OR('Master Data'!$I$28='GA55 Check & Edit'!$AP$6,D24=""),"",$Y$7))))))))),"") ->  | AA24: =IFERROR(IF(OR('Master Data'!$I$28='GA55 Check & Edit'!$AP$6,D24="",'Master Data'!$N$34=""),"",IF(AND(E24=""),"",IF('GA55 Check & Edit'!D24='GA55 Check & Edit'!$AT$9,'Master Data'!$N$34,""))),"") ->  | AB24: 0 | AC24: 0 | AS24: =MROUND('Master Data'!N24*1.03,100) -> 104200 | AU24: L-17 | AX24: =BM24 -> Bonus | BA24: =IF('Master Data'!$I$26=1,ROUND((6774/12)*1,0),IF('Master Data'!$I$26=2,ROUND((6774/12)*2,0),IF('Master Data'!$I$26=3,ROUND((6774/12)*3,0),IF('Master Data'!$I$26=4,ROUND((6774/12)*4,0),IF('Master Data'!$I$26=5,ROUND((6774/12)*5,0),IF('Master Data'!$I$26=6,ROUND((6774/12)*6,0),IF('Master Data'!$I$26=7,ROUND((6774/12)*7,0),IF('Master Data'!$I$26=8,ROUND((6774/12)*8,0),IF('Master Data'!$I$26=9,ROUND((6774/12)*9,0),IF('Master Data'!$I$26=10,ROUND((6774/12)*10,0),IF('Master Data'!$I$26=11,ROUND((6774/12)*11,0),IF('Master Data'!$I$26=12,ROUND((6774/12)*12,0),0)))))))))))) -> 6774 | BB24: 6774 | BD24: =IF(BC24="","",BC24) ->  | BI24: =IF('Master Data'!$I$24="No","",ROUND(BA24*25%,0)) -> 1694 | BK24: 2026-03-01 | BL24: =IFERROR(IF('Master Data'!$N$24="","",IF('Master Data'!$F$40="","",IF(AND($AZ$17>$AZ$9),"",DATE(YEAR(BL23),MONTH(BL23)+1,DAY(BL23))))),"") -> 2026-03-01 | BM24: Bonus | BO24: Bonus | BW24: =MATCH(BM24,$D$8:$D$28,0) -> 13 | BX24: =IFERROR(IF(BB24="",0,VLOOKUP(BW24,$C$8:$AC$28,24)),0) -> 0 | BZ24: =VLOOKUP(BW24,$C$8:$AC$28,24) -> 0
A25: 0 | B25: 18 | C25: 18 | D25: PL Surrender Arrear | E25: =IFERROR(IF(D25="","",IF(AND(BQ29=""),"",IF(AND('Master Data'!$I$28='GA55 Check & Edit'!$AP$6),VLOOKUP(D25,ram,13,0),VLOOKUP(D25,ram,4,0)))),"") ->  | F25: =IFERROR(IF(D25="","",IF(D25=$AX$24,"",IF(AND(D25=$AX$28),"",IF(AND('Master Data'!$I$28='GA55 Check & Edit'!$AP$5),VLOOKUP(D25,ram,7,0),"")))),"") -> 1563 | G25: =IFERROR(IF(D25="","",IF(D25=$AX$24,"",IF(AND(D25=$AX$25),"",IF(AND(D25=$AX$26),"",IF(AND(D25=$AX$27),"",IF(AND(D25=$AX$28),"",IF(AND(D25=$AX$29),"",IF(AND('Master Data'!$I$28='GA55 Check & Edit'!$AP$6),"",VLOOKUP(D25,ram,8,0))))))))),"") ->  | H25: =IFERROR(IF(D25="","",IF(AND(E25=""),"",IF(OR(D25=$AX$24,D25=$AX$25,D25=$AX$26,D25=$AX$27,D25=$AX$28,D25=$AX$29),"",IF(AND('Master Data'!$I$28='GA55 Check & Edit'!$AP$5),'Master Data'!$B$43,"")))),"") ->  | I25: =IFERROR(IF(D25="","",IF(AND(E25=""),"",IF(OR(D25=$AX$24,D25=$AX$25,D25=$AX$26,D25=$AX$27,D25=$AX$28,D25=$AX$29),"",IF(AND('Master Data'!$I$28='GA55 Check & Edit'!$AP$5,'Master Data'!$E$28='GA55 Check & Edit'!$AO$5),'Master Data'!$E$30,"0")))),"") ->  | J25: =IFERROR(IF(OR('Master Data'!$E$32=$AO$6,'Master Data'!$E$32=""),"",IF(D25="","",IF(AND(E25=""),"",IF(OR(D25=$AX$24,D25=$AX$25,D25=$AX$26,D25=$AX$27,D25=$AX$28,D25=$AX$29),"",IF(AND('Master Data'!$I$28='GA55 Check & Edit'!$AP$6),"",IF(AND('Master Data'!$I$32=$AR$9),$AS$6,IF(AND('Master Data'!$I$32=$AR$10),$AS$6,IF(AND('Master Data'!$I$32=$AR$11),$AS$6,IF(AND('Master Data'!$I$32=$AR$12),$AS$6,$AS$5))))))))),"") ->  | K25: =IFERROR(IF(D25="","",IF(AND(E25=""),"",IF(OR(D25=$AX$24,D25=$AX$25,D25=$AX$26,D25=$AX$27,D25=$AX$28,D25=$AX$29),"",IF(AND('Master Data'!$I$28='GA55 Check & Edit'!$AP$5),'Master Data'!$C$43,"")))),"") ->  | L25: =IFERROR(IF(D25="","",IF(AND(E25=""),"",IF(OR(D25=$AX$24,D25=$AX$25,D25=$AX$26,D25=$AX$27,D25=$AX$28,D25=$AX$29),"",IF(AND('Master Data'!$I$28='GA55 Check & Edit'!$AP$6),"",'Master Data'!$D$43)))),"") ->  | M25: =IFERROR(IF(D25="","",IF(AND(E25=""),"",IF(OR(D25=$AX$24,D25=$AX$25,D25=$AX$26,D25=$AX$27,D25=$AX$28,D25=$AX$29),"",IF(AND('Master Data'!$I$28='GA55 Check & Edit'!$AP$6),"",'Master Data'!$E$43)))),"") ->  | N25: =IFERROR(IF(D25="","",IF(AND('Master Data'!$I$28='GA55 Check & Edit'!$AP$6),"",IF(AND('Master Data'!$I$24='GA55 Check & Edit'!$AO$6),"0",IF(AND(D25="Bonus"),VLOOKUP(D25,ram,4,0),"")))),"") ->  | O25: =IF(D25="","",IF('Master Data'!$N$24="","",SUM(E25:N25))) -> 1563 | P25: =IFERROR(IF(OR('Master Data'!$I$28='GA55 Check & Edit'!$AP$6,D25=""),"",IF(AND(D25=$AX$24),"",IF(AND(D25=$AX$25),"",IF(AND(D25=$AX$26),"",IF(AND(D25=$AX$27),"",IF(AND(D25=$AX$28),"",IF(AND(D25=$AX$29),"",IF(AND(E25=""),"",VLOOKUP(D25,ram,11,0))))))))),"") ->  | Q25: =IFERROR(IF(AND('Master Data'!$I$28='GA55 Check & Edit'!$AP$6),"",IF(AND(D25=$AX$25),"",IF(AND(D25=$AX$28),"",IF(AND(D25=$AX$29),"",IF(AND(D25=""),"",IF(AND(BB29=""),"",VLOOKUP(D25,ram,12,0))))))),"") ->  | R25: =IFERROR(IF(OR('Master Data'!$I$28='GA55 Check & Edit'!$AP$6,D25=""),"",IF(AND(D25=$AX$24),"",IF(AND(D25=$AX$25),"",IF(AND(D25=$AX$26),"",IF(AND(D25=$AX$27),"",IF(AND(D25=$AX$28),"",IF(AND(D25=$AX$29),"",IF(AND(E25=""),"",'Master Data'!$I$43)))))))),"") ->  | S25: =IFERROR(IF(OR('Master Data'!$I$28='GA55 Check & Edit'!$AP$6),"",IF(D25="","",IF(E25="","",IF(AND(D25=$AX$24),"",IF(AND(D25=$AX$25),"",IF(AND(D25=$AX$26),"",IF(AND(D25=$AX$27),"",IF(AND(D25=$AX$28),"",IF(AND(D25=$AX$29),"",VLOOKUP(D25,ram,10,0)))))))))),"") ->  | T25: =IFERROR(IF(OR('Master Data'!$I$28='GA55 Check & Edit'!$AP$6,D25=""),"",IF(AND(D25=$AX$24),"",IF(AND(D25=$AX$25),"",IF(AND(D25=$AX$26),"",IF(AND(D25=$AX$27),"",IF(AND(D25=$AX$28),"",IF(AND(D25=$AX$29),"",IF(AND(E25=""),"",'Master Data'!$K$43)))))))),"") ->  | U25: =IFERROR(IF(OR('Master Data'!$I$28='GA55 Check & Edit'!$AP$6,D25=""),"",IF(AND(D25=$AX$24),"",IF(AND(D25=$AX$25),"",IF(AND(D25=$AX$26),"",IF(AND(D25=$AX$27),"",IF(AND(D25=$AX$28),"",IF(AND(D25=$AX$29),"",IF(AND(E25=""),"",'Master Data'!$L$43)))))))),"") ->  | V25: =IFERROR(IF(OR('Master Data'!$I$28='GA55 Check & Edit'!$AP$6,D25=""),"",IF(AND(D25=$AX$24),"",IF(AND(D25=$AX$25),"",IF(AND(D25=$AX$26),"",IF(AND(D25=$AX$27),"",IF(AND(D25=$AX$28),"",IF(AND(D25=$AX$29),"",IF(AND(E25=""),"",'Master Data'!$M$43)))))))),"") ->  | W25: =IFERROR(IF(OR('Master Data'!$I$28='GA55 Check & Edit'!$AP$6,D25=""),"",IF(AND(D25=$AX$24),"",IF(AND(D25=$AX$25),"",IF(AND(D25=$AX$26),"",IF(AND(D25=$AX$27),"",IF(AND(D25=$AX$28),"",IF(AND(D25=$AX$29),"",IF(AND(E25=""),"",'Master Data'!$N$43)))))))),"") ->  | X25: =IFERROR(IF(OR('Master Data'!$I$28='GA55 Check & Edit'!$AP$6,D25=""),"",IF(AND(E25=""),"",IF(AND('GA55 Check & Edit'!D25='GA55 Check & Edit'!$AT$17,'Master Data'!$D$18="Gazetted"),500,IF(AND('GA55 Check & Edit'!D25='GA55 Check & Edit'!$AT$17,'Master Data'!$D$18="Non-Gazetted"),250,"")))),"") ->  | Y25: =IFERROR(IF(D25="","",IF(AND(E25=""),"",IF(AND(D25=$AX$24),"",IF(AND(D25=$AX$25),"",IF(AND(D25=$AX$26),"",IF(AND(D25=$AX$27),"",IF(AND(D25=$AX$28),"",IF(AND(D25=$AX$29),"",IF(OR('Master Data'!$I$28='GA55 Check & Edit'!$AP$6,D25=""),"",$Y$7))))))))),"") ->  | AA25: =IFERROR(IF(OR('Master Data'!$I$28='GA55 Check & Edit'!$AP$6,D25="",'Master Data'!$N$34=""),"",IF(AND(E25=""),"",IF('GA55 Check & Edit'!D25='GA55 Check & Edit'!$AT$9,'Master Data'!$N$34,""))),"") ->  | AB25: 0 | AC25: 1563 | AS25: =MROUND(AZ15*1.03,100) -> 104200 | AU25: L-18 | AX25: =BM25 -> PL Surrender | BA25: =IF('Master Data'!$I$28='GA55 Check & Edit'!$AP$6,"",IF(OR('Master Data'!E22="NO",'Master Data'!E22=""),"",VLOOKUP('Master Data'!I22,AW12:BD29,5,0)/2)) -> 52100 | BC25: =IF('Master Data'!$I$28='GA55 Check & Edit'!$AP$6,"",IF(AND(BA25=""),"",IF(OR('Master Data'!I22='GA55 Check & Edit'!AW12),ROUND(55%*BA25,0),IF(OR('Master Data'!I22='GA55 Check & Edit'!AW13,'Master Data'!I22='GA55 Check & Edit'!AW14,'Master Data'!I22='GA55 Check & Edit'!AW15),ROUND(55%*BA25,0),IF(OR('Master Data'!I22='GA55 Check & Edit'!AW16,'Master Data'!I22='GA55 Check & Edit'!AW17,'Master Data'!I22='GA55 Check & Edit'!AW18),ROUND(55%*BA25,0),ROUND(58%*BA25,0)))))) -> 28655 | BD25: =IF(BC25="","",BC25) -> 28655 | BK25: 2026-04-01 | BL25: =IFERROR(IF('Master Data'!$N$24="","",IF('Master Data'!$F$40="","",IF(AND($AZ$17>$AZ$9),"",DATE(YEAR(BL24),MONTH(BL24)+1,DAY(BL24))))),"") -> 2026-04-01 | BM25: PL Surrender | BO25: PL Surrender | BQ25: PL Surrender | BW25: =MATCH(BM25,$D$8:$D$28,0) -> 14 | BX25: =IFERROR(IF(BB25="",0,VLOOKUP(BW25,$C$8:$AC$28,24)),0) -> 0 | BZ25: =VLOOKUP(BW25,$C$8:$AC$28,24) -> 0
A26: 1 | B26: 19 | C26: 19 | D26: =IFERROR(IF(BO30="","",BO30),"") -> Fixation arrear | E26: =IFERROR(IF(D26="","",IF(AND(BQ30=""),"",IF(AND('Master Data'!$I$28='GA55 Check & Edit'!$AP$6),VLOOKUP(D26,ram,13,0),VLOOKUP(D26,ram,4,0)))),"") ->  | F26: =IFERROR(IF(D26="","",IF(D26=$AX$24,"",IF(AND(D26=$AX$28),"",IF(AND('Master Data'!$I$28='GA55 Check & Edit'!$AP$5),VLOOKUP(D26,ram,7,0),"")))),"") ->  | G26: =IFERROR(IF(D26="","",IF(D26=$AX$24,"",IF(AND(D26=$AX$25),"",IF(AND(D26=$AX$26),"",IF(AND(D26=$AX$27),"",IF(AND(D26=$AX$28),"",IF(AND(D26=$AX$29),"",IF(AND('Master Data'!$I$28='GA55 Check & Edit'!$AP$6),"",VLOOKUP(D26,ram,8,0))))))))),"") -> 0 | H26: =IFERROR(IF(D26="","",IF(AND(E26=""),"",IF(OR(D26=$AX$24,D26=$AX$25,D26=$AX$26,D26=$AX$27,D26=$AX$28,D26=$AX$29),"",IF(AND('Master Data'!$I$28='GA55 Check & Edit'!$AP$5),'Master Data'!$B$43,"")))),"") ->  | I26: =IFERROR(IF(D26="","",IF(AND(E26=""),"",IF(OR(D26=$AX$24,D26=$AX$25,D26=$AX$26,D26=$AX$27,D26=$AX$28,D26=$AX$29),"",IF(AND('Master Data'!$I$28='GA55 Check & Edit'!$AP$5,'Master Data'!$E$28='GA55 Check & Edit'!$AO$5),'Master Data'!$E$30,"0")))),"") ->  | J26: =IFERROR(IF(OR('Master Data'!$E$32=$AO$6,'Master Data'!$E$32=""),"",IF(D26="","",IF(AND(E26=""),"",IF(OR(D26=$AX$24,D26=$AX$25,D26=$AX$26,D26=$AX$27,D26=$AX$28,D26=$AX$29),"",IF(AND('Master Data'!$I$28='GA55 Check & Edit'!$AP$6),"",IF(AND('Master Data'!$I$32=$AR$9),$AS$6,IF(AND('Master Data'!$I$32=$AR$10),$AS$6,IF(AND('Master Data'!$I$32=$AR$11),$AS$6,IF(AND('Master Data'!$I$32=$AR$12),$AS$6,$AS$5))))))))),"") ->  | K26: =IFERROR(IF(D26="","",IF(AND(E26=""),"",IF(OR(D26=$AX$24,D26=$AX$25,D26=$AX$26,D26=$AX$27,D26=$AX$28,D26=$AX$29),"",IF(AND('Master Data'!$I$28='GA55 Check & Edit'!$AP$5),'Master Data'!$C$43,"")))),"") ->  | L26: =IFERROR(IF(D26="","",IF(AND(E26=""),"",IF(OR(D26=$AX$24,D26=$AX$25,D26=$AX$26,D26=$AX$27,D26=$AX$28,D26=$AX$29),"",IF(AND('Master Data'!$I$28='GA55 Check & Edit'!$AP$6),"",'Master Data'!$D$43)))),"") ->  | M26: =IFERROR(IF(D26="","",IF(AND(E26=""),"",IF(OR(D26=$AX$24,D26=$AX$25,D26=$AX$26,D26=$AX$27,D26=$AX$28,D26=$AX$29),"",IF(AND('Master Data'!$I$28='GA55 Check & Edit'!$AP$6),"",'Master Data'!$E$43)))),"") ->  | N26: =IFERROR(IF(D26="","",IF(AND('Master Data'!$I$28='GA55 Check & Edit'!$AP$6),"",IF(AND('Master Data'!$I$24='GA55 Check & Edit'!$AO$6),"0",IF(AND(D26="Bonus"),VLOOKUP(D26,ram,4,0),"")))),"") ->  | O26: =IF(D26="","",IF('Master Data'!$N$24="","",SUM(E26:N26))) -> 0 | P26: =IFERROR(IF(OR('Master Data'!$I$28='GA55 Check & Edit'!$AP$6,D26=""),"",IF(AND(D26=$AX$24),"",IF(AND(D26=$AX$25),"",IF(AND(D26=$AX$26),"",IF(AND(D26=$AX$27),"",IF(AND(D26=$AX$28),"",IF(AND(D26=$AX$29),"",IF(AND(E26=""),"",VLOOKUP(D26,ram,11,0))))))))),"") ->  | Q26: =IFERROR(IF(AND('Master Data'!$I$28='GA55 Check & Edit'!$AP$6),"",IF(AND(D26=$AX$25),"",IF(AND(D26=$AX$28),"",IF(AND(D26=$AX$29),"",IF(AND(D26=""),"",IF(AND(BB30=""),"",VLOOKUP(D26,ram,12,0))))))),"") ->  | R26: =IFERROR(IF(OR('Master Data'!$I$28='GA55 Check & Edit'!$AP$6,D26=""),"",IF(AND(D26=$AX$24),"",IF(AND(D26=$AX$25),"",IF(AND(D26=$AX$26),"",IF(AND(D26=$AX$27),"",IF(AND(D26=$AX$28),"",IF(AND(D26=$AX$29),"",IF(AND(E26=""),"",'Master Data'!$I$43)))))))),"") ->  | S26: =IFERROR(IF(OR('Master Data'!$I$28='GA55 Check & Edit'!$AP$6),"",IF(D26="","",IF(E26="","",IF(AND(D26=$AX$24),"",IF(AND(D26=$AX$25),"",IF(AND(D26=$AX$26),"",IF(AND(D26=$AX$27),"",IF(AND(D26=$AX$28),"",IF(AND(D26=$AX$29),"",VLOOKUP(D26,ram,10,0)))))))))),"") ->  | T26: =IFERROR(IF(OR('Master Data'!$I$28='GA55 Check & Edit'!$AP$6,D26=""),"",IF(AND(D26=$AX$24),"",IF(AND(D26=$AX$25),"",IF(AND(D26=$AX$26),"",IF(AND(D26=$AX$27),"",IF(AND(D26=$AX$28),"",IF(AND(D26=$AX$29),"",IF(AND(E26=""),"",'Master Data'!$K$43)))))))),"") ->  | U26: =IFERROR(IF(OR('Master Data'!$I$28='GA55 Check & Edit'!$AP$6,D26=""),"",IF(AND(D26=$AX$24),"",IF(AND(D26=$AX$25),"",IF(AND(D26=$AX$26),"",IF(AND(D26=$AX$27),"",IF(AND(D26=$AX$28),"",IF(AND(D26=$AX$29),"",IF(AND(E26=""),"",'Master Data'!$L$43)))))))),"") ->  | V26: =IFERROR(IF(OR('Master Data'!$I$28='GA55 Check & Edit'!$AP$6,D26=""),"",IF(AND(D26=$AX$24),"",IF(AND(D26=$AX$25),"",IF(AND(D26=$AX$26),"",IF(AND(D26=$AX$27),"",IF(AND(D26=$AX$28),"",IF(AND(D26=$AX$29),"",IF(AND(E26=""),"",'Master Data'!$M$43)))))))),"") ->  | W26: =IFERROR(IF(OR('Master Data'!$I$28='GA55 Check & Edit'!$AP$6,D26=""),"",IF(AND(D26=$AX$24),"",IF(AND(D26=$AX$25),"",IF(AND(D26=$AX$26),"",IF(AND(D26=$AX$27),"",IF(AND(D26=$AX$28),"",IF(AND(D26=$AX$29),"",IF(AND(E26=""),"",'Master Data'!$N$43)))))))),"") ->  | X26: =IFERROR(IF(OR('Master Data'!$I$28='GA55 Check & Edit'!$AP$6,D26=""),"",IF(AND(E26=""),"",IF(AND('GA55 Check & Edit'!D26='GA55 Check & Edit'!$AT$17,'Master Data'!$D$18="Gazetted"),500,IF(AND('GA55 Check & Edit'!D26='GA55 Check & Edit'!$AT$17,'Master Data'!$D$18="Non-Gazetted"),250,"")))),"") ->  | Y26: =IFERROR(IF(D26="","",IF(AND(E26=""),"",IF(AND(D26=$AX$24),"",IF(AND(D26=$AX$25),"",IF(AND(D26=$AX$26),"",IF(AND(D26=$AX$27),"",IF(AND(D26=$AX$28),"",IF(AND(D26=$AX$29),"",IF(OR('Master Data'!$I$28='GA55 Check & Edit'!$AP$6,D26=""),"",$Y$7))))))))),"") ->  | AA26: =IFERROR(IF(OR('Master Data'!$I$28='GA55 Check & Edit'!$AP$6,D26="",'Master Data'!$N$34=""),"",IF(AND(E26=""),"",IF('GA55 Check & Edit'!D26='GA55 Check & Edit'!$AT$9,'Master Data'!$N$34,""))),"") ->  | AB26: 0 | AC26: 0 | AU26: L-19 | AX26: DA Arrear 53 to 55% | BB26: =(ROUND((BA12*55%),0)-ROUND((BA12*53%),0))*3 -> 6072 | BC26: =(ROUND((BA12*55%),0)-ROUND((BA12*53%),0))*3 -> 6072 | BD26: =IF(BC26="","",BC26) -> 6072 | BI26: =BD26 -> 6072 | BK26: 2026-05-01 | BL26: =IFERROR(IF('Master Data'!$N$24="","",IF('Master Data'!$F$40="","",IF(AND($AZ$17>$AZ$9),"",DATE(YEAR(BL25),MONTH(BL25)+1,DAY(BL25))))),"") -> 2026-05-01 | BM26: DA Arrear 53 to 55% | BO26: DA Arrear 53 to 55% | BW26: 15 | BX26: 0 | BZ26: 0
A27: 0 | B27: 0 | E27: =IFERROR(IF(D27="","",IF(AND(BQ31=""),"",IF(AND('Master Data'!$I$28='GA55 Check & Edit'!$AP$6),VLOOKUP(D27,ram,13,0),VLOOKUP(D27,ram,4,0)))),"") ->  | F27: =IFERROR(IF(D27="","",IF(D27=$AX$24,"",IF(AND(D27=$AX$28),"",IF(AND('Master Data'!$I$28='GA55 Check & Edit'!$AP$5),VLOOKUP(D27,ram,7,0),"")))),"") ->  | G27: =IFERROR(IF(D27="","",IF(D27=$AX$24,"",IF(AND(D27=$AX$25),"",IF(AND(D27=$AX$26),"",IF(AND(D27=$AX$27),"",IF(AND(D27=$AX$28),"",IF(AND(D27=$AX$29),"",IF(AND('Master Data'!$I$28='GA55 Check & Edit'!$AP$6),"",VLOOKUP(D27,ram,8,0))))))))),"") ->  | H27: =IFERROR(IF(D27="","",IF(AND(E27=""),"",IF(OR(D27=$AX$24,D27=$AX$25,D27=$AX$26,D27=$AX$27,D27=$AX$28,D27=$AX$29),"",IF(AND('Master Data'!$I$28='GA55 Check & Edit'!$AP$5),'Master Data'!$B$43,"")))),"") ->  | I27: =IFERROR(IF(D27="","",IF(AND(E27=""),"",IF(OR(D27=$AX$24,D27=$AX$25,D27=$AX$26,D27=$AX$27,D27=$AX$28,D27=$AX$29),"",IF(AND('Master Data'!$I$28='GA55 Check & Edit'!$AP$5,'Master Data'!$E$28='GA55 Check & Edit'!$AO$5),'Master Data'!$E$30,"0")))),"") ->  | J27: =IFERROR(IF(OR('Master Data'!$E$32=$AO$6,'Master Data'!$E$32=""),"",IF(D27="","",IF(AND(E27=""),"",IF(OR(D27=$AX$24,D27=$AX$25,D27=$AX$26,D27=$AX$27,D27=$AX$28,D27=$AX$29),"",IF(AND('Master Data'!$I$28='GA55 Check & Edit'!$AP$6),"",IF(AND('Master Data'!$I$32=$AR$9),$AS$6,IF(AND('Master Data'!$I$32=$AR$10),$AS$6,IF(AND('Master Data'!$I$32=$AR$11),$AS$6,IF(AND('Master Data'!$I$32=$AR$12),$AS$6,$AS$5))))))))),"") ->  | K27: =IFERROR(IF(D27="","",IF(AND(E27=""),"",IF(OR(D27=$AX$24,D27=$AX$25,D27=$AX$26,D27=$AX$27,D27=$AX$28,D27=$AX$29),"",IF(AND('Master Data'!$I$28='GA55 Check & Edit'!$AP$5),'Master Data'!$C$43,"")))),"") ->  | L27: =IFERROR(IF(D27="","",IF(AND(E27=""),"",IF(OR(D27=$AX$24,D27=$AX$25,D27=$AX$26,D27=$AX$27,D27=$AX$28,D27=$AX$29),"",IF(AND('Master Data'!$I$28='GA55 Check & Edit'!$AP$6),"",'Master Data'!$D$43)))),"") ->  | M27: =IFERROR(IF(D27="","",IF(AND(E27=""),"",IF(OR(D27=$AX$24,D27=$AX$25,D27=$AX$26,D27=$AX$27,D27=$AX$28,D27=$AX$29),"",IF(AND('Master Data'!$I$28='GA55 Check & Edit'!$AP$6),"",'Master Data'!$E$43)))),"") ->  | N27: =IFERROR(IF(D27="","",IF(AND('Master Data'!$I$28='GA55 Check & Edit'!$AP$6),"",IF(AND('Master Data'!$I$24='GA55 Check & Edit'!$AO$6),"0",IF(AND(D27="Bonus"),VLOOKUP(D27,ram,4,0),"")))),"") ->  | O27: =IF(D27="","",IF('Master Data'!$N$24="","",SUM(E27:N27))) ->  | P27: =IFERROR(IF(OR('Master Data'!$I$28='GA55 Check & Edit'!$AP$6,D27=""),"",IF(AND(D27=$AX$24),"",IF(AND(D27=$AX$25),"",IF(AND(D27=$AX$26),"",IF(AND(D27=$AX$27),"",IF(AND(D27=$AX$28),"",IF(AND(D27=$AX$29),"",IF(AND(E27=""),"",VLOOKUP(D27,ram,11,0))))))))),"") ->  | Q27: =IFERROR(IF(AND('Master Data'!$I$28='GA55 Check & Edit'!$AP$6),"",IF(AND(D27=$AX$25),"",IF(AND(D27=$AX$28),"",IF(AND(D27=$AX$29),"",IF(AND(D27=""),"",IF(AND(BB31=""),"",VLOOKUP(D27,ram,12,0))))))),"") ->  | R27: =IFERROR(IF(OR('Master Data'!$I$28='GA55 Check & Edit'!$AP$6,D27=""),"",IF(AND(D27=$AX$24),"",IF(AND(D27=$AX$25),"",IF(AND(D27=$AX$26),"",IF(AND(D27=$AX$27),"",IF(AND(D27=$AX$28),"",IF(AND(D27=$AX$29),"",IF(AND(E27=""),"",'Master Data'!$I$43)))))))),"") ->  | S27: =IFERROR(IF(OR('Master Data'!$I$28='GA55 Check & Edit'!$AP$6),"",IF(D27="","",IF(E27="","",IF(AND(D27=$AX$24),"",IF(AND(D27=$AX$25),"",IF(AND(D27=$AX$26),"",IF(AND(D27=$AX$27),"",IF(AND(D27=$AX$28),"",IF(AND(D27=$AX$29),"",VLOOKUP(D27,ram,10,0)))))))))),"") ->  | T27: =IFERROR(IF(OR('Master Data'!$I$28='GA55 Check & Edit'!$AP$6,D27=""),"",IF(AND(D27=$AX$24),"",IF(AND(D27=$AX$25),"",IF(AND(D27=$AX$26),"",IF(AND(D27=$AX$27),"",IF(AND(D27=$AX$28),"",IF(AND(D27=$AX$29),"",IF(AND(E27=""),"",'Master Data'!$K$43)))))))),"") ->  | U27: =IFERROR(IF(OR('Master Data'!$I$28='GA55 Check & Edit'!$AP$6,D27=""),"",IF(AND(D27=$AX$24),"",IF(AND(D27=$AX$25),"",IF(AND(D27=$AX$26),"",IF(AND(D27=$AX$27),"",IF(AND(D27=$AX$28),"",IF(AND(D27=$AX$29),"",IF(AND(E27=""),"",'Master Data'!$L$43)))))))),"") ->  | V27: =IFERROR(IF(OR('Master Data'!$I$28='GA55 Check & Edit'!$AP$6,D27=""),"",IF(AND(D27=$AX$24),"",IF(AND(D27=$AX$25),"",IF(AND(D27=$AX$26),"",IF(AND(D27=$AX$27),"",IF(AND(D27=$AX$28),"",IF(AND(D27=$AX$29),"",IF(AND(E27=""),"",'Master Data'!$M$43)))))))),"") ->  | W27: =IFERROR(IF(OR('Master Data'!$I$28='GA55 Check & Edit'!$AP$6,D27=""),"",IF(AND(D27=$AX$24),"",IF(AND(D27=$AX$25),"",IF(AND(D27=$AX$26),"",IF(AND(D27=$AX$27),"",IF(AND(D27=$AX$28),"",IF(AND(D27=$AX$29),"",IF(AND(E27=""),"",'Master Data'!$N$43)))))))),"") ->  | X27: =IFERROR(IF(OR('Master Data'!$I$28='GA55 Check & Edit'!$AP$6,D27=""),"",IF(AND(E27=""),"",IF(AND('GA55 Check & Edit'!D27='GA55 Check & Edit'!$AT$17,'Master Data'!$D$18="Gazetted"),500,IF(AND('GA55 Check & Edit'!D27='GA55 Check & Edit'!$AT$17,'Master Data'!$D$18="Non-Gazetted"),250,"")))),"") ->  | Y27: =IFERROR(IF(D27="","",IF(AND(E27=""),"",IF(AND(D27=$AX$24),"",IF(AND(D27=$AX$25),"",IF(AND(D27=$AX$26),"",IF(AND(D27=$AX$27),"",IF(AND(D27=$AX$28),"",IF(AND(D27=$AX$29),"",IF(OR('Master Data'!$I$28='GA55 Check & Edit'!$AP$6,D27=""),"",$Y$7))))))))),"") ->  | AA27: =IFERROR(IF(OR('Master Data'!$I$28='GA55 Check & Edit'!$AP$6,D27="",'Master Data'!$N$34=""),"",IF(AND(E27=""),"",IF('GA55 Check & Edit'!D27='GA55 Check & Edit'!$AT$9,'Master Data'!$N$34,""))),"") ->  | AU27: L-20 | AX27: DA Arrear 55% to 58% | BB27: =(ROUND((BA16*58%),0)-ROUND((BA16*55%),0))*3 -> 9378 | BC27: =(ROUND((BA16*58%),0)-ROUND((BA16*55%),0))*3 -> 9378 | BD27: =IF(BC27="","",BC27) -> 9378 | BI27: =BD27 -> 9378 | BK27: 2026-06-01 | BL27: =IFERROR(IF('Master Data'!$N$24="","",IF('Master Data'!$F$40="","",IF(AND($AZ$17>$AZ$9),"",DATE(YEAR(BL26),MONTH(BL26)+1,DAY(BL26))))),"") -> 2026-06-01 | BM27: DA Arrear 55% to 58% | BO27: DA Arrear 55% to 58% | BW27: 16 | BX27: 0 | BZ27: 0
A28: 0 | B28: 0 | D28: =IFERROR(IF(BO32="","",BO32),"") ->  | E28: =IFERROR(IF(D28="","",IF(AND(BQ32=""),"",IF(AND('Master Data'!$I$28='GA55 Check & Edit'!$AP$6),VLOOKUP(D28,ram,13,0),VLOOKUP(D28,ram,4,0)))),"") ->  | F28: =IFERROR(IF(D28="","",IF(D28=$AX$24,"",IF(AND(D28=$AX$28),"",IF(AND('Master Data'!$I$28='GA55 Check & Edit'!$AP$5),VLOOKUP(D28,ram,7,0),"")))),"") ->  | G28: =IFERROR(IF(D28="","",IF(D28=$AX$24,"",IF(AND(D28=$AX$25),"",IF(AND(D28=$AX$26),"",IF(AND(D28=$AX$27),"",IF(AND(D28=$AX$28),"",IF(AND(D28=$AX$29),"",IF(AND('Master Data'!$I$28='GA55 Check & Edit'!$AP$6),"",VLOOKUP(D28,ram,8,0))))))))),"") ->  | H28: =IFERROR(IF(D28="","",IF(AND(E28=""),"",IF(OR(D28=$AX$24,D28=$AX$25,D28=$AX$26,D28=$AX$27,D28=$AX$28,D28=$AX$29),"",IF(AND('Master Data'!$I$28='GA55 Check & Edit'!$AP$5),'Master Data'!$B$43,"")))),"") ->  | I28: =IFERROR(IF(D28="","",IF(AND(E28=""),"",IF(OR(D28=$AX$24,D28=$AX$25,D28=$AX$26,D28=$AX$27,D28=$AX$28,D28=$AX$29),"",IF(AND('Master Data'!$I$28='GA55 Check & Edit'!$AP$5,'Master Data'!$E$28='GA55 Check & Edit'!$AO$5),'Master Data'!$E$30,"0")))),"") ->  | J28: =IFERROR(IF(OR('Master Data'!$E$32=$AO$6,'Master Data'!$E$32=""),"",IF(D28="","",IF(AND(E28=""),"",IF(OR(D28=$AX$24,D28=$AX$25,D28=$AX$26,D28=$AX$27,D28=$AX$28,D28=$AX$29),"",IF(AND('Master Data'!$I$28='GA55 Check & Edit'!$AP$6),"",IF(AND('Master Data'!$I$32=$AR$9),$AS$6,IF(AND('Master Data'!$I$32=$AR$10),$AS$6,IF(AND('Master Data'!$I$32=$AR$11),$AS$6,IF(AND('Master Data'!$I$32=$AR$12),$AS$6,$AS$5))))))))),"") ->  | K28: =IFERROR(IF(D28="","",IF(AND(E28=""),"",IF(OR(D28=$AX$24,D28=$AX$25,D28=$AX$26,D28=$AX$27,D28=$AX$28,D28=$AX$29),"",IF(AND('Master Data'!$I$28='GA55 Check & Edit'!$AP$5),'Master Data'!$C$43,"")))),"") ->  | L28: =IFERROR(IF(D28="","",IF(AND(E28=""),"",IF(OR(D28=$AX$24,D28=$AX$25,D28=$AX$26,D28=$AX$27,D28=$AX$28,D28=$AX$29),"",IF(AND('Master Data'!$I$28='GA55 Check & Edit'!$AP$6),"",'Master Data'!$D$43)))),"") ->  | M28: =IFERROR(IF(D28="","",IF(AND(E28=""),"",IF(OR(D28=$AX$24,D28=$AX$25,D28=$AX$26,D28=$AX$27,D28=$AX$28,D28=$AX$29),"",IF(AND('Master Data'!$I$28='GA55 Check & Edit'!$AP$6),"",'Master Data'!$E$43)))),"") ->  | N28: =IFERROR(IF(D28="","",IF(AND('Master Data'!$I$28='GA55 Check & Edit'!$AP$6),"",IF(AND('Master Data'!$I$24='GA55 Check & Edit'!$AO$6),"0",IF(AND(D28="Bonus"),VLOOKUP(D28,ram,4,0),"")))),"") ->  | O28: =IF(D28="","",IF('Master Data'!$N$24="","",SUM(E28:N28))) ->  | P28: =IFERROR(IF(OR('Master Data'!$I$28='GA55 Check & Edit'!$AP$6,D28=""),"",IF(AND(D28=$AX$24),"",IF(AND(D28=$AX$25),"",IF(AND(D28=$AX$26),"",IF(AND(D28=$AX$27),"",IF(AND(D28=$AX$28),"",IF(AND(D28=$AX$29),"",IF(AND(E28=""),"",VLOOKUP(D28,ram,11,0))))))))),"") ->  | Q28: =IFERROR(IF(AND('Master Data'!$I$28='GA55 Check & Edit'!$AP$6),"",IF(AND(D28=$AX$25),"",IF(AND(D28=$AX$28),"",IF(AND(D28=$AX$29),"",IF(AND(D28=""),"",IF(AND(BB32=""),"",VLOOKUP(D28,ram,12,0))))))),"") ->  | R28: =IFERROR(IF(OR('Master Data'!$I$28='GA55 Check & Edit'!$AP$6,D28=""),"",IF(AND(D28=$AX$24),"",IF(AND(D28=$AX$25),"",IF(AND(D28=$AX$26),"",IF(AND(D28=$AX$27),"",IF(AND(D28=$AX$28),"",IF(AND(D28=$AX$29),"",IF(AND(E28=""),"",'Master Data'!$I$43)))))))),"") ->  | S28: =IFERROR(IF(OR('Master Data'!$I$28='GA55 Check & Edit'!$AP$6),"",IF(D28="","",IF(E28="","",IF(AND(D28=$AX$24),"",IF(AND(D28=$AX$25),"",IF(AND(D28=$AX$26),"",IF(AND(D28=$AX$27),"",IF(AND(D28=$AX$28),"",IF(AND(D28=$AX$29),"",VLOOKUP(D28,ram,10,0)))))))))),"") ->  | T28: =IFERROR(IF(OR('Master Data'!$I$28='GA55 Check & Edit'!$AP$6,D28=""),"",IF(AND(D28=$AX$24),"",IF(AND(D28=$AX$25),"",IF(AND(D28=$AX$26),"",IF(AND(D28=$AX$27),"",IF(AND(D28=$AX$28),"",IF(AND(D28=$AX$29),"",IF(AND(E28=""),"",'Master Data'!$K$43)))))))),"") ->  | U28: =IFERROR(IF(OR('Master Data'!$I$28='GA55 Check & Edit'!$AP$6,D28=""),"",IF(AND(D28=$AX$24),"",IF(AND(D28=$AX$25),"",IF(AND(D28=$AX$26),"",IF(AND(D28=$AX$27),"",IF(AND(D28=$AX$28),"",IF(AND(D28=$AX$29),"",IF(AND(E28=""),"",'Master Data'!$L$43)))))))),"") ->  | V28: =IFERROR(IF(OR('Master Data'!$I$28='GA55 Check & Edit'!$AP$6,D28=""),"",IF(AND(D28=$AX$24),"",IF(AND(D28=$AX$25),"",IF(AND(D28=$AX$26),"",IF(AND(D28=$AX$27),"",IF(AND(D28=$AX$28),"",IF(AND(D28=$AX$29),"",IF(AND(E28=""),"",'Master Data'!$M$43)))))))),"") ->  | W28: =IFERROR(IF(OR('Master Data'!$I$28='GA55 Check & Edit'!$AP$6,D28=""),"",IF(AND(D28=$AX$24),"",IF(AND(D28=$AX$25),"",IF(AND(D28=$AX$26),"",IF(AND(D28=$AX$27),"",IF(AND(D28=$AX$28),"",IF(AND(D28=$AX$29),"",IF(AND(E28=""),"",'Master Data'!$N$43)))))))),"") ->  | X28: =IFERROR(IF(OR('Master Data'!$I$28='GA55 Check & Edit'!$AP$6,D28=""),"",IF(AND(E28=""),"",IF(AND('GA55 Check & Edit'!D28='GA55 Check & Edit'!$AT$17,'Master Data'!$D$18="Gazetted"),500,IF(AND('GA55 Check & Edit'!D28='GA55 Check & Edit'!$AT$17,'Master Data'!$D$18="Non-Gazetted"),250,"")))),"") ->  | Y28: =IFERROR(IF(D28="","",IF(AND(E28=""),"",IF(AND(D28=$AX$24),"",IF(AND(D28=$AX$25),"",IF(AND(D28=$AX$26),"",IF(AND(D28=$AX$27),"",IF(AND(D28=$AX$28),"",IF(AND(D28=$AX$29),"",IF(OR('Master Data'!$I$28='GA55 Check & Edit'!$AP$6,D28=""),"",$Y$7))))))))),"") ->  | AA28: =IFERROR(IF(OR('Master Data'!$I$28='GA55 Check & Edit'!$AP$6,D28="",'Master Data'!$N$34=""),"",IF(AND(E28=""),"",IF('GA55 Check & Edit'!D28='GA55 Check & Edit'!$AT$9,'Master Data'!$N$34,""))),"") ->  | AU28: L-21 | AX28: ACP/MACP Arrear | BK28: 2026-07-01 | BL28: =IFERROR(IF('Master Data'!$N$24="","",IF('Master Data'!$F$40="","",IF(AND($AZ$17>$AZ$9),"",DATE(YEAR(BL27),MONTH(BL27)+1,DAY(BL27))))),"") -> 2026-07-01 | BM28: ACP/MACP Arrear | BO28: ACP/MACP Arrear | BW28: 17 | BX28: 0 | BZ28: 0
AU29: L-22 | AX29: =IF(BM29="","",BM29) -> PL Surrender Arrear | BC29: =IF('Master Data'!$I$28='GA55 Check & Edit'!$AP$6,"",IF(AND(BA25=""),"",IF(OR('Master Data'!I22='GA55 Check & Edit'!AW10,'Master Data'!I22='GA55 Check & Edit'!AW11,'Master Data'!I22='GA55 Check & Edit'!AW12),ROUND(2%*BA25,0),IF(OR('Master Data'!I22='GA55 Check & Edit'!AW16,'Master Data'!I22='GA55 Check & Edit'!AW17,'Master Data'!I22='GA55 Check & Edit'!AW18),ROUND(3%*BA25,0),"")))) -> 1563 | BD29: =IF(BC29="","",BC29) -> 1563 | BI29: =BD29 -> 1563 | BK29: 2026-08-01 | BL29: =IFERROR(IF('Master Data'!$N$24="","",IF('Master Data'!$F$40="","",IF(AND($AZ$17>$AZ$9),"",DATE(YEAR(BL28),MONTH(BL28)+1,DAY(BL28))))),"") -> 2026-08-01 | BM29: PL Surrender Arrear | BO29: PL Surrender Arrear | BW29: 18 | BX29: 0 | BZ29: 0
AU30: L-23 | AX30: =IF(BM30="","",BM30) -> Fixation arrear | BA30: =IF(AND('Master Data'!$E$36=""),"",IF('Master Data'!$N$32='GA55 Check & Edit'!$AO$5,'Master Data'!$E$36,"")) ->  | BB30: =IF('Master Data'!$N$32='GA55 Check & Edit'!$AO$5,BA30,"") ->  | BC30: =IFERROR(IF(AND('Master Data'!$E$36=""),"",ROUND(17%*BB30,0)),"") ->  | BD30: =IF(BC30="","",BC30) ->  | BG30: =IF(AND('Master Data'!$I$28='GA55 Check & Edit'!$AP$6),"",IF(AND('Master Data'!$I$30='GA55 Check & Edit'!$AN$6,'Master Data'!$N$36='GA55 Check & Edit'!$AO$6),0,IF(AND('Master Data'!$I$30='GA55 Check & Edit'!$AN$6,'Master Data'!$N$36='GA55 Check & Edit'!$AO$5),'Master Data'!$J$43,IF(AND('Master Data'!$I$30='GA55 Check & Edit'!$AN$5),IF($AZ$15<18001,265,IF($AZ$15<33501,440,IF($AZ$15<54001,658,875))))))) -> 875 | BH30: =IFERROR(IF(OR('Master Data'!$I$28='GA55 Check & Edit'!$AP$6),"",IF('Master Data'!$N$32='GA55 Check & Edit'!$AO$5,'Master Data'!$G$43,"")),"") ->  | BI30: =IFERROR(IF('Master Data'!$N$32='GA55 Check & Edit'!$AO$6,"",IF(AND('Master Data'!I$30='GA55 Check & Edit'!$AN$6),ROUND((BB30)*0.1,0),IF(AND('Master Data'!$I$28='GA55 Check & Edit'!$AP$6),ROUND((BB30+BD30)*0.1,0),'Master Data'!$H$43))),"") -> 11000 | BK30: 2026-09-01 | BL30: =IFERROR(IF('Master Data'!$N$24="","",IF('Master Data'!$F$40="","",IF(AND($AZ$17>$AZ$9),"",DATE(YEAR(BL29),MONTH(BL29)+1,DAY(BL29))))),"") -> 2026-09-01 | BM30: Fixation arrear | BO30: Fixation arrear | BQ30: =IFERROR(IF(BM30="","",IF(D26=$AX$25,$AX$25,IF(D26=$AX$30,$AX$30,IF(D26=$AX$31,$AX$31,IF(D26=$AX$32,$AX$32,IF(BM30>$AZ$17,"",BM30)))))),"") -> Fixation arrear | BW30: 19 | BX30: 0 | BZ30: 0
AU31: L-24 | AX31: =IF(BM31="","",BM31) ->  | BA31: =IF(AND('Master Data'!$E$36=""),"",IF('Master Data'!$N$34='GA55 Check & Edit'!$AO$5,'Master Data'!$E$36,"")) ->  | BB31: =IF('Master Data'!$N$34='GA55 Check & Edit'!$AO$5,BA31,"") ->  | BC31: =IFERROR(IF(AND('Master Data'!$E$36=""),"",ROUND(17%*BB31,0)),"") ->  | BD31: =IF(BC31="","",BC31) ->  | BE31: =IFERROR(IF(AND('Master Data'!$E$36=""),"",ROUND('Master Data'!$E$30%*BB31,0)),"") ->  | BG31: =IF(AND('Master Data'!$I$28='GA55 Check & Edit'!$AP$6),"",IF(AND('Master Data'!$I$30='GA55 Check & Edit'!$AN$6,'Master Data'!$N$36='GA55 Check & Edit'!$AO$6),0,IF(AND('Master Data'!$I$30='GA55 Check & Edit'!$AN$6,'Master Data'!$N$36='GA55 Check & Edit'!$AO$5),'Master Data'!$J$43,IF(AND('Master Data'!$I$30='GA55 Check & Edit'!$AN$5),IF($AZ$15<18001,265,IF($AZ$15<33501,440,IF($AZ$15<54001,658,875))))))) -> 875 | BH31: =IFERROR(IF(OR('Master Data'!$I$28='GA55 Check & Edit'!$AP$6),"",IF('Master Data'!$N$34='GA55 Check & Edit'!$AO$5,'Master Data'!$G$43,"")),"") ->  | BI31: =IFERROR(IF('Master Data'!$N$34='GA55 Check & Edit'!$AO$6,"",IF(AND('Master Data'!I$30='GA55 Check & Edit'!$AN$6),ROUND((BB31)*0.1,0),IF(AND('Master Data'!$I$28='GA55 Check & Edit'!$AP$6),ROUND((BB31+BD31)*0.1,0),'Master Data'!$H$43))),"") -> 11000 | BK31: 2026-10-01 | BL31: =IFERROR(IF('Master Data'!$N$24="","",IF('Master Data'!$F$40="","",IF(AND($AZ$17>$AZ$9),"",DATE(YEAR(BL30),MONTH(BL30)+1,DAY(BL30))))),"") -> 2026-10-01 | BM31: =IF(OR('Master Data'!N34='GA55 Check & Edit'!AO5,'Master Data'!N40='GA55 Check & Edit'!AO5),'GA55 Check & Edit'!AX11,"") ->  | BO31: =IFERROR(IF(BM31="","",IF(AND(BL31=$BK$24),$BM$24,IF(AND(BL31=$BK$25),$BM$25,IF(AND(BL31=$BK$26),$BM$26,IF(AND(BL31=$BK$27),$BM$27,IF(AND(BL31=$BK$28),$BM$28,IF(AND(BL31=$BK$29),$BM$29,IF(AND(BL31=$BK$30),$BM$30,IF(AND(BL31=$BK$31),$BM$31,IF(AND(BL31=$BK$32),$BM$32,BN31)))))))))),"") -> 
AX32: =IF(BM32="","",BM32) ->  | BA32: =IF('Master Data'!N40='GA55 Check & Edit'!$AO$5,(AZ3-AZ1),"") ->  | BB32: =IF('Master Data'!N40='GA55 Check & Edit'!$AO$5,BA32,"") ->  | BC32: =IF(OR('Master Data'!$E$36="",BB32=""),"",ROUND(17%*BB32,0)) ->  | BD32: =IF(BC32="","",BC32) ->  | BE32: =IFERROR(IF(AND('Master Data'!$E$36=""),"",ROUND('Master Data'!$E$30%*BB32,0)),"") ->  | BI32: =IFERROR(IF(AND('Master Data'!$I$30='GA55 Check & Edit'!$AN$6),ROUND((E19)*0.1,0),IF(AND('Master Data'!$I$28='GA55 Check & Edit'!$AP$6),ROUND((E19+F19)*0.1,0),'Master Data'!$H$43)),"") -> 11000 | BK32: 2024-11-01 | BL32: =IFERROR(IF('Master Data'!$E$36="","",IF('Master Data'!$F$40="","",IF(AND($AZ$17>$AZ$9),"",DATE(YEAR(BL31),MONTH(BL31)+1,DAY(BL31))))),"") ->  | BM32: =IF('Master Data'!N40='GA55 Check & Edit'!AO5,CONCATENATE("Defer Salary"," - ","March-20"),"") -> 

Sheet Extra Ded.
A1: https://www.youtube.com/watch?v=NWwIhkhEUoc | K1: https://youtu.be/uHA1arAjess
B2: अधिक जानकारी के लिए ऊपर Youtube video का लिंक दिया गया है।
C3: वेतन कटौती से अतिरिक्त कटौतिया जिसके तहत आप आयकर में छूट लेना चाहते है, तथा अतिरिक्त (अन्य) आय को यहाँ इन्द्राज करेंI
C6: 1. मकान किराया भत्ता (यदि रसीद के माध्यम से छूट लेनी हो तो राशि लिखे ) | D6: No | E6: =IF(D6="Yes",'HRA Calculation'!J10,0) -> 0 | G6: 20. इक्विटी लिंक सेविंग स्कीम
C7: 2. स्टैण्डर्ड डीडेक्सन (Standard Deduction) 75,000 (अधिकतम ) | E7: 75000 | G7: 21. गृह किराया धारा 10 (13-A) के अंतर्गत व धारा 10(14) के अंतर्गत अन्य भत्ते जो कर मुक्त है
C8: 3. मनोरंजन भत्ता धारा 16 (ii) के अंतर्गत | G8: 22. स्थगत वार्षिकी (Defferred Annuty)
C9: 4. व्यवसाय कर धारा 16 (iii) के अंतर्गत | G9: 23. वेतन के अलावा जमा कराया गया आयकर (TDS)
C10: 5. गृह सम्पति से प्राप्त किराया - आय | G10: 24. अन्य व फिक्स डिपोजिट (5 वर्ष हेतु ) (धारा 80 सी के अंतर्गत )
C11: 6. गृहकर | G11: 25. पारिवारिक पेंशन की मानक कटोती धारा 57 के अन्तगर्त ( अधिकतम सीमा रू 25000 )
C12: 7. गृह ऋण की मूल किस्त यहाँ लिखनी है, जो छूट लेनी हैI | G12: 26. इन सभी के अतिरिक्त अन्य सभी प्रकार की कटोती जो धारा 80 सी के अंतर्गत आती है (Other)
C13: 8. गृह ऋण की किस्त पर ब्याज जो छूट लेना है, यहाँ लिखें I | G13: 27. म्यूच्यूअल फण्ड और अन्य कोई राशि (जो धारा 80 सी के अंतर्गत छुट प्राप्त हो)
C14: 9. जीवन बीमा प्रीमियम (जो वेतन से नहीं काटा गया है ) LIC | G14: 28. धारा 80CCD(1B) - नवीन पेंशन योजना में अतिरिक्त अंशदान (अधिकतम रुपये 50,000)
C15: 10. पी.एल.आई. (PLI) | G15: 29. धारा 80 D चिकित्सा बीमा प्रीमियम
C16: 11. टियुशन फ़ीस (Tution Fees) | G16: 30. धारा 80DD विकलांग आश्रितों के चिकित्सा उपचार
C17: 12. यू एल आई पी / वार्षिक प्लान | G17: 31. धारा 80DDB विशिष्ट रोगों के उपचार हेतु छुट
C18: 13. राष्ट्रीय बचत पत्र (NSC) | G18: 32. धारा 80E उच्च शिक्षा हेतु लिए गए ऋण का ब्याज
C19: 14. राष्ट्रीय बचत पत्र पर अदत ब्याज | G19: 33. धारा 80G धर्मार्थ संस्थाओ आदि को दिए दान ( क श्रेणी में 100 प्रतिशत एव ख श्रेणी में 50 प्रतिशत) | K19: =SUM(H20)+ ROUND(J20/2,0) -> 0
C20: 15. लोक भविष्य निधि (PPF) | G20: "क" श्रेणी में दान :- | I20: "ख" श्रेणी में दान :-
C21: 16. राष्ट्रीय बचत पत्र स्कीम (NSS) | G21: 34. धारा 80U स्थाई रूप से शारीरिक असमर्थता की दशा में
C22: 17. सुकन्या समृद्धि योजना में जमा राशि (SSY) | G22: 35. धारा 80 TTA बचत खाते पर अधिकतम ब्याज पर 10,000 तक छुट 194(IA)
C23: 18. Bonds से ब्याज | G23: 36. धारा 80 GGA अनुमोदित वैज्ञानिक, सामाजिक, ग्रामीण विकास आदि हेतु दिया गया दान
C24: 19. अन्य स्रोत से आय (शेयर मार्केट सहित सभी आय) : | G24: 37. राहत धारा 89 के तहत (अगर छुट लेनी है तो राशि लिखे ) | J24: No | K24: =IF(J24="Yes",form10E!M28,0) -> 0
C25: US 80EEA & Others | G25: 38. एफडी आदि अन्य जमा पर प्राप्त कुल ब्याज (पीपीएफ को छोड़कर)

Sheet HRA Calculation
C2: HRA Rasid Calculator
C4: MONTHS | D4: "Y" | E4: Basic Pay + DA. | F4: HRA | I4: E Please select months by typing "Y"
C5: MARCH 20 | D5: Y | E5: =IF('GA55 Check & Edit'!BB12="","",IF(D5="Y",'GA55 Check & Edit'!BA12+'GA55 Check & Edit'!BC12,0)) -> 154836 | F5: =IF(E5="","",IF(D5="Y",ROUND('Master Data'!$E$34%*'GA55 Check & Edit'!BA12,0),"0")) -> 10120
C6: APRIL 20 | D6: Y | E6: =IF('GA55 Check & Edit'!BB13="","",IF(D6="Y",'GA55 Check & Edit'!BA13+'GA55 Check & Edit'!BC13,0)) -> 156860 | F6: =IF(E6="","",IF(D6="Y",ROUND('Master Data'!$E$34%*'GA55 Check & Edit'!BA13,0),"0")) -> 10120 | I6: After selecting months, Fill rent paid amount in white colour cell.
C7: MAY 20 | D7: Y | E7: =IF('GA55 Check & Edit'!BB14="","",IF(D7="Y",'GA55 Check & Edit'!BA14+'GA55 Check & Edit'!BC14,0)) -> 156860 | F7: =IF(E7="","",IF(D7="Y",ROUND('Master Data'!$E$34%*'GA55 Check & Edit'!BA14,0),"0")) -> 10120
C8: JUNE 20 | D8: Y | E8: =IF('GA55 Check & Edit'!BB15="","",IF(D8="Y",'GA55 Check & Edit'!BA15+'GA55 Check & Edit'!BC15,0)) -> 156860 | F8: =IF(E8="","",IF(D8="Y",ROUND('Master Data'!$E$34%*'GA55 Check & Edit'!BA15,0),"0")) -> 10120
C9: JULY 20 | D9: Y | E9: =IF('GA55 Check & Edit'!BB16="","",IF(D9="Y",'GA55 Check & Edit'!BA16+'GA55 Check & Edit'!BC16,0)) -> 161510 | F9: =IF(E9="","",IF(D9="Y",ROUND('Master Data'!$E$34%*'GA55 Check & Edit'!BA16,0),"0")) -> 10420 | I9: RENT PAID AMOUNT MONTHLY F | J9: 10000
C10: AUGUST 20 | D10: Y | E10: =IF('GA55 Check & Edit'!BB17="","",IF(D10="Y",'GA55 Check & Edit'!BA17+'GA55 Check & Edit'!BC17,0)) -> 161510 | F10: =IF(E10="","",IF(D10="Y",ROUND('Master Data'!$E$34%*'GA55 Check & Edit'!BA17,0),"0")) -> 10420 | I10: HRA EXEMPTION AMOUNT F | J10: =IF((J9*D17)>E19*10%, MIN(ROUND(J9*D17-(E19)*10%,0),J19,J13),0) -> 0
C11: SEPTEMBER 20 | D11: Y | E11: =IF('GA55 Check & Edit'!BB18="","",IF(D11="Y",'GA55 Check & Edit'!BA18+'GA55 Check & Edit'!BC18,0)) -> 161510 | F11: =IF(E11="","",IF(D11="Y",ROUND('Master Data'!$E$34%*'GA55 Check & Edit'!BA18,0),"0")) -> 10420 | I11: =IF(OR(LEN(FLOOR(J10,1))=13,FLOOR(J10,1)<=0),"NIL",PROPER(SUBSTITUTE(CONCATENATE(CHOOSE(MID(TEXT(INT(J10),REPT(0,12)),1,1)+1,"","one hundred ","two hundred ","three hundred ","four hundred ","five hundred ","six hundred ","seven hundred ","eight hundred ","nine hundred "),CHOOSE(MID(TEXT(INT(J10),REPT(0,12)),2,1)+1,"",CHOOSE(MID(TEXT(INT(J10),REPT(0,12)),3,1)+1,"ten","eleven","twelve","thirteen","fourteen","fifteen","sixteen","seventeen","eighteen","nineteen"),"twenty","thirty","forty","fifty","sixty","seventy","eighty","ninety"),IF(VALUE(MID(TEXT(INT(J10),REPT(0,12)),2,1))>1,CHOOSE(MID(TEXT(INT(J10),REPT(0,12)),3,1)+1,"","-one","-two","-three","-four","-five","-six","-seven","-eight","-nine"),IF(VALUE(MID(TEXT(INT(J10),REPT(0,12)),2,1))=0,CHOOSE(MID(TEXT(INT(J10),REPT(0,12)),3,1)+1,"","one","two","three","four","five","six","seven","eight","nine"),"")),IF(J10>=10^9," billion ",""),CHOOSE(MID(TEXT(INT(J10),REPT(0,12)),4,1)+1,"","one hundred ","two hundred ","three hundred ","four hundred ","five hundred ","six hundred ","seven hundred ","eight hundred ","nine hundred "),CHOOSE(MID(TEXT(INT(J10),REPT(0,12)),5,1)+1,"",CHOOSE(MID(TEXT(INT(J10),REPT(0,12)),6,1)+1,"ten","eleven","twelve","thirteen","fourteen","fifteen","sixteen","seventeen","eighteen","nineteen"),"twenty","thirty","forty","fifty","sixty","seventy","eighty","ninety"),IF(VALUE(MID(TEXT(INT(J10),REPT(0,12)),5,1))>1,CHOOSE(MID(TEXT(INT(J10),REPT(0,12)),6,1)+1,"","-one","-two","-three","-four","-five","-six","-seven","-eight","-nine"),IF(VALUE(MID(TEXT(INT(J10),REPT(0,12)),5,1))=0,CHOOSE(MID(TEXT(INT(J10),REPT(0,12)),6,1)+1,"","one","two","three","four","five","six","seven","eight","nine"),"")),IF(VALUE(MID(TEXT(INT(J10),REPT(0,12)),4,3))>0," million ",""),CHOOSE(MID(TEXT(INT(J10),REPT(0,12)),7,1)+1,"","one hundred ","two hundred ","three hundred ","four hundred ","five hundred ","six hundred ","seven hundred ","eight hundred ","nine hundred "),CHOOSE(MID(TEXT(INT(J10),REPT(0,12)),8,1)+1,"",CHOOSE(MID(TEXT(INT(J10),REPT(0,12)),9,1)+1,"ten","eleven","twelve","thirteen","fourteen","fifteen","sixteen","seventeen","eighteen","nineteen"),"twenty","thirty","forty","fifty","sixty","seventy","eighty","ninety"),IF(VALUE(MID(TEXT(INT(J10),REPT(0,12)),8,1))>1,CHOOSE(MID(TEXT(INT(J10),REPT(0,12)),9,1)+1,"","-one","-two","-three","-four","-five","-six","-seven","-eight","-nine"),IF(VALUE(MID(TEXT(INT(J10),REPT(0,12)),8,1))=0,CHOOSE(MID(TEXT(INT(J10),REPT(0,12)),9,1)+1,"","one","two","three","four","five","six","seven","eight","nine"),"")),IF(VALUE(MID(TEXT(INT(J10),REPT(0,12)),7,3))," thousand ",""),CHOOSE(MID(TEXT(INT(J10),REPT(0,12)),10,1)+1,"","one hundred ","two hundred ","three hundred ","four hundred ","five hundred ","six hundred ","seven hundred ","eight hundred ","nine hundred "),CHOOSE(MID(TEXT(INT(J10),REPT(0,12)),11,1)+1,"",CHOOSE(MID(TEXT(INT(J10),REPT(0,12)),12,1)+1,"ten","eleven","twelve","thirteen","fourteen","fifteen","sixteen","seventeen","eighteen","nineteen"),"twenty","thirty","forty","fifty","sixty","seventy","eighty","ninety"),IF(VALUE(MID(TEXT(INT(J10),REPT(0,12)),11,1))>1,CHOOSE(MID(TEXT(INT(J10),REPT(0,12)),12,1)+1,"","-one","-two","-three","-four","-five","-six","-seven","-eight","-nine"),IF(VALUE(MID(TEXT(INT(J10),REPT(0,12)),11,1))=0,CHOOSE(MID(TEXT(INT(J10),REPT(0,12)),12,1)+1,"","one","two","three","four","five","six","seven","eight","nine"),"")))," "," ")&IF(FLOOR(J10,1)>1," Rupees"," Rupees"))&IF(ISERROR(FIND(".",J10,1)),""," and "&PROPER(IF(LEN(LEFT(TRIM(MID(SUBSTITUTE(J10,".",REPT(" ",255)),255,200)),2))=1,CHOOSE(1*LEFT(TRIM(MID(SUBSTITUTE(J10,".",REPT(" ",255)),255,200)),2),"ten","twenty","thirty","forty","fifty","sixty","seventy","eighty","ninety")&" Paise","")&CONCATENATE(CHOOSE(MID(TEXT(INT(LEFT(TRIM(MID(SUBSTITUTE(J10,".",REPT(" ",255)),255,200)),2)),REPT(0,12)),11,1)+1,"",CHOOSE(MID(TEXT(INT(LEFT(TRIM(MID(SUBSTITUTE(J10,".",REPT(" ",255)),255,200)),2)),REPT(0,12)),12,1)+1,"ten","eleven","twelve","thirteen","fourteen","fifteen","sixteen","seventeen","eighteen","nineteen"),"twenty","thirty","forty","fifty","sixty","seventy","eighty","ninety"),IF(VALUE(MID(TEXT(INT(LEFT(TRIM(MID(SUBSTITUTE(J10,".",REPT(" ",255)),255,200)),2)),REPT(0,12)),11,1))>1,CHOOSE(MID(TEXT(INT(LEFT(TRIM(MID(SUBSTITUTE(J10,".",REPT(" ",255)),255,200)),2)),REPT(0,12)),12,1)+1,"","-one","-two","-three","-four","-five","-six","-seven","-eight","-nine")&" Paise",IF(LEFT(TRIM(MID(SUBSTITUTE(J10,".",REPT(" ",255)),255,200)),2)="01","one Paise",IF(LEFT(TRIM(MID(SUBSTITUTE(J10,".",REPT(" ",255)),255,200)),1)="0",CHOOSE(MID(TEXT(INT(LEFT(TRIM(MID(SUBSTITUTE(J10,".",REPT(" ",255)),255,200)),2)),REPT(0,12)),12,1)+1,"","one","two","three","four","five","six","seven","eight","nine")&" Paise",""))))))) -> NIL
C12: OCTOBER 20 | D12: Y | E12: =IF('GA55 Check & Edit'!BB19="","",IF(D12="Y",'GA55 Check & Edit'!BA19+'GA55 Check & Edit'!BC19,0)) -> 164636 | F12: =IF(E12="","",IF(D12="Y",ROUND('Master Data'!$E$34%*'GA55 Check & Edit'!BA19,0),"0")) -> 10420
C13: NOVEMBER 20 | D13: Y | E13: =IF('GA55 Check & Edit'!BB20="","",IF(D13="Y",'GA55 Check & Edit'!BA20+'GA55 Check & Edit'!BC20,0)) -> 164636 | F13: =IF(E13="","",IF(D13="Y",ROUND('Master Data'!$E$34%*'GA55 Check & Edit'!BA20,0),"0")) -> 10420 | I13: Max. HRA exemption amount F | J13: =F19 -> 123,840
C14: DECEMBER 20 | D14: Y | E14: =IF('GA55 Check & Edit'!BB21="","",IF(D14="Y",'GA55 Check & Edit'!BA21+'GA55 Check & Edit'!BC21,0)) -> 164636 | F14: =IF(E14="","",IF(D14="Y",ROUND('Master Data'!$E$34%*'GA55 Check & Edit'!BA21,0),"0")) -> 10420 | I14: Rent receipt required for max. exemption F | J14: =ROUND(((10%*E19)+F19),0) -> 326929
C15: JANUARY 21 | D15: Y | E15: =IF('GA55 Check & Edit'!BB22="","",IF(D15="Y",'GA55 Check & Edit'!BA22+'GA55 Check & Edit'!BC22,0)) -> 164636 | F15: =IF(E15="","",IF(D15="Y",ROUND('Master Data'!$E$34%*'GA55 Check & Edit'!BA22,0),"0")) -> 10420
C16: FEBRUARY 21 | D16: Y | E16: =IF('GA55 Check & Edit'!BB23="","",IF(D16="Y",'GA55 Check & Edit'!BA23+'GA55 Check & Edit'!BC23,0)) -> 164636 | F16: =IF(E16="","",IF(D16="Y",ROUND('Master Data'!$E$34%*'GA55 Check & Edit'!BA23,0),"0")) -> 10420 | I16: House Rent Per Month F | J16: =ROUND(J14/D17,0) -> 27244 | Q16: Select
C17: TOTAL | D17: =COUNTIF(D5:D16, "Y") -> 12 | E17: =SUM(E5:E16) -> 1933126 | F17: =SUM(F5:F16) -> 123840 | Q17: Bombay
C18: Salary other than monthly salary (DA,PL,Other) | E18: ='GA55 Only Print'!C27+'GA55 Only Print'!D27-E17 -> 97768 | F18: ='GA55 Only Print'!E27-F17 -> 0 | I18: City of Living F | J18: Other Cities | Q18: Calcutta
C19: TOTAL | E19: =E17+E18 -> 2030894 | F19: =F17+F18 -> 123,840 | I19: =IF(J18="","",IF(J18=Q16,"First select city in above unlock cell",IF(J18="Other cities","40 % Salary + DA","50 % Salary + DA"))) -> 40 % Salary + DA | J19: =IF(J18="","",IF(J18=Q16,"------",IF(J18="Other cities",ROUND(40 %* E19,0),ROUND(50 %*E19,0)))) -> 812358 | Q19: Delhi
Q20: Madras
Q21: Other Cities
E22: नोट :- यह छूट केवल आयकर की पूरानी स्लैब में ही देय है I

Sheet GA55 Only Print
B1: =IF(AND('Master Data'!D4=""),"",CONCATENATE("Office Name :- ",PROPER('Master Data'!D4))) -> Office Name :- Mahatma Gandhi Govt. School (English Medium) Bar, Pali
A2: Employee Name :- | D2: =UPPER(IF('Master Data'!D6="","",'Master Data'!D6)) -> HEERALAL JAT | I2: Designation :- | M2: =UPPER(IF('Master Data'!H6="","",'Master Data'!H6)) -> SR TEACHER | Q2: Posting Place :- | U2: =UPPER(IF('Master Data'!D8="","",'Master Data'!D8)) -> M.G.G.S. BAR | AB2: Pay Drawn
A3: PAN No. :- | C3: =UPPER(IF('Master Data'!D12="","",'Master Data'!D12)) -> ABCDE1234H | F3: SI No. | G3: =IF(AND('Master Data'!H14=""),"",'Master Data'!H14) -> 12345 | J3: GPF | K3: =IF(AND('Master Data'!D14=""),"",'Master Data'!D14) -> 456789 | O3: PRAN No. :- | R3: =IF(AND('Master Data'!D16=""),"",'Master Data'!D16) -> 12134545454541 | W3: Bank A/C. | AA3: =IF(AND('Master Data'!H16=""),"",'Master Data'!H16) -> 1000000111
A4: Allowances | N4: Deductions | AA4: ='GA55 Check & Edit'!AC6 -> NET PAY | AB4: ='GA55 Check & Edit'!AD6 -> TV.NO. | AC4: ='GA55 Check & Edit'!AE6 -> Enc. DATE
A5: =IF(AND('GA55 Check & Edit'!C6=""),"",'GA55 Check & Edit'!C6) -> S.N. | B5: =IF(AND('GA55 Check & Edit'!D6=""),"",'GA55 Check & Edit'!D6) -> Month | C5: =IF(AND('GA55 Check & Edit'!E6=""),"",'GA55 Check & Edit'!E6) -> Basic with Grade Pay | D5: =IF(AND('GA55 Check & Edit'!F6=""),"",'GA55 Check & Edit'!F6) -> DA | E5: =IF(AND('GA55 Check & Edit'!G6=""),"",'GA55 Check & Edit'!G6) -> HRA | F5: =IF(AND('GA55 Check & Edit'!H6=""),"",'GA55 Check & Edit'!H6) -> Wash All. | G5: =IF(AND('GA55 Check & Edit'!I6=""),"",'GA55 Check & Edit'!I6) -> Handi. All. | H5: =IF(AND('GA55 Check & Edit'!J6=""),"",'GA55 Check & Edit'!J6) -> CCA | I5: =IF(AND('GA55 Check & Edit'!K6=""),"",'GA55 Check & Edit'!K6) -> ROP | J5: =IF(AND('GA55 Check & Edit'!L6=""),"",'GA55 Check & Edit'!L6) -> other-1 | K5: =IF(AND('GA55 Check & Edit'!M6=""),"",'GA55 Check & Edit'!M6) -> other-2 | L5: =IF(AND('GA55 Check & Edit'!N6=""),"",'GA55 Check & Edit'!N6) -> Bonus | M5: =IF(AND('GA55 Check & Edit'!O6=""),"",'GA55 Check & Edit'!O6) -> TOTAL | N5: =IF(AND('GA55 Check & Edit'!P6=""),"",'GA55 Check & Edit'!P6) -> SI | O5: =IF(AND('GA55 Check & Edit'!Q6=""),"",'GA55 Check & Edit'!Q6) -> GPF | P5: =IF(AND('GA55 Check & Edit'!R6=""),"",'GA55 Check & Edit'!R6) -> L.I.C. | Q5: =IF(AND('GA55 Check & Edit'!S6=""),"",'GA55 Check & Edit'!S6) -> RGHS | R5: =IF(AND('GA55 Check & Edit'!T6=""),"",'GA55 Check & Edit'!T6) -> SI Loan | S5: =IF(AND('GA55 Check & Edit'!U6=""),"",'GA55 Check & Edit'!U6) -> GPF Loan | T5: =IF(AND('GA55 Check & Edit'!V6=""),"",'GA55 Check & Edit'!V6) -> SI Int. | U5: =IF(AND('GA55 Check & Edit'!W6=""),"",'GA55 Check & Edit'!W6) -> Other | V5: =IF(AND('GA55 Check & Edit'!X6=""),"",'GA55 Check & Edit'!X6) -> HITKARI NIDHI | W5: =IF(AND('GA55 Check & Edit'!Y6=""),"",'GA55 Check & Edit'!Y6) -> Other | X5: =IF(AND('GA55 Check & Edit'!Z6=""),"",'GA55 Check & Edit'!Z6) -> Income Tax | Y5: =IF(AND('GA55 Check & Edit'!AA6=""),"",'GA55 Check & Edit'!AA6) -> G.I. + S. Tax | Z5: =IF(AND('GA55 Check & Edit'!AB6=""),"",'GA55 Check & Edit'!AB6) -> Total Ded.
A6: 1 | B6: =IF(AND('GA55 Check & Edit'!D8=""),"",'GA55 Check & Edit'!D8) -> 2025-03-01 | C6: =IF(AND('GA55 Check & Edit'!E8=""),"",'GA55 Check & Edit'!E8) -> 101200 | D6: =IF(AND('GA55 Check & Edit'!F8=""),"",'GA55 Check & Edit'!F8) -> 53636 | E6: =IF(AND('GA55 Check & Edit'!G8=""),"",'GA55 Check & Edit'!G8) -> 10120 | F6: =IF(AND('GA55 Check & Edit'!H8=""),"",'GA55 Check & Edit'!H8) -> 0 | G6: =IF(AND('GA55 Check & Edit'!I8=""),"",'GA55 Check & Edit'!I8) -> 0 | H6: =IF(AND('GA55 Check & Edit'!J8=""),"",'GA55 Check & Edit'!J8) ->  | I6: =IF(AND('GA55 Check & Edit'!K8=""),"",'GA55 Check & Edit'!K8) -> 0 | J6: =IF(AND('GA55 Check & Edit'!L8=""),"",'GA55 Check & Edit'!L8) -> 0 | K6: =IF(AND('GA55 Check & Edit'!M8=""),"",'GA55 Check & Edit'!M8) -> 0 | L6: =IF(AND('GA55 Check & Edit'!N8=""),"",'GA55 Check & Edit'!N8) ->  | M6: =IF(AND('GA55 Check & Edit'!O8=""),"",'GA55 Check & Edit'!O8) -> 164956 | N6: =IF(AND('GA55 Check & Edit'!P8=""),"",'GA55 Check & Edit'!P8) -> 7000 | O6: =IF(AND('GA55 Check & Edit'!Q8=""),"",'GA55 Check & Edit'!Q8) -> 11000 | P6: =IF(AND('GA55 Check & Edit'!R8=""),"",'GA55 Check & Edit'!R8) -> 1103 | Q6: =IF(AND('GA55 Check & Edit'!S8=""),"",'GA55 Check & Edit'!S8) -> 875 | R6: =IF(AND('GA55 Check & Edit'!T8=""),"",'GA55 Check & Edit'!T8) -> 0 | S6: =IF(AND('GA55 Check & Edit'!U8=""),"",'GA55 Check & Edit'!U8) -> 0 | T6: =IF(AND('GA55 Check & Edit'!V8=""),"",'GA55 Check & Edit'!V8) -> 0 | U6: =IF(AND('GA55 Check & Edit'!W8=""),"",'GA55 Check & Edit'!W8) -> 0 | V6: =IF(AND('GA55 Check & Edit'!X8=""),"",'GA55 Check & Edit'!X8) ->  | W6: =IF(AND('GA55 Check & Edit'!Y8=""),"",'GA55 Check & Edit'!Y8) -> 0 | X6: =IF(AND('GA55 Check & Edit'!Z8=""),"",'GA55 Check & Edit'!Z8) -> 2000 | Y6: =IF(AND('GA55 Check & Edit'!AA8=""),"",'GA55 Check & Edit'!AA8) ->  | Z6: =IF(AND('GA55 Check & Edit'!AB8=""),"",'GA55 Check & Edit'!AB8) -> 21978 | AA6: =IF(AND('GA55 Check & Edit'!AC8=""),"",'GA55 Check & Edit'!AC8) -> 142978 | AB6: =IF(AND('GA55 Check & Edit'!AD8=""),"",'GA55 Check & Edit'!AD8) ->  | AC6: =IF(AND('GA55 Check & Edit'!AE8=""),"",'GA55 Check & Edit'!AE8) -> 
A7: 2 | B7: =IF(AND('GA55 Check & Edit'!D9=""),"",'GA55 Check & Edit'!D9) -> 2025-04-01 | C7: =IF(AND('GA55 Check & Edit'!E9=""),"",'GA55 Check & Edit'!E9) -> 101200 | D7: =IF(AND('GA55 Check & Edit'!F9=""),"",'GA55 Check & Edit'!F9) -> 55660 | E7: =IF(AND('GA55 Check & Edit'!G9=""),"",'GA55 Check & Edit'!G9) -> 10120 | F7: =IF(AND('GA55 Check & Edit'!H9=""),"",'GA55 Check & Edit'!H9) -> 0 | G7: =IF(AND('GA55 Check & Edit'!I9=""),"",'GA55 Check & Edit'!I9) -> 0 | H7: =IF(AND('GA55 Check & Edit'!J9=""),"",'GA55 Check & Edit'!J9) ->  | I7: =IF(AND('GA55 Check & Edit'!K9=""),"",'GA55 Check & Edit'!K9) -> 0 | J7: =IF(AND('GA55 Check & Edit'!L9=""),"",'GA55 Check & Edit'!L9) -> 0 | K7: =IF(AND('GA55 Check & Edit'!M9=""),"",'GA55 Check & Edit'!M9) -> 0 | L7: =IF(AND('GA55 Check & Edit'!N9=""),"",'GA55 Check & Edit'!N9) ->  | M7: =IF(AND('GA55 Check & Edit'!O9=""),"",'GA55 Check & Edit'!O9) -> 166980 | N7: =IF(AND('GA55 Check & Edit'!P9=""),"",'GA55 Check & Edit'!P9) -> 7000 | O7: =IF(AND('GA55 Check & Edit'!Q9=""),"",'GA55 Check & Edit'!Q9) -> 11000 | P7: =IF(AND('GA55 Check & Edit'!R9=""),"",'GA55 Check & Edit'!R9) -> 1103 | Q7: =IF(AND('GA55 Check & Edit'!S9=""),"",'GA55 Check & Edit'!S9) -> 875 | R7: =IF(AND('GA55 Check & Edit'!T9=""),"",'GA55 Check & Edit'!T9) -> 0 | S7: =IF(AND('GA55 Check & Edit'!U9=""),"",'GA55 Check & Edit'!U9) -> 0 | T7: =IF(AND('GA55 Check & Edit'!V9=""),"",'GA55 Check & Edit'!V9) -> 0 | U7: =IF(AND('GA55 Check & Edit'!W9=""),"",'GA55 Check & Edit'!W9) -> 0 | V7: =IF(AND('GA55 Check & Edit'!X9=""),"",'GA55 Check & Edit'!X9) ->  | W7: =IF(AND('GA55 Check & Edit'!Y9=""),"",'GA55 Check & Edit'!Y9) -> 0 | X7: =IF(AND('GA55 Check & Edit'!Z9=""),"",'GA55 Check & Edit'!Z9) -> 2000 | Y7: =IF(AND('GA55 Check & Edit'!AA9=""),"",'GA55 Check & Edit'!AA9) ->  | Z7: =IF(AND('GA55 Check & Edit'!AB9=""),"",'GA55 Check & Edit'!AB9) -> 21978 | AA7: =IF(AND('GA55 Check & Edit'!AC9=""),"",'GA55 Check & Edit'!AC9) -> 145002 | AB7: =IF(AND('GA55 Check & Edit'!AD9=""),"",'GA55 Check & Edit'!AD9) ->  | AC7: =IF(AND('GA55 Check & Edit'!AE9=""),"",'GA55 Check & Edit'!AE9) -> 
A8: 3 | B8: =IF(AND('GA55 Check & Edit'!D10=""),"",'GA55 Check & Edit'!D10) -> 2025-05-01 | C8: =IF(AND('GA55 Check & Edit'!E10=""),"",'GA55 Check & Edit'!E10) -> 101200 | D8: =IF(AND('GA55 Check & Edit'!F10=""),"",'GA55 Check & Edit'!F10) -> 55660 | E8: =IF(AND('GA55 Check & Edit'!G10=""),"",'GA55 Check & Edit'!G10) -> 10120 | F8: =IF(AND('GA55 Check & Edit'!H10=""),"",'GA55 Check & Edit'!H10) -> 0 | G8: =IF(AND('GA55 Check & Edit'!I10=""),"",'GA55 Check & Edit'!I10) -> 0 | H8: =IF(AND('GA55 Check & Edit'!J10=""),"",'GA55 Check & Edit'!J10) ->  | I8: =IF(AND('GA55 Check & Edit'!K10=""),"",'GA55 Check & Edit'!K10) -> 0 | J8: =IF(AND('GA55 Check & Edit'!L10=""),"",'GA55 Check & Edit'!L10) -> 0 | K8: =IF(AND('GA55 Check & Edit'!M10=""),"",'GA55 Check & Edit'!M10) -> 0 | L8: =IF(AND('GA55 Check & Edit'!N10=""),"",'GA55 Check & Edit'!N10) ->  | M8: =IF(AND('GA55 Check & Edit'!O10=""),"",'GA55 Check & Edit'!O10) -> 166980 | N8: =IF(AND('GA55 Check & Edit'!P10=""),"",'GA55 Check & Edit'!P10) -> 7000 | O8: =IF(AND('GA55 Check & Edit'!Q10=""),"",'GA55 Check & Edit'!Q10) -> 11000 | P8: =IF(AND('GA55 Check & Edit'!R10=""),"",'GA55 Check & Edit'!R10) -> 1103 | Q8: =IF(AND('GA55 Check & Edit'!S10=""),"",'GA55 Check & Edit'!S10) -> 875 | R8: =IF(AND('GA55 Check & Edit'!T10=""),"",'GA55 Check & Edit'!T10) -> 0 | S8: =IF(AND('GA55 Check & Edit'!U10=""),"",'GA55 Check & Edit'!U10) -> 0 | T8: =IF(AND('GA55 Check & Edit'!V10=""),"",'GA55 Check & Edit'!V10) -> 0 | U8: =IF(AND('GA55 Check & Edit'!W10=""),"",'GA55 Check & Edit'!W10) -> 0 | V8: =IF(AND('GA55 Check & Edit'!X10=""),"",'GA55 Check & Edit'!X10) ->  | W8: =IF(AND('GA55 Check & Edit'!Y10=""),"",'GA55 Check & Edit'!Y10) -> 0 | X8: =IF(AND('GA55 Check & Edit'!Z10=""),"",'GA55 Check & Edit'!Z10) -> 2000 | Y8: =IF(AND('GA55 Check & Edit'!AA10=""),"",'GA55 Check & Edit'!AA10) ->  | Z8: =IF(AND('GA55 Check & Edit'!AB10=""),"",'GA55 Check & Edit'!AB10) -> 21978 | AA8: =IF(AND('GA55 Check & Edit'!AC10=""),"",'GA55 Check & Edit'!AC10) -> 145002 | AB8: =IF(AND('GA55 Check & Edit'!AD10=""),"",'GA55 Check & Edit'!AD10) ->  | AC8: =IF(AND('GA55 Check & Edit'!AE10=""),"",'GA55 Check & Edit'!AE10) -> 
A9: 4 | B9: =IF(AND('GA55 Check & Edit'!D11=""),"",'GA55 Check & Edit'!D11) -> 2025-06-01 | C9: =IF(AND('GA55 Check & Edit'!E11=""),"",'GA55 Check & Edit'!E11) -> 101200 | D9: =IF(AND('GA55 Check & Edit'!F11=""),"",'GA55 Check & Edit'!F11) -> 55660 | E9: =IF(AND('GA55 Check & Edit'!G11=""),"",'GA55 Check & Edit'!G11) -> 10120 | F9: =IF(AND('GA55 Check & Edit'!H11=""),"",'GA55 Check & Edit'!H11) -> 0 | G9: =IF(AND('GA55 Check & Edit'!I11=""),"",'GA55 Check & Edit'!I11) -> 0 | H9: =IF(AND('GA55 Check & Edit'!J11=""),"",'GA55 Check & Edit'!J11) ->  | I9: =IF(AND('GA55 Check & Edit'!K11=""),"",'GA55 Check & Edit'!K11) -> 0 | J9: =IF(AND('GA55 Check & Edit'!L11=""),"",'GA55 Check & Edit'!L11) -> 0 | K9: =IF(AND('GA55 Check & Edit'!M11=""),"",'GA55 Check & Edit'!M11) -> 0 | L9: =IF(AND('GA55 Check & Edit'!N11=""),"",'GA55 Check & Edit'!N11) ->  | M9: =IF(AND('GA55 Check & Edit'!O11=""),"",'GA55 Check & Edit'!O11) -> 166980 | N9: =IF(AND('GA55 Check & Edit'!P11=""),"",'GA55 Check & Edit'!P11) -> 7000 | O9: =IF(AND('GA55 Check & Edit'!Q11=""),"",'GA55 Check & Edit'!Q11) -> 11000 | P9: =IF(AND('GA55 Check & Edit'!R11=""),"",'GA55 Check & Edit'!R11) -> 1103 | Q9: =IF(AND('GA55 Check & Edit'!S11=""),"",'GA55 Check & Edit'!S11) -> 875 | R9: =IF(AND('GA55 Check & Edit'!T11=""),"",'GA55 Check & Edit'!T11) -> 0 | S9: =IF(AND('GA55 Check & Edit'!U11=""),"",'GA55 Check & Edit'!U11) -> 0 | T9: =IF(AND('GA55 Check & Edit'!V11=""),"",'GA55 Check & Edit'!V11) -> 0 | U9: =IF(AND('GA55 Check & Edit'!W11=""),"",'GA55 Check & Edit'!W11) -> 0 | V9: =IF(AND('GA55 Check & Edit'!X11=""),"",'GA55 Check & Edit'!X11) ->  | W9: =IF(AND('GA55 Check & Edit'!Y11=""),"",'GA55 Check & Edit'!Y11) -> 0 | X9: =IF(AND('GA55 Check & Edit'!Z11=""),"",'GA55 Check & Edit'!Z11) -> 2000 | Y9: =IF(AND('GA55 Check & Edit'!AA11=""),"",'GA55 Check & Edit'!AA11) ->  | Z9: =IF(AND('GA55 Check & Edit'!AB11=""),"",'GA55 Check & Edit'!AB11) -> 21978 | AA9: =IF(AND('GA55 Check & Edit'!AC11=""),"",'GA55 Check & Edit'!AC11) -> 145002 | AB9: =IF(AND('GA55 Check & Edit'!AD11=""),"",'GA55 Check & Edit'!AD11) ->  | AC9: =IF(AND('GA55 Check & Edit'!AE11=""),"",'GA55 Check & Edit'!AE11) -> 
A10: 5 | B10: =IF(AND('GA55 Check & Edit'!D12=""),"",'GA55 Check & Edit'!D12) -> 2025-07-01 | C10: =IF(AND('GA55 Check & Edit'!E12=""),"",'GA55 Check & Edit'!E12) -> 104200 | D10: =IF(AND('GA55 Check & Edit'!F12=""),"",'GA55 Check & Edit'!F12) -> 57310 | E10: =IF(AND('GA55 Check & Edit'!G12=""),"",'GA55 Check & Edit'!G12) -> 10420 | F10: =IF(AND('GA55 Check & Edit'!H12=""),"",'GA55 Check & Edit'!H12) -> 0 | G10: =IF(AND('GA55 Check & Edit'!I12=""),"",'GA55 Check & Edit'!I12) -> 0 | H10: =IF(AND('GA55 Check & Edit'!J12=""),"",'GA55 Check & Edit'!J12) ->  | I10: =IF(AND('GA55 Check & Edit'!K12=""),"",'GA55 Check & Edit'!K12) -> 0 | J10: =IF(AND('GA55 Check & Edit'!L12=""),"",'GA55 Check & Edit'!L12) -> 0 | K10: =IF(AND('GA55 Check & Edit'!M12=""),"",'GA55 Check & Edit'!M12) -> 0 | L10: =IF(AND('GA55 Check & Edit'!N12=""),"",'GA55 Check & Edit'!N12) ->  | M10: =IF(AND('GA55 Check & Edit'!O12=""),"",'GA55 Check & Edit'!O12) -> 171930 | N10: =IF(AND('GA55 Check & Edit'!P12=""),"",'GA55 Check & Edit'!P12) -> 7000 | O10: =IF(AND('GA55 Check & Edit'!Q12=""),"",'GA55 Check & Edit'!Q12) -> 11000 | P10: =IF(AND('GA55 Check & Edit'!R12=""),"",'GA55 Check & Edit'!R12) -> 1103 | Q10: =IF(AND('GA55 Check & Edit'!S12=""),"",'GA55 Check & Edit'!S12) -> 875 | R10: =IF(AND('GA55 Check & Edit'!T12=""),"",'GA55 Check & Edit'!T12) -> 0 | S10: =IF(AND('GA55 Check & Edit'!U12=""),"",'GA55 Check & Edit'!U12) -> 0 | T10: =IF(AND('GA55 Check & Edit'!V12=""),"",'GA55 Check & Edit'!V12) -> 0 | U10: =IF(AND('GA55 Check & Edit'!W12=""),"",'GA55 Check & Edit'!W12) -> 0 | V10: =IF(AND('GA55 Check & Edit'!X12=""),"",'GA55 Check & Edit'!X12) ->  | W10: =IF(AND('GA55 Check & Edit'!Y12=""),"",'GA55 Check & Edit'!Y12) -> 0 | X10: =IF(AND('GA55 Check & Edit'!Z12=""),"",'GA55 Check & Edit'!Z12) -> 2000 | Y10: =IF(AND('GA55 Check & Edit'!AA12=""),"",'GA55 Check & Edit'!AA12) ->  | Z10: =IF(AND('GA55 Check & Edit'!AB12=""),"",'GA55 Check & Edit'!AB12) -> 21978 | AA10: =IF(AND('GA55 Check & Edit'!AC12=""),"",'GA55 Check & Edit'!AC12) -> 149952 | AB10: =IF(AND('GA55 Check & Edit'!AD12=""),"",'GA55 Check & Edit'!AD12) ->  | AC10: =IF(AND('GA55 Check & Edit'!AE12=""),"",'GA55 Check & Edit'!AE12) -> 
A11: 6 | B11: =IF(AND('GA55 Check & Edit'!D13=""),"",'GA55 Check & Edit'!D13) -> 2025-08-01 | C11: =IF(AND('GA55 Check & Edit'!E13=""),"",'GA55 Check & Edit'!E13) -> 104200 | D11: =IF(AND('GA55 Check & Edit'!F13=""),"",'GA55 Check & Edit'!F13) -> 57310 | E11: =IF(AND('GA55 Check & Edit'!G13=""),"",'GA55 Check & Edit'!G13) -> 10420 | F11: =IF(AND('GA55 Check & Edit'!H13=""),"",'GA55 Check & Edit'!H13) -> 0 | G11: =IF(AND('GA55 Check & Edit'!I13=""),"",'GA55 Check & Edit'!I13) -> 0 | H11: =IF(AND('GA55 Check & Edit'!J13=""),"",'GA55 Check & Edit'!J13) ->  | I11: =IF(AND('GA55 Check & Edit'!K13=""),"",'GA55 Check & Edit'!K13) -> 0 | J11: =IF(AND('GA55 Check & Edit'!L13=""),"",'GA55 Check & Edit'!L13) -> 0 | K11: =IF(AND('GA55 Check & Edit'!M13=""),"",'GA55 Check & Edit'!M13) -> 0 | L11: =IF(AND('GA55 Check & Edit'!N13=""),"",'GA55 Check & Edit'!N13) ->  | M11: =IF(AND('GA55 Check & Edit'!O13=""),"",'GA55 Check & Edit'!O13) -> 171930 | N11: =IF(AND('GA55 Check & Edit'!P13=""),"",'GA55 Check & Edit'!P13) -> 7000 | O11: =IF(AND('GA55 Check & Edit'!Q13=""),"",'GA55 Check & Edit'!Q13) -> 11000 | P11: =IF(AND('GA55 Check & Edit'!R13=""),"",'GA55 Check & Edit'!R13) -> 1103 | Q11: =IF(AND('GA55 Check & Edit'!S13=""),"",'GA55 Check & Edit'!S13) -> 875 | R11: =IF(AND('GA55 Check & Edit'!T13=""),"",'GA55 Check & Edit'!T13) -> 0 | S11: =IF(AND('GA55 Check & Edit'!U13=""),"",'GA55 Check & Edit'!U13) -> 0 | T11: =IF(AND('GA55 Check & Edit'!V13=""),"",'GA55 Check & Edit'!V13) -> 0 | U11: =IF(AND('GA55 Check & Edit'!W13=""),"",'GA55 Check & Edit'!W13) -> 0 | V11: =IF(AND('GA55 Check & Edit'!X13=""),"",'GA55 Check & Edit'!X13) ->  | W11: =IF(AND('GA55 Check & Edit'!Y13=""),"",'GA55 Check & Edit'!Y13) -> 0 | X11: =IF(AND('GA55 Check & Edit'!Z13=""),"",'GA55 Check & Edit'!Z13) -> 2000 | Y11: =IF(AND('GA55 Check & Edit'!AA13=""),"",'GA55 Check & Edit'!AA13) ->  | Z11: =IF(AND('GA55 Check & Edit'!AB13=""),"",'GA55 Check & Edit'!AB13) -> 21978 | AA11: =IF(AND('GA55 Check & Edit'!AC13=""),"",'GA55 Check & Edit'!AC13) -> 149952 | AB11: =IF(AND('GA55 Check & Edit'!AD13=""),"",'GA55 Check & Edit'!AD13) ->  | AC11: =IF(AND('GA55 Check & Edit'!AE13=""),"",'GA55 Check & Edit'!AE13) -> 
A12: 7 | B12: =IF(AND('GA55 Check & Edit'!D14=""),"",'GA55 Check & Edit'!D14) -> 2025-09-01 | C12: =IF(AND('GA55 Check & Edit'!E14=""),"",'GA55 Check & Edit'!E14) -> 104200 | D12: =IF(AND('GA55 Check & Edit'!F14=""),"",'GA55 Check & Edit'!F14) -> 57310 | E12: =IF(AND('GA55 Check & Edit'!G14=""),"",'GA55 Check & Edit'!G14) -> 10420 | F12: =IF(AND('GA55 Check & Edit'!H14=""),"",'GA55 Check & Edit'!H14) -> 0 | G12: =IF(AND('GA55 Check & Edit'!I14=""),"",'GA55 Check & Edit'!I14) -> 0 | H12: =IF(AND('GA55 Check & Edit'!J14=""),"",'GA55 Check & Edit'!J14) ->  | I12: =IF(AND('GA55 Check & Edit'!K14=""),"",'GA55 Check & Edit'!K14) -> 0 | J12: =IF(AND('GA55 Check & Edit'!L14=""),"",'GA55 Check & Edit'!L14) -> 0 | K12: =IF(AND('GA55 Check & Edit'!M14=""),"",'GA55 Check & Edit'!M14) -> 0 | L12: =IF(AND('GA55 Check & Edit'!N14=""),"",'GA55 Check & Edit'!N14) ->  | M12: =IF(AND('GA55 Check & Edit'!O14=""),"",'GA55 Check & Edit'!O14) -> 171930 | N12: =IF(AND('GA55 Check & Edit'!P14=""),"",'GA55 Check & Edit'!P14) -> 7000 | O12: =IF(AND('GA55 Check & Edit'!Q14=""),"",'GA55 Check & Edit'!Q14) -> 11000 | P12: =IF(AND('GA55 Check & Edit'!R14=""),"",'GA55 Check & Edit'!R14) -> 1103 | Q12: =IF(AND('GA55 Check & Edit'!S14=""),"",'GA55 Check & Edit'!S14) -> 875 | R12: =IF(AND('GA55 Check & Edit'!T14=""),"",'GA55 Check & Edit'!T14) -> 0 | S12: =IF(AND('GA55 Check & Edit'!U14=""),"",'GA55 Check & Edit'!U14) -> 0 | T12: =IF(AND('GA55 Check & Edit'!V14=""),"",'GA55 Check & Edit'!V14) -> 0 | U12: =IF(AND('GA55 Check & Edit'!W14=""),"",'GA55 Check & Edit'!W14) -> 0 | V12: =IF(AND('GA55 Check & Edit'!X14=""),"",'GA55 Check & Edit'!X14) ->  | W12: =IF(AND('GA55 Check & Edit'!Y14=""),"",'GA55 Check & Edit'!Y14) -> 0 | X12: =IF(AND('GA55 Check & Edit'!Z14=""),"",'GA55 Check & Edit'!Z14) -> 2000 | Y12: =IF(AND('GA55 Check & Edit'!AA14=""),"",'GA55 Check & Edit'!AA14) ->  | Z12: =IF(AND('GA55 Check & Edit'!AB14=""),"",'GA55 Check & Edit'!AB14) -> 21978 | AA12: =IF(AND('GA55 Check & Edit'!AC14=""),"",'GA55 Check & Edit'!AC14) -> 149952 | AB12: =IF(AND('GA55 Check & Edit'!AD14=""),"",'GA55 Check & Edit'!AD14) ->  | AC12: =IF(AND('GA55 Check & Edit'!AE14=""),"",'GA55 Check & Edit'!AE14) -> 
A13: 8 | B13: =IF(AND('GA55 Check & Edit'!D15=""),"",'GA55 Check & Edit'!D15) -> 2025-10-01 | C13: =IF(AND('GA55 Check & Edit'!E15=""),"",'GA55 Check & Edit'!E15) -> 104200 | D13: =IF(AND('GA55 Check & Edit'!F15=""),"",'GA55 Check & Edit'!F15) -> 60436 | E13: =IF(AND('GA55 Check & Edit'!G15=""),"",'GA55 Check & Edit'!G15) -> 10420 | F13: =IF(AND('GA55 Check & Edit'!H15=""),"",'GA55 Check & Edit'!H15) -> 0 | G13: =IF(AND('GA55 Check & Edit'!I15=""),"",'GA55 Check & Edit'!I15) -> 0 | H13: =IF(AND('GA55 Check & Edit'!J15=""),"",'GA55 Check & Edit'!J15) ->  | I13: =IF(AND('GA55 Check & Edit'!K15=""),"",'GA55 Check & Edit'!K15) -> 0 | J13: =IF(AND('GA55 Check & Edit'!L15=""),"",'GA55 Check & Edit'!L15) -> 0 | K13: =IF(AND('GA55 Check & Edit'!M15=""),"",'GA55 Check & Edit'!M15) -> 0 | L13: =IF(AND('GA55 Check & Edit'!N15=""),"",'GA55 Check & Edit'!N15) ->  | M13: =IF(AND('GA55 Check & Edit'!O15=""),"",'GA55 Check & Edit'!O15) -> 175056 | N13: =IF(AND('GA55 Check & Edit'!P15=""),"",'GA55 Check & Edit'!P15) -> 7000 | O13: =IF(AND('GA55 Check & Edit'!Q15=""),"",'GA55 Check & Edit'!Q15) -> 11000 | P13: =IF(AND('GA55 Check & Edit'!R15=""),"",'GA55 Check & Edit'!R15) -> 1103 | Q13: =IF(AND('GA55 Check & Edit'!S15=""),"",'GA55 Check & Edit'!S15) -> 875 | R13: =IF(AND('GA55 Check & Edit'!T15=""),"",'GA55 Check & Edit'!T15) -> 0 | S13: =IF(AND('GA55 Check & Edit'!U15=""),"",'GA55 Check & Edit'!U15) -> 0 | T13: =IF(AND('GA55 Check & Edit'!V15=""),"",'GA55 Check & Edit'!V15) -> 0 | U13: =IF(AND('GA55 Check & Edit'!W15=""),"",'GA55 Check & Edit'!W15) -> 0 | V13: =IF(AND('GA55 Check & Edit'!X15=""),"",'GA55 Check & Edit'!X15) ->  | W13: =IF(AND('GA55 Check & Edit'!Y15=""),"",'GA55 Check & Edit'!Y15) -> 0 | X13: =IF(AND('GA55 Check & Edit'!Z15=""),"",'GA55 Check & Edit'!Z15) -> 2000 | Y13: =IF(AND('GA55 Check & Edit'!AA15=""),"",'GA55 Check & Edit'!AA15) ->  | Z13: =IF(AND('GA55 Check & Edit'!AB15=""),"",'GA55 Check & Edit'!AB15) -> 21978 | AA13: =IF(AND('GA55 Check & Edit'!AC15=""),"",'GA55 Check & Edit'!AC15) -> 153078 | AB13: =IF(AND('GA55 Check & Edit'!AD15=""),"",'GA55 Check & Edit'!AD15) ->  | AC13: =IF(AND('GA55 Check & Edit'!AE15=""),"",'GA55 Check & Edit'!AE15) -> 
A14: 9 | B14: =IF(AND('GA55 Check & Edit'!D16=""),"",'GA55 Check & Edit'!D16) -> 2025-11-01 | C14: =IF(AND('GA55 Check & Edit'!E16=""),"",'GA55 Check & Edit'!E16) -> 104200 | D14: =IF(AND('GA55 Check & Edit'!F16=""),"",'GA55 Check & Edit'!F16) -> 60436 | E14: =IF(AND('GA55 Check & Edit'!G16=""),"",'GA55 Check & Edit'!G16) -> 10420 | F14: =IF(AND('GA55 Check & Edit'!H16=""),"",'GA55 Check & Edit'!H16) -> 0 | G14: =IF(AND('GA55 Check & Edit'!I16=""),"",'GA55 Check & Edit'!I16) -> 0 | H14: =IF(AND('GA55 Check & Edit'!J16=""),"",'GA55 Check & Edit'!J16) ->  | I14: =IF(AND('GA55 Check & Edit'!K16=""),"",'GA55 Check & Edit'!K16) -> 0 | J14: =IF(AND('GA55 Check & Edit'!L16=""),"",'GA55 Check & Edit'!L16) -> 0 | K14: =IF(AND('GA55 Check & Edit'!M16=""),"",'GA55 Check & Edit'!M16) -> 0 | L14: =IF(AND('GA55 Check & Edit'!N16=""),"",'GA55 Check & Edit'!N16) ->  | M14: =IF(AND('GA55 Check & Edit'!O16=""),"",'GA55 Check & Edit'!O16) -> 175056 | N14: =IF(AND('GA55 Check & Edit'!P16=""),"",'GA55 Check & Edit'!P16) -> 7000 | O14: =IF(AND('GA55 Check & Edit'!Q16=""),"",'GA55 Check & Edit'!Q16) -> 11000 | P14: =IF(AND('GA55 Check & Edit'!R16=""),"",'GA55 Check & Edit'!R16) -> 1103 | Q14: =IF(AND('GA55 Check & Edit'!S16=""),"",'GA55 Check & Edit'!S16) -> 875 | R14: =IF(AND('GA55 Check & Edit'!T16=""),"",'GA55 Check & Edit'!T16) -> 0 | S14: =IF(AND('GA55 Check & Edit'!U16=""),"",'GA55 Check & Edit'!U16) -> 0 | T14: =IF(AND('GA55 Check & Edit'!V16=""),"",'GA55 Check & Edit'!V16) -> 0 | U14: =IF(AND('GA55 Check & Edit'!W16=""),"",'GA55 Check & Edit'!W16) -> 0 | V14: =IF(AND('GA55 Check & Edit'!X16=""),"",'GA55 Check & Edit'!X16) ->  | W14: =IF(AND('GA55 Check & Edit'!Y16=""),"",'GA55 Check & Edit'!Y16) -> 0 | X14: =IF(AND('GA55 Check & Edit'!Z16=""),"",'GA55 Check & Edit'!Z16) -> 2000 | Y14: =IF(AND('GA55 Check & Edit'!AA16=""),"",'GA55 Check & Edit'!AA16) ->  | Z14: =IF(AND('GA55 Check & Edit'!AB16=""),"",'GA55 Check & Edit'!AB16) -> 21978 | AA14: =IF(AND('GA55 Check & Edit'!AC16=""),"",'GA55 Check & Edit'!AC16) -> 153078 | AB14: =IF(AND('GA55 Check & Edit'!AD16=""),"",'GA55 Check & Edit'!AD16) ->  | AC14: =IF(AND('GA55 Check & Edit'!AE16=""),"",'GA55 Check & Edit'!AE16) -> 
A15: 10 | B15: =IF(AND('GA55 Check & Edit'!D17=""),"",'GA55 Check & Edit'!D17) -> 2025-12-01 | C15: =IF(AND('GA55 Check & Edit'!E17=""),"",'GA55 Check & Edit'!E17) -> 104200 | D15: =IF(AND('GA55 Check & Edit'!F17=""),"",'GA55 Check & Edit'!F17) -> 60436 | E15: =IF(AND('GA55 Check & Edit'!G17=""),"",'GA55 Check & Edit'!G17) -> 10420 | F15: =IF(AND('GA55 Check & Edit'!H17=""),"",'GA55 Check & Edit'!H17) -> 0 | G15: =IF(AND('GA55 Check & Edit'!I17=""),"",'GA55 Check & Edit'!I17) -> 0 | H15: =IF(AND('GA55 Check & Edit'!J17=""),"",'GA55 Check & Edit'!J17) ->  | I15: =IF(AND('GA55 Check & Edit'!K17=""),"",'GA55 Check & Edit'!K17) -> 0 | J15: =IF(AND('GA55 Check & Edit'!L17=""),"",'GA55 Check & Edit'!L17) -> 0 | K15: =IF(AND('GA55 Check & Edit'!M17=""),"",'GA55 Check & Edit'!M17) -> 0 | L15: =IF(AND('GA55 Check & Edit'!N17=""),"",'GA55 Check & Edit'!N17) ->  | M15: =IF(AND('GA55 Check & Edit'!O17=""),"",'GA55 Check & Edit'!O17) -> 175056 | N15: =IF(AND('GA55 Check & Edit'!P17=""),"",'GA55 Check & Edit'!P17) -> 7000 | O15: =IF(AND('GA55 Check & Edit'!Q17=""),"",'GA55 Check & Edit'!Q17) -> 11000 | P15: =IF(AND('GA55 Check & Edit'!R17=""),"",'GA55 Check & Edit'!R17) -> 1103 | Q15: =IF(AND('GA55 Check & Edit'!S17=""),"",'GA55 Check & Edit'!S17) -> 875 | R15: =IF(AND('GA55 Check & Edit'!T17=""),"",'GA55 Check & Edit'!T17) -> 0 | S15: =IF(AND('GA55 Check & Edit'!U17=""),"",'GA55 Check & Edit'!U17) -> 0 | T15: =IF(AND('GA55 Check & Edit'!V17=""),"",'GA55 Check & Edit'!V17) -> 0 | U15: =IF(AND('GA55 Check & Edit'!W17=""),"",'GA55 Check & Edit'!W17) -> 0 | V15: =IF(AND('GA55 Check & Edit'!X17=""),"",'GA55 Check & Edit'!X17) -> 250 | W15: =IF(AND('GA55 Check & Edit'!Y17=""),"",'GA55 Check & Edit'!Y17) -> 0 | X15: =IF(AND('GA55 Check & Edit'!Z17=""),"",'GA55 Check & Edit'!Z17) -> 2000 | Y15: =IF(AND('GA55 Check & Edit'!AA17=""),"",'GA55 Check & Edit'!AA17) ->  | Z15: =IF(AND('GA55 Check & Edit'!AB17=""),"",'GA55 Check & Edit'!AB17) -> 22228 | AA15: =IF(AND('GA55 Check & Edit'!AC17=""),"",'GA55 Check & Edit'!AC17) -> 152828 | AB15: =IF(AND('GA55 Check & Edit'!AD17=""),"",'GA55 Check & Edit'!AD17) ->  | AC15: =IF(AND('GA55 Check & Edit'!AE17=""),"",'GA55 Check & Edit'!AE17) -> 
A16: 11 | B16: =IF(AND('GA55 Check & Edit'!D18=""),"",'GA55 Check & Edit'!D18) -> 2026-01-01 | C16: =IF(AND('GA55 Check & Edit'!E18=""),"",'GA55 Check & Edit'!E18) -> 104200 | D16: =IF(AND('GA55 Check & Edit'!F18=""),"",'GA55 Check & Edit'!F18) -> 60436 | E16: =IF(AND('GA55 Check & Edit'!G18=""),"",'GA55 Check & Edit'!G18) -> 10420 | F16: =IF(AND('GA55 Check & Edit'!H18=""),"",'GA55 Check & Edit'!H18) -> 0 | G16: =IF(AND('GA55 Check & Edit'!I18=""),"",'GA55 Check & Edit'!I18) -> 0 | H16: =IF(AND('GA55 Check & Edit'!J18=""),"",'GA55 Check & Edit'!J18) ->  | I16: =IF(AND('GA55 Check & Edit'!K18=""),"",'GA55 Check & Edit'!K18) -> 0 | J16: =IF(AND('GA55 Check & Edit'!L18=""),"",'GA55 Check & Edit'!L18) -> 0 | K16: =IF(AND('GA55 Check & Edit'!M18=""),"",'GA55 Check & Edit'!M18) -> 0 | L16: =IF(AND('GA55 Check & Edit'!N18=""),"",'GA55 Check & Edit'!N18) ->  | M16: =IF(AND('GA55 Check & Edit'!O18=""),"",'GA55 Check & Edit'!O18) -> 175056 | N16: =IF(AND('GA55 Check & Edit'!P18=""),"",'GA55 Check & Edit'!P18) -> 7000 | O16: =IF(AND('GA55 Check & Edit'!Q18=""),"",'GA55 Check & Edit'!Q18) -> 11000 | P16: =IF(AND('GA55 Check & Edit'!R18=""),"",'GA55 Check & Edit'!R18) -> 1103 | Q16: =IF(AND('GA55 Check & Edit'!S18=""),"",'GA55 Check & Edit'!S18) -> 875 | R16: =IF(AND('GA55 Check & Edit'!T18=""),"",'GA55 Check & Edit'!T18) -> 0 | S16: =IF(AND('GA55 Check & Edit'!U18=""),"",'GA55 Check & Edit'!U18) -> 0 | T16: =IF(AND('GA55 Check & Edit'!V18=""),"",'GA55 Check & Edit'!V18) -> 0 | U16: =IF(AND('GA55 Check & Edit'!W18=""),"",'GA55 Check & Edit'!W18) -> 0 | V16: =IF(AND('GA55 Check & Edit'!X18=""),"",'GA55 Check & Edit'!X18) ->  | W16: =IF(AND('GA55 Check & Edit'!Y18=""),"",'GA55 Check & Edit'!Y18) -> 0 | X16: =IF(AND('GA55 Check & Edit'!Z18=""),"",'GA55 Check & Edit'!Z18) -> 2000 | Y16: =IF(AND('GA55 Check & Edit'!AA18=""),"",'GA55 Check & Edit'!AA18) ->  | Z16: =IF(AND('GA55 Check & Edit'!AB18=""),"",'GA55 Check & Edit'!AB18) -> 21978 | AA16: =IF(AND('GA55 Check & Edit'!AC18=""),"",'GA55 Check & Edit'!AC18) -> 153078 | AB16: =IF(AND('GA55 Check & Edit'!AD18=""),"",'GA55 Check & Edit'!AD18) ->  | AC16: =IF(AND('GA55 Check & Edit'!AE18=""),"",'GA55 Check & Edit'!AE18) -> 
A17: 12 | B17: =IF(AND('GA55 Check & Edit'!D19=""),"",'GA55 Check & Edit'!D19) -> 2026-02-01 | C17: =IF(AND('GA55 Check & Edit'!E19=""),"",'GA55 Check & Edit'!E19) -> 104200 | D17: =IF(AND('GA55 Check & Edit'!F19=""),"",'GA55 Check & Edit'!F19) -> 60436 | E17: =IF(AND('GA55 Check & Edit'!G19=""),"",'GA55 Check & Edit'!G19) -> 10420 | F17: =IF(AND('GA55 Check & Edit'!H19=""),"",'GA55 Check & Edit'!H19) -> 0 | G17: =IF(AND('GA55 Check & Edit'!I19=""),"",'GA55 Check & Edit'!I19) -> 0 | H17: =IF(AND('GA55 Check & Edit'!J19=""),"",'GA55 Check & Edit'!J19) ->  | I17: =IF(AND('GA55 Check & Edit'!K19=""),"",'GA55 Check & Edit'!K19) -> 0 | J17: =IF(AND('GA55 Check & Edit'!L19=""),"",'GA55 Check & Edit'!L19) -> 0 | K17: =IF(AND('GA55 Check & Edit'!M19=""),"",'GA55 Check & Edit'!M19) -> 0 | L17: =IF(AND('GA55 Check & Edit'!N19=""),"",'GA55 Check & Edit'!N19) ->  | M17: =IF(AND('GA55 Check & Edit'!O19=""),"",'GA55 Check & Edit'!O19) -> 175056 | N17: =IF(AND('GA55 Check & Edit'!P19=""),"",'GA55 Check & Edit'!P19) -> 7000 | O17: =IF(AND('GA55 Check & Edit'!Q19=""),"",'GA55 Check & Edit'!Q19) -> 11000 | P17: =IF(AND('GA55 Check & Edit'!R19=""),"",'GA55 Check & Edit'!R19) -> 1103 | Q17: =IF(AND('GA55 Check & Edit'!S19=""),"",'GA55 Check & Edit'!S19) -> 875 | R17: =IF(AND('GA55 Check & Edit'!T19=""),"",'GA55 Check & Edit'!T19) -> 0 | S17: =IF(AND('GA55 Check & Edit'!U19=""),"",'GA55 Check & Edit'!U19) -> 0 | T17: =IF(AND('GA55 Check & Edit'!V19=""),"",'GA55 Check & Edit'!V19) -> 0 | U17: =IF(AND('GA55 Check & Edit'!W19=""),"",'GA55 Check & Edit'!W19) -> 0 | V17: =IF(AND('GA55 Check & Edit'!X19=""),"",'GA55 Check & Edit'!X19) ->  | W17: =IF(AND('GA55 Check & Edit'!Y19=""),"",'GA55 Check & Edit'!Y19) -> 0 | X17: =IF(AND('GA55 Check & Edit'!Z19=""),"",'GA55 Check & Edit'!Z19) -> 2000 | Y17: =IF(AND('GA55 Check & Edit'!AA19=""),"",'GA55 Check & Edit'!AA19) ->  | Z17: =IF(AND('GA55 Check & Edit'!AB19=""),"",'GA55 Check & Edit'!AB19) -> 21978 | AA17: =IF(AND('GA55 Check & Edit'!AC19=""),"",'GA55 Check & Edit'!AC19) -> 153078 | AB17: =IF(AND('GA55 Check & Edit'!AD19=""),"",'GA55 Check & Edit'!AD19) ->  | AC17: =IF(AND('GA55 Check & Edit'!AE19=""),"",'GA55 Check & Edit'!AE19) -> 
A18: 13 | B18: =IF(AND('GA55 Check & Edit'!D20=""),"",'GA55 Check & Edit'!D20) -> Bonus | C18: =IF(AND('GA55 Check & Edit'!E20=""),"",'GA55 Check & Edit'!E20) ->  | D18: =IF(AND('GA55 Check & Edit'!F20=""),"",'GA55 Check & Edit'!F20) ->  | E18: =IF(AND('GA55 Check & Edit'!G20=""),"",'GA55 Check & Edit'!G20) ->  | F18: =IF(AND('GA55 Check & Edit'!H20=""),"",'GA55 Check & Edit'!H20) ->  | G18: =IF(AND('GA55 Check & Edit'!I20=""),"",'GA55 Check & Edit'!I20) ->  | H18: =IF(AND('GA55 Check & Edit'!J20=""),"",'GA55 Check & Edit'!J20) ->  | I18: =IF(AND('GA55 Check & Edit'!K20=""),"",'GA55 Check & Edit'!K20) ->  | J18: =IF(AND('GA55 Check & Edit'!L20=""),"",'GA55 Check & Edit'!L20) ->  | K18: =IF(AND('GA55 Check & Edit'!M20=""),"",'GA55 Check & Edit'!M20) ->  | L18: =IF(AND('GA55 Check & Edit'!N20=""),"",'GA55 Check & Edit'!N20) -> 6774 | M18: =IF(AND('GA55 Check & Edit'!O20=""),"",'GA55 Check & Edit'!O20) -> 6774 | N18: =IF(AND('GA55 Check & Edit'!P20=""),"",'GA55 Check & Edit'!P20) ->  | O18: =IF(AND('GA55 Check & Edit'!Q20=""),"",'GA55 Check & Edit'!Q20) -> 1694 | P18: =IF(AND('GA55 Check & Edit'!R20=""),"",'GA55 Check & Edit'!R20) ->  | Q18: =IF(AND('GA55 Check & Edit'!S20=""),"",'GA55 Check & Edit'!S20) ->  | R18: =IF(AND('GA55 Check & Edit'!T20=""),"",'GA55 Check & Edit'!T20) ->  | S18: =IF(AND('GA55 Check & Edit'!U20=""),"",'GA55 Check & Edit'!U20) ->  | T18: =IF(AND('GA55 Check & Edit'!V20=""),"",'GA55 Check & Edit'!V20) ->  | U18: =IF(AND('GA55 Check & Edit'!W20=""),"",'GA55 Check & Edit'!W20) ->  | V18: =IF(AND('GA55 Check & Edit'!X20=""),"",'GA55 Check & Edit'!X20) ->  | W18: =IF(AND('GA55 Check & Edit'!Y20=""),"",'GA55 Check & Edit'!Y20) ->  | X18: =IF(AND('GA55 Check & Edit'!Z20=""),"",'GA55 Check & Edit'!Z20) ->  | Y18: =IF(AND('GA55 Check & Edit'!AA20=""),"",'GA55 Check & Edit'!AA20) ->  | Z18: =IF(AND('GA55 Check & Edit'!AB20=""),"",'GA55 Check & Edit'!AB20) -> 1694 | AA18: =IF(AND('GA55 Check & Edit'!AC20=""),"",'GA55 Check & Edit'!AC20) -> 5080 | AB18: =IF(AND('GA55 Check & Edit'!AD20=""),"",'GA55 Check & Edit'!AD20) ->  | AC18: =IF(AND('GA55 Check & Edit'!AE20=""),"",'GA55 Check & Edit'!AE20) -> 
A19: 14 | B19: =IF(AND('GA55 Check & Edit'!D21=""),"",'GA55 Check & Edit'!D21) -> PL Surrender | C19: =IF(AND('GA55 Check & Edit'!E21=""),"",'GA55 Check & Edit'!E21) -> 52100 | D19: =IF(AND('GA55 Check & Edit'!F21=""),"",'GA55 Check & Edit'!F21) -> 28655 | E19: =IF(AND('GA55 Check & Edit'!G21=""),"",'GA55 Check & Edit'!G21) ->  | F19: =IF(AND('GA55 Check & Edit'!H21=""),"",'GA55 Check & Edit'!H21) ->  | G19: =IF(AND('GA55 Check & Edit'!I21=""),"",'GA55 Check & Edit'!I21) ->  | H19: =IF(AND('GA55 Check & Edit'!J21=""),"",'GA55 Check & Edit'!J21) ->  | I19: =IF(AND('GA55 Check & Edit'!K21=""),"",'GA55 Check & Edit'!K21) ->  | J19: =IF(AND('GA55 Check & Edit'!L21=""),"",'GA55 Check & Edit'!L21) ->  | K19: =IF(AND('GA55 Check & Edit'!M21=""),"",'GA55 Check & Edit'!M21) ->  | L19: =IF(AND('GA55 Check & Edit'!N21=""),"",'GA55 Check & Edit'!N21) ->  | M19: =IF(AND('GA55 Check & Edit'!O21=""),"",'GA55 Check & Edit'!O21) -> 80755 | N19: =IF(AND('GA55 Check & Edit'!P21=""),"",'GA55 Check & Edit'!P21) ->  | O19: =IF(AND('GA55 Check & Edit'!Q21=""),"",'GA55 Check & Edit'!Q21) ->  | P19: =IF(AND('GA55 Check & Edit'!R21=""),"",'GA55 Check & Edit'!R21) ->  | Q19: =IF(AND('GA55 Check & Edit'!S21=""),"",'GA55 Check & Edit'!S21) ->  | R19: =IF(AND('GA55 Check & Edit'!T21=""),"",'GA55 Check & Edit'!T21) ->  | S19: =IF(AND('GA55 Check & Edit'!U21=""),"",'GA55 Check & Edit'!U21) ->  | T19: =IF(AND('GA55 Check & Edit'!V21=""),"",'GA55 Check & Edit'!V21) ->  | U19: =IF(AND('GA55 Check & Edit'!W21=""),"",'GA55 Check & Edit'!W21) ->  | V19: =IF(AND('GA55 Check & Edit'!X21=""),"",'GA55 Check & Edit'!X21) ->  | W19: =IF(AND('GA55 Check & Edit'!Y21=""),"",'GA55 Check & Edit'!Y21) ->  | X19: =IF(AND('GA55 Check & Edit'!Z21=""),"",'GA55 Check & Edit'!Z21) ->  | Y19: =IF(AND('GA55 Check & Edit'!AA21=""),"",'GA55 Check & Edit'!AA21) ->  | Z19: =IF(AND('GA55 Check & Edit'!AB21=""),"",'GA55 Check & Edit'!AB21) -> 0 | AA19: =IF(AND('GA55 Check & Edit'!AC21=""),"",'GA55 Check & Edit'!AC21) -> 80755 | AB19: =IF(AND('GA55 Check & Edit'!AD21=""),"",'GA55 Check & Edit'!AD21) ->  | AC19: =IF(AND('GA55 Check & Edit'!AE21=""),"",'GA55 Check & Edit'!AE21) -> 
A20: 15 | B20: =IF(AND('GA55 Check & Edit'!D22=""),"",'GA55 Check & Edit'!D22) -> DA Arrear 53 to 55% | C20: =IF(AND('GA55 Check & Edit'!E22=""),"",'GA55 Check & Edit'!E22) ->  | D20: =IF(AND('GA55 Check & Edit'!F22=""),"",'GA55 Check & Edit'!F22) -> 6072 | E20: =IF(AND('GA55 Check & Edit'!G22=""),"",'GA55 Check & Edit'!G22) ->  | F20: =IF(AND('GA55 Check & Edit'!H22=""),"",'GA55 Check & Edit'!H22) ->  | G20: =IF(AND('GA55 Check & Edit'!I22=""),"",'GA55 Check & Edit'!I22) ->  | H20: =IF(AND('GA55 Check & Edit'!J22=""),"",'GA55 Check & Edit'!J22) ->  | I20: =IF(AND('GA55 Check & Edit'!K22=""),"",'GA55 Check & Edit'!K22) ->  | J20: =IF(AND('GA55 Check & Edit'!L22=""),"",'GA55 Check & Edit'!L22) ->  | K20: =IF(AND('GA55 Check & Edit'!M22=""),"",'GA55 Check & Edit'!M22) ->  | L20: =IF(AND('GA55 Check & Edit'!N22=""),"",'GA55 Check & Edit'!N22) ->  | M20: =IF(AND('GA55 Check & Edit'!O22=""),"",'GA55 Check & Edit'!O22) -> 6072 | N20: =IF(AND('GA55 Check & Edit'!P22=""),"",'GA55 Check & Edit'!P22) ->  | O20: =IF(AND('GA55 Check & Edit'!Q22=""),"",'GA55 Check & Edit'!Q22) -> 6072 | P20: =IF(AND('GA55 Check & Edit'!R22=""),"",'GA55 Check & Edit'!R22) ->  | Q20: =IF(AND('GA55 Check & Edit'!S22=""),"",'GA55 Check & Edit'!S22) ->  | R20: =IF(AND('GA55 Check & Edit'!T22=""),"",'GA55 Check & Edit'!T22) ->  | S20: =IF(AND('GA55 Check & Edit'!U22=""),"",'GA55 Check & Edit'!U22) ->  | T20: =IF(AND('GA55 Check & Edit'!V22=""),"",'GA55 Check & Edit'!V22) ->  | U20: =IF(AND('GA55 Check & Edit'!W22=""),"",'GA55 Check & Edit'!W22) ->  | V20: =IF(AND('GA55 Check & Edit'!X22=""),"",'GA55 Check & Edit'!X22) ->  | W20: =IF(AND('GA55 Check & Edit'!Y22=""),"",'GA55 Check & Edit'!Y22) ->  | X20: =IF(AND('GA55 Check & Edit'!Z22=""),"",'GA55 Check & Edit'!Z22) ->  | Y20: =IF(AND('GA55 Check & Edit'!AA22=""),"",'GA55 Check & Edit'!AA22) ->  | Z20: =IF(AND('GA55 Check & Edit'!AB22=""),"",'GA55 Check & Edit'!AB22) -> 6072 | AA20: =IF(AND('GA55 Check & Edit'!AC22=""),"",'GA55 Check & Edit'!AC22) -> 0 | AB20: =IF(AND('GA55 Check & Edit'!AD22=""),"",'GA55 Check & Edit'!AD22) ->  | AC20: =IF(AND('GA55 Check & Edit'!AE22=""),"",'GA55 Check & Edit'!AE22) -> 
A21: 16 | B21: =IF(AND('GA55 Check & Edit'!D23=""),"",'GA55 Check & Edit'!D23) -> DA Arrear 55% to 58% | C21: =IF(AND('GA55 Check & Edit'!E23=""),"",'GA55 Check & Edit'!E23) ->  | D21: =IF(AND('GA55 Check & Edit'!F23=""),"",'GA55 Check & Edit'!F23) -> 9378 | E21: =IF(AND('GA55 Check & Edit'!G23=""),"",'GA55 Check & Edit'!G23) ->  | F21: =IF(AND('GA55 Check & Edit'!H23=""),"",'GA55 Check & Edit'!H23) ->  | G21: =IF(AND('GA55 Check & Edit'!I23=""),"",'GA55 Check & Edit'!I23) ->  | H21: =IF(AND('GA55 Check & Edit'!J23=""),"",'GA55 Check & Edit'!J23) ->  | I21: =IF(AND('GA55 Check & Edit'!K23=""),"",'GA55 Check & Edit'!K23) ->  | J21: =IF(AND('GA55 Check & Edit'!L23=""),"",'GA55 Check & Edit'!L23) ->  | K21: =IF(AND('GA55 Check & Edit'!M23=""),"",'GA55 Check & Edit'!M23) ->  | L21: =IF(AND('GA55 Check & Edit'!N23=""),"",'GA55 Check & Edit'!N23) ->  | M21: =IF(AND('GA55 Check & Edit'!O23=""),"",'GA55 Check & Edit'!O23) -> 9378 | N21: =IF(AND('GA55 Check & Edit'!P23=""),"",'GA55 Check & Edit'!P23) ->  | O21: =IF(AND('GA55 Check & Edit'!Q23=""),"",'GA55 Check & Edit'!Q23) -> 9378 | P21: =IF(AND('GA55 Check & Edit'!R23=""),"",'GA55 Check & Edit'!R23) ->  | Q21: =IF(AND('GA55 Check & Edit'!S23=""),"",'GA55 Check & Edit'!S23) ->  | R21: =IF(AND('GA55 Check & Edit'!T23=""),"",'GA55 Check & Edit'!T23) ->  | S21: =IF(AND('GA55 Check & Edit'!U23=""),"",'GA55 Check & Edit'!U23) ->  | T21: =IF(AND('GA55 Check & Edit'!V23=""),"",'GA55 Check & Edit'!V23) ->  | U21: =IF(AND('GA55 Check & Edit'!W23=""),"",'GA55 Check & Edit'!W23) ->  | V21: =IF(AND('GA55 Check & Edit'!X23=""),"",'GA55 Check & Edit'!X23) ->  | W21: =IF(AND('GA55 Check & Edit'!Y23=""),"",'GA55 Check & Edit'!Y23) ->  | X21: =IF(AND('GA55 Check & Edit'!Z23=""),"",'GA55 Check & Edit'!Z23) ->  | Y21: =IF(AND('GA55 Check & Edit'!AA23=""),"",'GA55 Check & Edit'!AA23) ->  | Z21: =IF(AND('GA55 Check & Edit'!AB23=""),"",'GA55 Check & Edit'!AB23) -> 9378 | AA21: =IF(AND('GA55 Check & Edit'!AC23=""),"",'GA55 Check & Edit'!AC23) -> 0 | AB21: =IF(AND('GA55 Check & Edit'!AD23=""),"",'GA55 Check & Edit'!AD23) ->  | AC21: =IF(AND('GA55 Check & Edit'!AE23=""),"",'GA55 Check & Edit'!AE23) -> 
A22: 17 | B22: =IF(AND('GA55 Check & Edit'!D24=""),"",'GA55 Check & Edit'!D24) -> ACP/MACP Arrear | C22: =IF(AND('GA55 Check & Edit'!E24=""),"",'GA55 Check & Edit'!E24) ->  | D22: =IF(AND('GA55 Check & Edit'!F24=""),"",'GA55 Check & Edit'!F24) ->  | E22: =IF(AND('GA55 Check & Edit'!G24=""),"",'GA55 Check & Edit'!G24) ->  | F22: =IF(AND('GA55 Check & Edit'!H24=""),"",'GA55 Check & Edit'!H24) ->  | G22: =IF(AND('GA55 Check & Edit'!I24=""),"",'GA55 Check & Edit'!I24) ->  | H22: =IF(AND('GA55 Check & Edit'!J24=""),"",'GA55 Check & Edit'!J24) ->  | I22: =IF(AND('GA55 Check & Edit'!K24=""),"",'GA55 Check & Edit'!K24) ->  | J22: =IF(AND('GA55 Check & Edit'!L24=""),"",'GA55 Check & Edit'!L24) ->  | K22: =IF(AND('GA55 Check & Edit'!M24=""),"",'GA55 Check & Edit'!M24) ->  | L22: =IF(AND('GA55 Check & Edit'!N24=""),"",'GA55 Check & Edit'!N24) ->  | M22: =IF(AND('GA55 Check & Edit'!O24=""),"",'GA55 Check & Edit'!O24) -> 0 | N22: =IF(AND('GA55 Check & Edit'!P24=""),"",'GA55 Check & Edit'!P24) ->  | O22: =IF(AND('GA55 Check & Edit'!Q24=""),"",'GA55 Check & Edit'!Q24) ->  | P22: =IF(AND('GA55 Check & Edit'!R24=""),"",'GA55 Check & Edit'!R24) ->  | Q22: =IF(AND('GA55 Check & Edit'!S24=""),"",'GA55 Check & Edit'!S24) ->  | R22: =IF(AND('GA55 Check & Edit'!T24=""),"",'GA55 Check & Edit'!T24) ->  | S22: =IF(AND('GA55 Check & Edit'!U24=""),"",'GA55 Check & Edit'!U24) ->  | T22: =IF(AND('GA55 Check & Edit'!V24=""),"",'GA55 Check & Edit'!V24) ->  | U22: =IF(AND('GA55 Check & Edit'!W24=""),"",'GA55 Check & Edit'!W24) ->  | V22: =IF(AND('GA55 Check & Edit'!X24=""),"",'GA55 Check & Edit'!X24) ->  | W22: =IF(AND('GA55 Check & Edit'!Y24=""),"",'GA55 Check & Edit'!Y24) ->  | X22: =IF(AND('GA55 Check & Edit'!Z24=""),"",'GA55 Check & Edit'!Z24) ->  | Y22: =IF(AND('GA55 Check & Edit'!AA24=""),"",'GA55 Check & Edit'!AA24) ->  | Z22: =IF(AND('GA55 Check & Edit'!AB24=""),"",'GA55 Check & Edit'!AB24) -> 0 | AA22: =IF(AND('GA55 Check & Edit'!AC24=""),"",'GA55 Check & Edit'!AC24) -> 0 | AB22: =IF(AND('GA55 Check & Edit'!AD24=""),"",'GA55 Check & Edit'!AD24) ->  | AC22: =IF(AND('GA55 Check & Edit'!AE24=""),"",'GA55 Check & Edit'!AE24) -> 
A23: 18 | B23: =IF(AND('GA55 Check & Edit'!D25=""),"",'GA55 Check & Edit'!D25) -> PL Surrender Arrear | C23: =IF(AND('GA55 Check & Edit'!E25=""),"",'GA55 Check & Edit'!E25) ->  | D23: =IF(AND('GA55 Check & Edit'!F25=""),"",'GA55 Check & Edit'!F25) -> 1563 | E23: =IF(AND('GA55 Check & Edit'!G25=""),"",'GA55 Check & Edit'!G25) ->  | F23: =IF(AND('GA55 Check & Edit'!H25=""),"",'GA55 Check & Edit'!H25) ->  | G23: =IF(AND('GA55 Check & Edit'!I25=""),"",'GA55 Check & Edit'!I25) ->  | H23: =IF(AND('GA55 Check & Edit'!J25=""),"",'GA55 Check & Edit'!J25) ->  | I23: =IF(AND('GA55 Check & Edit'!K25=""),"",'GA55 Check & Edit'!K25) ->  | J23: =IF(AND('GA55 Check & Edit'!L25=""),"",'GA55 Check & Edit'!L25) ->  | K23: =IF(AND('GA55 Check & Edit'!M25=""),"",'GA55 Check & Edit'!M25) ->  | L23: =IF(AND('GA55 Check & Edit'!N25=""),"",'GA55 Check & Edit'!N25) ->  | M23: =IF(AND('GA55 Check & Edit'!O25=""),"",'GA55 Check & Edit'!O25) -> 1563 | N23: =IF(AND('GA55 Check & Edit'!P25=""),"",'GA55 Check & Edit'!P25) ->  | O23: =IF(AND('GA55 Check & Edit'!Q25=""),"",'GA55 Check & Edit'!Q25) ->  | P23: =IF(AND('GA55 Check & Edit'!R25=""),"",'GA55 Check & Edit'!R25) ->  | Q23: =IF(AND('GA55 Check & Edit'!S25=""),"",'GA55 Check & Edit'!S25) ->  | R23: =IF(AND('GA55 Check & Edit'!T25=""),"",'GA55 Check & Edit'!T25) ->  | S23: =IF(AND('GA55 Check & Edit'!U25=""),"",'GA55 Check & Edit'!U25) ->  | T23: =IF(AND('GA55 Check & Edit'!V25=""),"",'GA55 Check & Edit'!V25) ->  | U23: =IF(AND('GA55 Check & Edit'!W25=""),"",'GA55 Check & Edit'!W25) ->  | V23: =IF(AND('GA55 Check & Edit'!X25=""),"",'GA55 Check & Edit'!X25) ->  | W23: =IF(AND('GA55 Check & Edit'!Y25=""),"",'GA55 Check & Edit'!Y25) ->  | X23: =IF(AND('GA55 Check & Edit'!Z25=""),"",'GA55 Check & Edit'!Z25) ->  | Y23: =IF(AND('GA55 Check & Edit'!AA25=""),"",'GA55 Check & Edit'!AA25) ->  | Z23: =IF(AND('GA55 Check & Edit'!AB25=""),"",'GA55 Check & Edit'!AB25) -> 0 | AA23: =IF(AND('GA55 Check & Edit'!AC25=""),"",'GA55 Check & Edit'!AC25) -> 1563 | AB23: =IF(AND('GA55 Check & Edit'!AD25=""),"",'GA55 Check & Edit'!AD25) ->  | AC23: =IF(AND('GA55 Check & Edit'!AE25=""),"",'GA55 Check & Edit'!AE25) -> 
A24: 19 | B24: =IF(AND('GA55 Check & Edit'!D26=""),"",'GA55 Check & Edit'!D26) -> Fixation arrear | C24: =IF(AND('GA55 Check & Edit'!E26=""),"",'GA55 Check & Edit'!E26) ->  | D24: =IF(AND('GA55 Check & Edit'!F26=""),"",'GA55 Check & Edit'!F26) ->  | E24: =IF(AND('GA55 Check & Edit'!G26=""),"",'GA55 Check & Edit'!G26) -> 0 | F24: =IF(AND('GA55 Check & Edit'!H26=""),"",'GA55 Check & Edit'!H26) ->  | G24: =IF(AND('GA55 Check & Edit'!I26=""),"",'GA55 Check & Edit'!I26) ->  | H24: =IF(AND('GA55 Check & Edit'!J26=""),"",'GA55 Check & Edit'!J26) ->  | I24: =IF(AND('GA55 Check & Edit'!K26=""),"",'GA55 Check & Edit'!K26) ->  | J24: =IF(AND('GA55 Check & Edit'!L26=""),"",'GA55 Check & Edit'!L26) ->  | K24: =IF(AND('GA55 Check & Edit'!M26=""),"",'GA55 Check & Edit'!M26) ->  | L24: =IF(AND('GA55 Check & Edit'!N26=""),"",'GA55 Check & Edit'!N26) ->  | M24: =IF(AND('GA55 Check & Edit'!O26=""),"",'GA55 Check & Edit'!O26) -> 0 | N24: =IF(AND('GA55 Check & Edit'!P26=""),"",'GA55 Check & Edit'!P26) ->  | O24: =IF(AND('GA55 Check & Edit'!Q26=""),"",'GA55 Check & Edit'!Q26) ->  | P24: =IF(AND('GA55 Check & Edit'!R26=""),"",'GA55 Check & Edit'!R26) ->  | Q24: =IF(AND('GA55 Check & Edit'!S26=""),"",'GA55 Check & Edit'!S26) ->  | R24: =IF(AND('GA55 Check & Edit'!T26=""),"",'GA55 Check & Edit'!T26) ->  | S24: =IF(AND('GA55 Check & Edit'!U26=""),"",'GA55 Check & Edit'!U26) ->  | T24: =IF(AND('GA55 Check & Edit'!V26=""),"",'GA55 Check & Edit'!V26) ->  | U24: =IF(AND('GA55 Check & Edit'!W26=""),"",'GA55 Check & Edit'!W26) ->  | V24: =IF(AND('GA55 Check & Edit'!X26=""),"",'GA55 Check & Edit'!X26) ->  | W24: =IF(AND('GA55 Check & Edit'!Y26=""),"",'GA55 Check & Edit'!Y26) ->  | X24: =IF(AND('GA55 Check & Edit'!Z26=""),"",'GA55 Check & Edit'!Z26) ->  | Y24: =IF(AND('GA55 Check & Edit'!AA26=""),"",'GA55 Check & Edit'!AA26) ->  | Z24: =IF(AND('GA55 Check & Edit'!AB26=""),"",'GA55 Check & Edit'!AB26) -> 0 | AA24: =IF(AND('GA55 Check & Edit'!AC26=""),"",'GA55 Check & Edit'!AC26) -> 0 | AB24: =IF(AND('GA55 Check & Edit'!AD26=""),"",'GA55 Check & Edit'!AD26) ->  | AC24: =IF(AND('GA55 Check & Edit'!AE26=""),"",'GA55 Check & Edit'!AE26) -> 
A25: 20 | B25: =IF(AND('GA55 Check & Edit'!D27=""),"",'GA55 Check & Edit'!D27) ->  | C25: =IF(AND('GA55 Check & Edit'!E27=""),"",'GA55 Check & Edit'!E27) ->  | D25: =IF(AND('GA55 Check & Edit'!F27=""),"",'GA55 Check & Edit'!F27) ->  | E25: =IF(AND('GA55 Check & Edit'!G27=""),"",'GA55 Check & Edit'!G27) ->  | F25: =IF(AND('GA55 Check & Edit'!H27=""),"",'GA55 Check & Edit'!H27) ->  | G25: =IF(AND('GA55 Check & Edit'!I27=""),"",'GA55 Check & Edit'!I27) ->  | H25: =IF(AND('GA55 Check & Edit'!J27=""),"",'GA55 Check & Edit'!J27) ->  | I25: =IF(AND('GA55 Check & Edit'!K27=""),"",'GA55 Check & Edit'!K27) ->  | J25: =IF(AND('GA55 Check & Edit'!L27=""),"",'GA55 Check & Edit'!L27) ->  | K25: =IF(AND('GA55 Check & Edit'!M27=""),"",'GA55 Check & Edit'!M27) ->  | L25: =IF(AND('GA55 Check & Edit'!N27=""),"",'GA55 Check & Edit'!N27) ->  | M25: =IF(AND('GA55 Check & Edit'!O27=""),"",'GA55 Check & Edit'!O27) ->  | N25: =IF(AND('GA55 Check & Edit'!P27=""),"",'GA55 Check & Edit'!P27) ->  | O25: =IF(AND('GA55 Check & Edit'!Q27=""),"",'GA55 Check & Edit'!Q27) ->  | P25: =IF(AND('GA55 Check & Edit'!R27=""),"",'GA55 Check & Edit'!R27) ->  | Q25: =IF(AND('GA55 Check & Edit'!S27=""),"",'GA55 Check & Edit'!S27) ->  | R25: =IF(AND('GA55 Check & Edit'!T27=""),"",'GA55 Check & Edit'!T27) ->  | S25: =IF(AND('GA55 Check & Edit'!U27=""),"",'GA55 Check & Edit'!U27) ->  | T25: =IF(AND('GA55 Check & Edit'!V27=""),"",'GA55 Check & Edit'!V27) ->  | U25: =IF(AND('GA55 Check & Edit'!W27=""),"",'GA55 Check & Edit'!W27) ->  | V25: =IF(AND('GA55 Check & Edit'!X27=""),"",'GA55 Check & Edit'!X27) ->  | W25: =IF(AND('GA55 Check & Edit'!Y27=""),"",'GA55 Check & Edit'!Y27) ->  | X25: =IF(AND('GA55 Check & Edit'!Z27=""),"",'GA55 Check & Edit'!Z27) ->  | Y25: =IF(AND('GA55 Check & Edit'!AA27=""),"",'GA55 Check & Edit'!AA27) ->  | Z25: =IF(AND('GA55 Check & Edit'!AB27=""),"",'GA55 Check & Edit'!AB27) ->  | AA25: =IF(AND('GA55 Check & Edit'!AC27=""),"",'GA55 Check & Edit'!AC27) ->  | AB25: =IF(AND('GA55 Check & Edit'!AD27=""),"",'GA55 Check & Edit'!AD27) ->  | AC25: =IF(AND('GA55 Check & Edit'!AE27=""),"",'GA55 Check & Edit'!AE27) -> 
A26: 21 | B26: =IF(AND('GA55 Check & Edit'!D28=""),"",'GA55 Check & Edit'!D28) ->  | C26: =IF(AND('GA55 Check & Edit'!E28=""),"",'GA55 Check & Edit'!E28) ->  | D26: =IF(AND('GA55 Check & Edit'!F28=""),"",'GA55 Check & Edit'!F28) ->  | E26: =IF(AND('GA55 Check & Edit'!G28=""),"",'GA55 Check & Edit'!G28) ->  | F26: =IF(AND('GA55 Check & Edit'!H28=""),"",'GA55 Check & Edit'!H28) ->  | G26: =IF(AND('GA55 Check & Edit'!I28=""),"",'GA55 Check & Edit'!I28) ->  | H26: =IF(AND('GA55 Check & Edit'!J28=""),"",'GA55 Check & Edit'!J28) ->  | I26: =IF(AND('GA55 Check & Edit'!K28=""),"",'GA55 Check & Edit'!K28) ->  | J26: =IF(AND('GA55 Check & Edit'!L28=""),"",'GA55 Check & Edit'!L28) ->  | K26: =IF(AND('GA55 Check & Edit'!M28=""),"",'GA55 Check & Edit'!M28) ->  | L26: =IF(AND('GA55 Check & Edit'!N28=""),"",'GA55 Check & Edit'!N28) ->  | M26: =IF(AND('GA55 Check & Edit'!O28=""),"",'GA55 Check & Edit'!O28) ->  | N26: =IF(AND('GA55 Check & Edit'!P28=""),"",'GA55 Check & Edit'!P28) ->  | O26: =IF(AND('GA55 Check & Edit'!Q28=""),"",'GA55 Check & Edit'!Q28) ->  | P26: =IF(AND('GA55 Check & Edit'!R28=""),"",'GA55 Check & Edit'!R28) ->  | Q26: =IF(AND('GA55 Check & Edit'!S28=""),"",'GA55 Check & Edit'!S28) ->  | R26: =IF(AND('GA55 Check & Edit'!T28=""),"",'GA55 Check & Edit'!T28) ->  | S26: =IF(AND('GA55 Check & Edit'!U28=""),"",'GA55 Check & Edit'!U28) ->  | T26: =IF(AND('GA55 Check & Edit'!V28=""),"",'GA55 Check & Edit'!V28) ->  | U26: =IF(AND('GA55 Check & Edit'!W28=""),"",'GA55 Check & Edit'!W28) ->  | V26: =IF(AND('GA55 Check & Edit'!X28=""),"",'GA55 Check & Edit'!X28) ->  | W26: =IF(AND('GA55 Check & Edit'!Y28=""),"",'GA55 Check & Edit'!Y28) ->  | X26: =IF(AND('GA55 Check & Edit'!Z28=""),"",'GA55 Check & Edit'!Z28) ->  | Y26: =IF(AND('GA55 Check & Edit'!AA28=""),"",'GA55 Check & Edit'!AA28) ->  | Z26: =IF(AND('GA55 Check & Edit'!AB28=""),"",'GA55 Check & Edit'!AB28) ->  | AA26: =IF(AND('GA55 Check & Edit'!AC28=""),"",'GA55 Check & Edit'!AC28) ->  | AB26: =IF(AND('GA55 Check & Edit'!AD28=""),"",'GA55 Check & Edit'!AD28) ->  | AC26: =IF(AND('GA55 Check & Edit'!AE28=""),"",'GA55 Check & Edit'!AE28) -> 
B27: TOTAL F | C27: =IF(AND($D$2=""),"",SUM(C6:C26)) -> 1290500 | D27: =IF(AND($D$2=""),"",SUM(D6:D26)) -> 740394 | E27: 123840 | F27: 0 | G27: 0 | H27: 0 | I27: 0 | J27: 0 | K27: 0 | L27: 6774 | M27: 2161508 | N27: 84000 | O27: 149144 | P27: 13236 | Q27: 10500 | R27: 0 | S27: 0 | T27: 0 | U27: 0 | V27: 250 | W27: 0 | X27: 24000 | Y27: 0 | Z27: 281130 | AA27: 1880378
C29: =UPPER(IF('Master Data'!D6="","",'Master Data'!D6)) -> HEERALAL JAT | S29: =IF(AND('Master Data'!H8=""),"",CONCATENATE("( ",UPPER('Master Data'!H8), " )",)) -> ( USHA PALIYA )
C30: Signature of Employee | S30: Signature of DDO

Sheet COMPUTATION
A1: =IF(AND('Master Data'!D4=""),"",CONCATENATE("Office Name :- ",PROPER('Master Data'!D4))) -> Office Name :- Mahatma Gandhi Govt. School (English Medium) Bar, Pali | T1: 2
C2: आयकर गणना प्रपत्र वर्ष :- | F2: 2025-2026 | H2: (कर निर्धारण वर्ष - | J2: 2026-2027) | L2: =IF(T14=T2,"Old Tax Regime","New Tax Regime") -> New Tax Regime | T2: 1
A3: 1 | B3: नाम कार्मिक : | D3: =UPPER('Master Data'!D6) -> HEERALAL JAT | I3: पद : | J3: =UPPER('Master Data'!H6) -> SR TEACHER | M3: PAN : | N3: =UPPER('Master Data'!D12) -> ABCDE1234H
A4: 2 | B4: आय : वर्ष 2025-26 में प्राप्त कुल आय ( कर योग्य सुविधाओं के मूल्यों सहित ) | N4: रु. | O4: ='GA55 Only Print'!M27 -> 2161508 | R4: आप पुरानी आयकर दर या नवीन आयकर दर दोनों में से किसी एक विकल्प को चुनकर आयकर गणना प्रपत्र तैयार कर सकते है।
A5: 3 | B5: गृह किराया, धारा 10(13-।) के अन्तर्गत एवं धारा 10(14)के अन्तगर्त अन्य भते जो कर मुक्त्त है | N5: रु. | O5: =IF(T14=T2,SUM('Extra Ded. '!K7+'Extra Ded. '!E6+'GA55 Only Print'!G27),"0") -> 0 | Q5: E
A6: 4 | B6: शेष (2-3) | N6: रु. | O6: =SUM(O4-O5) -> 2161508
A7: 5 | B7: (i)मनोरंजन भता धारा 16 (ii) के अन्तगर्त ( अधिकतम सीमा रू 5000 ) | K7: =IF(T14=T2,'Extra Ded. '!E8,"0") -> 0
B8: (ii) व्यवयाय कर धारा 16 (iii) के अन्तगर्त ( अधिकतम सीमा रू 2500 ) | K8: =IF(T14=T2,'Extra Ded. '!E9,"0") -> 0
B9: (Iii) पारिवारिक पेंशन की मानक कटोती धारा 57 के अन्तगर्त ( अधिकतम सीमा रू 25000 ) | K9: ='Extra Ded. '!K11 -> 0
B10: (iv) स्टेण्डर्ड डिडेक्शन (Standard Deduction) 75,000 (अधिकतम) | K10: =IF('Extra Ded. '!E7="",0,'Extra Ded. '!E7) -> 75000 | N10: रु. | O10: =SUM(K7:M10) -> 75000
A11: 6 | B11: शेष (4-5) | N11: रु. | O11: =O6-O10 -> 2086508
A12: 7 | B12: (अ) गृह सम्पति से आय : (1) स्वंय के उपयोग में :- शून्य | I12: (2) प्राप्त किराया रु. | K12: ='Extra Ded. '!E10 -> 0.00
B13: (ब) घटायें | D13: किराये का 30% | F13: गृह ऋण पर ब्याज (80E) | I13: गृहकर | K13: योग 7(ब)
D14: =IF(T14=T2,ROUND(K12*0.3,0),"0") -> 0 | F14: =IF(T14=T2,'Extra Ded. '!E13,"0") -> 0 | I14: =IF(T14=T2,'Extra Ded. '!E11,"0") -> 0 | K14: =D14+F14+I14 -> 0.00 | T14: 2
B15: शेष -/+ (7(अ) एवं योग 7(ब) का) | N15: रु. | O15: =K12-K14 -> 0
A16: 8 | B16: बचत खाते पर ब्याज : | E16: ='Extra Ded. '!K22 -> 0 | G16: अन्य स्रोत से आय : | I16: ='Extra Ded. '!E24 -> 0 | J16: कुल शेष -/+ (6 एवं 7) | N16: रु. | O16: =O11+O15 -> 2086508
A17: 9 | B17: एफडी आदि अन्य जमा राशि पर प्राप्त कुल ब्याज : | E17: ='Extra Ded. '!K25 -> 0 | G17: Bonds से ब्याज : | I17: ='Extra Ded. '!E23 -> 0 | J17: योग (8+9) | N17: रु. | O17: =E16+E17+I16+I17 -> 0
A18: 10 | B18: सकल आय | N18: रु. | O18: =O16+O17 -> 2086508
A19: 11 | B19: घटाइये कटौतियाँ:- धारा US 80C, 80CCC,80CCD (1)
B20: (A) अधिकतम सीमा 1,50,000/- (धारा 80CCE ] (धारा 80CCD (2)) के अलावा
B21: (i) | C21: राज्य बीमा (SI) | F21: रु. | G21: =IF(T14=T2,SUM('GA55 Only Print'!N27),"0") -> 0 | H21: (xi) | I21: पेंशन योजना में योगदान ECPF धारा 80ccd(1) | L21: रु. | M21: 0
B22: (ii) | C22: L.I.C. | F22: रु. | G22: =IF(T14=T2,'GA55 Only Print'!P27,"0") -> 0 | H22: (xii) | I22: पेंशन प्लान हेतु योगदान (धारा 80ccc) | L22: रु. | M22: =IF(T14=T2,'Extra Ded. '!K12,"0") -> 0 | Q22: https://www.youtube.com/watch?v=TJ5dWmZplAk
B23: (iii) | C23: राष्ट्रीय बचत पत्र (NSC) | F23: रु. | G23: =IF(T14=T2,'Extra Ded. '!E18,"0") -> 0 | H23: (xiii) | I23: राष्ट्रीय बचत पत्र पर अदत ब्याज | L23: रु. | M23: =IF(T14=T2,'Extra Ded. '!E19,"0") -> 0 | Z23: =IF(AA23>AB23,AB23,AA23) -> 0 | AA23: =IF('Master Data'!I30='GA55 Check & Edit'!AN5,0,ROUND(10%*'GA55 Only Print'!M27,0)) -> 0 | AB23: =IF('Master Data'!I30='GA55 Check & Edit'!AN6,'GA55 Only Print'!O27,0) -> 0
B24: (iv) | C24: लोक भविष्य निधि (PPF) | F24: रु. | G24: =IF(T14=T2,'Extra Ded. '!E20,"0") -> 0 | H24: (xiv) | I24: टियुशन फ़ीस | L24: रु. | M24: =IF(T14=T2,'Extra Ded. '!E16,"0") -> 0 | Z24: =SUM(G21:G31)+SUM(M22:M30)+O33 -> 0 | AA24: =IF('Extra Ded. '!K14>50000,50000,'Extra Ded. '!K14) -> 0 | AB24: =IF(Z24>150000,Z24-150000,0) -> 0
B25: (v) | C25: राष्ट्रीय बचत पत्र स्कीम (NSS) | F25: रु. | G25: =IF(T14=T2,'Extra Ded. '!E21,"0") -> 0 | H25: (xv) | I25: इक्विटी लिंक सेविंग स्कीम | L25: रु. | M25: =IF(T14=T2,'Extra Ded. '!K6,"0") -> 0
B26: (vi) | C26: सामान्य प्रावधायी निधि GPF) / GPF - 2004 | F26: रु. | G26: =IF(AND(T14=T2,'Master Data'!I30='GA55 Check & Edit'!AN5),'GA55 Only Print'!O27,"0") -> 0 | H26: (xvi) | I26: स्थगत वार्षिकी (Defferred Annuty) | L26: रु. | M26: =IF(T14=T2,'Extra Ded. '!K8,"0") -> 0 | Q26: G अधिक जानकारी के लिए देखें Youtube वीडियो
B27: (vii) | C27: सामूहिक बीमा प्रीमियम (G.Ins.) | F27: रु. | G27: =IF(T14=T2,'GA55 Only Print'!Y27,"0") -> 0 | H27: (xvii) | I27: पी.एल.आई . (PLI) | L27: रु. | M27: =IF(T14=T2,'Extra Ded. '!E15,"0") -> 0 | AA27: =IFERROR(SUM(Z23)-MIN(AA24,AB24),0) -> 0 | AC27: =MIN(AA24,AB24) -> 0
B28: (viii) | C28: यू एल आई पी / वार्षिक प्लान | F28: रु. | G28: =IF(T14=T2,'Extra Ded. '!E17,"0") -> 0 | H28: (xviii) | I28: म्यूच्यूअल फण्ड व अन्य राशि जो धारा 80 C के अंतर्गत छुट | L28: रु. | M28: =IF(T14=T2,'Extra Ded. '!K13,"0") -> 0
B29: (ix) | C29: गृह ऋण किस्त (HBA Premium) | F29: रु. | G29: =IF(T14=T2,'Extra Ded. '!E12,"0") -> 0 | H29: (xix) | I29: सुकन्या समृद्धि योजना में जमा राशि | L29: रु. | M29: =IF(T14=T2,'Extra Ded. '!E22,"0") -> 0 | AA29: =IF(Z24>=200000,50000,AC27) -> 0
B30: (x) | C30: जीवन बीमा (Extra LIC) | F30: रु. | G30: =IF(T14=T2,'Extra Ded. '!E14,"0") -> 0 | H30: (xx) | I30: अन्य व फिक्स डिपोजिट (5 वर्ष हेतु ) | L30: रु. | M30: =IF(T14=T2,'Extra Ded. '!K10,"0") -> 0
B31: (xxi) | C31: उपरोक्त के अलावा अन्य कटोती (Other Ded.) | F31: रु. | G31: =IF(AND(T14=T2,'Master Data'!I30='GA55 Check & Edit'!AN6),'GA55 Only Print'!O27,"0") -> 0 | H31: योग ( i से xxi ) | L31: रु. | M31: =SUM(G21:G31)+SUM(M21:M30) -> 0 | AA31: ='Extra Ded. '!K22 -> 0
B32: अधिकतम कटोती राशि 1.50 लाख तक :- | N32: रु. | O32: =IF(M31<150001,ROUND(M31,0),150000) -> 0 | AA32: =IF(AA31>10000,10000,AA31) -> 0 | AB32: =IF(AA31>50000,50000,AA31) -> 0
B33: (B) घटाइये धारा 80CCD(2) नियोक्ता द्वारा पेंशन अंशदान की राशि (अधिकतम वेतन का 14%) पृथक से छुट | N33: रु. | O33: 0 | AA33: =IF('Master Data'!E24="Under 60",AA32,IF('Master Data'!E24="Above 60",AB32,IF('Master Data'!E24="Above 80",AB32,0))) -> 0
B34: (C) घटाइये - धारा 80CCD (1B) नवीन पेंशन योजना में अतिरिक्त अंशदान (अधिकतम 50,000 रु. ) | N34: रु. | O34: =IF(T14=T1,0,'Extra Ded. '!K14) -> 0 | T34: FALSE
B35: योग 11(A+B+C) | N35: रु. | O35: =SUM(O32:O34) -> 0 | AB35: =IF('Extra Ded. '!K14>50000,50000,'Extra Ded. '!K14) -> 0
A36: 12 | B36: अन्य कटोतियाँ | T36: TRUE
B37: 1. धारा 80 D चिकित्सा बीमा प्रीमियम (स्वयं पति पत्नि व बच्चों के लिए रु. 25,000 माता - पिता के लिए रु. 25,000 , सीनियर सिटीजन रु. 50,000 ) | N37: रु. | O37: =IF(T14=T2,'Extra Ded. '!K15,"0") -> 0
B38: 2. धारा 80DD विकलांग आश्रितों के चिकित्सा उपचार (अधिकतम 75,000 तथा 80% या अधिक विकलांगता ( 1,25,000) | N38: रु. | O38: =IF(T14=T2,'Extra Ded. '!K16,"0") -> 0 | AB38: ='GA55 Only Print'!N27+'GA55 Only Print'!P27+'Extra Ded. '!E18+'Extra Ded. '!E20+'Extra Ded. '!E21+'GA55 Only Print'!O27+'GA55 Only Print'!Y27+'Extra Ded. '!E17+'Extra Ded. '!E12+'Extra Ded. '!E14+'Extra Ded. '!K12+'Extra Ded. '!E19+'Extra Ded. '!E16+'Extra Ded. '!K6+'Extra Ded. '!K8+'Extra Ded. '!E15+'Extra Ded. '!K10+'Extra Ded. '!E22+'Extra Ded. '!E24 -> 246380
B39: 3. धारा 80DDB विशिष्ट रोगों के उपचार हेतु छुट (अधिकतम रु. 40,000, सीनियर सिटीजन हेतु रु. 1,00,000) | N39: रु. | O39: =IF(T14=T2,'Extra Ded. '!K17,"0") -> 0
B40: 4. धारा 80E उच्च शिक्षा हेतु लिए गए ऋण का ब्याज | N40: रु. | O40: =IF(T14=T2,'Extra Ded. '!K18,"0") -> 0 | AB40: ='Extra Ded. '!K15+'Extra Ded. '!K16+'Extra Ded. '!K17+'Extra Ded. '!K18+('Extra Ded. '!K19+'GA55 Only Print'!U27)+'Extra Ded. '!K20+AA33+'Extra Ded. '!K22 -> 0
B41: 5. धारा 80G धर्मार्थ संस्थाओ आदि को दिए दान ( क श्रेणी में 100 प्रतिशत एव ख श्रेणी में 50 प्रतिशत) (केंद्र एव राज्य सरकार के फण्ड में ) | N41: रु. | O41: =IF(T14=T2,('Extra Ded. '!K19),"0") -> 0
B42: 6. धारा 80U स्थाई रूप से शारीरिक असमर्थता की दशा में (अधिकतम 75,000 तथा अधिनियम 1995 के अनुसार 1,25,000) | N42: रु. | O42: =IF(T14=T2,'Extra Ded. '!K21,"0") -> 0
B43: 7. धारा 80 TTA बचत खाते पर अधिकतम ब्याज पर 10,000 194(IA) , एवं धारा 80 TTB ( वरिष्ठ नागरिकों के लिए ब्याज पर छुट 50000 तक ) | N43: रु. | O43: =IF(T14=T2,AA33,"0") -> 0
B44: 8. धारा 80 GGA अनुमोदित वैज्ञानिक, सामाजिक, ग्रामीण विकास आदि हेतु दिया गया दान | N44: रु. | O44: =IF(T14=T2,'Extra Ded. '!K23,"0") -> 0
B45: 9. US 80EEA (Home Loan Interest) & Others | N45: रु. | O45: =IF(T14=T2,'Extra Ded. '!E25,"0") -> 0
B46: 10. US 80EEB Deduction in respect of purchase of electric vehicle. | N46: रु.
B47: कुल योग 12 ( 1 से 10 तक ) | N47: रु. | O47: =SUM(O37:O46) -> 0
A48: 13 | B48: कुल कटौती (11+12) | N48: रु. | O48: =O35+O47 -> 0
A49: 14 | B49: कर योग्य आय (10-13) | N49: रु. | O49: =(O18-O48) -> 2086508
A50: 15 | B50: कुल आय की राशि को सम्पूर्ण करना ( दस के गुणक में ) धारा 288A | N50: रु. | O50: =ROUND(O49,-1) -> 2086510
A51: 16 | B51: आयकर की गणना उपरोक्त कॉलम 15 के आधार पर | X51: old | AB51: New
B52: पुरानी आयकर स्लैब | J52: नयी आयकर स्लैब | X52: 0 | Y52: 0 | Z52: 0 | AA52: 0 | AB52: 0 | AC52: 0 | AD52: 0 | AE52: 0
B53: Up to Rs. 2,50,000 | I53: 0% | J53: Up to Rs. 4,00,000 | M53: 0% | N53: रु. | O53: 0 | X53: =ROUND(IF(O50<=250000,0,IF(O50>=500000,12500,IF(O50<=500000,0+(O50-250000)*0.05))),0) -> 12500 | Y53: =ROUND(IF(O50<=300000,0,IF(O50>=500000,10000,IF(O50<=500000,(O50-300000)*0.05))),0) -> 10000 | Z53: 0 | AA53: =IF('Master Data'!$E$24="Under 60",X53,IF('Master Data'!$E$24="Above 60",Y53,Z53)) -> 12500 | AB53: =ROUND(IF(O50<400001,0,IF(O50>800001,20000,((O50-400000)*0.05))),0) -> 20000 | AC53: =ROUND(IF(O50<400001,0,IF(O50>800001,20000,((O50-400000)*0.05))),0) -> 20000 | AD53: =ROUND(IF(O50<400001,0,IF(O50>800001,20000,((O50-400000)*0.05))),0) -> 20000 | AE53: =IF('Master Data'!$E$24="Under 60",AB53,IF('Master Data'!$E$24="Above 60",AC53,AD53)) -> 20000
B54: 2,50,001 to 5,00,000 | I54: 5% | J54: 4,00,001 to 8,00,000 | M54: 5% | N54: रु. | O54: =IF($T$14=$T$2,AA53,AE53) -> 20000 | X54: =ROUND(IF(O50<=500000,0,IF(O50>=1000000,100000,IF(O50<=1000000,(O50-500000)*0.2,"0"))),0) -> 100000 | Y54: =ROUND(IF(O50<=500000,0,IF(O50>=1000000,100000,IF(O50<=1000000,(O50-500000)*0.2,"0"))),0) -> 100000 | Z54: =ROUND(IF(O50<=500000,0,IF(O50>=1000000,100000,IF(O50<=1000000,(O50-500000)*0.2,"0"))),0) -> 100000 | AA54: =IF('Master Data'!$E$24="Under 60",X54,IF('Master Data'!$E$24="Above 60",Y54,Z54)) -> 100000 | AB54: =ROUND(IF(O50<800001,0,IF(O50>1200001,40000,((O50-800000)*0.1))),0) -> 40000 | AC54: =ROUND(IF(O50<800001,0,IF(O50>1200001,40000,((O50-800000)*0.1))),0) -> 40000 | AD54: =ROUND(IF(O50<800001,0,IF(O50>1200001,30000,((O50-800000)*0.1))),0) -> 30000 | AE54: =IF('Master Data'!$E$24="Under 60",AB54,IF('Master Data'!$E$24="Above 60",AC54,AD54)) -> 40000
B55: 5,00,001 to 10,00,000 | I55: 20% | J55: 8,00,001 to 12,00,000 | M55: 10% | N55: रु. | O55: =IF($T$14=$T$2,AA54,AE54) -> 40000 | X55: =ROUND(IF(O50>1000000,(O50-1000000)*0.3,"0"),0) -> 325953 | Y55: =ROUND(IF(O50>1000000,(O50-1000000)*0.3,"0"),0) -> 325953 | Z55: =ROUND(IF(O50>1000000,(O50-1000000)*0.3,"0"),0) -> 325953 | AA55: =IF('Master Data'!$E$24="Under 60",X55,IF('Master Data'!$E$24="Above 60",Y55,Z55)) -> 325953 | AB55: =ROUND(IF(O50<1200001,0,IF(O50>1600001,60000,((O50-1200000)*0.15))),0) -> 60000 | AC55: =ROUND(IF(O50<1200001,0,IF(O50>1600001,60000,((O50-1200000)*0.15))),0) -> 60000 | AD55: =ROUND(IF(O50<1200001,0,IF(O50>1600001,60000,((O50-1200000)*0.15))),0) -> 60000 | AE55: =IF('Master Data'!$E$24="Under 60",AB55,IF('Master Data'!$E$24="Above 60",AC55,AD55)) -> 60000
B56: Above 10,00,000 | I56: 30% | J56: 12,00,001 to 16,00,000 | M56: 15% | N56: रु. | O56: =IF($T$14=$T$2,AA55,AE55) -> 60000 | P56: मार्जिनल रिलीफ बेनिफिट के लिए टैक्सेबल नेट अमाउंट को राउंड राशि में करने हेतु नीचे बॉक्स में क्लिक करें | AA56: =IF('Master Data'!$E$24="Under 60",X56,IF('Master Data'!$E$24="Above 60",Y56,Z56)) -> 0 | AB56: =ROUND(IF(O50<1600001,0,IF(O50>2000001,80000,((O50-1600000)*0.2))),0) -> 80000 | AC56: =ROUND(IF(O50<1600001,0,IF(O50>2000001,80000,((O50-1600000)*0.2))),0) -> 80000 | AD56: =ROUND(IF(O50<1600001,0,IF(O50>2000001,80000,((O50-1600000)*0.2))),0) -> 80000 | AE56: =IF('Master Data'!$E$24="Under 60",AB56,IF('Master Data'!$E$24="Above 60",AC56,AD56)) -> 80000
J57: 16,00,001 to 20,00,000 | M57: 20% | N57: रु. | O57: =IF($T$14=$T$2,AA56,AE56) -> 80000 | AA57: =IF('Master Data'!$E$24="Under 60",X57,IF('Master Data'!$E$24="Above 60",Y57,Z57)) -> 0 | AB57: =ROUND(IF(O50<2000001,0,IF(O50>2400001,100000,((O50-2000000)*0.25))),0) -> 21628 | AC57: =ROUND(IF(O50<2000001,0,IF(O50>2400001,100000,((O50-2000000)*0.25))),0) -> 21628 | AD57: =ROUND(IF(O50<2000001,0,IF(O50>2400001,100000,((O50-2000000)*0.25))),0) -> 21628 | AE57: =IF('Master Data'!$E$24="Under 60",AB57,IF('Master Data'!$E$24="Above 60",AC57,AD57)) -> 21628
J58: 20,00,001 to 24,00,000 | M58: 25% | N58: रु. | O58: =IF($T$14=$T$2,AA57,AE57) -> 21628 | AB58: =ROUND(IF(O50<2400001,0,(O50-2400000)*0.3),0) -> 0 | AC58: =ROUND(IF(O50<2400001,0,(O50-2400000)*0.3),0) -> 0 | AD58: =ROUND(IF(O50<2400001,0,(O50-2400000)*0.3),0) -> 0 | AE58: =IF('Master Data'!$E$24="Under 60",AB58,IF('Master Data'!$E$24="Above 60",AC58,AD58)) -> 0
J60: Above 24,00,000 | M60: =IF(T14=T2," ","30%") -> 30% | N60: =IF(T14=T2," ","#-") -> #- | O60: =IF($T$14=$T$2,AA58,AE58) -> 0 | X60: =SUM(X52:X55) -> 438453 | Y60: =SUM(Y52:Y55) -> 435953 | Z60: =SUM(Z52:Z55) -> 425953 | AA60: =IF('Master Data'!$E$24="Under 60",X60,IF('Master Data'!$E$24="Above 60",Y60,Z60)) -> 438453 | AB60: =SUM(AB52:AB59) -> 221628 | AC60: =SUM(AC52:AC59) -> 221628 | AD60: 211628 | AE60: =IF('Master Data'!$E$24="Under 60",AB60,IF('Master Data'!$E$24="Above 60",AC60,AD60)) -> 221628
B61: (1) योग आयकर | N61: रु. | O61: =SUM(O53:O60) -> 221628
B62: (2) छुट धारा 87(A) (पुरानी स्लैब में 5 लाख की कर योग्य आय पर छुट अधिकतम रु. 12,500/- तक तथा 87(B) नई आयकर स्लैब में 12 लाख तक की कर योग्य आय पर 60,000/- तक छुट ) | I62: =IF(T14=T2,IF(O50>500000,0,IF(O61<12501,O61,12500)),AD72) -> 0 | J62: Marginal relief benefit under section 115BAC(1) | M62: =IF(T14=1,0,AD70) -> 0 | N62: रु. | O62: =IF(T14=T2,I62,SUM(I62+M62)) -> 0 | X62: =ROUND(IF(O50<=250000,0,IF(O50<=500000,(O50-250000)*0.05,IF(O50<=1000000,12500+(O50-500000)*0.2,IF(O50>1000000,112500+(O50-1000000)*0.3,"0")))),0) -> 438453 | Y62: =ROUND(IF(O50<=300000,0,IF(O50<=500000,(O50-300000)*0.05,IF(O50<=1000000,10000+(O50-500000)*0.2,IF(O50>1000000,110000+(O50-1000000)*0.3,"0")))),0) -> 435953 | Z62: =ROUND(IF(O50<=250000,0,IF(O50<=500000,(O50-250000)*0.05,IF(O50<=1000000,0+(O50-500000)*0.2,IF(O50>1000000,100000+(O50-1000000)*0.3,"0")))),0) -> 425953
B63: (3) शेष आयकर (1-2) | N63: रु. | O63: =O61-O62 -> 221628 | Y63: =IF(T66>350000,0,IF(T66<2501,T66,2500)) -> 0
B64: (4) शिक्षा उपकर 2% एवं उच्च शिक्षा के लिए अधिभार 2% (कुल योग 4%) | N64: रु. | O64: =ROUND((O63*0.04),0) -> 8865 | AA64: round | AD64: net
B65: कुल आयकर (3+4) | N65: रु. | O65: =SUM(O63:O64) -> 230493 | Z65: =O50 -> 2086510 | AA65: =IF(Z65>1200000,Z65-1200000,0) -> 886510 | AC65: =O49 -> 2086508 | AD65: =IF(AC65>1200000,AC65-1200000,0) -> 886508
A66: 17 | B66: घटाइये :- राहत धारा 89 के तहत | N66: रु. | O66: =IF(T14=T2,'Extra Ded. '!K24,"0") -> 0 | Z66: =O61 -> 221628 | AA66: =IF(Z65>1200000,Z66-0,0) -> 221628 | AC66: =O61 -> 221628 | AD66: =IF(AC65>1200000,AC66-0,0) -> 221628
A67: 18 | B67: कुल शेष आयकर | N67: रु. | O67: =O65-O66 -> 230493 | Z67: =O64 -> 8865 | AA67: =IF(AA66>AA65,AA66-AA65,0) -> 0 | AC67: =O64 -> 8865 | AD67: =IF(AD66>AD65,AD66-AD65,0) -> 0
A68: 19 | B68: आयकर कटौती का विवरण | E68: सितम्बर 2025 तक कुल कटौती | H68: अक्टूबर 2025 से दिसम्बर 2025 तक | J68: जनवरी 2026 माह में कटौती | K68: फरवरी 2026 माह में कटौती | M68: अन्य टी.डी.एस कटौती | O68: कुल योग कॉलम 19
E69: =SUM('GA55 Check & Edit'!BX12:BX18) -> 14000 | H69: =SUM('GA55 Check & Edit'!BX19:BX21) -> 6000 | J69: ='GA55 Check & Edit'!BX22 -> 2000 | K69: ='GA55 Check & Edit'!BX23 -> 2000 | M69: =SUM('GA55 Only Print'!X27-(E69+H69+J69+K69))+'Extra Ded. '!K9 -> 0 | O69: =SUM(E69,H69,J69,K69,M69) -> 24000 | Z69: =O65 -> 230493 | AA69: =Z66-AA67 -> 221628 | AD69: FALSE | AE69: FALSE | AF69: TRUE
A70: =IF(O67>O69,"Income Tax Payable",IF(O67<O69,"Income Tax Refundable","Income Tax Payble/Refundable")) -> Income Tax Payable | N70: रु. | O70: =IF(O67>O69,O67-O69,O69-O67) -> 206493 | AD70: =IF(AD69=AF69,AA67,AD67) -> 0
B71: नोट :- नई कर व्यवस्था में मानक कटोती 75,000/- व नियोक्ता के अंशदान के अतिरिक्त अन्य कोई छूट देय नहीं है I
L72: हस्ताक्षर कार्मिक | AD72: =IF(AD69=AF69,IF(O50>1200004,0,IF(O61<60001,O61,60000)),AD73) -> 0
AD73: =IF(AND(O49<1200005,M62=0),IF(O61<60001,O61,60000),0) -> 0

Sheet 89 (1) Form
B1: CALCULATION OF RELIEF UNDER SECTION 89 (1)
B3: Name : | D3: =UPPER(IF('Master Data'!D6="","",'Master Data'!D6)) -> HEERALAL JAT
B4: Address :
B5: PAN : | D5: =IF(AND('Master Data'!D12=""),"",UPPER('Master Data'!D12)) -> ABCDE1234H | I5: Status | K5: Indian Resident
B7: FINANCIAL YEAR- 2013-14 | M7: INCOME ( Rs )
B8: Enter net taxable income for 2013-14 (as per ITR/Form-16) | M8: 0
B9: Enter arrears relates to 2013-14 | M9: 0
B10: FINANCIAL YEAR- 2014-15 | M10: INCOME ( Rs )
B11: Enter net taxable income for 2014-15 (as per ITR/Form-16) | M11: 0
B12: Enter arrears relates to 2014-15) | M12: 0
B13: FINANCIAL YEAR- 2015-16 | M13: INCOME ( Rs )
B14: Enter net taxable income for 2015-16 (as per ITR/Form-16) | M14: 0
B15: Enter arrears relates to 2015-16 | M15: 0
B16: FINANCIAL YEAR- 2016-17 | M16: INCOME ( Rs ) | T16: यह राशि धारा 89 (1) के तहत छुट मिलने वाली है I
B17: Enter net taxable income for 2016-17 (as per ITR/Form-16) | M17: 0
B18: Enter arrears relates to 2016-17 | M18: 0
B19: FINANCIAL YEAR- 2017-18 | M19: INCOME ( Rs )
B20: Enter net taxable income for 2017-18 (as per ITR/Form-16) | M20: 0 | T20: पिछले सालों की एंट्रीज़ मैनुअली टाइप करके सावधानी से लिखें I
B21: Enter arrears relates to 2017-18 | M21: 0
B22: FINANCIAL YEAR- 2018-19 | M22: INCOME ( Rs )
B23: Enter net taxable income for 2018-19 (as per ITR/Form-16) | M23: 0
B24: Enter arrears relates to 2018-19 | M24: 0
B25: FINANCIAL YEAR- 2019-20 | M25: INCOME ( Rs )
B26: Enter net taxable income for 2019-20 (as per ITR/Form-16) | M26: 0
B27: Enter arrears relates to 2019-20 | M27: 0
B28: FINANCIAL YEAR- 2020-21 | M28: INCOME ( Rs )
B29: Enter net taxable income for 2020-21 (as per ITR/Form-16) | M29: 450000
B30: Enter arrears relates to 2020-21 | M30: 27000
B31: FINANCIAL YEAR- 2021-22 | M31: INCOME ( Rs )
B32: Enter net taxable income for 2021-22 (as per ITR/Form-16) | M32: 550000
B33: Enter arrears relates to 2021-22 | M33: 25000
B34: FINANCIAL YEAR- 2022-23 | M34: INCOME ( Rs )
B35: Enter net taxable income for 2022-23 (as per ITR/Form-16) | M35: 735360
B36: Enter arrears relates to 2022-23 | M36: 47000
B37: FINANCIAL YEAR- 2023-24 | M37: INCOME ( Rs )
B38: Enter net taxable income for 2023-24 (as per ITR/Form-16) | M38: 1015360
B39: Enter arrears relates to 2023-24 | M39: 84000
B40: FINANCIAL YEAR- 2024-25 | M40: INCOME ( Rs )
B41: Enter net taxable income for 2024-25 (as per ITR/Form-16) | M41: 1099730
B42: Enter arrears relates to 2024-25 | M42: 58000
B43: FINANCIAL YEAR- 2025-26 | M43: INCOME ( Rs )
B44: Enter net taxable income for 2025-26 including entire arrears received (as per ITR/Form-16) (शुद्ध कर योग्य आय दस के गुणांक में ) | M44: =COMPUTATION!O50 -> 2086510

Sheet form10E
B1: FORM NO. 10 E (See rule 21AA)
B2: Form for furnishing particulars of income undr scetion 192(2A) for year ending 31st March 2023 for claiming relief under section 89(1) by a Government servant or an employee in a company, co-operative society, local authority, university, institution, association or body.
B3: Name : | D3: =UPPER(IF('Master Data'!D6="","",'Master Data'!D6)) -> HEERALAL JAT
B4: Address : | D4: =UPPER(IF('89 (1) Form'!D4="","",'89 (1) Form'!D4)) -> 
B5: PAN : | D5: =IF(AND('Master Data'!D12=""),"",UPPER('Master Data'!D12)) -> ABCDE1234H | I5: Status | K5: =IF(AND('89 (1) Form'!K5=""),"",UPPER('89 (1) Form'!K5)) -> INDIAN RESIDENT
B6: Particulars of Income referred to in rule 21A of the Income tax Rules, 1962, during the previous year relevant to assessment year 2023-24
B7: 1. (a) Salary received in arrears or in advance during 2022-23 in accordance with the provision of sub-rule (2) of rule 21A | M7: ='89 (1) Form'!M9+'89 (1) Form'!M12+'89 (1) Form'!M15+'89 (1) Form'!M18+'89 (1) Form'!M21+'89 (1) Form'!M24+'89 (1) Form'!M27+'89 (1) Form'!M30+'89 (1) Form'!M33+'89 (1) Form'!M36+'89 (1) Form'!M39+'89 (1) Form'!M42 -> 241000
B8: (b) Payment in the nature of gratuity in respect of past services, extending over a period of not less than 5 years in accordance with the provisions of sub-rule (3) of rule 21A | M8: Not applicable
B9: (c) Payment in the nature of compensation from the employer or former employer at or in connection with termination of employment after continuous service of not less than 3 years in accordance with the provisions of sub-rule (4) of rule 21A | M9: Not applicable
B10: (d) Payment in commutation of pension in accordance with the provisions of sub-rule (5) of rule 21A | M10: Not applicable
B11: 2. Detailed particulars of payments referred to above may be given in Annexure I, II, IIA, III or IV as the case may be | M11: Annexure- I
B12: Verification
B13: I | C13: =UPPER(IF('Master Data'!D6="","",'Master Data'!D6)) -> HEERALAL JAT | G13: do hereby declare that what is stated above is true to the best of my
B14: knowledge and belief.
B15: Verified today, the | E15: =TODAY() -> 2025-11-12
B16: Place:
B17: Date: | L17: Signature of the employee
B19: ANNEXURE - I
F20: ARREARS OR ADVANCE SALARY
B21: 1. Total net taxable Income excluding Salary received in Arrears or advance | M21: =M23-M22 -> 1845510 | AF21: =COMPUTATION!T14 -> 2
B22: 2. salary received in arrears or advance | M22: =M7 -> 241000 | Q22: नोट :- यह छूट आयकर की पूरानी स्लैब में ही देय है I | AS22: 1
B23: 3. Total Income (as increased by salary received in arrears or advance) (Add item 1 and item 2) | M23: ='89 (1) Form'!M44 -> 2086510 | AA23: =ROUND(IF(M23<=250000,0,IF(M23<=500000,(M23-250000)*0.05,IF(M23<=1000000,12500+(M23-500000)*0.2,IF(M23>1000000,112500+(M23-1000000)*0.3,"0")))),0) -> 438453 | AB23: =IF(AND(M23=0),0,ROUND(IF(AND(M23<=500000),AA23-12500,AA23),0)) -> 438453 | AC23: =ROUND(IF(AND(AB23<=0),0,AB23),0) -> 438453 | AD23: =ROUND(AC23*4%,0) -> 17538 | AE23: =AC23+AD23 -> 455991 | AF23: =ROUND(IF(M23<=400000,0,IF(M23<=800000,(M23-400000)*0.05,IF(M23<=1200000,20000+(M23-800000)*0.1,IF(M23<=1600000,60000+(M23-1200000)*0.15,IF(M23<=2000000,120000+(M23-1600000)*0.2,IF(M23<=2400000,200000+(M23-2000000)*0.25,IF(M23>2400000,300000+(M23-2400000)*0.3,"0"))))))),0) -> 221628 | AG23: =IF(AND(M23=0),0,ROUND(IF(AND(M23<=1200000),AF23-60000,AF23),0)) -> 221628 | AH23: =ROUND(IF(AND(AG23<=0),0,AG23),0) -> 221628 | AI23: =ROUND(AH23*4%,0) -> 8865 | AJ23: =SUM(AH23+AI23) -> 230493 | AS23: 1
B24: 4. Tax on total income (as per item 3) | M24: =IF(AF21=1,AE23,AJ23) -> 230493 | AA24: =ROUND(IF(M21<=400000,0,IF(M21<=800000,(M21-400000)*0.05,IF(M21<=1200000,20000+(M21-800000)*0.1,IF(M21>1600000,60000+(M21-1200000)*0.15,"0")))),0) -> 156827 | AB24: =IF(M21<500001,AA24-MIN(AA24,12500),AA24) -> 156827 | AC24: =ROUND(IF(AND(AB24<=0),0,AB24),0) -> 156827 | AD24: =ROUND(AC24*4%,0) -> 6273 | AE24: =AC24+AD24 -> 163100 | AF24: =ROUND(IF(M21<=400000,0,IF(M21<=800000,(M21-400000)*0.05,IF(M21<=1200000,20000+(M21-800000)*0.1,IF(M21<=1600000,60000+(M21-1200000)*0.15,IF(M21<=2000000,120000+(M21-1600000)*0.2,IF(M21<=2400000,200000+(M21-2000000)*0.25,IF(M21>2400000,300000+(M21-2400000)*0.3,"0"))))))),0) -> 169102 | AG24: =IF(AND(M24=0),0,ROUND(IF(AND(M24<=1200000),AF24-60000,AF24),0)) -> 109102 | AH24: =ROUND(IF(AND(AG24<=0),0,AG24),0) -> 109102 | AI24: =ROUND(AH24*4%,0) -> 4364 | AJ24: =SUM(AH24+AI24) -> 113466 | AS24: 1
B25: 5. Tax on total income (as per item 1) | M25: =IF(AF21=1,AE24,AJ24) -> 113466 | Z25: =ROUND(IF(M21<400001,0,IF(M21>800001,20000,((M21-400000)*0.05))),0) -> 20000 | AA25: =ROUND(IF(M21<800001,0,IF(M21>1200001,40000,((M21-800000)*0.1))),0) -> 40000 | AB25: =ROUND(IF(M21<1200001,0,IF(M21>1600001,30000,((M21-1200000)*0.15))),0) -> 30000 | AC25: =ROUND(IF(M21<1600001,0,IF(M21>2000001,60000,((M21-1600000)*0.2))),0) -> 49102 | AD25: =ROUND(IF(M21<2000001,0,IF(M21>2400001,60000,((M21-2000000)*0.25))),0) -> 0 | AE25: =ROUND(IF(M21<2400001,0,(M21-2400000)*0.3),0) -> 0 | AS25: 2
B26: 6. Tax on salary received in arrears or advance (Difference of item 4 and item 5) | M26: =M24-M25 -> 117027 | AS26: 2
B27: 7. Tax computed in accordance with Table "A" (Brought from column 7 of Table "A") | M27: =N45 -> 37128 | AC27: =ROUND(IF(M23<=400000,0,IF(M23<=800000,(M23-400000)*0.05,IF(M23<=1200000,20000+(M23-800000)*0.1,IF(M23<=1600000,60000+(M23-1200000)*0.15,IF(M23<=2000000,120000+(M23-1600000)*0.2,IF(M23<=2400000,200000+(M23-2000000)*0.25,IF(M23>2400000,300000+(M23-2400000)*0.3,"0"))))))),0) -> 221628
B28: 8. Relief under section 89 (1) (Indicate the difference between the amounts mentioned against items 6 and 7) | M28: =M26-M27 -> 79899
B30: TABLE "A" (See item 7 of Annexure I) | AH30: =IF($D33>1000000, 130000+($D33-1000000)*0.3, IF($D33>500000, 30000+($D33-500000)*0.2, IF($D33>200000, ($D33-200000)*0.1, 0)))+ROUND(IF($D33>1000000, 130000+($D33-1000000)*0.3, IF($D33>500000, 30000+($D33-500000)*0.2, IF($D33>200000, ($D33-200000)*0.1, 0)))*0.03,0) -> 0
B31: Previous Year(s) | D31: Total Net Taxable income of the relevant previous year | F31: salary received in arrears or advance relating to the relevant previous year as mentioned in col. (1) | H31: Total income (as increased by salry received in arrears or advance) or the relevant previous year mentioned in col. (1) (Add col. 2 and 3) | J31: Tax on total income (as per col. 2) | L31: Tax on total income (as per col. 4) | N31: Difference in tax (Amount under col. 6 minus amount under col. 5)
B32: 1 | D32: 2 | F32: 3 | H32: 4 | J32: 5 | L32: 6 | N32: 7 | AJ32: Old Tax | AM32: New tax
B33: 2013-14 | D33: =ROUND('89 (1) Form'!M8, -1) -> 0 | F33: =('89 (1) Form'!M9) -> 0 | H33: =D33+F33 -> 0 | J33: =AL34 -> 0 | L33: =AU34 -> 0 | N33: =L33-J33 -> 0
B34: 2014-15 | D34: =ROUND('89 (1) Form'!M11, -1) -> 0 | F34: ='89 (1) Form'!M12 -> 0 | H34: =D34+F34 -> 0 | J34: =AL35 -> 0 | L34: =AU35 -> 0 | N34: =L34-J34 -> 0 | AH34: 13-14 | AI34: =IF($D33>1000000, 130000+($D33-1000000)*0.3, IF($D33>500000, 30000+($D33-500000)*0.2, IF($D33>200000, ($D33-200000)*0.1, 0))) -> 0 | AJ34: =IF(D33<350001,AI34-MIN(AI34,2000),AI34) -> 0 | AK34: =ROUND(AJ34*0.03, 0) -> 0 | AL34: =AJ34+AK34 -> 0 | AR34: =IF($H33>1000000, 130000+($H33-1000000)*0.3, IF($H33>500000, 30000+($H33-500000)*0.2, IF($H33>200000, ($H33-200000)*0.1, 0))) -> 0 | AS34: =IF(H33<500001,AR34-MIN(AR34,2000),AR34) -> 0 | AT34: =ROUND(AS34*0.03, 0) -> 0 | AU34: =AS34+AT34 -> 0
B35: 2015-16 | D35: =ROUND('89 (1) Form'!M14, -1) -> 0 | F35: ='89 (1) Form'!M15 -> 0 | H35: 0 | J35: 0 | L35: 0 | N35: =L35-J35 -> 0 | AH35: 14-15 | AI35: =IF($D34>1000000, 125000+($D34-1000000)*0.3, IF($D34>500000, 25000+($D34-500000)*0.2, IF($D34>250000, ($D34-250000)*0.1, 0))) -> 0 | AJ35: =IF(D34<350001,AI35-MIN(AI35,2000),AI35) -> 0 | AK35: =ROUND(AJ35*0.03, 0) -> 0 | AL35: 0 | AR35: =IF(H34>1000000, 125000+(H34-1000000)*0.3, IF(H34>500000, 25000+(H34-500000)*0.2, IF(H34>250000, (H34-250000)*0.1, 0))) -> 0 | AS35: =IF(H34<500001,AR35-MIN(AR35,2000),AR35) -> 0 | AT35: =ROUND(AS35*0.03, 0) -> 0 | AU35: 0
B36: 2016-17 | D36: =ROUND('89 (1) Form'!M17, -1) -> 0 | F36: ='89 (1) Form'!M18 -> 0 | H36: 0 | J36: 0 | L36: 0 | N36: 0 | AH36: 15-16 | AI36: =IF($D35>1000000, 125000+($D35-1000000)*0.3, IF($D35>500000, 25000+($D35-500000)*0.2, IF($D35>250000, ($D35-250000)*0.1, 0))) -> 0 | AJ36: =IF(D35<500001,AI36-MIN(AI36,2000),AI36) -> 0 | AK36: =ROUND(AJ36*0.03, 0) -> 0 | AL36: 0 | AR36: =IF(H35>1000000, 125000+(H35-1000000)*0.3, IF(H35>500000, 25000+(H35-500000)*0.2, IF(H35>250000, (H35-250000)*0.1, 0))) -> 0 | AS36: =IF(H35<500001,AR36-MIN(AR36,2000),AR36) -> 0 | AT36: =ROUND(AS36*0.03, 0) -> 0 | AU36: 0
B37: 2017-18 | D37: =ROUND('89 (1) Form'!M20, -1) -> 0 | F37: ='89 (1) Form'!M21 -> 0 | H37: 0 | J37: 0 | L37: 0 | N37: 0 | AH37: 16-17 | AI37: =IF($D36>1000000, 125000+($D36-1000000)*0.3, IF($D36>500000, 25000+($D36-500000)*0.2, IF($D36>250000, ($D36-250000)*0.1, 0))) -> 0 | AJ37: =IF(D36<500001,AI37-MIN(AI37,5000),AI37) -> 0 | AK37: =ROUND(AJ37*0.03, 0) -> 0 | AL37: 0 | AR37: =IF(H36>1000000, 125000+(H36-1000000)*0.3, IF(H36>500000, 25000+(H36-500000)*0.2, IF(H36>250000, (H36-250000)*0.1, 0))) -> 0 | AS37: =IF(H36<500001,AR37-MIN(AR37,5000),AR37) -> 0 | AT37: =ROUND(AS37*0.03, 0) -> 0 | AU37: 0
B38: 2018-19 | D38: =ROUND('89 (1) Form'!M23, -1) -> 0 | F38: ='89 (1) Form'!M24 -> 0 | H38: =D38+F38 -> 0 | J38: 0 | L38: 0 | N38: 0 | AH38: 17-18 | AI38: =IF($D37>1000000, 112500+($D37-1000000)*0.3, IF($D37>500000, 12500+($D37-500000)*0.2, IF($D37>250000, ($D37-250000)*0.05, 0))) -> 0 | AJ38: =IF(D37<350001,AI38-MIN(AI38,2500),AI38) -> 0 | AK38: =ROUND(AJ38*0.03, 0) -> 0 | AL38: 0 | AR38: =IF(H37>1000000, 112500+(H37-1000000)*0.3, IF(H37>500000, 12500+(H37-500000)*0.2, IF(H37>250000, (H37-250000)*0.05, 0))) -> 0 | AS38: =IF(H37<350001,AR38-MIN(AR38,2500),AR38) -> 0 | AT38: =ROUND(AS38*0.03, 0) -> 0 | AU38: 0
B39: 2019-20 | D39: =ROUND('89 (1) Form'!M26, -1) -> 0 | F39: ='89 (1) Form'!M27 -> 0 | H39: 0 | J39: 0 | L39: 0 | N39: 0 | AH39: 18-19 | AI39: 0 | AJ39: =IF(D38<350001,AI39-MIN(AI39,2500),AI39) -> 0 | AK39: =ROUND(AJ39*0.04, 0) -> 0 | AL39: 0 | AR39: 0 | AS39: =IF(H38<350001,AR39-MIN(AR39,2500),AR39) -> 0 | AT39: =ROUND(AS39*0.04, 0) -> 0 | AU39: 0
B40: 2020-21 | D40: =ROUND('89 (1) Form'!M29, -1) -> 450000 | F40: ='89 (1) Form'!M30 -> 27000 | H40: 477000 | J40: =IF(AS22=1,AL41,AP41) -> 0 | L40: =IF(AS22=1,AU41,AY41) -> 0 | N40: 0 | AH40: 19-20 | AI40: 0 | AJ40: =IF(D39<500001,AI40-MIN(AI40,12500),AI40) -> 0 | AK40: 0 | AL40: 0 | AR40: 0 | AS40: =IF(H39<500001,AR40-MIN(AR40,12500),AR40) -> 0 | AT40: 0 | AU40: 0
B41: 2021-22 | D41: =ROUND('89 (1) Form'!M32, -1) -> 550000 | F41: ='89 (1) Form'!M33 -> 25000 | H41: =D41+F41 -> 575000 | J41: =IF(AS23=1,AL42,AP42) -> 23400 | L41: =IF(AS23=1,AU42,AY42) -> 28600 | N41: =L41-J41 -> 5200 | AH41: 20-21 | AI41: 10000 | AJ41: 0 | AK41: 0 | AL41: =AJ41+AK41 -> 0 | AM41: =ROUND(IF(D40<=250000,0,IF(D40<=500000,(D40-250000)*0.05,IF(D40<=750000,12500+(D40-500000)*0.1,IF(D40<=1000000,37500+(D40-750000)*0.15,IF(D40<=1250000,75000+(D40-1000000)*0.2,IF(D40<=1500000,125000+(D40-1250000)*0.25,IF(D40>1500000,187500+(D40-1500000)*0.3,"0"))))))),0) -> 10000 | AN41: =IF(AND(D40<=500000,AM41>=12500),AM41-12500,IF(AND(D40<=500000,AM41<12500),0,AM41)) -> 0 | AO41: =IF(D40<=500000,AN41,AM41) -> 0 | AP41: =SUM(AO41+(ROUND(AO41*0.04, 0))) -> 0 | AR41: 11350 | AS41: 0 | AT41: 0 | AU41: 0 | AV41: =ROUND(IF(H40<=250000,0,IF(H40<=500000,(H40-250000)*0.05,IF(H40<=750000,12500+(H40-500000)*0.1,IF(H40<=1000000,37500+(H40-750000)*0.15,IF(H40<=1250000,75000+(H40-1000000)*0.2,IF(H40<=1500000,125000+(H40-1250000)*0.25,IF(H40>1500000,187500+(H40-1500000)*0.3,"0"))))))),0) -> 11350 | AW41: =IF(AND(H40<=500000,AV41>=12500),AV41-12500,IF(AND(H40<=500000,AV41<12500),0,AV41)) -> 0 | AX41: =IF(H40<=500000,AW41,AV41) -> 0 | AY41: =SUM(AX41+(ROUND(AX41*0.04, 0))) -> 0
B42: 2022-23 | D42: =ROUND('89 (1) Form'!M35, -1) -> 735360 | F42: ='89 (1) Form'!M36 -> 47000 | H42: =D42+F42 -> 782360 | J42: 61955 | L42: 71731 | N42: =L42-J42 -> 9776 | AH42: 21-22 | AI42: 22500 | AJ42: 22500 | AK42: 900 | AL42: =AJ42+AK42 -> 23400 | AM42: =ROUND(IF(D41<=250000,0,IF(D41<=500000,(D41-250000)*0.05,IF(D41<=750000,12500+(D41-500000)*0.1,IF(D41<=1000000,37500+(D41-750000)*0.15,IF(D41<=1250000,75000+(D41-1000000)*0.2,IF(D41<=1500000,125000+(D41-1250000)*0.25,IF(D41>1500000,187500+(D41-1500000)*0.3,"0"))))))),0) -> 17500 | AN42: =IF(AND(D41<=500000,AM42>=12500),AM42-12500,IF(AND(D41<=500000,AM42<12500),0,AM42)) -> 17500 | AO42: =IF(D41<=500000,AN42,AM42) -> 17500 | AP42: =SUM(AO42+(ROUND(AO42*0.04, 0))) -> 18200 | AR42: 27500 | AS42: 27500 | AT42: 1100 | AU42: =AS42+AT42 -> 28600 | AV42: =ROUND(IF(H41<=250000,0,IF(H41<=500000,(H41-250000)*0.05,IF(H41<=750000,12500+(H41-500000)*0.1,IF(H41<=1000000,37500+(H41-750000)*0.15,IF(H41<=1250000,75000+(H41-1000000)*0.2,IF(H41<=1500000,125000+(H41-1250000)*0.25,IF(H41>1500000,187500+(H41-1500000)*0.3,"0"))))))),0) -> 20000 | AW42: =IF(AND(H41<=500000,AV42>=12500),AV42-12500,IF(AND(H41<=500000,AV42<12500),0,AV42)) -> 20000 | AX42: =IF(H41<=500000,AW42,AV42) -> 20000 | AY42: =SUM(AX42+(ROUND(AX42*0.04, 0))) -> 20800
B43: 2023-24 | D43: =ROUND('89 (1) Form'!M38, -1) -> 1015360 | F43: ='89 (1) Form'!M39 -> 84000 | H43: =D43+F43 -> 1099360 | J43: 64796 | L43: 77900 | N43: =L43-J43 -> 13104 | AH43: 22-23 | AI43: =IF($D42>1000000, 112500+($D42-1000000)*0.3, IF($D42>500000, 12500+($D42-500000)*0.2, IF($D42>250000, ($D42-250000)*0.05, 0))) -> 59572 | AJ43: 59572 | AK43: 2383 | AL43: =AJ43+AK43 -> 61955 | AM43: =ROUND(IF(D42<=250000,0,IF(D42<=500000,(D42-250000)*0.05,IF(D42<=750000,12500+(D42-500000)*0.1,IF(D42<=1000000,37500+(D42-750000)*0.15,IF(D42<=1250000,75000+(D42-1000000)*0.2,IF(D42<=1500000,125000+(D42-1250000)*0.25,IF(D42>1500000,187500+(D42-1500000)*0.3,"0"))))))),0) -> 36036 | AN43: =IF(AND(D42<=500000,AM43>=12500),AM43-12500,IF(AND(D42<=500000,AM43<12500),0,AM43)) -> 36036 | AO43: =IF(D42<=500000,AN43,AM43) -> 36036 | AP43: =SUM(AO43+(ROUND(AO43*0.04, 0))) -> 37477 | AR43: =IF(H42>1000000, 112500+(H42-1000000)*0.3, IF(H42>500000, 12500+(H42-500000)*0.2, IF(H42>250000, (H42-250000)*0.05, 0))) -> 68972 | AS43: 68972 | AT43: 2759 | AU43: =AS43+AT43 -> 71731 | AV43: =ROUND(IF(H42<=250000,0,IF(H42<=500000,(H42-250000)*0.05,IF(H42<=750000,12500+(H42-500000)*0.1,IF(H42<=1000000,37500+(H42-750000)*0.15,IF(H42<=1250000,75000+(H42-1000000)*0.2,IF(H42<=1500000,125000+(H42-1250000)*0.25,IF(H42>1500000,187500+(H42-1500000)*0.3,"0"))))))),0) -> 42354 | AW43: =IF(AND(H42<=500000,AV43>=12500),AV43-12500,IF(AND(H42<=500000,AV43<12500),0,AV43)) -> 42354 | AX43: =IF(H42<=500000,AW43,AV43) -> 42354 | AY43: =SUM(AX43+(ROUND(AX43*0.04, 0))) -> 44048
B44: 2024-25 | D44: =ROUND('89 (1) Form'!M41, -1) -> 1099730 | F44: ='89 (1) Form'!M42 -> 58000 | H44: 1157730 | J44: 67558 | L44: 76606 | N44: 9048 | AH44: 23-24 | AI44: =ROUND(IF(D43<=250000,0,IF(D43<=500000,(D43-250000)*0.05,IF(D43<=1000000,12500+(D43-500000)*0.2,IF(D43>1000000,112500+(D43-1000000)*0.3,"0")))),0) -> 117108 | AJ44: 117108 | AK44: 4684 | AL44: =AJ44+AK44 -> 121792 | AM44: =ROUND(IF(D43<=300000,0,IF(D43<=600000,(D43-300000)*0.05,IF(D43<=900000,15000+(D43-600000)*0.1,IF(D43<=1200000,45000+(D43-900000)*0.15,IF(D43<=1500000,90000+(D43-1200000)*0.2,IF(D43>1500000,150000+(D43-1200000)*0.3,"0")))))),0) -> 62304 | AN44: =IF(AND(D43<=700000,AM44>=25000),AM44-25000,IF(AND(D43<=700000,AM44<25000),0,AM44)) -> 62304 | AO44: =IF(D43<=700000,AN44,AM44) -> 62304 | AP44: 64796 | AR44: =IF(H43>1000000, 112500+(H43-1000000)*0.3, IF(H43>500000, 12500+(H43-500000)*0.2, IF(H43>250000, (H43-250000)*0.05, 0))) -> 142308 | AS44: 142308 | AT44: 5692 | AU44: =AS44+AT44 -> 148000 | AV44: =ROUND(IF(H43<=300000,0,IF(H43<=600000,(H43-300000)*0.05,IF(H43<=900000,15000+(H43-600000)*0.1,IF(H43<=1200000,45000+(H43-900000)*0.15,IF(H43<=1500000,90000+(H43-1200000)*0.2,IF(H43>1500000,150000+(H43-1200000)*0.3,"0")))))),0) -> 74904 | AW44: =IF(AND(H43<=700000,AV44>=25000),AV44-25000,IF(AND(H43<=700000,AV44<25000),0,AV44)) -> 74904 | AX44: =IF(H43<=700000,AW44,AV44) -> 74904 | AY44: =SUM(AX44+(ROUND(AX44*0.04, 0))) -> 77900
B45: TOTAL | N45: =SUM(N33:O44) -> 37128 | AH45: 24-25 | AI45: =ROUND(IF(D44<=250000,0,IF(D44<=500000,(D44-250000)*0.05,IF(D44<=1000000,12500+(D44-500000)*0.2,IF(D44>1000000,112500+(D44-1000000)*0.3,"0")))),0) -> 142419 | AJ45: 142419 | AK45: 5697 | AL45: 148116 | AM45: =ROUND(IF(D44<=300000,0,IF(D44<=700000,(D44-300000)*0.05,IF(D44<=1000000,20000+(D44-700000)*0.1,IF(D44<=1200000,50000+(D44-1000000)*0.15,IF(D44<=1500000,80000+(D44-1200000)*0.2,IF(D44>1500000,140000+(D44-1200000)*0.3,"0")))))),0) -> 64960 | AN45: =IF(AND(D44<=700000,AM45>=25000),AM45-25000,IF(AND(D44<=700000,AM45<25000),0,AM45)) -> 64960 | AO45: =IF(D44<=700000,AN45,AM45) -> 64960 | AP45: 67558 | AR45: =IF(H44>1000000, 112500+(H44-1000000)*0.3, IF(H44>500000, 12500+(H44-500000)*0.2, IF(H44>250000, (H44-250000)*0.05, 0))) -> 159819 | AS45: 159819 | AT45: 6393 | AU45: =AS45+AT45 -> 166212 | AV45: =ROUND(IF(H44<=300000,0,IF(H44<=700000,(H44-300000)*0.05,IF(H44<=1000000,20000+(H44-700000)*0.1,IF(H44<=1200000,50000+(H44-1000000)*0.15,IF(H44<=1500000,80000+(H44-1200000)*0.2,IF(H44>1500000,140000+(H44-1200000)*0.3,"0")))))),0) -> 73660 | AW45: =IF(AND(H44<=700000,AV45>=25000),AV45-25000,IF(AND(H44<=700000,AV45<25000),0,AV45)) -> 73660 | AX45: =IF(H44<=700000,AW45,AV45) -> 73660 | AY45: =SUM(AX45+(ROUND(AX45*0.04, 0))) -> 76606

Sheet Form No. 16
B1: FORM NO. 16
B2: [(See Rule 31(1)(a)]
B3: PART-A
B4: Certificate under section 203 of the income-tax act, 1961 for Tax deducted at source on Salary.
B5: Name and address of the Employer | G5: Name and adress of the Employee
B6: =IF('Master Data'!H8="","",UPPER('Master Data'!H8)) -> USHA PALIYA | G6: =IF('Master Data'!D6="","",UPPER('Master Data'!D6)) -> HEERALAL JAT
G7: =IF('Master Data'!D8="","",UPPER('Master Data'!D8)) -> M.G.G.S. BAR
B8: PAN of the Deductor | E8: TAN of the Deductor | G8: PAN of the Employee | J8: Employee Ref No.
E9: ='Master Data'!H12 -> 0 | G9: =UPPER('Master Data'!D12) -> ABCDE1234H | J9: =UPPER('Master Data'!D10) -> RJPAXXXXXXXX4272
B10: CIT (TDS) | G10: Assess. Year | I10: Peroid with the Employer
B11: Adress | C11: The Commissioner of Income Tax, Pali | G11: 2026-27 | I11: From | K11: To
B12: City | C12: PALI | E12: PIN Code | F12: 306401 | I12: 01-4-2025 | K12: 31-03-2026
B13: Summary of amount paid/credited and tax deducted at source thereon in respect of the employee
B14: Quarters | C14: Receipt Numbers of original quarterly statements of TDS under sub-secion (3) of section 200 | F14: Amount paid/ credited | G14: Amount of tax deducted (Rs.) | J14: Amount of tax deposited/ remitted (Rs.)
B15: 1st | G15: =SUM('GA55 Check & Edit'!BX12:BX14) -> Rs. 6,000 | J15: =G15 -> Rs. 6,000
B16: 2nd | G16: =SUM('GA55 Check & Edit'!BX15:BX17) -> Rs. 6,000 | J16: =G16 -> Rs. 6,000
B17: 3rd | G17: =SUM('GA55 Check & Edit'!BX18:BX20) -> Rs. 6,000 | J17: =G17 -> Rs. 6,000
B18: 4th | G18: =SUM('GA55 Check & Edit'!BX21:BX23)+SUM('GA55 Only Print'!X18:'GA55 Only Print'!X26) -> Rs. 6,000 | J18: =G18 -> Rs. 6,000
B19: TOTAL (Rs.) | F19: =SUM(F15:F18) -> Rs. 0 | G19: =SUM(G15:G18) -> Rs. 24,000 | J19: =SUM(J15:J18) -> Rs. 24,000
B20: I. Details of tax deducted and deposited in the Central Government account through book adjustment
B21: (The Deductor to provide payment-wise details of tax deducted and deposited with respect to the deductee)
B22: S.N. | C22: Tax Deposited in respect of the deductee (Rs) | E22: Book identification number (BIN)
E23: Receipt numbers of form No. 24G | F23: DDO serial number in Form No. 24G | G23: Date of transfer voucher (dd/mm/yyyy) | J23: Status of matching with Form No. 24G
B24: 1 | C24: ='GA55 Only Print'!X6 -> Rs. 2,000 | J24: =IF(E24>"0","Yes","-") -> -
B25: 2 | C25: ='GA55 Only Print'!X7 -> Rs. 2,000 | J25: =IF(E25>"0","Yes","-") -> -
B26: 3 | C26: ='GA55 Only Print'!X8 -> Rs. 2,000 | J26: -
B27: 4 | C27: ='GA55 Only Print'!X9 -> Rs. 2,000 | J27: -
B28: 5 | C28: ='GA55 Only Print'!X10 -> Rs. 2,000 | J28: -
B29: 6 | C29: ='GA55 Only Print'!X11 -> Rs. 2,000 | J29: -
B30: 7 | C30: ='GA55 Only Print'!X12 -> Rs. 2,000 | J30: -
B31: 8 | C31: ='GA55 Only Print'!X13 -> Rs. 2,000 | J31: -
B32: 9 | C32: ='GA55 Only Print'!X14 -> Rs. 2,000 | J32: -
B33: 10 | C33: ='GA55 Only Print'!X15 -> Rs. 2,000 | J33: -
B34: 11 | C34: ='GA55 Only Print'!X16 -> Rs. 2,000 | J34: -
B35: 12 | C35: ='GA55 Only Print'!X17 -> Rs. 2,000 | J35: -
B36: 13 | C36: ='GA55 Only Print'!X27-SUM(C24:D35) -> Rs. 0 | J36: -
B37: 14 | C37: ='[3]G.A. 55'!T24+'[3]G.A. 55'!T26 -> Rs. 0 | J37: -
B38: Total | C38: =SUM(C24:D37) -> Rs. 24,000
B39: II. Details of Tax deducted and deposited in Central Government Account through Challan.
B40: (The deducter to provide payment-wise details of tax deducted and deposited with respect to the deductee)
B41: S.N. | C41: Tax Deposited in respect on of the deductee (Rs) | E41: Challan identification number (CIN)
E42: BSR code of the Bank Branch | G42: Date on which tax deposited (dd/mm/yyyy) | I42: Challan Serial Number | K42: Status of matching with OLTAS
B43: 1 | K43: =IF(C43>"0","Yes","-") -> -
B44: 2 | K44: =IF(C44>"0","Yes","-") -> -
B45: 3 | K45: -
B46: 4 | K46: -
B47: 5 | K47: -
B48: 6 | K48: -
B49: 7 | K49: -
B50: 8 | K50: -
B51: 9 | K51: -
B52: 10 | K52: -
B53: 11 | K53: -
B54: 12 | K54: -
B55: 13
B56: 14
B57: Total | C57: =SUM(C43:C56) -> 0
B58: :: 2 ::
B59: Verification
B60: I | C60: =B6&"," -> USHA PALIYA, | F60: Son/Daughter of | K60: working in the
B61: capacity of | D61: PRINCIPAL | G61: (designation) do hereby certify that a sum of
B62: Rs. | C62: =J19 -> 24000.00 | D62: =IF(OR(LEN(FLOOR(C62,1))=13,FLOOR(C62,1)<=0),"Out of range",PROPER(SUBSTITUTE(CONCATENATE(CHOOSE(MID(TEXT(INT(C62),REPT(0,12)),1,1)+1,"","one hundred ","two hundred ","three hundred ","four hundred ","five hundred ","six hundred ","seven hundred ","eight hundred ","nine hundred "),CHOOSE(MID(TEXT(INT(C62),REPT(0,12)),2,1)+1,"",CHOOSE(MID(TEXT(INT(C62),REPT(0,12)),3,1)+1,"ten","eleven","twelve","thirteen","fourteen","fifteen","sixteen","seventeen","eighteen","nineteen"),"twenty","thirty","forty","fifty","sixty","seventy","eighty","ninety"),IF(VALUE(MID(TEXT(INT(C62),REPT(0,12)),2,1))>1,CHOOSE(MID(TEXT(INT(C62),REPT(0,12)),3,1)+1,"","-one","-two","-three","-four","-five","-six","-seven","-eight","-nine"),IF(VALUE(MID(TEXT(INT(C62),REPT(0,12)),2,1))=0,CHOOSE(MID(TEXT(INT(C62),REPT(0,12)),3,1)+1,"","one","two","three","four","five","six","seven","eight","nine"),"")),IF(C62>=10^9," billion ",""),CHOOSE(MID(TEXT(INT(C62),REPT(0,12)),4,1)+1,"","one hundred ","two hundred ","three hundred ","four hundred ","five hundred ","six hundred ","seven hundred ","eight hundred ","nine hundred "),CHOOSE(MID(TEXT(INT(C62),REPT(0,12)),5,1)+1,"",CHOOSE(MID(TEXT(INT(C62),REPT(0,12)),6,1)+1,"ten","eleven","twelve","thirteen","fourteen","fifteen","sixteen","seventeen","eighteen","nineteen"),"twenty","thirty","forty","fifty","sixty","seventy","eighty","ninety"),IF(VALUE(MID(TEXT(INT(C62),REPT(0,12)),5,1))>1,CHOOSE(MID(TEXT(INT(C62),REPT(0,12)),6,1)+1,"","-one","-two","-three","-four","-five","-six","-seven","-eight","-nine"),IF(VALUE(MID(TEXT(INT(C62),REPT(0,12)),5,1))=0,CHOOSE(MID(TEXT(INT(C62),REPT(0,12)),6,1)+1,"","one","two","three","four","five","six","seven","eight","nine"),"")),IF(VALUE(MID(TEXT(INT(C62),REPT(0,12)),4,3))>0," million ",""),CHOOSE(MID(TEXT(INT(C62),REPT(0,12)),7,1)+1,"","one hundred ","two hundred ","three hundred ","four hundred ","five hundred ","six hundred ","seven hundred ","eight hundred ","nine hundred "),CHOOSE(MID(TEXT(INT(C62),REPT(0,12)),8,1)+1,"",CHOOSE(MID(TEXT(INT(C62),REPT(0,12)),9,1)+1,"ten","eleven","twelve","thirteen","fourteen","fifteen","sixteen","seventeen","eighteen","nineteen"),"twenty","thirty","forty","fifty","sixty","seventy","eighty","ninety"),IF(VALUE(MID(TEXT(INT(C62),REPT(0,12)),8,1))>1,CHOOSE(MID(TEXT(INT(C62),REPT(0,12)),9,1)+1,"","-one","-two","-three","-four","-five","-six","-seven","-eight","-nine"),IF(VALUE(MID(TEXT(INT(C62),REPT(0,12)),8,1))=0,CHOOSE(MID(TEXT(INT(C62),REPT(0,12)),9,1)+1,"","one","two","three","four","five","six","seven","eight","nine"),"")),IF(VALUE(MID(TEXT(INT(C62),REPT(0,12)),7,3))," thousand ",""),CHOOSE(MID(TEXT(INT(C62),REPT(0,12)),10,1)+1,"","one hundred ","two hundred ","three hundred ","four hundred ","five hundred ","six hundred ","seven hundred ","eight hundred ","nine hundred "),CHOOSE(MID(TEXT(INT(C62),REPT(0,12)),11,1)+1,"",CHOOSE(MID(TEXT(INT(C62),REPT(0,12)),12,1)+1,"ten","eleven","twelve","thirteen","fourteen","fifteen","sixteen","seventeen","eighteen","nineteen"),"twenty","thirty","forty","fifty","sixty","seventy","eighty","ninety"),IF(VALUE(MID(TEXT(INT(C62),REPT(0,12)),11,1))>1,CHOOSE(MID(TEXT(INT(C62),REPT(0,12)),12,1)+1,"","-one","-two","-three","-four","-five","-six","-seven","-eight","-nine"),IF(VALUE(MID(TEXT(INT(C62),REPT(0,12)),11,1))=0,CHOOSE(MID(TEXT(INT(C62),REPT(0,12)),12,1)+1,"","one","two","three","four","five","six","seven","eight","nine"),"")))," "," ")&IF(FLOOR(C62,1)>1," Rupees"," Rupees"))&IF(ISERROR(FIND(".",C62,1)),""," and "&PROPER(IF(LEN(LEFT(TRIM(MID(SUBSTITUTE('[3]16 NO.'!$B$62,".",REPT(" ",255)),255,200)),2))=1,CHOOSE(1*LEFT(TRIM(MID(SUBSTITUTE('[3]16 NO.'!$B$62,".",REPT(" ",255)),255,200)),2),"ten","twenty","thirty","forty","fifty","sixty","seventy","eighty","ninety")&" Paise","")&CONCATENATE(CHOOSE(MID(TEXT(INT(LEFT(TRIM(MID(SUBSTITUTE('[3]16 NO.'!$B$62,".",REPT(" ",255)),255,200)),2)),REPT(0,12)),11,1)+1,"",CHOOSE(MID(TEXT(INT(LEFT(TRIM(MID(SUBSTITUTE('[3]16 NO.'!$B$62,".",REPT(" ",255)),255,200)),2)),REPT(0,12)),12,1)+1,"ten","eleven","twelve","thirteen","fourteen","fifteen","sixteen","seventeen","eighteen","nineteen"),"twenty","thirty","forty","fifty","sixty","seventy","eighty","ninety"),IF(VALUE(MID(TEXT(INT(LEFT(TRIM(MID(SUBSTITUTE('[3]16 NO.'!$B$62,".",REPT(" ",255)),255,200)),2)),REPT(0,12)),11,1))>1,CHOOSE(MID(TEXT(INT(LEFT(TRIM(MID(SUBSTITUTE('[3]16 NO.'!$B$62,".",REPT(" ",255)),255,200)),2)),REPT(0,12)),12,1)+1,"","-one","-two","-three","-four","-five","-six","-seven","-eight","-nine")&" Paise",IF(LEFT(TRIM(MID(SUBSTITUTE('[3]16 NO.'!$B$62,".",REPT(" ",255)),255,200)),2)="01","one Paise",IF(LEFT(TRIM(MID(SUBSTITUTE('[3]16 NO.'!$B$62,".",REPT(" ",255)),255,200)),1)="0",CHOOSE(MID(TEXT(INT(LEFT(TRIM(MID(SUBSTITUTE('[3]16 NO.'!$B$62,".",REPT(" ",255)),255,200)),2)),REPT(0,12)),12,1)+1,"","one","two","three","four","five","six","seven","eight","nine")&" Paise",""))))))) -> Twenty-Four Thousand Rupees | I62: (in words) has been deducted
B63: and deposited to the credit of the Central Govt.. I further certify that the information given above is true, complete and correct
B64: and is based on the books of account, documents, TDS statement, TDS deposited and other available records.
B65: Place | D65: =G7 -> M.G.G.S. BAR
B66: Date | D66: =TODAY() -> 2025-11-12 | F66: Signature of person responsible for deduction of tax
B67: Designation | D67: =D61 -> PRINCIPAL | F67: Full name : | G67: =B6 -> USHA PALIYA
B68: PART- B (Annexure)
B69: DETAILS OF SALARY PAID AND ANY OTHER INCOME AND TAX DEDUCTED
B70: 1. Gross salary
B71: (a) Salary as per provisions contained in section 17(1) | G71: =COMPUTATION!O4 -> Rs. 2,161,508.00
B72: (b) Value of perquisites u/s 17(2) (as per Form No. 12BA, wherever applicable)
B73: (c) Profits in lieu of salary under section 17(3) (as per Form No. 12BA, wherever applicable) | G73: 0
B74: (d) Total (a+b+c) | I74: =G71+G72+G73 -> Rs. 2,161,508.00
B75: 2. Less: Allowance to the extent exempt u/s 10 House Rent Allowance
B76: Allowance
B77: House Rent Allow. US10 (13 A) | E77: =COMPUTATION!O5 -> 0 | F77: =E77 -> 0
B78: US10 (14) | F78: 0 | G78: =F77+F78 -> 0
B79: 3. Balance (1 - 2) | I79: =I74-G78 -> Rs. 2,161,508.00
B80: 4. Deductions: U/s 16
B81: (a) | D81: Standard Deduction (u/s 16 (ia) | G81: =COMPUTATION!K10 -> Rs. 75,000.00
B82: (b) | D82: Entertainment allowance | G82: =COMPUTATION!K7 -> 0
B83: (c) | D83: Tax on employment | G83: =COMPUTATION!K8 -> 0
B84: 5. Aggregate of 4 (a) and (b) | I84: =G82+G83+G81 -> Rs. 75,000.00
B85: Income chargeable under the head "salaries" (3-5) | K85: =I79-I84 -> Rs. 2,086,508.00
B86: 6. Income From House Property (a + b)
B87: 30% of Rent | D87: Interest on Home Loan | F87: house Tax
B88: =COMPUTATION!D14 -> 0 | D88: =COMPUTATION!F14 -> 0 | F88: =COMPUTATION!I14 -> 0 | G88: =SUM(B88+D88+F88) -> 0
B89: (a) Received House Rent | D89: =COMPUTATION!K12 -> 0 | F89: Total (a-b) +- | G89: =SUM(D89-G88) -> 0 | K89: =K85+G89 -> Rs. 2,086,508.00
B90: 7. Add: Any other income reported by employee
B91: FD व अन्य स्रोत से प्राप्त ब्याज तथा Bond से प्राप्त ब्याज | F91: =COMPUTATION!E17+COMPUTATION!I17 -> 0
B92: अन्य आय | F92: =COMPUTATION!I16 -> 0
B93: Saving Bank A/C interest | F93: =COMPUTATION!E16 -> 0 | G93: =F93 -> 0 | I93: =F91+F92+F93 -> 0
B94: 8. Gross total income (6+7) | K94: =K89+I93 -> Rs. 2,086,508.00
B95: 9. Deductions under Chapter VI A
B96: (A) Section 80C, 80CCC and 80CCD
B97: (a) Section 80C | I97: Gross Amount | K97: Deductible Amount
B98: A | C98: 1 | D98: (A) | E98: =IF('Master Data'!I30='GA55 Check & Edit'!AN5,'GA55 Check & Edit'!AN5,'GA55 Check & Edit'!AN6) -> GPF | G98: =IF('Master Data'!I30='GA55 Check & Edit'!AN5,COMPUTATION!G26,COMPUTATION!G31) -> 0
C99: 2 | E99: State Insurance | G99: =COMPUTATION!G21 -> 0
C100: 3 | E100: Gr. Acc. Insurance | G100: =COMPUTATION!G27 -> 0
C101: 4 | E101: LIC + ULIP + PLI | G101: =COMPUTATION!G22+COMPUTATION!G30+COMPUTATION!M27+COMPUTATION!G28 -> 0
C102: 5 | E102: PPF | G102: =COMPUTATION!G24 -> 0
C103: 6 | E103: Home Loan Installment (Capital) | G103: =COMPUTATION!G29 -> 0
C104: 7 | E104: Equity link saving schame + Defferred Annuty | G104: =COMPUTATION!M25+COMPUTATION!M26 -> 0
C105: 8 | E105: Pension Plan (US80ccc+US 80CCD)(1) | G105: =COMPUTATION!M21+COMPUTATION!M22 -> 0
C106: 9 | E106: Tution Fee | G106: =COMPUTATION!M24 -> 0
C107: 10 | E107: NSC + Interest on NSC | G107: =COMPUTATION!G25+COMPUTATION!M23 -> 0
C108: 11 | E108: Sukanya Samridhi A/C | G108: =COMPUTATION!M29 -> 0
C109: 12 | E109: Fixed Deposit above 5 years | G109: =COMPUTATION!M30 -> 0
C110: 13 | E110: Mutual Fund | G110: =COMPUTATION!M28 -> 0 | I110: =SUM(G98:H110) -> 0 | K110: =IF(I110<=150000, I110, 150000) -> 0
C111: (C) Section 80CCD(1B) (RS.-50000/-) | G111: =COMPUTATION!O34 -> 0 | I111: Total Deducation : | K111: =SUM(K110+G111) -> 0
I112: ………………… 3
B113: :: 3 ::
B114: (B) Other Sections (e.g. 80D, 80E, 80G etc.) under Chapter VIA | G114: Gross Amount | I114: Qualifying amount | K114: Deductible Amount
B115: 1 | C115: U/S 80D | G115: =COMPUTATION!O37 -> 0 | I115: =G115 -> 0
B116: 2 | C116: U/S 80DD | G116: =COMPUTATION!O38 -> 0 | I116: 0
B117: 3 | C117: U/S 80DDB | G117: =COMPUTATION!O39 -> 0 | I117: 0
B118: 4 | C118: U/S 80E | G118: =COMPUTATION!O40 -> 0 | I118: 0
B119: 5 | C119: U/S 80G | G119: =COMPUTATION!O41 -> 0 | I119: 0
B120: 6 | C120: U/S 80GGA | G120: =COMPUTATION!O44 -> 0 | I120: 0
B121: 7 | C121: U/S 80 EE & US 80EEA & Others | G121: =COMPUTATION!O45 -> 0 | I121: 0
B122: 8 | C122: U/S 80U | G122: =COMPUTATION!O42 -> 0 | I122: 0
B123: 9 | C123: US 80TTA [Exempt Saving Bank Int. Max. RS. 10,000/-] | G123: =COMPUTATION!O43 -> 0 | I123: =G123 -> 0 | K123: =ROUND(SUM(I115:J123),0) -> 0
B124: 10. Aggregate of deductible amount under chapter VIA | K124: =ROUND((K111+K123),0) -> 0
B125: 11. Total income (8-10) | E125: (Roundup Figures of Rs 10) | K125: =ROUND((K94-K124),-1) -> Rs. 2,086,510.00
B126: 12. Tax on total income | K126: =COMPUTATION!O61 -> Rs. 221,628.00
B127: 13. Rebate U/s 87 A (Taxable Income below Rs. 5,00,000/- in Old Regime , below Rs. 12,00,000/- in New Regime) & Marginal relief benefit | K127: =COMPUTATION!O62 -> 0
B128: 14. Tax payable (12-13) | K128: =K126-K127 -> Rs. 221,628.00
B129: 15. Education & Health cess @ 4% (on tax computed at S.No. 12) | K129: =ROUND((K128*0.04),0) -> Rs. 8,865.00
B130: 16. Tax payable (14+15) [Round off U/s 288 B] | K130: =K128+K129 -> Rs. 230,493.00
B131: 17. Less:- Relief under section 89 (Attach Form 10E) | K131: =COMPUTATION!O66 -> 0
B132: 18. Tax payable (14-15) | K132: =K130-K131 -> Rs. 230,493.00
B133: 19. Tax deducted at source u/s 192 (1) | K133: =COMPUTATION!O69 -> Rs. 24,000.00
B134: =IF(K132>K133,"Income Tax Payable",IF(K132<K133,"Income Tax Refundable","Income Tax Payble/Refundable")) -> Income Tax Payable | K134: =IF(K132>K133,K132-K133,K133-K132) -> Rs. 206,493.00
B135: Verification
B136: I | C136: =B6&"," -> USHA PALIYA, | F136: Son/Daughter of | G136: =IF(G60="","",G60) ->  | K136: working in the
B137: capacity of | D137: =D61 -> PRINCIPAL | G137: (designation) do hereby certify that a sum of
B138: Rs. | C138: =K133 -> 24000 | D138: =IF(OR(LEN(FLOOR(C62,1))=13,FLOOR(C62,1)<=0),"Out of range",PROPER(SUBSTITUTE(CONCATENATE(CHOOSE(MID(TEXT(INT(C62),REPT(0,12)),1,1)+1,"","one hundred ","two hundred ","three hundred ","four hundred ","five hundred ","six hundred ","seven hundred ","eight hundred ","nine hundred "),CHOOSE(MID(TEXT(INT(C62),REPT(0,12)),2,1)+1,"",CHOOSE(MID(TEXT(INT(C62),REPT(0,12)),3,1)+1,"ten","eleven","twelve","thirteen","fourteen","fifteen","sixteen","seventeen","eighteen","nineteen"),"twenty","thirty","forty","fifty","sixty","seventy","eighty","ninety"),IF(VALUE(MID(TEXT(INT(C62),REPT(0,12)),2,1))>1,CHOOSE(MID(TEXT(INT(C62),REPT(0,12)),3,1)+1,"","-one","-two","-three","-four","-five","-six","-seven","-eight","-nine"),IF(VALUE(MID(TEXT(INT(C62),REPT(0,12)),2,1))=0,CHOOSE(MID(TEXT(INT(C62),REPT(0,12)),3,1)+1,"","one","two","three","four","five","six","seven","eight","nine"),"")),IF(C62>=10^9," billion ",""),CHOOSE(MID(TEXT(INT(C62),REPT(0,12)),4,1)+1,"","one hundred ","two hundred ","three hundred ","four hundred ","five hundred ","six hundred ","seven hundred ","eight hundred ","nine hundred "),CHOOSE(MID(TEXT(INT(C62),REPT(0,12)),5,1)+1,"",CHOOSE(MID(TEXT(INT(C62),REPT(0,12)),6,1)+1,"ten","eleven","twelve","thirteen","fourteen","fifteen","sixteen","seventeen","eighteen","nineteen"),"twenty","thirty","forty","fifty","sixty","seventy","eighty","ninety"),IF(VALUE(MID(TEXT(INT(C62),REPT(0,12)),5,1))>1,CHOOSE(MID(TEXT(INT(C62),REPT(0,12)),6,1)+1,"","-one","-two","-three","-four","-five","-six","-seven","-eight","-nine"),IF(VALUE(MID(TEXT(INT(C62),REPT(0,12)),5,1))=0,CHOOSE(MID(TEXT(INT(C62),REPT(0,12)),6,1)+1,"","one","two","three","four","five","six","seven","eight","nine"),"")),IF(VALUE(MID(TEXT(INT(C62),REPT(0,12)),4,3))>0," million ",""),CHOOSE(MID(TEXT(INT(C62),REPT(0,12)),7,1)+1,"","one hundred ","two hundred ","three hundred ","four hundred ","five hundred ","six hundred ","seven hundred ","eight hundred ","nine hundred "),CHOOSE(MID(TEXT(INT(C62),REPT(0,12)),8,1)+1,"",CHOOSE(MID(TEXT(INT(C62),REPT(0,12)),9,1)+1,"ten","eleven","twelve","thirteen","fourteen","fifteen","sixteen","seventeen","eighteen","nineteen"),"twenty","thirty","forty","fifty","sixty","seventy","eighty","ninety"),IF(VALUE(MID(TEXT(INT(C62),REPT(0,12)),8,1))>1,CHOOSE(MID(TEXT(INT(C62),REPT(0,12)),9,1)+1,"","-one","-two","-three","-four","-five","-six","-seven","-eight","-nine"),IF(VALUE(MID(TEXT(INT(C62),REPT(0,12)),8,1))=0,CHOOSE(MID(TEXT(INT(C62),REPT(0,12)),9,1)+1,"","one","two","three","four","five","six","seven","eight","nine"),"")),IF(VALUE(MID(TEXT(INT(C62),REPT(0,12)),7,3))," thousand ",""),CHOOSE(MID(TEXT(INT(C62),REPT(0,12)),10,1)+1,"","one hundred ","two hundred ","three hundred ","four hundred ","five hundred ","six hundred ","seven hundred ","eight hundred ","nine hundred "),CHOOSE(MID(TEXT(INT(C62),REPT(0,12)),11,1)+1,"",CHOOSE(MID(TEXT(INT(C62),REPT(0,12)),12,1)+1,"ten","eleven","twelve","thirteen","fourteen","fifteen","sixteen","seventeen","eighteen","nineteen"),"twenty","thirty","forty","fifty","sixty","seventy","eighty","ninety"),IF(VALUE(MID(TEXT(INT(C62),REPT(0,12)),11,1))>1,CHOOSE(MID(TEXT(INT(C62),REPT(0,12)),12,1)+1,"","-one","-two","-three","-four","-five","-six","-seven","-eight","-nine"),IF(VALUE(MID(TEXT(INT(C62),REPT(0,12)),11,1))=0,CHOOSE(MID(TEXT(INT(C62),REPT(0,12)),12,1)+1,"","one","two","three","four","five","six","seven","eight","nine"),"")))," "," ")&IF(FLOOR(C62,1)>1," Rupees"," Rupees"))&IF(ISERROR(FIND(".",C62,1)),""," and "&PROPER(IF(LEN(LEFT(TRIM(MID(SUBSTITUTE('[3]16 NO.'!$B$62,".",REPT(" ",255)),255,200)),2))=1,CHOOSE(1*LEFT(TRIM(MID(SUBSTITUTE('[3]16 NO.'!$B$62,".",REPT(" ",255)),255,200)),2),"ten","twenty","thirty","forty","fifty","sixty","seventy","eighty","ninety")&" Paise","")&CONCATENATE(CHOOSE(MID(TEXT(INT(LEFT(TRIM(MID(SUBSTITUTE('[3]16 NO.'!$B$62,".",REPT(" ",255)),255,200)),2)),REPT(0,12)),11,1)+1,"",CHOOSE(MID(TEXT(INT(LEFT(TRIM(MID(SUBSTITUTE('[3]16 NO.'!$B$62,".",REPT(" ",255)),255,200)),2)),REPT(0,12)),12,1)+1,"ten","eleven","twelve","thirteen","fourteen","fifteen","sixteen","seventeen","eighteen","nineteen"),"twenty","thirty","forty","fifty","sixty","seventy","eighty","ninety"),IF(VALUE(MID(TEXT(INT(LEFT(TRIM(MID(SUBSTITUTE('[3]16 NO.'!$B$62,".",REPT(" ",255)),255,200)),2)),REPT(0,12)),11,1))>1,CHOOSE(MID(TEXT(INT(LEFT(TRIM(MID(SUBSTITUTE('[3]16 NO.'!$B$62,".",REPT(" ",255)),255,200)),2)),REPT(0,12)),12,1)+1,"","-one","-two","-three","-four","-five","-six","-seven","-eight","-nine")&" Paise",IF(LEFT(TRIM(MID(SUBSTITUTE('[3]16 NO.'!$B$62,".",REPT(" ",255)),255,200)),2)="01","one Paise",IF(LEFT(TRIM(MID(SUBSTITUTE('[3]16 NO.'!$B$62,".",REPT(" ",255)),255,200)),1)="0",CHOOSE(MID(TEXT(INT(LEFT(TRIM(MID(SUBSTITUTE('[3]16 NO.'!$B$62,".",REPT(" ",255)),255,200)),2)),REPT(0,12)),12,1)+1,"","one","two","three","four","five","six","seven","eight","nine")&" Paise",""))))))) -> Twenty-Four Thousand Rupees | I138: (in words) has beeen deducted and
B139: deposited to the credit of the Central Government. I further certify that the information given above is true, complete and correct and is based on the books of account, documents, TDS statement, TDS deposited and other available records.
B140: Place | D140: =D65 -> M.G.G.S. BAR
B141: Date | D141: =TODAY() -> 2025-11-12 | F141: Signature of person responsible for deduction of tax
B142: Designation | D142: =D137 -> PRINCIPAL | F142: Full name : | G142: =B6 -> USHA PALIYA
